Workbook

Sheet MAIN
F8: =IF(MAIN!$A$40=FALSE,'STANDINGS - 1st Half 2013'!E10,'STANDINGS - 2nd Half 2013'!E10) -> Final Standings - Second Half | G8: Team Standings After Week 1 | H8: Team Standings After Week 1 | I8: Team Standings After Week 1 | J8: Team Standings After Week 1 | K8: Team Standings After Week 1 | M8: Match Results - Week 9 | V8: Current Handicaps
F10: Rank | G10: Team | K10: Points | M10: =IF(IF($A$40=FALSE,IF(RIGHT($M$8,LEN($M$8)-FIND("k ",$M$8)-1)*1<=SCHEDULE!$B$99/2,HLOOKUP(RIGHT($M$8,6),'MATCH RESULTS - 1st Half 2013'!$B$13:$R$25,3,FALSE),HLOOKUP(RIGHT($M$8,LEN($M$8)-FIND("W",$M$8)+1),'MATCH RESULTS - 1st Half 2013'!$B$27:$R$39,3,FALSE)),IF(RIGHT($M$8,LEN($M$8)-FIND("k ",$M$8)-1)*1<=SCHEDULE!$B$99/2,HLOOKUP(RIGHT($M$8,6),'MATCH RESULTS - 2nd Half 2013'!$B$13:$R$25,3,FALSE),HLOOKUP(RIGHT($M$8,LEN($M$8)-FIND("W",$M$8)+1),'MATCH RESULTS - 2nd Half 2013'!$B$27:$R$39,3,FALSE)))="","",IF($A$40=FALSE,IF(RIGHT($M$8,LEN($M$8)-FIND("k ",$M$8)-1)*1<=SCHEDULE!$B$99/2,HLOOKUP(RIGHT($M$8,6),'MATCH RESULTS - 1st Half 2013'!$B$13:$R$25,3,FALSE),HLOOKUP(RIGHT($M$8,LEN($M$8)-FIND("W",$M$8)+1),'MATCH RESULTS - 1st Half 2013'!$B$27:$R$39,3,FALSE)),IF(RIGHT($M$8,LEN($M$8)-FIND("k ",$M$8)-1)*1<=SCHEDULE!$B$99/2,HLOOKUP(RIGHT($M$8,6),'MATCH RESULTS - 2nd Half 2013'!$B$13:$R$25,3,FALSE),HLOOKUP(RIGHT($M$8,LEN($M$8)-FIND("W",$M$8)+1),'MATCH RESULTS - 2nd Half 2013'!$B$27:$R$39,3,FALSE)))) -> Team 04 def. Team 16, 5.0 - 4.0 | V10: 1A | W10: =IFERROR(VLOOKUP(V10,'LEAGUE MEMBERSHIP'!$E:$F,2,FALSE),"") -> Lester Lockhart | Y10: =IFERROR(VLOOKUP(VLOOKUP(V10,'LEAGUE MEMBERSHIP'!$E:$G,3,FALSE),'INDIVIDUAL SCORES'!$A:$P,16,FALSE),"") -> 9 | AA10: 1B | AB10: =IFERROR(VLOOKUP(AA10,'LEAGUE MEMBERSHIP'!$E:$F,2,FALSE),"") -> Pete Normandin | AD10: =IFERROR(VLOOKUP(VLOOKUP(AA10,'LEAGUE MEMBERSHIP'!$E:$G,3,FALSE),'INDIVIDUAL SCORES'!$A:$P,16,FALSE),"") -> 13
F11: =IF(MAIN!$A$40=FALSE,'STANDINGS - 1st Half 2013'!D11,'STANDINGS - 2nd Half 2013'!D11) -> 1 | G11: =IF(MAIN!$A$40=FALSE,'STANDINGS - 1st Half 2013'!E11,'STANDINGS - 2nd Half 2013'!E11) -> 10 Ron Eckstrom / Beth Romano | K11: =IF(MAIN!$A$40=FALSE,'STANDINGS - 1st Half 2013'!I11,'STANDINGS - 2nd Half 2013'!I11) -> 43.5 | M11: =IF(IF($A$40=FALSE,IF(RIGHT($M$8,LEN($M$8)-FIND("k ",$M$8)-1)*1<=SCHEDULE!$B$99/2,HLOOKUP(RIGHT($M$8,6),'MATCH RESULTS - 1st Half 2013'!$B$13:$R$25,4,FALSE),HLOOKUP(RIGHT($M$8,LEN($M$8)-FIND("W",$M$8)+1),'MATCH RESULTS - 1st Half 2013'!$B$27:$R$39,4,FALSE)),IF(RIGHT($M$8,LEN($M$8)-FIND("k ",$M$8)-1)*1<=SCHEDULE!$B$99/2,HLOOKUP(RIGHT($M$8,6),'MATCH RESULTS - 2nd Half 2013'!$B$13:$R$25,4,FALSE),HLOOKUP(RIGHT($M$8,LEN($M$8)-FIND("W",$M$8)+1),'MATCH RESULTS - 2nd Half 2013'!$B$27:$R$39,4,FALSE)))="","",IF($A$40=FALSE,IF(RIGHT($M$8,LEN($M$8)-FIND("k ",$M$8)-1)*1<=SCHEDULE!$B$99/2,HLOOKUP(RIGHT($M$8,6),'MATCH RESULTS - 1st Half 2013'!$B$13:$R$25,4,FALSE),HLOOKUP(RIGHT($M$8,LEN($M$8)-FIND("W",$M$8)+1),'MATCH RESULTS - 1st Half 2013'!$B$27:$R$39,4,FALSE)),IF(RIGHT($M$8,LEN($M$8)-FIND("k ",$M$8)-1)*1<=SCHEDULE!$B$99/2,HLOOKUP(RIGHT($M$8,6),'MATCH RESULTS - 2nd Half 2013'!$B$13:$R$25,4,FALSE),HLOOKUP(RIGHT($M$8,LEN($M$8)-FIND("W",$M$8)+1),'MATCH RESULTS - 2nd Half 2013'!$B$27:$R$39,4,FALSE)))) -> Team 08 def. Team 20, 5.0 - 4.0 | V11: 2A | W11: =IFERROR(VLOOKUP(V11,'LEAGUE MEMBERSHIP'!$E:$F,2,FALSE),"") -> Dave Cormier | Y11: =IFERROR(VLOOKUP(VLOOKUP(V11,'LEAGUE MEMBERSHIP'!$E:$G,3,FALSE),'INDIVIDUAL SCORES'!$A:$P,16,FALSE),"") -> 6 | AA11: 2B | AB11: =IFERROR(VLOOKUP(AA11,'LEAGUE MEMBERSHIP'!$E:$F,2,FALSE),"") -> Adam Williamson | AD11: =IFERROR(VLOOKUP(VLOOKUP(AA11,'LEAGUE MEMBERSHIP'!$E:$G,3,FALSE),'INDIVIDUAL SCORES'!$A:$P,16,FALSE),"") -> 2
F12: =IF(MAIN!$A$40=FALSE,'STANDINGS - 1st Half 2013'!D12,'STANDINGS - 2nd Half 2013'!D12) -> 2 | G12: =IF(MAIN!$A$40=FALSE,'STANDINGS - 1st Half 2013'!E12,'STANDINGS - 2nd Half 2013'!E12) -> 05 Dennis Normandin / Mark Normandin | K12: =IF(MAIN!$A$40=FALSE,'STANDINGS - 1st Half 2013'!I12,'STANDINGS - 2nd Half 2013'!I12) -> 42.5 | M12: =IF(IF($A$40=FALSE,IF(RIGHT($M$8,LEN($M$8)-FIND("k ",$M$8)-1)*1<=SCHEDULE!$B$99/2,HLOOKUP(RIGHT($M$8,6),'MATCH RESULTS - 1st Half 2013'!$B$13:$R$25,5,FALSE),HLOOKUP(RIGHT($M$8,LEN($M$8)-FIND("W",$M$8)+1),'MATCH RESULTS - 1st Half 2013'!$B$27:$R$39,5,FALSE)),IF(RIGHT($M$8,LEN($M$8)-FIND("k ",$M$8)-1)*1<=SCHEDULE!$B$99/2,HLOOKUP(RIGHT($M$8,6),'MATCH RESULTS - 2nd Half 2013'!$B$13:$R$25,5,FALSE),HLOOKUP(RIGHT($M$8,LEN($M$8)-FIND("W",$M$8)+1),'MATCH RESULTS - 2nd Half 2013'!$B$27:$R$39,5,FALSE)))="","",IF($A$40=FALSE,IF(RIGHT($M$8,LEN($M$8)-FIND("k ",$M$8)-1)*1<=SCHEDULE!$B$99/2,HLOOKUP(RIGHT($M$8,6),'MATCH RESULTS - 1st Half 2013'!$B$13:$R$25,5,FALSE),HLOOKUP(RIGHT($M$8,LEN($M$8)-FIND("W",$M$8)+1),'MATCH RESULTS - 1st Half 2013'!$B$27:$R$39,5,FALSE)),IF(RIGHT($M$8,LEN($M$8)-FIND("k ",$M$8)-1)*1<=SCHEDULE!$B$99/2,HLOOKUP(RIGHT($M$8,6),'MATCH RESULTS - 2nd Half 2013'!$B$13:$R$25,5,FALSE),HLOOKUP(RIGHT($M$8,LEN($M$8)-FIND("W",$M$8)+1),'MATCH RESULTS - 2nd Half 2013'!$B$27:$R$39,5,FALSE)))) -> Team 12 def. Team 01, 6.0 - 3.0 | V12: 3A | W12: =IFERROR(VLOOKUP(V12,'LEAGUE MEMBERSHIP'!$E:$F,2,FALSE),"") -> Pete Romano | Y12: =IFERROR(VLOOKUP(VLOOKUP(V12,'LEAGUE MEMBERSHIP'!$E:$G,3,FALSE),'INDIVIDUAL SCORES'!$A:$P,16,FALSE),"") -> 15 | AA12: 3B | AB12: =IFERROR(VLOOKUP(AA12,'LEAGUE MEMBERSHIP'!$E:$F,2,FALSE),"") -> Don Frigoletto | AD12: =IFERROR(VLOOKUP(VLOOKUP(AA12,'LEAGUE MEMBERSHIP'!$E:$G,3,FALSE),'INDIVIDUAL SCORES'!$A:$P,16,FALSE),"") -> 10
F13: =IF(MAIN!$A$40=FALSE,'STANDINGS - 1st Half 2013'!D13,'STANDINGS - 2nd Half 2013'!D13) -> 3 | G13: =IF(MAIN!$A$40=FALSE,'STANDINGS - 1st Half 2013'!E13,'STANDINGS - 2nd Half 2013'!E13) -> 15 Tim Hurley / John Elie | K13: =IF(MAIN!$A$40=FALSE,'STANDINGS - 1st Half 2013'!I13,'STANDINGS - 2nd Half 2013'!I13) -> 42 | M13: =IF(IF($A$40=FALSE,IF(RIGHT($M$8,LEN($M$8)-FIND("k ",$M$8)-1)*1<=SCHEDULE!$B$99/2,HLOOKUP(RIGHT($M$8,6),'MATCH RESULTS - 1st Half 2013'!$B$13:$R$25,6,FALSE),HLOOKUP(RIGHT($M$8,LEN($M$8)-FIND("W",$M$8)+1),'MATCH RESULTS - 1st Half 2013'!$B$27:$R$39,6,FALSE)),IF(RIGHT($M$8,LEN($M$8)-FIND("k ",$M$8)-1)*1<=SCHEDULE!$B$99/2,HLOOKUP(RIGHT($M$8,6),'MATCH RESULTS - 2nd Half 2013'!$B$13:$R$25,6,FALSE),HLOOKUP(RIGHT($M$8,LEN($M$8)-FIND("W",$M$8)+1),'MATCH RESULTS - 2nd Half 2013'!$B$27:$R$39,6,FALSE)))="","",IF($A$40=FALSE,IF(RIGHT($M$8,LEN($M$8)-FIND("k ",$M$8)-1)*1<=SCHEDULE!$B$99/2,HLOOKUP(RIGHT($M$8,6),'MATCH RESULTS - 1st Half 2013'!$B$13:$R$25,6,FALSE),HLOOKUP(RIGHT($M$8,LEN($M$8)-FIND("W",$M$8)+1),'MATCH RESULTS - 1st Half 2013'!$B$27:$R$39,6,FALSE)),IF(RIGHT($M$8,LEN($M$8)-FIND("k ",$M$8)-1)*1<=SCHEDULE!$B$99/2,HLOOKUP(RIGHT($M$8,6),'MATCH RESULTS - 2nd Half 2013'!$B$13:$R$25,6,FALSE),HLOOKUP(RIGHT($M$8,LEN($M$8)-FIND("W",$M$8)+1),'MATCH RESULTS - 2nd Half 2013'!$B$27:$R$39,6,FALSE)))) -> Team 14 def. Team 02, 5.0 - 4.0 | V13: 4A | W13: =IFERROR(VLOOKUP(V13,'LEAGUE MEMBERSHIP'!$E:$F,2,FALSE),"") -> Peg Romano | Y13: =IFERROR(VLOOKUP(VLOOKUP(V13,'LEAGUE MEMBERSHIP'!$E:$G,3,FALSE),'INDIVIDUAL SCORES'!$A:$P,16,FALSE),"") -> 14 | AA13: 4B | AB13: =IFERROR(VLOOKUP(AA13,'LEAGUE MEMBERSHIP'!$E:$F,2,FALSE),"") -> Lynn Laroche | AD13: =IFERROR(VLOOKUP(VLOOKUP(AA13,'LEAGUE MEMBERSHIP'!$E:$G,3,FALSE),'INDIVIDUAL SCORES'!$A:$P,16,FALSE),"") -> 14
F14: =IF(MAIN!$A$40=FALSE,'STANDINGS - 1st Half 2013'!D14,'STANDINGS - 2nd Half 2013'!D14) -> 4 | G14: =IF(MAIN!$A$40=FALSE,'STANDINGS - 1st Half 2013'!E14,'STANDINGS - 2nd Half 2013'!E14) -> 16 Deb DeCarolis / Joey DeCarolis | K14: =IF(MAIN!$A$40=FALSE,'STANDINGS - 1st Half 2013'!I14,'STANDINGS - 2nd Half 2013'!I14) -> 41.5 | M14: =IF(IF($A$40=FALSE,IF(RIGHT($M$8,LEN($M$8)-FIND("k ",$M$8)-1)*1<=SCHEDULE!$B$99/2,HLOOKUP(RIGHT($M$8,6),'MATCH RESULTS - 1st Half 2013'!$B$13:$R$25,7,FALSE),HLOOKUP(RIGHT($M$8,LEN($M$8)-FIND("W",$M$8)+1),'MATCH RESULTS - 1st Half 2013'!$B$27:$R$39,7,FALSE)),IF(RIGHT($M$8,LEN($M$8)-FIND("k ",$M$8)-1)*1<=SCHEDULE!$B$99/2,HLOOKUP(RIGHT($M$8,6),'MATCH RESULTS - 2nd Half 2013'!$B$13:$R$25,7,FALSE),HLOOKUP(RIGHT($M$8,LEN($M$8)-FIND("W",$M$8)+1),'MATCH RESULTS - 2nd Half 2013'!$B$27:$R$39,7,FALSE)))="","",IF($A$40=FALSE,IF(RIGHT($M$8,LEN($M$8)-FIND("k ",$M$8)-1)*1<=SCHEDULE!$B$99/2,HLOOKUP(RIGHT($M$8,6),'MATCH RESULTS - 1st Half 2013'!$B$13:$R$25,7,FALSE),HLOOKUP(RIGHT($M$8,LEN($M$8)-FIND("W",$M$8)+1),'MATCH RESULTS - 1st Half 2013'!$B$27:$R$39,7,FALSE)),IF(RIGHT($M$8,LEN($M$8)-FIND("k ",$M$8)-1)*1<=SCHEDULE!$B$99/2,HLOOKUP(RIGHT($M$8,6),'MATCH RESULTS - 2nd Half 2013'!$B$13:$R$25,7,FALSE),HLOOKUP(RIGHT($M$8,LEN($M$8)-FIND("W",$M$8)+1),'MATCH RESULTS - 2nd Half 2013'!$B$27:$R$39,7,FALSE)))) -> Team 05 def. Team 17, 6.5 - 2.5 | V14: 5A | W14: =IFERROR(VLOOKUP(V14,'LEAGUE MEMBERSHIP'!$E:$F,2,FALSE),"") -> Dennis Normandin | Y14: =IFERROR(VLOOKUP(VLOOKUP(V14,'LEAGUE MEMBERSHIP'!$E:$G,3,FALSE),'INDIVIDUAL SCORES'!$A:$P,16,FALSE),"") -> 9 | AA14: 5B | AB14: =IFERROR(VLOOKUP(AA14,'LEAGUE MEMBERSHIP'!$E:$F,2,FALSE),"") -> Mark Normandin | AD14: =IFERROR(VLOOKUP(VLOOKUP(AA14,'LEAGUE MEMBERSHIP'!$E:$G,3,FALSE),'INDIVIDUAL SCORES'!$A:$P,16,FALSE),"") -> 7
F15: =IF(MAIN!$A$40=FALSE,'STANDINGS - 1st Half 2013'!D15,'STANDINGS - 2nd Half 2013'!D15) -> 5 | G15: =IF(MAIN!$A$40=FALSE,'STANDINGS - 1st Half 2013'!E15,'STANDINGS - 2nd Half 2013'!E15) -> 12 Sal Cuifetti / Paul LeBlanc | K15: =IF(MAIN!$A$40=FALSE,'STANDINGS - 1st Half 2013'!I15,'STANDINGS - 2nd Half 2013'!I15) -> 41 | M15: =IF(IF($A$40=FALSE,IF(RIGHT($M$8,LEN($M$8)-FIND("k ",$M$8)-1)*1<=SCHEDULE!$B$99/2,HLOOKUP(RIGHT($M$8,6),'MATCH RESULTS - 1st Half 2013'!$B$13:$R$25,8,FALSE),HLOOKUP(RIGHT($M$8,LEN($M$8)-FIND("W",$M$8)+1),'MATCH RESULTS - 1st Half 2013'!$B$27:$R$39,8,FALSE)),IF(RIGHT($M$8,LEN($M$8)-FIND("k ",$M$8)-1)*1<=SCHEDULE!$B$99/2,HLOOKUP(RIGHT($M$8,6),'MATCH RESULTS - 2nd Half 2013'!$B$13:$R$25,8,FALSE),HLOOKUP(RIGHT($M$8,LEN($M$8)-FIND("W",$M$8)+1),'MATCH RESULTS - 2nd Half 2013'!$B$27:$R$39,8,FALSE)))="","",IF($A$40=FALSE,IF(RIGHT($M$8,LEN($M$8)-FIND("k ",$M$8)-1)*1<=SCHEDULE!$B$99/2,HLOOKUP(RIGHT($M$8,6),'MATCH RESULTS - 1st Half 2013'!$B$13:$R$25,8,FALSE),HLOOKUP(RIGHT($M$8,LEN($M$8)-FIND("W",$M$8)+1),'MATCH RESULTS - 1st Half 2013'!$B$27:$R$39,8,FALSE)),IF(RIGHT($M$8,LEN($M$8)-FIND("k ",$M$8)-1)*1<=SCHEDULE!$B$99/2,HLOOKUP(RIGHT($M$8,6),'MATCH RESULTS - 2nd Half 2013'!$B$13:$R$25,8,FALSE),HLOOKUP(RIGHT($M$8,LEN($M$8)-FIND("W",$M$8)+1),'MATCH RESULTS - 2nd Half 2013'!$B$27:$R$39,8,FALSE)))) -> Team 15 def. Team 03, 5.5 - 3.5 | V15: 6A | W15: =IFERROR(VLOOKUP(V15,'LEAGUE MEMBERSHIP'!$E:$F,2,FALSE),"") -> Vance Butterfield | Y15: =IFERROR(VLOOKUP(VLOOKUP(V15,'LEAGUE MEMBERSHIP'!$E:$G,3,FALSE),'INDIVIDUAL SCORES'!$A:$P,16,FALSE),"") -> 6 | AA15: 6B | AB15: =IFERROR(VLOOKUP(AA15,'LEAGUE MEMBERSHIP'!$E:$F,2,FALSE),"") -> Bob Schleyer | AD15: =IFERROR(VLOOKUP(VLOOKUP(AA15,'LEAGUE MEMBERSHIP'!$E:$G,3,FALSE),'INDIVIDUAL SCORES'!$A:$P,16,FALSE),"") -> 9
F16: =IF(MAIN!$A$40=FALSE,'STANDINGS - 1st Half 2013'!D16,'STANDINGS - 2nd Half 2013'!D16) -> 6 | G16: =IF(MAIN!$A$40=FALSE,'STANDINGS - 1st Half 2013'!E16,'STANDINGS - 2nd Half 2013'!E16) -> 19 Gary Leavenworth / Patty Leavenworth | K16: =IF(MAIN!$A$40=FALSE,'STANDINGS - 1st Half 2013'!I16,'STANDINGS - 2nd Half 2013'!I16) -> 40.5 | M16: =IF(IF($A$40=FALSE,IF(RIGHT($M$8,LEN($M$8)-FIND("k ",$M$8)-1)*1<=SCHEDULE!$B$99/2,HLOOKUP(RIGHT($M$8,6),'MATCH RESULTS - 1st Half 2013'!$B$13:$R$25,9,FALSE),HLOOKUP(RIGHT($M$8,LEN($M$8)-FIND("W",$M$8)+1),'MATCH RESULTS - 1st Half 2013'!$B$27:$R$39,9,FALSE)),IF(RIGHT($M$8,LEN($M$8)-FIND("k ",$M$8)-1)*1<=SCHEDULE!$B$99/2,HLOOKUP(RIGHT($M$8,6),'MATCH RESULTS - 2nd Half 2013'!$B$13:$R$25,9,FALSE),HLOOKUP(RIGHT($M$8,LEN($M$8)-FIND("W",$M$8)+1),'MATCH RESULTS - 2nd Half 2013'!$B$27:$R$39,9,FALSE)))="","",IF($A$40=FALSE,IF(RIGHT($M$8,LEN($M$8)-FIND("k ",$M$8)-1)*1<=SCHEDULE!$B$99/2,HLOOKUP(RIGHT($M$8,6),'MATCH RESULTS - 1st Half 2013'!$B$13:$R$25,9,FALSE),HLOOKUP(RIGHT($M$8,LEN($M$8)-FIND("W",$M$8)+1),'MATCH RESULTS - 1st Half 2013'!$B$27:$R$39,9,FALSE)),IF(RIGHT($M$8,LEN($M$8)-FIND("k ",$M$8)-1)*1<=SCHEDULE!$B$99/2,HLOOKUP(RIGHT($M$8,6),'MATCH RESULTS - 2nd Half 2013'!$B$13:$R$25,9,FALSE),HLOOKUP(RIGHT($M$8,LEN($M$8)-FIND("W",$M$8)+1),'MATCH RESULTS - 2nd Half 2013'!$B$27:$R$39,9,FALSE)))) -> Team 10 def. Team 09, 7.0 - 2.0 | V16: 7A | W16: =IFERROR(VLOOKUP(V16,'LEAGUE MEMBERSHIP'!$E:$F,2,FALSE),"") -> Steve Scapparone | Y16: =IFERROR(VLOOKUP(VLOOKUP(V16,'LEAGUE MEMBERSHIP'!$E:$G,3,FALSE),'INDIVIDUAL SCORES'!$A:$P,16,FALSE),"") -> 10 | AA16: 7B | AB16: =IFERROR(VLOOKUP(AA16,'LEAGUE MEMBERSHIP'!$E:$F,2,FALSE),"") -> Dave Hyre | AD16: =IFERROR(VLOOKUP(VLOOKUP(AA16,'LEAGUE MEMBERSHIP'!$E:$G,3,FALSE),'INDIVIDUAL SCORES'!$A:$P,16,FALSE),"") -> 9
F17: =IF(MAIN!$A$40=FALSE,'STANDINGS - 1st Half 2013'!D17,'STANDINGS - 2nd Half 2013'!D17) -> 7T | G17: =IF(MAIN!$A$40=FALSE,'STANDINGS - 1st Half 2013'!E17,'STANDINGS - 2nd Half 2013'!E17) -> 01 Lester Lockhart / Pete Normandin | K17: =IF(MAIN!$A$40=FALSE,'STANDINGS - 1st Half 2013'!I17,'STANDINGS - 2nd Half 2013'!I17) -> 39 | M17: =IF(IF($A$40=FALSE,IF(RIGHT($M$8,LEN($M$8)-FIND("k ",$M$8)-1)*1<=SCHEDULE!$B$99/2,HLOOKUP(RIGHT($M$8,6),'MATCH RESULTS - 1st Half 2013'!$B$13:$R$25,10,FALSE),HLOOKUP(RIGHT($M$8,LEN($M$8)-FIND("W",$M$8)+1),'MATCH RESULTS - 1st Half 2013'!$B$27:$R$39,10,FALSE)),IF(RIGHT($M$8,LEN($M$8)-FIND("k ",$M$8)-1)*1<=SCHEDULE!$B$99/2,HLOOKUP(RIGHT($M$8,6),'MATCH RESULTS - 2nd Half 2013'!$B$13:$R$25,10,FALSE),HLOOKUP(RIGHT($M$8,LEN($M$8)-FIND("W",$M$8)+1),'MATCH RESULTS - 2nd Half 2013'!$B$27:$R$39,10,FALSE)))="","",IF($A$40=FALSE,IF(RIGHT($M$8,LEN($M$8)-FIND("k ",$M$8)-1)*1<=SCHEDULE!$B$99/2,HLOOKUP(RIGHT($M$8,6),'MATCH RESULTS - 1st Half 2013'!$B$13:$R$25,10,FALSE),HLOOKUP(RIGHT($M$8,LEN($M$8)-FIND("W",$M$8)+1),'MATCH RESULTS - 1st Half 2013'!$B$27:$R$39,10,FALSE)),IF(RIGHT($M$8,LEN($M$8)-FIND("k ",$M$8)-1)*1<=SCHEDULE!$B$99/2,HLOOKUP(RIGHT($M$8,6),'MATCH RESULTS - 2nd Half 2013'!$B$13:$R$25,10,FALSE),HLOOKUP(RIGHT($M$8,LEN($M$8)-FIND("W",$M$8)+1),'MATCH RESULTS - 2nd Half 2013'!$B$27:$R$39,10,FALSE)))) -> Team 19 def. Team 07, 4.0 - 0.0 | V17: 8A | W17: =IFERROR(VLOOKUP(V17,'LEAGUE MEMBERSHIP'!$E:$F,2,FALSE),"") -> Mike Sunderland | Y17: =IFERROR(VLOOKUP(VLOOKUP(V17,'LEAGUE MEMBERSHIP'!$E:$G,3,FALSE),'INDIVIDUAL SCORES'!$A:$P,16,FALSE),"") -> 5 | AA17: 8B | AB17: =IFERROR(VLOOKUP(AA17,'LEAGUE MEMBERSHIP'!$E:$F,2,FALSE),"") -> Debbie Sunderland | AD17: =IFERROR(VLOOKUP(VLOOKUP(AA17,'LEAGUE MEMBERSHIP'!$E:$G,3,FALSE),'INDIVIDUAL SCORES'!$A:$P,16,FALSE),"") -> 10
F18: =IF(MAIN!$A$40=FALSE,'STANDINGS - 1st Half 2013'!D18,'STANDINGS - 2nd Half 2013'!D18) -> 7T | G18: =IF(MAIN!$A$40=FALSE,'STANDINGS - 1st Half 2013'!E18,'STANDINGS - 2nd Half 2013'!E18) -> 02 Dave Cormier / Adam Williamson | K18: =IF(MAIN!$A$40=FALSE,'STANDINGS - 1st Half 2013'!I18,'STANDINGS - 2nd Half 2013'!I18) -> 39 | M18: =IF(IF($A$40=FALSE,IF(RIGHT($M$8,LEN($M$8)-FIND("k ",$M$8)-1)*1<=SCHEDULE!$B$99/2,HLOOKUP(RIGHT($M$8,6),'MATCH RESULTS - 1st Half 2013'!$B$13:$R$25,11,FALSE),HLOOKUP(RIGHT($M$8,LEN($M$8)-FIND("W",$M$8)+1),'MATCH RESULTS - 1st Half 2013'!$B$27:$R$39,11,FALSE)),IF(RIGHT($M$8,LEN($M$8)-FIND("k ",$M$8)-1)*1<=SCHEDULE!$B$99/2,HLOOKUP(RIGHT($M$8,6),'MATCH RESULTS - 2nd Half 2013'!$B$13:$R$25,11,FALSE),HLOOKUP(RIGHT($M$8,LEN($M$8)-FIND("W",$M$8)+1),'MATCH RESULTS - 2nd Half 2013'!$B$27:$R$39,11,FALSE)))="","",IF($A$40=FALSE,IF(RIGHT($M$8,LEN($M$8)-FIND("k ",$M$8)-1)*1<=SCHEDULE!$B$99/2,HLOOKUP(RIGHT($M$8,6),'MATCH RESULTS - 1st Half 2013'!$B$13:$R$25,11,FALSE),HLOOKUP(RIGHT($M$8,LEN($M$8)-FIND("W",$M$8)+1),'MATCH RESULTS - 1st Half 2013'!$B$27:$R$39,11,FALSE)),IF(RIGHT($M$8,LEN($M$8)-FIND("k ",$M$8)-1)*1<=SCHEDULE!$B$99/2,HLOOKUP(RIGHT($M$8,6),'MATCH RESULTS - 2nd Half 2013'!$B$13:$R$25,11,FALSE),HLOOKUP(RIGHT($M$8,LEN($M$8)-FIND("W",$M$8)+1),'MATCH RESULTS - 2nd Half 2013'!$B$27:$R$39,11,FALSE)))) -> Team 11 def. Team 13, 6.5 - 2.5 | V18: 9A | W18: =IFERROR(VLOOKUP(V18,'LEAGUE MEMBERSHIP'!$E:$F,2,FALSE),"") -> Mike Doane | Y18: =IFERROR(VLOOKUP(VLOOKUP(V18,'LEAGUE MEMBERSHIP'!$E:$G,3,FALSE),'INDIVIDUAL SCORES'!$A:$P,16,FALSE),"") -> 23 | AA18: 9B | AB18: =IFERROR(VLOOKUP(AA18,'LEAGUE MEMBERSHIP'!$E:$F,2,FALSE),"") -> John Cassin | AD18: =IFERROR(VLOOKUP(VLOOKUP(AA18,'LEAGUE MEMBERSHIP'!$E:$G,3,FALSE),'INDIVIDUAL SCORES'!$A:$P,16,FALSE),"") -> 7
F19: =IF(MAIN!$A$40=FALSE,'STANDINGS - 1st Half 2013'!D19,'STANDINGS - 2nd Half 2013'!D19) -> 9 | G19: =IF(MAIN!$A$40=FALSE,'STANDINGS - 1st Half 2013'!E19,'STANDINGS - 2nd Half 2013'!E19) -> 20 Paul Fontaine / Ralph Romano III | K19: =IF(MAIN!$A$40=FALSE,'STANDINGS - 1st Half 2013'!I19,'STANDINGS - 2nd Half 2013'!I19) -> 38 | M19: =IF(IF($A$40=FALSE,IF(RIGHT($M$8,LEN($M$8)-FIND("k ",$M$8)-1)*1<=SCHEDULE!$B$99/2,HLOOKUP(RIGHT($M$8,6),'MATCH RESULTS - 1st Half 2013'!$B$13:$R$25,12,FALSE),HLOOKUP(RIGHT($M$8,LEN($M$8)-FIND("W",$M$8)+1),'MATCH RESULTS - 1st Half 2013'!$B$27:$R$39,12,FALSE)),IF(RIGHT($M$8,LEN($M$8)-FIND("k ",$M$8)-1)*1<=SCHEDULE!$B$99/2,HLOOKUP(RIGHT($M$8,6),'MATCH RESULTS - 2nd Half 2013'!$B$13:$R$25,12,FALSE),HLOOKUP(RIGHT($M$8,LEN($M$8)-FIND("W",$M$8)+1),'MATCH RESULTS - 2nd Half 2013'!$B$27:$R$39,12,FALSE)))="","",IF($A$40=FALSE,IF(RIGHT($M$8,LEN($M$8)-FIND("k ",$M$8)-1)*1<=SCHEDULE!$B$99/2,HLOOKUP(RIGHT($M$8,6),'MATCH RESULTS - 1st Half 2013'!$B$13:$R$25,12,FALSE),HLOOKUP(RIGHT($M$8,LEN($M$8)-FIND("W",$M$8)+1),'MATCH RESULTS - 1st Half 2013'!$B$27:$R$39,12,FALSE)),IF(RIGHT($M$8,LEN($M$8)-FIND("k ",$M$8)-1)*1<=SCHEDULE!$B$99/2,HLOOKUP(RIGHT($M$8,6),'MATCH RESULTS - 2nd Half 2013'!$B$13:$R$25,12,FALSE),HLOOKUP(RIGHT($M$8,LEN($M$8)-FIND("W",$M$8)+1),'MATCH RESULTS - 2nd Half 2013'!$B$27:$R$39,12,FALSE)))) -> Team 18 def. Team 06, 4.5 - 0.0 | V19: 10A | W19: =IFERROR(VLOOKUP(V19,'LEAGUE MEMBERSHIP'!$E:$F,2,FALSE),"") -> Ron Eckstrom | Y19: =IFERROR(VLOOKUP(VLOOKUP(V19,'LEAGUE MEMBERSHIP'!$E:$G,3,FALSE),'INDIVIDUAL SCORES'!$A:$P,16,FALSE),"") -> 3 | AA19: 10B | AB19: =IFERROR(VLOOKUP(AA19,'LEAGUE MEMBERSHIP'!$E:$F,2,FALSE),"") -> Beth Romano | AD19: =IFERROR(VLOOKUP(VLOOKUP(AA19,'LEAGUE MEMBERSHIP'!$E:$G,3,FALSE),'INDIVIDUAL SCORES'!$A:$P,16,FALSE),"") -> 13
F20: =IF(MAIN!$A$40=FALSE,'STANDINGS - 1st Half 2013'!D20,'STANDINGS - 2nd Half 2013'!D20) -> 10 | G20: =IF(MAIN!$A$40=FALSE,'STANDINGS - 1st Half 2013'!E20,'STANDINGS - 2nd Half 2013'!E20) -> 17 Gary Bittner / Mike Dauphinais | K20: =IF(MAIN!$A$40=FALSE,'STANDINGS - 1st Half 2013'!I20,'STANDINGS - 2nd Half 2013'!I20) -> 37 | M20: =IF(IF($A$40=FALSE,IF(RIGHT($M$8,LEN($M$8)-FIND("k ",$M$8)-1)*1<=SCHEDULE!$B$99/2,HLOOKUP(RIGHT($M$8,6),'MATCH RESULTS - 1st Half 2013'!$B$13:$R$25,13,FALSE),HLOOKUP(RIGHT($M$8,LEN($M$8)-FIND("W",$M$8)+1),'MATCH RESULTS - 1st Half 2013'!$B$27:$R$39,13,FALSE)),IF(RIGHT($M$8,LEN($M$8)-FIND("k ",$M$8)-1)*1<=SCHEDULE!$B$99/2,HLOOKUP(RIGHT($M$8,6),'MATCH RESULTS - 2nd Half 2013'!$B$13:$R$25,13,FALSE),HLOOKUP(RIGHT($M$8,LEN($M$8)-FIND("W",$M$8)+1),'MATCH RESULTS - 2nd Half 2013'!$B$27:$R$39,13,FALSE)))="","",IF($A$40=FALSE,IF(RIGHT($M$8,LEN($M$8)-FIND("k ",$M$8)-1)*1<=SCHEDULE!$B$99/2,HLOOKUP(RIGHT($M$8,6),'MATCH RESULTS - 1st Half 2013'!$B$13:$R$25,13,FALSE),HLOOKUP(RIGHT($M$8,LEN($M$8)-FIND("W",$M$8)+1),'MATCH RESULTS - 1st Half 2013'!$B$27:$R$39,13,FALSE)),IF(RIGHT($M$8,LEN($M$8)-FIND("k ",$M$8)-1)*1<=SCHEDULE!$B$99/2,HLOOKUP(RIGHT($M$8,6),'MATCH RESULTS - 2nd Half 2013'!$B$13:$R$25,13,FALSE),HLOOKUP(RIGHT($M$8,LEN($M$8)-FIND("W",$M$8)+1),'MATCH RESULTS - 2nd Half 2013'!$B$27:$R$39,13,FALSE)))) ->  | V20: 11A | W20: =IFERROR(VLOOKUP(V20,'LEAGUE MEMBERSHIP'!$E:$F,2,FALSE),"") -> Ray Henderson | Y20: =IFERROR(VLOOKUP(VLOOKUP(V20,'LEAGUE MEMBERSHIP'!$E:$G,3,FALSE),'INDIVIDUAL SCORES'!$A:$P,16,FALSE),"") -> 4 | AA20: 11B | AB20: =IFERROR(VLOOKUP(AA20,'LEAGUE MEMBERSHIP'!$E:$F,2,FALSE),"") -> Zachary Wallace | AD20: =IFERROR(VLOOKUP(VLOOKUP(AA20,'LEAGUE MEMBERSHIP'!$E:$G,3,FALSE),'INDIVIDUAL SCORES'!$A:$P,16,FALSE),"") -> 12
F21: =IF(MAIN!$A$40=FALSE,'STANDINGS - 1st Half 2013'!D21,'STANDINGS - 2nd Half 2013'!D21) -> 11 | G21: =IF(MAIN!$A$40=FALSE,'STANDINGS - 1st Half 2013'!E21,'STANDINGS - 2nd Half 2013'!E21) -> 11 Ray Henderson / Zachary Wallace | K21: =IF(MAIN!$A$40=FALSE,'STANDINGS - 1st Half 2013'!I21,'STANDINGS - 2nd Half 2013'!I21) -> 36.5 | V21: 12A | W21: =IFERROR(VLOOKUP(V21,'LEAGUE MEMBERSHIP'!$E:$F,2,FALSE),"") -> Sal Cuifetti | Y21: =IFERROR(VLOOKUP(VLOOKUP(V21,'LEAGUE MEMBERSHIP'!$E:$G,3,FALSE),'INDIVIDUAL SCORES'!$A:$P,16,FALSE),"") -> 13 | AA21: 12B | AB21: =IFERROR(VLOOKUP(AA21,'LEAGUE MEMBERSHIP'!$E:$F,2,FALSE),"") -> Paul LeBlanc | AD21: =IFERROR(VLOOKUP(VLOOKUP(AA21,'LEAGUE MEMBERSHIP'!$E:$G,3,FALSE),'INDIVIDUAL SCORES'!$A:$P,16,FALSE),"") -> 7
F22: =IF(MAIN!$A$40=FALSE,'STANDINGS - 1st Half 2013'!D22,'STANDINGS - 2nd Half 2013'!D22) -> 12T | G22: =IF(MAIN!$A$40=FALSE,'STANDINGS - 1st Half 2013'!E22,'STANDINGS - 2nd Half 2013'!E22) -> 03 Pete Romano / Don Frigoletto | K22: =IF(MAIN!$A$40=FALSE,'STANDINGS - 1st Half 2013'!I22,'STANDINGS - 2nd Half 2013'!I22) -> 35 | V22: 13A | W22: =IFERROR(VLOOKUP(V22,'LEAGUE MEMBERSHIP'!$E:$F,2,FALSE),"") -> Kyle Currier | Y22: =IFERROR(VLOOKUP(VLOOKUP(V22,'LEAGUE MEMBERSHIP'!$E:$G,3,FALSE),'INDIVIDUAL SCORES'!$A:$P,16,FALSE),"") -> 9 | AA22: 13B | AB22: =IFERROR(VLOOKUP(AA22,'LEAGUE MEMBERSHIP'!$E:$F,2,FALSE),"") -> Walter Drake | AD22: =IFERROR(VLOOKUP(VLOOKUP(AA22,'LEAGUE MEMBERSHIP'!$E:$G,3,FALSE),'INDIVIDUAL SCORES'!$A:$P,16,FALSE),"") -> 17
F23: =IF(MAIN!$A$40=FALSE,'STANDINGS - 1st Half 2013'!D23,'STANDINGS - 2nd Half 2013'!D23) -> 12T | G23: =IF(MAIN!$A$40=FALSE,'STANDINGS - 1st Half 2013'!E23,'STANDINGS - 2nd Half 2013'!E23) -> 04 Peg Romano / Lynn Laroche | K23: =IF(MAIN!$A$40=FALSE,'STANDINGS - 1st Half 2013'!I23,'STANDINGS - 2nd Half 2013'!I23) -> 35 | V23: 14A | W23: =IFERROR(VLOOKUP(V23,'LEAGUE MEMBERSHIP'!$E:$F,2,FALSE),"") -> Doug Cormier | Y23: =IFERROR(VLOOKUP(VLOOKUP(V23,'LEAGUE MEMBERSHIP'!$E:$G,3,FALSE),'INDIVIDUAL SCORES'!$A:$P,16,FALSE),"") -> 4 | AA23: 14B | AB23: =IFERROR(VLOOKUP(AA23,'LEAGUE MEMBERSHIP'!$E:$F,2,FALSE),"") -> Ralph Romano, Jr. | AD23: =IFERROR(VLOOKUP(VLOOKUP(AA23,'LEAGUE MEMBERSHIP'!$E:$G,3,FALSE),'INDIVIDUAL SCORES'!$A:$P,16,FALSE),"") -> 19
F24: =IF(MAIN!$A$40=FALSE,'STANDINGS - 1st Half 2013'!D24,'STANDINGS - 2nd Half 2013'!D24) -> 14 | G24: =IF(MAIN!$A$40=FALSE,'STANDINGS - 1st Half 2013'!E24,'STANDINGS - 2nd Half 2013'!E24) -> 08 Mike Sunderland / Debbie Sunderland | K24: =IF(MAIN!$A$40=FALSE,'STANDINGS - 1st Half 2013'!I24,'STANDINGS - 2nd Half 2013'!I24) -> 34.5 | V24: 15A | W24: =IFERROR(VLOOKUP(V24,'LEAGUE MEMBERSHIP'!$E:$F,2,FALSE),"") -> Tim Hurley | Y24: =IFERROR(VLOOKUP(VLOOKUP(V24,'LEAGUE MEMBERSHIP'!$E:$G,3,FALSE),'INDIVIDUAL SCORES'!$A:$P,16,FALSE),"") -> 6 | AA24: 15B | AB24: =IFERROR(VLOOKUP(AA24,'LEAGUE MEMBERSHIP'!$E:$F,2,FALSE),"") -> John Elie | AD24: =IFERROR(VLOOKUP(VLOOKUP(AA24,'LEAGUE MEMBERSHIP'!$E:$G,3,FALSE),'INDIVIDUAL SCORES'!$A:$P,16,FALSE),"") -> 15
F25: =IF(MAIN!$A$40=FALSE,'STANDINGS - 1st Half 2013'!D25,'STANDINGS - 2nd Half 2013'!D25) -> 15 | G25: =IF(MAIN!$A$40=FALSE,'STANDINGS - 1st Half 2013'!E25,'STANDINGS - 2nd Half 2013'!E25) -> 09 Mike Doane / John Cassin | K25: =IF(MAIN!$A$40=FALSE,'STANDINGS - 1st Half 2013'!I25,'STANDINGS - 2nd Half 2013'!I25) -> 32.5 | V25: 16A | W25: =IFERROR(VLOOKUP(V25,'LEAGUE MEMBERSHIP'!$E:$F,2,FALSE),"") -> Deb DeCarolis | Y25: =IFERROR(VLOOKUP(VLOOKUP(V25,'LEAGUE MEMBERSHIP'!$E:$G,3,FALSE),'INDIVIDUAL SCORES'!$A:$P,16,FALSE),"") -> 10 | AA25: 16B | AB25: =IFERROR(VLOOKUP(AA25,'LEAGUE MEMBERSHIP'!$E:$F,2,FALSE),"") -> Joey DeCarolis | AD25: =IFERROR(VLOOKUP(VLOOKUP(AA25,'LEAGUE MEMBERSHIP'!$E:$G,3,FALSE),'INDIVIDUAL SCORES'!$A:$P,16,FALSE),"") -> 6
F26: =IF(MAIN!$A$40=FALSE,'STANDINGS - 1st Half 2013'!D26,'STANDINGS - 2nd Half 2013'!D26) -> 16 | G26: =IF(MAIN!$A$40=FALSE,'STANDINGS - 1st Half 2013'!E26,'STANDINGS - 2nd Half 2013'!E26) -> 06 Vance Butterfield / Bob Schleyer | K26: =IF(MAIN!$A$40=FALSE,'STANDINGS - 1st Half 2013'!I26,'STANDINGS - 2nd Half 2013'!I26) -> 30.5 | V26: 17A | W26: =IFERROR(VLOOKUP(V26,'LEAGUE MEMBERSHIP'!$E:$F,2,FALSE),"") -> Gary Bittner | Y26: =IFERROR(VLOOKUP(VLOOKUP(V26,'LEAGUE MEMBERSHIP'!$E:$G,3,FALSE),'INDIVIDUAL SCORES'!$A:$P,16,FALSE),"") -> 5 | AA26: 17B | AB26: =IFERROR(VLOOKUP(AA26,'LEAGUE MEMBERSHIP'!$E:$F,2,FALSE),"") -> Mike Dauphinais | AD26: =IFERROR(VLOOKUP(VLOOKUP(AA26,'LEAGUE MEMBERSHIP'!$E:$G,3,FALSE),'INDIVIDUAL SCORES'!$A:$P,16,FALSE),"") -> 5
F27: =IF(MAIN!$A$40=FALSE,'STANDINGS - 1st Half 2013'!D27,'STANDINGS - 2nd Half 2013'!D27) -> 17 | G27: =IF(MAIN!$A$40=FALSE,'STANDINGS - 1st Half 2013'!E27,'STANDINGS - 2nd Half 2013'!E27) -> 18 Norm Gamache / Michelle Bouvier | K27: =IF(MAIN!$A$40=FALSE,'STANDINGS - 1st Half 2013'!I27,'STANDINGS - 2nd Half 2013'!I27) -> 29 | V27: 18A | W27: =IFERROR(VLOOKUP(V27,'LEAGUE MEMBERSHIP'!$E:$F,2,FALSE),"") -> Norm Gamache | Y27: =IFERROR(VLOOKUP(VLOOKUP(V27,'LEAGUE MEMBERSHIP'!$E:$G,3,FALSE),'INDIVIDUAL SCORES'!$A:$P,16,FALSE),"") -> 8 | AA27: 18B | AB27: =IFERROR(VLOOKUP(AA27,'LEAGUE MEMBERSHIP'!$E:$F,2,FALSE),"") -> Michelle Bouvier | AD27: =IFERROR(VLOOKUP(VLOOKUP(AA27,'LEAGUE MEMBERSHIP'!$E:$G,3,FALSE),'INDIVIDUAL SCORES'!$A:$P,16,FALSE),"") -> 22
F28: =IF(MAIN!$A$40=FALSE,'STANDINGS - 1st Half 2013'!D28,'STANDINGS - 2nd Half 2013'!D28) -> 18 | G28: =IF(MAIN!$A$40=FALSE,'STANDINGS - 1st Half 2013'!E28,'STANDINGS - 2nd Half 2013'!E28) -> 14 Doug Cormier / Ralph Romano, Jr. | K28: =IF(MAIN!$A$40=FALSE,'STANDINGS - 1st Half 2013'!I28,'STANDINGS - 2nd Half 2013'!I28) -> 27.5 | V28: 19A | W28: =IFERROR(VLOOKUP(V28,'LEAGUE MEMBERSHIP'!$E:$F,2,FALSE),"") -> Gary Leavenworth | Y28: =IFERROR(VLOOKUP(VLOOKUP(V28,'LEAGUE MEMBERSHIP'!$E:$G,3,FALSE),'INDIVIDUAL SCORES'!$A:$P,16,FALSE),"") -> 7 | AA28: 19B | AB28: =IFERROR(VLOOKUP(AA28,'LEAGUE MEMBERSHIP'!$E:$F,2,FALSE),"") -> Patty Leavenworth | AD28: =IFERROR(VLOOKUP(VLOOKUP(AA28,'LEAGUE MEMBERSHIP'!$E:$G,3,FALSE),'INDIVIDUAL SCORES'!$A:$P,16,FALSE),"") -> 12
F29: =IF(MAIN!$A$40=FALSE,'STANDINGS - 1st Half 2013'!D29,'STANDINGS - 2nd Half 2013'!D29) -> 19 | G29: =IF(MAIN!$A$40=FALSE,'STANDINGS - 1st Half 2013'!E29,'STANDINGS - 2nd Half 2013'!E29) -> 13 Kyle Currier / Walter Drake | K29: =IF(MAIN!$A$40=FALSE,'STANDINGS - 1st Half 2013'!I29,'STANDINGS - 2nd Half 2013'!I29) -> 19.5 | V29: 20A | W29: =IFERROR(VLOOKUP(V29,'LEAGUE MEMBERSHIP'!$E:$F,2,FALSE),"") -> Paul Fontaine | Y29: =IFERROR(VLOOKUP(VLOOKUP(V29,'LEAGUE MEMBERSHIP'!$E:$G,3,FALSE),'INDIVIDUAL SCORES'!$A:$P,16,FALSE),"") -> 1 | AA29: 20B | AB29: =IFERROR(VLOOKUP(AA29,'LEAGUE MEMBERSHIP'!$E:$F,2,FALSE),"") -> Ralph Romano III | AD29: =IFERROR(VLOOKUP(VLOOKUP(AA29,'LEAGUE MEMBERSHIP'!$E:$G,3,FALSE),'INDIVIDUAL SCORES'!$A:$P,16,FALSE),"") -> 10
F30: =IF(MAIN!$A$40=FALSE,'STANDINGS - 1st Half 2013'!D30,'STANDINGS - 2nd Half 2013'!D30) -> 20T | G30: =IF(MAIN!$A$40=FALSE,'STANDINGS - 1st Half 2013'!E30,'STANDINGS - 2nd Half 2013'!E30) -> 07 Steve Scapparone / Dave Hyre | K30: =IF(MAIN!$A$40=FALSE,'STANDINGS - 1st Half 2013'!I30,'STANDINGS - 2nd Half 2013'!I30) -> 0
F31: =IF(MAIN!$A$40=FALSE,'STANDINGS - 1st Half 2013'!D31,'STANDINGS - 2nd Half 2013'!D31) -> 20T | G31: =IF(MAIN!$A$40=FALSE,'STANDINGS - 1st Half 2013'!E31,'STANDINGS - 2nd Half 2013'!E31) -> 21 / | K31: =IF(MAIN!$A$40=FALSE,'STANDINGS - 1st Half 2013'!I31,'STANDINGS - 2nd Half 2013'!I31) -> 0 | V31: Sub1 | W31: =IFERROR(VLOOKUP(V31,'LEAGUE MEMBERSHIP'!$E:$F,2,FALSE),"") -> Becky Bartkus | Y31: =IFERROR(VLOOKUP(VLOOKUP(V31,'LEAGUE MEMBERSHIP'!$E:$G,3,FALSE),'INDIVIDUAL SCORES'!$A:$P,16,FALSE),"") -> 9 | AA31: Sub16 | AB31: =IFERROR(VLOOKUP(AA31,'LEAGUE MEMBERSHIP'!$E:$F,2,FALSE),"") -> Paul Stedman | AD31: =IFERROR(VLOOKUP(VLOOKUP(AA31,'LEAGUE MEMBERSHIP'!$E:$G,3,FALSE),'INDIVIDUAL SCORES'!$A:$P,16,FALSE),"") -> 4
F32: =IF(MAIN!$A$40=FALSE,'STANDINGS - 1st Half 2013'!D32,'STANDINGS - 2nd Half 2013'!D32) -> 20T | G32: =IF(MAIN!$A$40=FALSE,'STANDINGS - 1st Half 2013'!E32,'STANDINGS - 2nd Half 2013'!E32) -> 22 / | K32: =IF(MAIN!$A$40=FALSE,'STANDINGS - 1st Half 2013'!I32,'STANDINGS - 2nd Half 2013'!I32) -> 0 | V32: Sub2 | W32: =IFERROR(VLOOKUP(V32,'LEAGUE MEMBERSHIP'!$E:$F,2,FALSE),"") -> P.J. Romano | Y32: =IFERROR(VLOOKUP(VLOOKUP(V32,'LEAGUE MEMBERSHIP'!$E:$G,3,FALSE),'INDIVIDUAL SCORES'!$A:$P,16,FALSE),"") -> 7 | AA32: Sub17 | AB32: =IFERROR(VLOOKUP(AA32,'LEAGUE MEMBERSHIP'!$E:$F,2,FALSE),"") -> Deb Passios | AD32: =IFERROR(VLOOKUP(VLOOKUP(AA32,'LEAGUE MEMBERSHIP'!$E:$G,3,FALSE),'INDIVIDUAL SCORES'!$A:$P,16,FALSE),"") -> 15
V33: Sub3 | W33: =IFERROR(VLOOKUP(V33,'LEAGUE MEMBERSHIP'!$E:$F,2,FALSE),"") -> Mike Forbes | Y33: =IFERROR(VLOOKUP(VLOOKUP(V33,'LEAGUE MEMBERSHIP'!$E:$G,3,FALSE),'INDIVIDUAL SCORES'!$A:$P,16,FALSE),"") -> 12 | AA33: Sub18 | AB33: =IFERROR(VLOOKUP(AA33,'LEAGUE MEMBERSHIP'!$E:$F,2,FALSE),"") -> Joe Pearson | AD33: =IFERROR(VLOOKUP(VLOOKUP(AA33,'LEAGUE MEMBERSHIP'!$E:$G,3,FALSE),'INDIVIDUAL SCORES'!$A:$P,16,FALSE),"") -> 11
F34: =" Five Lowest Rounds - Week of "&TEXT(A41,"mmm dd, yyyy") -> Five Lowest Rounds - Week of Aug 28, 2013 | V34: Sub4 | W34: =IFERROR(VLOOKUP(V34,'LEAGUE MEMBERSHIP'!$E:$F,2,FALSE),"") -> Mike Romano | Y34: =IFERROR(VLOOKUP(VLOOKUP(V34,'LEAGUE MEMBERSHIP'!$E:$G,3,FALSE),'INDIVIDUAL SCORES'!$A:$P,16,FALSE),"") -> 14 | AA34: Sub19 | AB34: =IFERROR(VLOOKUP(AA34,'LEAGUE MEMBERSHIP'!$E:$F,2,FALSE),"") -> Audrey Henderson | AD34: =IFERROR(VLOOKUP(VLOOKUP(AA34,'LEAGUE MEMBERSHIP'!$E:$G,3,FALSE),'INDIVIDUAL SCORES'!$A:$P,16,FALSE),"") -> 15
H35: Men | M35: Women | V35: Sub5 | W35: =IFERROR(VLOOKUP(V35,'LEAGUE MEMBERSHIP'!$E:$F,2,FALSE),"") -> Jono Normandin | Y35: =IFERROR(VLOOKUP(VLOOKUP(V35,'LEAGUE MEMBERSHIP'!$E:$G,3,FALSE),'INDIVIDUAL SCORES'!$A:$P,16,FALSE),"") -> 5 | AA35: Sub20 | AB35: =IFERROR(VLOOKUP(AA35,'LEAGUE MEMBERSHIP'!$E:$F,2,FALSE),"") -> David St. Jean | AD35: =IFERROR(VLOOKUP(VLOOKUP(AA35,'LEAGUE MEMBERSHIP'!$E:$G,3,FALSE),'INDIVIDUAL SCORES'!$A:$P,16,FALSE),"") -> 10
F36: Adam Williamson | I36: 37 | K36: Deb DeCarolis | N36: 48 | V36: Sub6 | W36: =IFERROR(VLOOKUP(V36,'LEAGUE MEMBERSHIP'!$E:$F,2,FALSE),"") -> Scott Leavenworth | Y36: =IFERROR(VLOOKUP(VLOOKUP(V36,'LEAGUE MEMBERSHIP'!$E:$G,3,FALSE),'INDIVIDUAL SCORES'!$A:$P,16,FALSE),"") -> 18 | AA36: Sub21 | AB36: =IFERROR(VLOOKUP(AA36,'LEAGUE MEMBERSHIP'!$E:$F,2,FALSE),"") -> Dennis St. Jean | AD36: =IFERROR(VLOOKUP(VLOOKUP(AA36,'LEAGUE MEMBERSHIP'!$E:$G,3,FALSE),'INDIVIDUAL SCORES'!$A:$P,16,FALSE),"") -> 7
F37: PJ Fontaine | I37: 38 | K37: Debbie Sunderland | N37: 49 | Q37: ="Closest to the Pin - Week of "&TEXT(A41,"mmm dd, yyyy") -> Closest to the Pin - Week of Aug 28, 2013 | V37: Sub7 | W37: =IFERROR(VLOOKUP(V37,'LEAGUE MEMBERSHIP'!$E:$F,2,FALSE),"") -> PJ Fontaine | Y37: =IFERROR(VLOOKUP(VLOOKUP(V37,'LEAGUE MEMBERSHIP'!$E:$G,3,FALSE),'INDIVIDUAL SCORES'!$A:$P,16,FALSE),"") -> 3 | AA37: Sub22 | AB37: =IFERROR(VLOOKUP(AA37,'LEAGUE MEMBERSHIP'!$E:$F,2,FALSE),"") -> Joe Fratticelli | AD37: =IFERROR(VLOOKUP(VLOOKUP(AA37,'LEAGUE MEMBERSHIP'!$E:$G,3,FALSE),'INDIVIDUAL SCORES'!$A:$P,16,FALSE),"") -> 15
F38: Ron Eckstrom | I38: 39 | K38: Beth Romano | N38: 51 | Q38: PJ Fontaine - 8' 1" | V38: Sub8 | W38: =IFERROR(VLOOKUP(V38,'LEAGUE MEMBERSHIP'!$E:$F,2,FALSE),"") -> Yogi DiPasquale | Y38: =IFERROR(VLOOKUP(VLOOKUP(V38,'LEAGUE MEMBERSHIP'!$E:$G,3,FALSE),'INDIVIDUAL SCORES'!$A:$P,16,FALSE),"") -> 7 | AA38: Sub23 | AB38: =IFERROR(VLOOKUP(AA38,'LEAGUE MEMBERSHIP'!$E:$F,2,FALSE),"") -> Pete Collette | AD38: =IFERROR(VLOOKUP(VLOOKUP(AA38,'LEAGUE MEMBERSHIP'!$E:$G,3,FALSE),'INDIVIDUAL SCORES'!$A:$P,16,FALSE),"") -> 6
F39: Ray Henderson | I39: 40 | K39: Lynn Laroche | N39: 53 | V39: Sub9 | W39: =IFERROR(VLOOKUP(V39,'LEAGUE MEMBERSHIP'!$E:$F,2,FALSE),"") -> Jon Friberg | Y39: =IFERROR(VLOOKUP(VLOOKUP(V39,'LEAGUE MEMBERSHIP'!$E:$G,3,FALSE),'INDIVIDUAL SCORES'!$A:$P,16,FALSE),"") -> 7 | AA39: Sub24 | AB39: =IFERROR(VLOOKUP(AA39,'LEAGUE MEMBERSHIP'!$E:$F,2,FALSE),"") -> Shane McCarthy | AD39: =IFERROR(VLOOKUP(VLOOKUP(AA39,'LEAGUE MEMBERSHIP'!$E:$G,3,FALSE),'INDIVIDUAL SCORES'!$A:$P,16,FALSE),"") -> 4
A40: =ISNUMBER(MATCH("*"&"Team"&"*",'MATCH RESULTS - 2nd Half 2013'!$B$15:$R$15,0)) -> TRUE | F40: Joey DeCarolis | I40: 42 | K40: Patty Leavenworth | N40: 54 | V40: Sub10 | W40: =IFERROR(VLOOKUP(V40,'LEAGUE MEMBERSHIP'!$E:$F,2,FALSE),"") -> Jim Hedlund | Y40: =IFERROR(VLOOKUP(VLOOKUP(V40,'LEAGUE MEMBERSHIP'!$E:$G,3,FALSE),'INDIVIDUAL SCORES'!$A:$P,16,FALSE),"") -> 17 | AA40: Sub25 | AB40: =IFERROR(VLOOKUP(AA40,'LEAGUE MEMBERSHIP'!$E:$F,2,FALSE),"") -> Brenda Louney | AD40: =IFERROR(VLOOKUP(VLOOKUP(AA40,'LEAGUE MEMBERSHIP'!$E:$G,3,FALSE),'INDIVIDUAL SCORES'!$A:$P,16,FALSE),"") -> 10
A41: 2013-08-28 | V41: Sub11 | W41: =IFERROR(VLOOKUP(V41,'LEAGUE MEMBERSHIP'!$E:$F,2,FALSE),"") -> Don Shank | Y41: =IFERROR(VLOOKUP(VLOOKUP(V41,'LEAGUE MEMBERSHIP'!$E:$G,3,FALSE),'INDIVIDUAL SCORES'!$A:$P,16,FALSE),"") -> 4 | AA41: Sub26 | AB41: =IFERROR(VLOOKUP(AA41,'LEAGUE MEMBERSHIP'!$E:$F,2,FALSE),"") -> Mark Louney | AD41: =IFERROR(VLOOKUP(VLOOKUP(AA41,'LEAGUE MEMBERSHIP'!$E:$G,3,FALSE),'INDIVIDUAL SCORES'!$A:$P,16,FALSE),"") -> 2
V42: Sub12 | W42: =IFERROR(VLOOKUP(V42,'LEAGUE MEMBERSHIP'!$E:$F,2,FALSE),"") -> Chris Barry | Y42: =IFERROR(VLOOKUP(VLOOKUP(V42,'LEAGUE MEMBERSHIP'!$E:$G,3,FALSE),'INDIVIDUAL SCORES'!$A:$P,16,FALSE),"") -> 11 | AA42: Sub27 | AB42: =IFERROR(VLOOKUP(AA42,'LEAGUE MEMBERSHIP'!$E:$F,2,FALSE),"") -> Victor Szewczyk | AD42: =IFERROR(VLOOKUP(VLOOKUP(AA42,'LEAGUE MEMBERSHIP'!$E:$G,3,FALSE),'INDIVIDUAL SCORES'!$A:$P,16,FALSE),"") -> 8
V43: Sub13 | W43: =IFERROR(VLOOKUP(V43,'LEAGUE MEMBERSHIP'!$E:$F,2,FALSE),"") -> Tom Farias | Y43: =IFERROR(VLOOKUP(VLOOKUP(V43,'LEAGUE MEMBERSHIP'!$E:$G,3,FALSE),'INDIVIDUAL SCORES'!$A:$P,16,FALSE),"") -> 2 | AA43: Sub28 | AB43: =IFERROR(VLOOKUP(AA43,'LEAGUE MEMBERSHIP'!$E:$F,2,FALSE),"") -> Matt Lee | AD43: =IFERROR(VLOOKUP(VLOOKUP(AA43,'LEAGUE MEMBERSHIP'!$E:$G,3,FALSE),'INDIVIDUAL SCORES'!$A:$P,16,FALSE),"") -> 1
V44: Sub14 | W44: =IFERROR(VLOOKUP(V44,'LEAGUE MEMBERSHIP'!$E:$F,2,FALSE),"") -> Jeff Erskine | Y44: =IFERROR(VLOOKUP(VLOOKUP(V44,'LEAGUE MEMBERSHIP'!$E:$G,3,FALSE),'INDIVIDUAL SCORES'!$A:$P,16,FALSE),"") -> 8 | AA44: Sub29 | AB44: =IFERROR(VLOOKUP(AA44,'LEAGUE MEMBERSHIP'!$E:$F,2,FALSE),"") -> Jay Melansom | AD44: =IFERROR(VLOOKUP(VLOOKUP(AA44,'LEAGUE MEMBERSHIP'!$E:$G,3,FALSE),'INDIVIDUAL SCORES'!$A:$P,16,FALSE),"") -> 1
V45: Sub15 | W45: =IFERROR(VLOOKUP(V45,'LEAGUE MEMBERSHIP'!$E:$F,2,FALSE),"") -> Jeff Richard | Y45: =IFERROR(VLOOKUP(VLOOKUP(V45,'LEAGUE MEMBERSHIP'!$E:$G,3,FALSE),'INDIVIDUAL SCORES'!$A:$P,16,FALSE),"") -> 14 | AA45: Sub30 | AB45: =IFERROR(VLOOKUP(AA45,'LEAGUE MEMBERSHIP'!$E:$F,2,FALSE),"") ->  | AD45: =IFERROR(VLOOKUP(VLOOKUP(AA45,'LEAGUE MEMBERSHIP'!$E:$G,3,FALSE),'INDIVIDUAL SCORES'!$A:$P,16,FALSE),"") -> 
A100: MATCH RESULTS - 2nd Half 2011
A101: MATCH RESULTS - 1st Half 2012
A102: MATCH RESULTS - 2nd Half 2012
A103: MATCH RESULTS - 1st Half 2013
A104: MATCH RESULTS - 2nd Half 2013
A105: POINTS - 1st Half 2011
A106: POINTS - 2nd Half 2011
A107: POINTS - 1st Half 2012
A108: POINTS - 2nd Half 2012
A109: POINTS - 1st Half 2013
A110: POINTS - 2nd Half 2013
A111: STANDINGS - 1st Half 2012
A112: STANDINGS - 2nd Half 2012
A113: STANDINGS - 1st Half 2013
A114: STANDINGS - 2nd Half 2013

Sheet LOGIN (hidden)
A1: UserName/Password
A3: Pete Romano
A4: Gary Bittner
A6: Pete Romano/PRSquare23
A7: Gary Bittner/CaTitude16

Sheet LEAGUE RULES
F8: ='COURSE & LEAGUE DETAILS'!$A$23 -> 1. USGA and local rules apply.
F9: ='COURSE & LEAGUE DETAILS'!$A$24 -> 2. Teams are responsible for being prompt. Matches should
F10: ='COURSE & LEAGUE DETAILS'!$A$25 -> begin at their specified time. If the second match following
F11: ='COURSE & LEAGUE DETAILS'!$A$26 -> yours tees off, the team that is missing shall forfeit unless
F12: ='COURSE & LEAGUE DETAILS'!$A$27 -> prior arrangements have been made. (see rule 3)
F13: ='COURSE & LEAGUE DETAILS'!$A$28 -> 3. If a team cannot make a match, it is their responsibility to
F14: ='COURSE & LEAGUE DETAILS'!$A$29 -> make other arrangements with approval of their opponents
F15: ='COURSE & LEAGUE DETAILS'!$A$30 -> 4. One member of the team must be present for the match.
F16: ='COURSE & LEAGUE DETAILS'!$A$31 -> (one substitution is allowed, not two)
F17: ='COURSE & LEAGUE DETAILS'!$A$32 -> 5. Lost ball/quick play rule - all lost balls are played as lateral
F18: ='COURSE & LEAGUE DETAILS'!$A$33 -> hazards. 2 MIN. TIME LIMIT! Play "ready golf".
F19: ='COURSE & LEAGUE DETAILS'!$A$34 -> 6. Handicaps are based on league performance - 80% of the
F20: ='COURSE & LEAGUE DETAILS'!$A$35 -> prior 5 weeks of play is used. Maximum of one stroke
F21: ='COURSE & LEAGUE DETAILS'!$A$36 -> given on par 3's, two strokes for par 4's and 5's. Maximum
F22: ='COURSE & LEAGUE DETAILS'!$A$37 -> golf score per hole for handicap purposes = 2 times par.
F23: ='COURSE & LEAGUE DETAILS'!$A$38 -> New league members without handicaps were assigned a
F24: ='COURSE & LEAGUE DETAILS'!$A$39 -> ZERO handicap. As those individuals post scores, the
F25: ='COURSE & LEAGUE DETAILS'!$A$40 -> assigned handicap will be adjusted.
F26: ='COURSE & LEAGUE DETAILS'!$A$41 -> 7. Scoring - Best ball, 1 point per hole, halves are 1/2 point.
F27: ='COURSE & LEAGUE DETAILS'!$A$42 -> 8. No opponent - when playing for points with no opponent,
F28: ='COURSE & LEAGUE DETAILS'!$A$43 -> points are awarded as follows: net birdie = 1 point, net par
F29: ='COURSE & LEAGUE DETAILS'!$A$44 -> = 1/2 point.
F30: ='COURSE & LEAGUE DETAILS'!$A$45 -> 9. Preferred lies everywhere but HAZARDS.

Sheet COURSE & LEAGUE DETAILS
A2: League Name: | B2: Romano Golf League | E2: Year: | F2: 2013
A3: Course Name: | B3: Woods at Westminster
A4: Course Details:
A5: Hole | B5: 1 | C5: 2 | D5: 3 | E5: 4 | F5: 5 | G5: 6 | H5: 7 | I5: 8 | J5: 9 | K5: OUT
A6: FRONT - Yardage - White | B6: 460 | C6: 275 | D6: 525 | E6: 295 | F6: 345 | G6: 175 | H6: 405 | I6: 145 | J6: 320 | K6: =SUM(B6:J6) -> 2945
A7: FRONT - Par - White | B7: 5 | C7: 4 | D7: 5 | E7: 4 | F7: 4 | G7: 3 | H7: 4 | I7: 3 | J7: 4 | K7: =SUM(B7:J7) -> 36
A8: FRONT - Mens' Hcp. | B8: 5 | C8: 7 | D8: 3 | E8: 9 | F8: 11 | G8: 17 | H8: 1 | I8: 15 | J8: 13
A9: FRONT - Yardage - Red | B9: 375 | C9: 250 | D9: 475 | E9: 255 | F9: 325 | G9: 155 | H9: 375 | I9: 130 | J9: 290 | K9: =SUM(B9:J9) -> 2630
A10: FRONT - Par - Red | B10: 5 | C10: 4 | D10: 5 | E10: 4 | F10: 4 | G10: 3 | H10: 5 | I10: 3 | J10: 4 | K10: =SUM(B10:J10) -> 37
A11: FRONT - Womens' Hcp. | B11: 5 | C11: 7 | D11: 3 | E11: 9 | F11: 11 | G11: 17 | H11: 1 | I11: 15 | J11: 13
A13: Hole | B13: 10 | C13: 11 | D13: 12 | E13: 13 | F13: 14 | G13: 15 | H13: 16 | I13: 17 | J13: 18 | K13: IN
A14: BACK - Yardage - White | B14: 345 | C14: 220 | D14: 330 | E14: 435 | F14: 145 | G14: 315 | H14: 130 | I14: 300 | J14: 340 | K14: =SUM(B14:J14) -> 2560
A15: BACK - Par - White | B15: 5 | C15: 4 | D15: 4 | E15: 5 | F15: 3 | G15: 4 | H15: 3 | I15: 4 | J15: 4 | K15: =SUM(B15:J15) -> 36
A16: BACK - Mens' Hcp. | B16: 6 | C16: 10 | D16: 8 | E16: 4 | F16: 16 | G16: 12 | H16: 18 | I16: 14 | J16: 2
A17: BACK - Yardage - Red | B17: 290 | C17: 200 | D17: 205 | E17: 350 | F17: 140 | G17: 290 | H17: 125 | I17: 255 | J17: 280 | K17: =SUM(B17:J17) -> 2135
A18: BACK - Par - Red | B18: 4 | C18: 4 | D18: 4 | E18: 5 | F18: 3 | G18: 4 | H18: 3 | I18: 4 | J18: 4 | K18: =SUM(B18:J18) -> 35
A19: BACK - Womens' Hcp. | B19: 4 | C19: 2 | D19: 8 | E19: 6 | F19: 16 | G19: 12 | H19: 18 | I19: 14 | J19: 10
A22: League Rules:
A23: 1. USGA and local rules apply.
A24: 2. Teams are responsible for being prompt. Matches should
A25: begin at their specified time. If the second match following
A26: yours tees off, the team that is missing shall forfeit unless
A27: prior arrangements have been made. (see rule 3)
A28: 3. If a team cannot make a match, it is their responsibility to
A29: make other arrangements with approval of their opponents
A30: 4. One member of the team must be present for the match.
A31: (one substitution is allowed, not two)
A32: 5. Lost ball/quick play rule - all lost balls are played as lateral
A33: hazards. 2 MIN. TIME LIMIT! Play "ready golf".
A34: 6. Handicaps are based on league performance - 80% of the
A35: prior 5 weeks of play is used. Maximum of one stroke
A36: given on par 3's, two strokes for par 4's and 5's. Maximum
A37: golf score per hole for handicap purposes = 2 times par.
A38: New league members without handicaps were assigned a
A39: ZERO handicap. As those individuals post scores, the
A40: assigned handicap will be adjusted.
A41: 7. Scoring - Best ball, 1 point per hole, halves are 1/2 point.
A42: 8. No opponent - when playing for points with no opponent,
A43: points are awarded as follows: net birdie = 1 point, net par
A44: = 1/2 point.
A45: 9. Preferred lies everywhere but HAZARDS.
A48: Scoresheet Footer:
A49: ="To view scores, handicaps, etc., go to http://www.rromano.com and click on the " & 'COURSE & LEAGUE DETAILS'!B2 & " " & 'COURSE & LEAGUE DETAILS'!F2 & " Spreadsheet" -> To view scores, handicaps, etc., go to http://www.rromano.com and click on the Romano Golf League 2013 Spreadsheet
A52: Handicap Formula:
A54: Handicaps are calculated by averaging a player's prior 5 weeks scores and taking 80% of the difference between the average score and par. Strokes are given against the player with the lowest handicap in the match, maximum one stroke on par 3's, two strokes on par 4's and 5's. Maximum golf score for handicap purposes = 2 times par.

Sheet LEAGUE MEMBERSHIP
Y1: =ROUND(X1/0.8+36,0) -> 36 | AE1: ="("&LEFT(AA1, 3)&") "&RIGHT(LEFT(AA1,6),3)&"-"&RIGHT(AA1,4) -> () - | AG1: 9999999999
V2: Next Sub No. | W2: 30 | AA2: =VALUE(AA1) -> 0
A6: League Members | I6: Team Rosters
A7: Player ID | B7: Last Name | C7: First Name | D7: M / F | E7: Player/Team No. | H7: teamno | I7: Team | J7: Player No. | K7: Name | L7: Player No. | M7: Name
A8: RGL-002 | B8: Barry | C8: Chris | D8: M | E8: Sub12 | F8: =CONCATENATE(C8&" "&B8) -> Chris Barry | G8: =A8 -> RGL-002 | H8: =IF(B8="","",IF(LEN(E8)=0,$O$12&F8,IF(LEN(E8)=2,E8&$O$11&F8,IF(LEN(E8)=3,E8&$O$10&F8,IF(LEN(E8)=4,E8&$O$9&F8,IF(LEN(E8)=5,E8&$O$8&F8,"")))))) -> Sub12 Chris Barry | I8: Team 1 | J8: 1A | K8: =IF(ISERROR(VLOOKUP(J8,$E$8:$F$107,2,FALSE)),"",VLOOKUP(J8,$E$8:$F$107,2,FALSE)) -> Lester Lockhart | L8: 1B | M8: =IF(ISERROR(VLOOKUP(L8,$E$8:$F$107,2,FALSE)),"",VLOOKUP(L8,$E$8:$F$107,2,FALSE)) -> Pete Normandin
A9: RGL-001 | B9: Bartkus | C9: Becky | D9: F | E9: Sub1 | F9: Becky Bartkus | G9: RGL-001 | H9: Sub1 Becky Bartkus | I9: Team 2 | J9: 2A | K9: Dave Cormier | L9: 2B | M9: Adam Williamson
A10: RGL-003 | B10: Bittner | C10: Gary | D10: M | E10: 17A | F10: Gary Bittner | G10: RGL-003 | H10: 17A Gary Bittner | I10: Team 3 | J10: 3A | K10: Pete Romano | L10: 3B | M10: Don Frigoletto
A11: RGL-045 | B11: Bouvier | C11: Michelle | D11: F | E11: 18B | F11: Michelle Bouvier | G11: RGL-045 | H11: 18B Michelle Bouvier | I11: Team 4 | J11: 4A | K11: Peg Romano | L11: 4B | M11: Lynn Laroche
A12: RGL-006 | B12: Butterfield | C12: Vance | D12: M | E12: 6A | F12: Vance Butterfield | G12: RGL-006 | H12: 6A Vance Butterfield | I12: Team 5 | J12: 5A | K12: Dennis Normandin | L12: 5B | M12: Mark Normandin
A13: RGL-005 | B13: Cassin | C13: John | D13: M | E13: 9B | F13: John Cassin | G13: RGL-005 | H13: 9B John Cassin | I13: Team 6 | J13: 6A | K13: Vance Butterfield | L13: 6B | M13: Bob Schleyer
A14: RGL-052 | B14: Collette | C14: Pete | D14: M | E14: Sub23 | F14: Pete Collette | G14: RGL-052 | H14: Sub23 Pete Collette | I14: Team 7 | J14: 7A | K14: Steve Scapparone | L14: 7B | M14: Dave Hyre
A15: RGL-007 | B15: Cormier | C15: Dave | D15: M | E15: 2A | F15: Dave Cormier | G15: RGL-007 | H15: 2A Dave Cormier | I15: Team 8 | J15: 8A | K15: Mike Sunderland | L15: 8B | M15: Debbie Sunderland
A16: RGL-008 | B16: Cormier | C16: Doug | D16: M | E16: 14A | F16: Doug Cormier | G16: RGL-008 | H16: 14A Doug Cormier | I16: Team 9 | J16: 9A | K16: Mike Doane | L16: 9B | M16: John Cassin
A17: RGL-050 | B17: Cuifetti | C17: Sal | D17: M | E17: 12A | F17: Sal Cuifetti | G17: RGL-050 | H17: 12A Sal Cuifetti | I17: Team 10 | J17: 10A | K17: Ron Eckstrom | L17: 10B | M17: Beth Romano
A18: RGL-047 | B18: Currier | C18: Kyle | D18: M | E18: 13A | F18: Kyle Currier | G18: RGL-047 | H18: 13A Kyle Currier | I18: Team 11 | J18: 11A | K18: Ray Henderson | L18: 11B | M18: Zachary Wallace
A19: RGL-009 | B19: Dauphinais | C19: Mike | D19: M | E19: 17B | F19: Mike Dauphinais | G19: RGL-009 | H19: 17B Mike Dauphinais | I19: Team 12 | J19: 12A | K19: Sal Cuifetti | L19: 12B | M19: Paul LeBlanc
A20: RGL-066 | B20: DeCarolis | C20: Deb | D20: F | E20: 16A | F20: Deb DeCarolis | G20: RGL-066 | H20: 16A Deb DeCarolis | I20: Team 13 | J20: 13A | K20: Kyle Currier | L20: 13B | M20: Walter Drake
A21: RGL-043 | B21: DeCarolis | C21: Joey | D21: M | E21: 16B | F21: Joey DeCarolis | G21: RGL-043 | H21: 16B Joey DeCarolis | I21: Team 14 | J21: 14A | K21: Doug Cormier | L21: 14B | M21: Ralph Romano, Jr.
A22: RGL-051 | B22: DiPasquale | C22: Yogi | D22: M | E22: Sub8 | F22: Yogi DiPasquale | G22: RGL-051 | H22: Sub8 Yogi DiPasquale | I22: Team 15 | J22: 15A | K22: Tim Hurley | L22: 15B | M22: John Elie
A23: RGL-015 | B23: Doane | C23: Mike | D23: M | E23: 9A | F23: Mike Doane | G23: RGL-015 | H23: 9A Mike Doane | I23: Team 16 | J23: 16A | K23: Deb DeCarolis | L23: 16B | M23: Joey DeCarolis
A24: RGL-010 | B24: Drake | C24: Walter | D24: M | E24: 13B | F24: Walter Drake | G24: RGL-010 | H24: 13B Walter Drake | I24: Team 17 | J24: 17A | K24: Gary Bittner | L24: 17B | M24: Mike Dauphinais
A25: RGL-046 | B25: Eckstrom | C25: Ron | D25: M | E25: 10A | F25: Ron Eckstrom | G25: RGL-046 | H25: 10A Ron Eckstrom | I25: Team 18 | J25: 18A | K25: Norm Gamache | L25: 18B | M25: Michelle Bouvier
A26: RGL-012 | B26: Elie | C26: John | D26: M | E26: 15B | F26: John Elie | G26: RGL-012 | H26: 15B John Elie | I26: Team 19 | J26: 19A | K26: Gary Leavenworth | L26: 19B | M26: Patty Leavenworth
A27: RGL-025 | B27: Erskine | C27: Jeff | D27: M | E27: Sub14 | F27: Jeff Erskine | G27: RGL-025 | H27: Sub14 Jeff Erskine | I27: Team 20 | J27: 20A | K27: Paul Fontaine | L27: 20B | M27: Ralph Romano III
A28: RGL-011 | B28: Farias | C28: Tom | D28: M | E28: Sub13 | F28: Tom Farias | G28: RGL-011 | H28: Sub13 Tom Farias | I28: Team 21 | J28: 21A | L28: 21B
A29: RGL-055 | B29: Fontaine | C29: Paul | D29: M | E29: 20A | F29: Paul Fontaine | G29: RGL-055 | H29: 20A Paul Fontaine | I29: Team 22 | J29: 22A | L29: 22B
A30: RGL-056 | B30: Fontaine | C30: PJ | D30: M | E30: Sub7 | F30: PJ Fontaine | G30: RGL-056 | H30: Sub7 PJ Fontaine | J30: Sub1 | K30: =IF(ISERROR(VLOOKUP(J30,$E$8:$F$107,2,FALSE)),"",VLOOKUP(J30,$E$8:$F$107,2,FALSE)) -> Becky Bartkus
A31: RGL-057 | B31: Forbes | C31: Mike | D31: M | E31: Sub3 | F31: Mike Forbes | G31: RGL-057 | H31: Sub3 Mike Forbes | J31: Sub2 | K31: P.J. Romano
A32: RGL-049 | B32: Fratticelli | C32: Joe | D32: M | E32: Sub22 | F32: Joe Fratticelli | G32: RGL-049 | H32: Sub22 Joe Fratticelli | J32: Sub3 | K32: Mike Forbes
A33: RGL-013 | B33: Friberg | C33: Jon | D33: M | E33: Sub9 | F33: Jon Friberg | G33: RGL-013 | H33: Sub9 Jon Friberg | J33: Sub4 | K33: Mike Romano
A34: RGL-014 | B34: Frigoletto | C34: Don | D34: M | E34: 3B | F34: Don Frigoletto | G34: RGL-014 | H34: 3B Don Frigoletto | J34: Sub5 | K34: Jono Normandin
A35: RGL-016 | B35: Gamache | C35: Norm | D35: M | E35: 18A | F35: Norm Gamache | G35: RGL-016 | H35: 18A Norm Gamache | J35: Sub6 | K35: Scott Leavenworth
A36: RGL-065 | B36: Hedlund | C36: Jim | D36: M | E36: Sub10 | F36: Jim Hedlund | G36: RGL-065 | H36: Sub10 Jim Hedlund | J36: Sub7 | K36: PJ Fontaine
A37: RGL-017 | B37: Henderson | C37: Audrey | D37: F | E37: Sub19 | F37: Audrey Henderson | G37: RGL-017 | H37: Sub19 Audrey Henderson | J37: Sub8 | K37: =IF(ISERROR(VLOOKUP(J37,$E$8:$F$107,2,FALSE)),"",VLOOKUP(J37,$E$8:$F$107,2,FALSE)) -> Yogi DiPasquale
A38: RGL-018 | B38: Henderson | C38: Ray | D38: M | E38: 11A | F38: Ray Henderson | G38: RGL-018 | H38: 11A Ray Henderson | J38: Sub9 | K38: Jon Friberg | M38: =IF(ISERROR(VLOOKUP(L38,$E$8:$F$107,2,FALSE)),"",VLOOKUP(L38,$E$8:$F$107,2,FALSE)) -> 
A39: RGL-019 | B39: Hurley | C39: Tim | D39: M | E39: 15A | F39: Tim Hurley | G39: RGL-019 | H39: 15A Tim Hurley | J39: Sub10 | K39: Jim Hedlund
A40: RGL-020 | B40: Hyre | C40: Dave | D40: M | E40: 7B | F40: =CONCATENATE(C40&" "&B40) -> Dave Hyre | G40: =A40 -> RGL-020 | H40: =IF(B40="","",IF(LEN(E40)=0,$O$12&F40,IF(LEN(E40)=2,E40&$O$11&F40,IF(LEN(E40)=3,E40&$O$10&F40,IF(LEN(E40)=4,E40&$O$9&F40,IF(LEN(E40)=5,E40&$O$8&F40,"")))))) -> 7B Dave Hyre | J40: Sub11 | K40: Don Shank
A41: RGL-021 | B41: Laroche | C41: Lynn | D41: F | E41: 4B | F41: Lynn Laroche | G41: RGL-021 | H41: 4B Lynn Laroche | J41: Sub12 | K41: Chris Barry
A42: RGL-022 | B42: Leavenworth | C42: Gary | D42: M | E42: 19A | F42: Gary Leavenworth | G42: RGL-022 | H42: 19A Gary Leavenworth | J42: Sub13 | K42: Tom Farias
A43: RGL-023 | B43: Leavenworth | C43: Patty | D43: F | E43: 19B | F43: Patty Leavenworth | G43: RGL-023 | H43: 19B Patty Leavenworth | J43: Sub14 | K43: Jeff Erskine
A44: RGL-058 | B44: Leavenworth | C44: Scott | D44: M | E44: Sub6 | F44: Scott Leavenworth | G44: RGL-058 | H44: Sub6 Scott Leavenworth | J44: Sub15 | K44: Jeff Richard
A45: RGL-031 | B45: LeBlanc | C45: Paul | D45: M | E45: 12B | F45: Paul LeBlanc | G45: RGL-031 | H45: 12B Paul LeBlanc | J45: Sub16 | K45: Paul Stedman
A46: RGL-004 | B46: Lee | C46: Matt | D46: M | E46: Sub28 | F46: Matt Lee | G46: RGL-004 | H46: Sub28 Matt Lee | J46: Sub17 | K46: Deb Passios
A47: RGL-024 | B47: Lockhart | C47: Lester | D47: M | E47: 1A | F47: Lester Lockhart | G47: RGL-024 | H47: 1A Lester Lockhart | J47: Sub18 | K47: Joe Pearson
A48: RGL-067 | B48: Louney | C48: Brenda | D48: F | E48: Sub25 | F48: Brenda Louney | G48: RGL-067 | H48: Sub25 Brenda Louney | J48: Sub19 | K48: Audrey Henderson
A49: RGL-068 | B49: Louney | C49: Mark | D49: M | E49: Sub26 | F49: Mark Louney | G49: RGL-068 | H49: Sub26 Mark Louney | J49: Sub20 | K49: David St. Jean
A50: RGL-054 | B50: McCarthy | C50: Shane | D50: M | E50: Sub24 | F50: Shane McCarthy | G50: RGL-054 | H50: Sub24 Shane McCarthy | J50: Sub21 | K50: Dennis St. Jean
A51: RGL-053 | B51: Melansom | C51: Jay | D51: M | E51: Sub29 | F51: Jay Melansom | G51: RGL-053 | H51: Sub29 Jay Melansom | J51: Sub22 | K51: Joe Fratticelli
A52: RGL-026 | B52: Normandin | C52: Dennis | D52: M | E52: 5A | F52: Dennis Normandin | G52: RGL-026 | H52: 5A Dennis Normandin | J52: Sub23 | K52: Pete Collette
A53: RGL-059 | B53: Normandin | C53: Jono | D53: M | E53: Sub5 | F53: Jono Normandin | G53: RGL-059 | H53: Sub5 Jono Normandin | J53: Sub24 | K53: Shane McCarthy
A54: RGL-027 | B54: Normandin | C54: Mark | D54: M | E54: 5B | F54: Mark Normandin | G54: RGL-027 | H54: 5B Mark Normandin | J54: Sub25 | K54: Brenda Louney
A55: RGL-028 | B55: Normandin | C55: Pete | D55: M | E55: 1B | F55: Pete Normandin | G55: RGL-028 | H55: 1B Pete Normandin | J55: Sub26 | K55: Mark Louney
A56: RGL-064 | B56: Passios | C56: Deb | D56: F | E56: Sub17 | F56: Deb Passios | G56: RGL-064 | H56: Sub17 Deb Passios | J56: Sub27 | K56: Victor Szewczyk
A57: RGL-030 | B57: Pearson | C57: Joe | D57: M | E57: Sub18 | F57: Joe Pearson | G57: RGL-030 | H57: Sub18 Joe Pearson | J57: Sub28 | K57: Matt Lee
A58: RGL-042 | B58: Richard | C58: Jeff | D58: M | E58: Sub15 | F58: Jeff Richard | G58: RGL-042 | H58: Sub15 Jeff Richard | J58: Sub29 | K58: Jay Melansom
A59: RGL-060 | B59: Romano | C59: Beth | D59: F | E59: 10B | F59: Beth Romano | G59: RGL-060 | H59: 10B Beth Romano | J59: Sub30
A60: RGL-061 | B60: Romano | C60: Mike | D60: M | E60: Sub4 | F60: Mike Romano | G60: RGL-061 | H60: Sub4 Mike Romano | J60: Course | K60: Course
A61: RGL-062 | B61: Romano | C61: P.J. | D61: M | E61: Sub2 | F61: P.J. Romano | G61: RGL-062 | H61: Sub2 P.J. Romano | J61: DNP | K61: Partner Did Not Play | L61: Sub
A62: RGL-032 | B62: Romano | C62: Peg | D62: F | E62: 4A | F62: Peg Romano | G62: RGL-032 | H62: 4A Peg Romano | J62: Sub1 | K62: Becky Bartkus | L62: 1A
A63: RGL-033 | B63: Romano | C63: Pete | D63: M | E63: 3A | F63: Pete Romano | G63: RGL-033 | H63: 3A Pete Romano | J63: Sub2 | K63: P.J. Romano | L63: 1B
A64: RGL-034 | B64: Romano III | C64: Ralph | D64: M | E64: 20B | F64: Ralph Romano III | G64: RGL-034 | H64: 20B Ralph Romano III | J64: Sub3 | K64: Mike Forbes | L64: 2A
A65: RGL-035 | B65: Romano, Jr. | C65: Ralph | D65: M | E65: 14B | F65: Ralph Romano, Jr. | G65: RGL-035 | H65: 14B Ralph Romano, Jr. | J65: Sub4 | K65: Mike Romano | L65: 2B
A66: RGL-036 | B66: Scapparone | C66: Steve | D66: M | E66: 7A | F66: Steve Scapparone | G66: RGL-036 | H66: 7A Steve Scapparone | J66: Sub5 | K66: Jono Normandin | L66: 3A
A67: RGL-037 | B67: Schleyer | C67: Bob | D67: M | E67: 6B | F67: Bob Schleyer | G67: RGL-037 | H67: 6B Bob Schleyer | J67: Sub6 | K67: Scott Leavenworth | L67: 3B
A68: RGL-041 | B68: Shank | C68: Don | D68: M | E68: Sub11 | F68: Don Shank | G68: RGL-041 | H68: Sub11 Don Shank | J68: Sub7 | K68: PJ Fontaine | L68: 4A
A69: RGL-038 | B69: St. Jean | C69: David | D69: M | E69: Sub20 | F69: David St. Jean | G69: RGL-038 | H69: Sub20 David St. Jean | J69: Sub8 | K69: Yogi DiPasquale | L69: 4B
A70: RGL-039 | B70: St. Jean | C70: Dennis | D70: M | E70: Sub21 | F70: Dennis St. Jean | G70: RGL-039 | H70: Sub21 Dennis St. Jean | J70: Sub9 | K70: Jon Friberg | L70: 5A
A71: RGL-029 | B71: Stedman | C71: Paul | D71: M | E71: Sub16 | F71: Paul Stedman | G71: RGL-029 | H71: Sub16 Paul Stedman | J71: Sub10 | K71: Jim Hedlund | L71: 5B
A72: RGL-040 | B72: Sunderland | C72: Debbie | D72: F | E72: 8B | F72: Debbie Sunderland | G72: RGL-040 | H72: 8B Debbie Sunderland | J72: Sub11 | K72: Don Shank | L72: 6A
A73: RGL-063 | B73: Sunderland | C73: Mike | D73: M | E73: 8A | F73: Mike Sunderland | G73: RGL-063 | H73: 8A Mike Sunderland | J73: Sub12 | K73: Chris Barry | L73: 6B
A74: RGL-069 | B74: Szewczyk | C74: Victor | D74: M | E74: Sub27 | F74: Victor Szewczyk | G74: RGL-069 | H74: Sub27 Victor Szewczyk | J74: Sub13 | K74: Tom Farias | L74: 7A
A75: RGL-044 | B75: Wallace | C75: Zachary | D75: M | E75: 11B | F75: Zachary Wallace | G75: RGL-044 | H75: 11B Zachary Wallace | J75: Sub14 | K75: Jeff Erskine | L75: 7B
A76: RGL-048 | B76: Williamson | C76: Adam | D76: M | E76: 2B | F76: Adam Williamson | G76: RGL-048 | H76: 2B Adam Williamson | J76: Sub15 | K76: Jeff Richard | L76: 8A
A77: RGL-070 | F77: =CONCATENATE(C77&" "&B77) ->  | G77: =A77 -> RGL-070 | H77: =IF(B77="","",IF(LEN(E77)=0,$O$12&F77,IF(LEN(E77)=2,E77&$O$11&F77,IF(LEN(E77)=3,E77&$O$10&F77,IF(LEN(E77)=4,E77&$O$9&F77,IF(LEN(E77)=5,E77&$O$8&F77,"")))))) ->  | J77: Sub16 | K77: Paul Stedman | L77: 8B
A78: RGL-071 | G78: RGL-071 | J78: Sub17 | K78: Deb Passios | L78: 9A
A79: RGL-072 | G79: RGL-072 | J79: Sub18 | K79: Joe Pearson | L79: 9B
A80: RGL-073 | G80: RGL-073 | J80: Sub19 | K80: Audrey Henderson | L80: 10A
A81: RGL-074 | G81: RGL-074 | J81: Sub20 | K81: David St. Jean | L81: 10B
A82: RGL-075 | G82: RGL-075 | J82: Sub21 | K82: Dennis St. Jean | L82: 11A
A83: RGL-076 | G83: RGL-076 | J83: Sub22 | K83: Joe Fratticelli | L83: 11B
A84: RGL-077 | G84: RGL-077 | J84: Sub23 | K84: Pete Collette | L84: 12A
A85: RGL-078 | G85: RGL-078 | J85: Sub24 | K85: Shane McCarthy | L85: 12B
A86: RGL-079 | G86: RGL-079 | J86: Sub25 | K86: Brenda Louney | L86: 13A
A87: RGL-080 | G87: RGL-080 | J87: Sub26 | K87: Mark Louney | L87: 13B
A88: RGL-081 | G88: RGL-081 | J88: Sub27 | K88: Victor Szewczyk | L88: 14A
A89: RGL-082 | G89: RGL-082 | J89: Sub28 | K89: Matt Lee | L89: 14B
A90: RGL-083 | G90: RGL-083 | J90: Sub29 | K90: Jay Melansom | L90: 15A
A91: RGL-084 | G91: RGL-084 | J91: Sub30 | L91: 15B
A92: RGL-085 | G92: RGL-085 | J92: 1A | L92: 16A
A93: RGL-086 | G93: RGL-086 | J93: 1B | L93: 16B
A94: RGL-087 | G94: RGL-087 | J94: 2A | L94: 17A
A95: RGL-088 | G95: RGL-088 | J95: 2B | L95: 17B
A96: RGL-089 | G96: RGL-089 | J96: 3A | L96: 18A
A97: RGL-090 | G97: RGL-090 | J97: 3B | L97: 18B
A98: RGL-091 | G98: RGL-091 | J98: 4A | L98: 19A
A99: RGL-092 | G99: RGL-092 | J99: 4B | L99: 19B
A100: RGL-093 | G100: RGL-093 | J100: 5A | L100: 20A
A101: RGL-094 | G101: RGL-094 | J101: 5B | L101: 20B
A102: RGL-095 | G102: RGL-095 | J102: 6A | L102: 21A
A103: RGL-096 | G103: RGL-096 | J103: 6B | L103: 21B
A104: RGL-097 | G104: RGL-097 | J104: 7A | L104: 22A
A105: RGL-098 | G105: RGL-098 | J105: 7B | L105: 22B
A106: RGL-099 | B106: Course | E106: Course | F106: =B106 -> Course | G106: =A106 -> RGL-099 | J106: 8A
A107: RGL-100 | B107: Partner Did Not Play | E107: DNP | F107: =B107 -> Partner Did Not Play | G107: RGL-100 | J107: 8B
B108: =COUNTA(B8:B105) -> 69 | G108: 0 | J108: 9A
J109: 9B
J110: 10A
J111: 10B
J112: 11A
J113: 11B
J114: 12A
J115: 12B
J116: 13A
J117: 13B
J118: 14A
J119: 14B
J120: 15A
J121: 15B
J122: 16A
J123: 16B
J124: 17A
J125: 17B
J126: 18A
J127: 18B
J128: 19A
J129: 19B
J130: 20A
J131: 20B
J132: 21A
J133: 21B
J134: 22A
J135: 22B

Sheet PRINT
C9: =SCHEDULE!C10 -> Schedule - Second Half 2013 | O9: Team Members
C10: =SCHEDULE!C11 -> Week | D10: =SCHEDULE!D11 -> Week 1 | E10: =SCHEDULE!E11 -> Week 2 | F10: =SCHEDULE!F11 -> Week 3 | G10: =SCHEDULE!G11 -> Week 4 | H10: =SCHEDULE!H11 -> Week 5 | I10: =SCHEDULE!I11 -> Week 6 | J10: =SCHEDULE!J11 -> Week 7 | K10: =SCHEDULE!K11 -> Week 8 | L10: =SCHEDULE!L11 -> Week 9 | M10: =SCHEDULE!M11 ->  | O10: Team 1 | P10: =VLOOKUP(O10,'LEAGUE MEMBERSHIP'!$I:$M,3,FALSE)&" / "&VLOOKUP(O10,'LEAGUE MEMBERSHIP'!$I:$M,5,FALSE) -> Lester Lockhart / Pete Normandin
C11: =SCHEDULE!C12 -> Date | D11: =SCHEDULE!D12 -> 2013-07-03 | E11: =SCHEDULE!E12 -> 2013-07-10 | F11: =SCHEDULE!F12 -> 2013-07-17 | G11: =SCHEDULE!G12 -> 2013-07-24 | H11: =SCHEDULE!H12 -> 2013-07-31 | I11: =SCHEDULE!I12 -> 2013-08-07 | J11: =SCHEDULE!J12 -> 2013-08-14 | K11: =SCHEDULE!K12 -> 2013-08-21 | L11: =SCHEDULE!L12 -> 2013-08-28 | M11: =SCHEDULE!M12 ->  | O11: Team 2 | P11: =VLOOKUP(O11,'LEAGUE MEMBERSHIP'!$I:$M,3,FALSE)&" / "&VLOOKUP(O11,'LEAGUE MEMBERSHIP'!$I:$M,5,FALSE) -> Dave Cormier / Adam Williamson
C12: =SCHEDULE!C13 -> Side | D12: =SCHEDULE!D13 -> FRONT | E12: =SCHEDULE!E13 -> BACK | F12: =SCHEDULE!F13 -> FRONT | G12: =SCHEDULE!G13 -> BACK | H12: =SCHEDULE!H13 -> FRONT | I12: =SCHEDULE!I13 -> BACK | J12: =SCHEDULE!J13 -> FRONT | K12: =SCHEDULE!K13 -> BACK | L12: =SCHEDULE!L13 -> FRONT | M12: =SCHEDULE!M13 ->  | O12: Team 3 | P12: =VLOOKUP(O12,'LEAGUE MEMBERSHIP'!$I:$M,3,FALSE)&" / "&VLOOKUP(O12,'LEAGUE MEMBERSHIP'!$I:$M,5,FALSE) -> Pete Romano / Don Frigoletto
C13: =SCHEDULE!C14 -> Tee Time | O13: Team 4 | P13: =VLOOKUP(O13,'LEAGUE MEMBERSHIP'!$I:$M,3,FALSE)&" / "&VLOOKUP(O13,'LEAGUE MEMBERSHIP'!$I:$M,5,FALSE) -> Peg Romano / Lynn Laroche
C14: =SCHEDULE!C15 -> All | O14: Team 5 | P14: =VLOOKUP(O14,'LEAGUE MEMBERSHIP'!$I:$M,3,FALSE)&" / "&VLOOKUP(O14,'LEAGUE MEMBERSHIP'!$I:$M,5,FALSE) -> Dennis Normandin / Mark Normandin
C15: =SCHEDULE!C16 -> 4:00 | D15: =SCHEDULE!D16 -> 11 v 2 | E15: =SCHEDULE!E16 -> 12 v 5 | F15: =SCHEDULE!F16 -> 1 v 18 | G15: =SCHEDULE!G16 -> 14 v 20 | H15: =SCHEDULE!H16 -> 15 v 17 | I15: =SCHEDULE!I16 -> 14 v 16 | J15: =SCHEDULE!J16 -> 5 v 10 | K15: =SCHEDULE!K16 -> 7 v 10 | L15: =SCHEDULE!L16 -> 4 v 16 | M15: =SCHEDULE!M16 ->  | O15: Team 6 | P15: =VLOOKUP(O15,'LEAGUE MEMBERSHIP'!$I:$M,3,FALSE)&" / "&VLOOKUP(O15,'LEAGUE MEMBERSHIP'!$I:$M,5,FALSE) -> Vance Butterfield / Bob Schleyer
C16: =SCHEDULE!C17 -> 4:08 | D16: =SCHEDULE!D17 -> 16 v 7 | E16: =SCHEDULE!E17 -> 18 v 20 | F16: =SCHEDULE!F17 -> 14 v 9 | G16: =SCHEDULE!G17 -> 3 v 6 | H16: =SCHEDULE!H17 -> 5 v 6 | I16: =SCHEDULE!I17 -> 13 v 17 | J16: =SCHEDULE!J17 -> 11 v 17 | K16: =SCHEDULE!K17 -> 8 v 9 | L16: =SCHEDULE!L17 -> 8 v 20 | M16: =SCHEDULE!M17 ->  | O16: Team 7 | P16: =VLOOKUP(O16,'LEAGUE MEMBERSHIP'!$I:$M,3,FALSE)&" / "&VLOOKUP(O16,'LEAGUE MEMBERSHIP'!$I:$M,5,FALSE) -> Steve Scapparone / Dave Hyre
C17: =SCHEDULE!C18 -> 4:16 | D17: =SCHEDULE!D18 -> 17 v 8 | E17: =SCHEDULE!E18 -> 16 v 9 | F17: =SCHEDULE!F18 -> 16 v 20 | G17: =SCHEDULE!G18 -> 2 v 7 | H17: =SCHEDULE!H18 -> 1 v 16 | I17: =SCHEDULE!I18 -> 4 v 9 | J17: =SCHEDULE!J18 -> 1 v 14 | K17: =SCHEDULE!K18 -> 6 v 20 | L17: =SCHEDULE!L18 -> 1 v 12 | M17: =SCHEDULE!M18 ->  | O17: Team 8 | P17: =VLOOKUP(O17,'LEAGUE MEMBERSHIP'!$I:$M,3,FALSE)&" / "&VLOOKUP(O17,'LEAGUE MEMBERSHIP'!$I:$M,5,FALSE) -> Mike Sunderland / Debbie Sunderland
C18: =SCHEDULE!C19 -> 4:24 | D18: =SCHEDULE!D19 -> 12 v 3 | E18: =SCHEDULE!E19 -> 11 v 4 | F18: =SCHEDULE!F19 -> 11 v 6 | G18: =SCHEDULE!G19 -> 11 v 8 | H18: =SCHEDULE!H19 -> 11 v 10 | I18: =SCHEDULE!I19 -> 2 v 20 | J18: =SCHEDULE!J19 -> 7 v 8 | K18: =SCHEDULE!K19 -> 11 v 15 | L18: =SCHEDULE!L19 -> 2 v 14 | M18: =SCHEDULE!M19 ->  | O18: Team 9 | P18: =VLOOKUP(O18,'LEAGUE MEMBERSHIP'!$I:$M,3,FALSE)&" / "&VLOOKUP(O18,'LEAGUE MEMBERSHIP'!$I:$M,5,FALSE) -> Mike Doane / John Cassin
C19: =SCHEDULE!C20 -> 4:32 | D19: =SCHEDULE!D20 -> 14 v 5 | E19: =SCHEDULE!E20 -> 14 v 7 | F19: =SCHEDULE!F20 -> 3 v 4 | G19: =SCHEDULE!G20 -> 13 v 10 | H19: =SCHEDULE!H20 -> 2 v 9 | I19: =SCHEDULE!I20 -> 5 v 8 | J19: =SCHEDULE!J20 -> 13 v 15 | K19: =SCHEDULE!K20 -> 5 v 19 | L19: =SCHEDULE!L20 -> 5 v 17 | M19: =SCHEDULE!M20 ->  | O19: Team 10 | P19: =VLOOKUP(O19,'LEAGUE MEMBERSHIP'!$I:$M,3,FALSE)&" / "&VLOOKUP(O19,'LEAGUE MEMBERSHIP'!$I:$M,5,FALSE) -> Ron Eckstrom / Beth Romano
C20: =SCHEDULE!C21 -> 4:40 | D20: =SCHEDULE!D21 -> 13 v 4 | E20: =SCHEDULE!E21 -> 13 v 6 | F20: =SCHEDULE!F21 -> 17 v 19 | G20: =SCHEDULE!G21 -> 16 v 18 | H20: =SCHEDULE!H21 -> 12 v 20 | I20: =SCHEDULE!I21 -> 3 v 10 | J20: =SCHEDULE!J21 -> 3 v 19 | K20: =SCHEDULE!K21 -> 3 v 17 | L20: =SCHEDULE!L21 -> 3 v 15 | M20: =SCHEDULE!M21 ->  | O20: Team 11 | P20: =VLOOKUP(O20,'LEAGUE MEMBERSHIP'!$I:$M,3,FALSE)&" / "&VLOOKUP(O20,'LEAGUE MEMBERSHIP'!$I:$M,5,FALSE) -> Ray Henderson / Zachary Wallace
C21: =SCHEDULE!C22 -> 4:48 | D21: =SCHEDULE!D22 -> 1 v 20 | E21: =SCHEDULE!E22 -> 2 v 3 | F21: =SCHEDULE!F22 -> 15 v 10 | G21: =SCHEDULE!G22 -> 1 v 17 | H21: =SCHEDULE!H22 -> 3 v 8 | I21: =SCHEDULE!I22 -> 11 v 19 | J21: =SCHEDULE!J22 -> 6 v 9 | K21: =SCHEDULE!K22 -> 4 v 18 | L21: =SCHEDULE!L22 -> 9 v 10 | M21: =SCHEDULE!M22 ->  | O21: Team 12 | P21: =VLOOKUP(O21,'LEAGUE MEMBERSHIP'!$I:$M,3,FALSE)&" / "&VLOOKUP(O21,'LEAGUE MEMBERSHIP'!$I:$M,5,FALSE) -> Sal Cuifetti / Paul LeBlanc
C22: =SCHEDULE!C23 -> 4:56 | D22: =SCHEDULE!D23 -> 18 v 9 | E22: =SCHEDULE!E23 -> 15 v 8 | F22: =SCHEDULE!F23 -> 2 v 5 | G22: =SCHEDULE!G23 -> 4 v 5 | H22: =SCHEDULE!H23 -> 14 v 18 | I22: =SCHEDULE!I23 -> 6 v 7 | J22: =SCHEDULE!J23 -> 4 v 20 | K22: =SCHEDULE!K23 -> 2 v 16 | L22: =SCHEDULE!L23 -> 7 v 19 | M22: =SCHEDULE!M23 ->  | O22: Team 13 | P22: =VLOOKUP(O22,'LEAGUE MEMBERSHIP'!$I:$M,3,FALSE)&" / "&VLOOKUP(O22,'LEAGUE MEMBERSHIP'!$I:$M,5,FALSE) -> Kyle Currier / Walter Drake
C23: =SCHEDULE!C24 -> 5:04 | D23: =SCHEDULE!D24 -> 19 v 10 | E23: =SCHEDULE!E24 -> 1 v 19 | F23: =SCHEDULE!F24 -> 13 v 8 | G23: =SCHEDULE!G24 -> 15 v 19 | H23: =SCHEDULE!H24 -> 4 v 7 | I23: =SCHEDULE!I24 -> 12 v 18 | J23: =SCHEDULE!J24 -> 2 v 18 | K23: =SCHEDULE!K24 -> 1 v 13 | L23: =SCHEDULE!L24 -> 11 v 13 | M23: =SCHEDULE!M24 ->  | O23: Team 14 | P23: =VLOOKUP(O23,'LEAGUE MEMBERSHIP'!$I:$M,3,FALSE)&" / "&VLOOKUP(O23,'LEAGUE MEMBERSHIP'!$I:$M,5,FALSE) -> Doug Cormier / Ralph Romano, Jr.
C24: =SCHEDULE!C25 -> 5:12 | D24: =SCHEDULE!D25 -> 15 v 6 | E24: =SCHEDULE!E25 -> 17 v 10 | F24: =SCHEDULE!F25 -> 12 v 7 | G24: =SCHEDULE!G25 -> 12 v 9 | H24: =SCHEDULE!H25 -> 13 v 19 | I24: =SCHEDULE!I25 -> 1 v 15 | J24: =SCHEDULE!J25 -> 12 v 16 | K24: =SCHEDULE!K25 -> 12 v 14 | L24: =SCHEDULE!L25 -> 6 v 18 | M24: =SCHEDULE!M25 ->  | O24: Team 15 | P24: =VLOOKUP(O24,'LEAGUE MEMBERSHIP'!$I:$M,3,FALSE)&" / "&VLOOKUP(O24,'LEAGUE MEMBERSHIP'!$I:$M,5,FALSE) -> Tim Hurley / John Elie
C25: =SCHEDULE!C26 ->  | D25: =SCHEDULE!D26 ->  | E25: =SCHEDULE!E26 ->  | F25: =SCHEDULE!F26 ->  | G25: =SCHEDULE!G26 ->  | H25: =SCHEDULE!H26 ->  | I25: =SCHEDULE!I26 ->  | J25: =SCHEDULE!J26 ->  | K25: =SCHEDULE!K26 ->  | L25: =SCHEDULE!L26 ->  | M25: =SCHEDULE!M26 ->  | O25: Team 16 | P25: =VLOOKUP(O25,'LEAGUE MEMBERSHIP'!$I:$M,3,FALSE)&" / "&VLOOKUP(O25,'LEAGUE MEMBERSHIP'!$I:$M,5,FALSE) -> Deb DeCarolis / Joey DeCarolis
C26: =SCHEDULE!C27 -> Closest to Pin | D26: =SCHEDULE!D27 -> 8 | E26: =SCHEDULE!E27 -> 16 | F26: =SCHEDULE!F27 -> 6 | G26: =SCHEDULE!G27 -> 14 | H26: =SCHEDULE!H27 -> 8 | I26: =SCHEDULE!I27 -> 16 | J26: =SCHEDULE!J27 -> 6 | K26: =SCHEDULE!K27 -> 14 | L26: =SCHEDULE!L27 -> 8 | M26: =SCHEDULE!M27 ->  | O26: Team 17 | P26: =VLOOKUP(O26,'LEAGUE MEMBERSHIP'!$I:$M,3,FALSE)&" / "&VLOOKUP(O26,'LEAGUE MEMBERSHIP'!$I:$M,5,FALSE) -> Gary Bittner / Mike Dauphinais
O27: Team 18 | P27: =VLOOKUP(O27,'LEAGUE MEMBERSHIP'!$I:$M,3,FALSE)&" / "&VLOOKUP(O27,'LEAGUE MEMBERSHIP'!$I:$M,5,FALSE) -> Norm Gamache / Michelle Bouvier
F28: Week 7 | O28: Team 19 | P28: =VLOOKUP(O28,'LEAGUE MEMBERSHIP'!$I:$M,3,FALSE)&" / "&VLOOKUP(O28,'LEAGUE MEMBERSHIP'!$I:$M,5,FALSE) -> Gary Leavenworth / Patty Leavenworth
O29: Team 20 | P29: =VLOOKUP(O29,'LEAGUE MEMBERSHIP'!$I:$M,3,FALSE)&" / "&VLOOKUP(O29,'LEAGUE MEMBERSHIP'!$I:$M,5,FALSE) -> Paul Fontaine / Ralph Romano III
O30: Team 21 | P30: =VLOOKUP(O30,'LEAGUE MEMBERSHIP'!$I:$M,3,FALSE)&" / "&VLOOKUP(O30,'LEAGUE MEMBERSHIP'!$I:$M,5,FALSE) -> /
F31: 4:00 | O31: Team 22 | P31: =VLOOKUP(O31,'LEAGUE MEMBERSHIP'!$I:$M,3,FALSE)&" / "&VLOOKUP(O31,'LEAGUE MEMBERSHIP'!$I:$M,5,FALSE) -> /
A35: =D10 -> Week 1 | B35: 4 v 14 | C35: =IF(FIND(" v",B35)=2,LEFT(B35,1),LEFT(B35,2)) -> 4 | D35: =RIGHT(B35,LEN(B35)-FIND("v ",B35)-1) -> 14 | E35: ="Team "&C35 -> Team 4 | F35: ="Team "&D35 -> Team 14 | G35: =VLOOKUP(E35,'LEAGUE MEMBERSHIP'!$I:$M,3,FALSE)&" / "&VLOOKUP(E35,'LEAGUE MEMBERSHIP'!$I:$M,5,FALSE) -> Peg Romano / Lynn Laroche | J35: =VLOOKUP(F35,'LEAGUE MEMBERSHIP'!$I:$M,3,FALSE)&" / "&VLOOKUP(F35,'LEAGUE MEMBERSHIP'!$I:$M,5,FALSE) -> Doug Cormier / Ralph Romano, Jr. | M35: =E35&" ("&G35&") v "&F35&" ("&J35&")" -> Team 4 (Peg Romano / Lynn Laroche) v Team 14 (Doug Cormier / Ralph Romano, Jr.)
A36: =E10 -> Week 2 | B36: 5 v 15 | C36: =IF(FIND(" v",B36)=2,LEFT(B36,1),LEFT(B36,2)) -> 5 | D36: =RIGHT(B36,LEN(B36)-FIND("v ",B36)-1) -> 15 | E36: ="Team "&C36 -> Team 5 | F36: Team 15 | G36: =VLOOKUP(E36,'LEAGUE MEMBERSHIP'!$I:$M,3,FALSE)&" / "&VLOOKUP(E36,'LEAGUE MEMBERSHIP'!$I:$M,5,FALSE) -> Dennis Normandin / Mark Normandin | J36: =VLOOKUP(F36,'LEAGUE MEMBERSHIP'!$I:$M,3,FALSE)&" / "&VLOOKUP(F36,'LEAGUE MEMBERSHIP'!$I:$M,5,FALSE) -> Tim Hurley / John Elie | M36: =E36&" ("&G36&") v "&F36&" ("&J36&")" -> Team 5 (Dennis Normandin / Mark Normandin) v Team 15 (Tim Hurley / John Elie)
A37: =F10 -> Week 3 | B37: 1 v 11 | C37: 1 | D37: 11 | E37: Team 1 | F37: Team 11 | G37: =VLOOKUP(E37,'LEAGUE MEMBERSHIP'!$I:$M,3,FALSE)&" / "&VLOOKUP(E37,'LEAGUE MEMBERSHIP'!$I:$M,5,FALSE) -> Lester Lockhart / Pete Normandin | J37: =VLOOKUP(F37,'LEAGUE MEMBERSHIP'!$I:$M,3,FALSE)&" / "&VLOOKUP(F37,'LEAGUE MEMBERSHIP'!$I:$M,5,FALSE) -> Ray Henderson / Zachary Wallace | M37: Team 1 (Lester Lockhart / Pete Normandin) v Team 11 (Ray Henderson / Zachary Wallace)
A38: =G10 -> Week 4 | B38: 3 v 13 | C38: 3 | D38: 13 | E38: Team 3 | F38: Team 13 | G38: =VLOOKUP(E38,'LEAGUE MEMBERSHIP'!$I:$M,3,FALSE)&" / "&VLOOKUP(E38,'LEAGUE MEMBERSHIP'!$I:$M,5,FALSE) -> Pete Romano / Don Frigoletto | J38: =VLOOKUP(F38,'LEAGUE MEMBERSHIP'!$I:$M,3,FALSE)&" / "&VLOOKUP(F38,'LEAGUE MEMBERSHIP'!$I:$M,5,FALSE) -> Kyle Currier / Walter Drake | M38: Team 3 (Pete Romano / Don Frigoletto) v Team 13 (Kyle Currier / Walter Drake)
A39: =H10 -> Week 5 | B39: 7 v 17 | C39: 7 | D39: 17 | E39: Team 7 | F39: Team 17 | G39: =VLOOKUP(E39,'LEAGUE MEMBERSHIP'!$I:$M,3,FALSE)&" / "&VLOOKUP(E39,'LEAGUE MEMBERSHIP'!$I:$M,5,FALSE) -> Steve Scapparone / Dave Hyre | J39: =VLOOKUP(F39,'LEAGUE MEMBERSHIP'!$I:$M,3,FALSE)&" / "&VLOOKUP(F39,'LEAGUE MEMBERSHIP'!$I:$M,5,FALSE) -> Gary Bittner / Mike Dauphinais | M39: Team 7 (Steve Scapparone / Dave Hyre) v Team 17 (Gary Bittner / Mike Dauphinais)
A40: =I10 -> Week 6 | B40: 8 v 18 | C40: 8 | D40: 18 | E40: Team 8 | F40: Team 18 | G40: =VLOOKUP(E40,'LEAGUE MEMBERSHIP'!$I:$M,3,FALSE)&" / "&VLOOKUP(E40,'LEAGUE MEMBERSHIP'!$I:$M,5,FALSE) -> Mike Sunderland / Debbie Sunderland | J40: =VLOOKUP(F40,'LEAGUE MEMBERSHIP'!$I:$M,3,FALSE)&" / "&VLOOKUP(F40,'LEAGUE MEMBERSHIP'!$I:$M,5,FALSE) -> Norm Gamache / Michelle Bouvier | M40: Team 8 (Mike Sunderland / Debbie Sunderland) v Team 18 (Norm Gamache / Michelle Bouvier)
A41: =J10 -> Week 7 | B41: 9 v 19 | C41: 9 | D41: 19 | E41: Team 9 | F41: Team 19 | G41: =VLOOKUP(E41,'LEAGUE MEMBERSHIP'!$I:$M,3,FALSE)&" / "&VLOOKUP(E41,'LEAGUE MEMBERSHIP'!$I:$M,5,FALSE) -> Mike Doane / John Cassin | J41: =VLOOKUP(F41,'LEAGUE MEMBERSHIP'!$I:$M,3,FALSE)&" / "&VLOOKUP(F41,'LEAGUE MEMBERSHIP'!$I:$M,5,FALSE) -> Gary Leavenworth / Patty Leavenworth | M41: Team 9 (Mike Doane / John Cassin) v Team 19 (Gary Leavenworth / Patty Leavenworth)
A42: =K10 -> Week 8 | B42: 2 v 12 | C42: =IFERROR(IF(FIND(" v",B42)=2,LEFT(B42,1),LEFT(B42,2)),"") -> 2 | D42: =IFERROR(RIGHT(B42,LEN(B42)-FIND("v ",B42)-1),"") -> 12 | E42: =IF(C42<>"","Team "&C42,"") -> Team 2 | F42: =IF(D42<>"","Team "&D42,"") -> Team 12 | G42: =IFERROR(VLOOKUP(E42,'LEAGUE MEMBERSHIP'!$I:$M,3,FALSE)&" / "&VLOOKUP(E42,'LEAGUE MEMBERSHIP'!$I:$M,5,FALSE),"") -> Dave Cormier / Adam Williamson | J42: =IFERROR(VLOOKUP(F42,'LEAGUE MEMBERSHIP'!$I:$M,3,FALSE)&" / "&VLOOKUP(F42,'LEAGUE MEMBERSHIP'!$I:$M,5,FALSE),"") -> Sal Cuifetti / Paul LeBlanc | M42: =IF(B42<>"",E42&" ("&G42&") v "&F42&" ("&J42&")","") -> Team 2 (Dave Cormier / Adam Williamson) v Team 12 (Sal Cuifetti / Paul LeBlanc)
A43: =L10 -> Week 9 | B43: 6 v 16 | C43: =IFERROR(IF(FIND(" v",B43)=2,LEFT(B43,1),LEFT(B43,2)),"") -> 6 | D43: =IFERROR(RIGHT(B43,LEN(B43)-FIND("v ",B43)-1),"") -> 16 | E43: =IF(C43<>"","Team "&C43,"") -> Team 6 | F43: =IF(D43<>"","Team "&D43,"") -> Team 16 | G43: =IFERROR(VLOOKUP(E43,'LEAGUE MEMBERSHIP'!$I:$M,3,FALSE)&" / "&VLOOKUP(E43,'LEAGUE MEMBERSHIP'!$I:$M,5,FALSE),"") -> Vance Butterfield / Bob Schleyer | J43: =IFERROR(VLOOKUP(F43,'LEAGUE MEMBERSHIP'!$I:$M,3,FALSE)&" / "&VLOOKUP(F43,'LEAGUE MEMBERSHIP'!$I:$M,5,FALSE),"") -> Deb DeCarolis / Joey DeCarolis | M43: =IF(B43<>"",E43&" ("&G43&") v "&F43&" ("&J43&")","") -> Team 6 (Vance Butterfield / Bob Schleyer) v Team 16 (Deb DeCarolis / Joey DeCarolis)
A44: =M10 ->  | B44: 10 v 20 | C44: =IFERROR(IF(FIND(" v",B44)=2,LEFT(B44,1),LEFT(B44,2)),"") -> 10 | D44: 20 | E44: Team 10 | F44: Team 20 | G44: =IFERROR(VLOOKUP(E44,'LEAGUE MEMBERSHIP'!$I:$M,3,FALSE)&" / "&VLOOKUP(E44,'LEAGUE MEMBERSHIP'!$I:$M,5,FALSE),"") -> Ron Eckstrom / Beth Romano | J44: =IFERROR(VLOOKUP(F44,'LEAGUE MEMBERSHIP'!$I:$M,3,FALSE)&" / "&VLOOKUP(F44,'LEAGUE MEMBERSHIP'!$I:$M,5,FALSE),"") -> Paul Fontaine / Ralph Romano III | M44: Team 10 (Ron Eckstrom / Beth Romano) v Team 20 (Paul Fontaine / Ralph Romano III)
C45: =IFERROR(IF(FIND(" v",B45)=2,LEFT(B45,1),LEFT(B45,2)),"") ->  | G45: =IFERROR(VLOOKUP(E45,'LEAGUE MEMBERSHIP'!$I:$M,3,FALSE)&" / "&VLOOKUP(E45,'LEAGUE MEMBERSHIP'!$I:$M,5,FALSE),"") ->  | J45: =IFERROR(VLOOKUP(F45,'LEAGUE MEMBERSHIP'!$I:$M,3,FALSE)&" / "&VLOOKUP(F45,'LEAGUE MEMBERSHIP'!$I:$M,5,FALSE),"") -> 
A46: C-Box1 Value | B46: 6
A47: Week 1

Sheet SCORECARD
A1: ='COURSE & LEAGUE DETAILS'!$B$3 -> Woods at Westminster
A2: ='COURSE & LEAGUE DETAILS'!$B$2&" - "&N6&" - "&N8&" - "&TEXT(N7, "MMM dd, yyyy") -> Romano Golf League - Week 7 - FRONT - Aug 14, 2013
A4: HOLE | D4: =IF(LEFT($N$8)="F",1,IF(LEFT($N$8)="B",10,"ERROR")) -> 1 | E4: =IF(LEFT($N$8)="F",2,IF(LEFT($N$8)="B",11,"ERROR")) -> 2 | F4: =IF(LEFT($N$8)="F",3,IF(LEFT($N$8)="B",12,"ERROR")) -> 3 | G4: =IF(LEFT($N$8)="F",4,IF(LEFT($N$8)="B",13,"ERROR")) -> 4 | H4: =IF(LEFT($N$8)="F",5,IF(LEFT($N$8)="B",14,"ERROR")) -> 5 | I4: =IF(LEFT($N$8)="F",6,IF(LEFT($N$8)="B",15,"ERROR")) -> 6 | J4: =IF(LEFT($N$8)="F",7,IF(LEFT($N$8)="B",16,"ERROR")) -> 7 | K4: =IF(LEFT($N$8)="F",8,IF(LEFT($N$8)="B",17,"ERROR")) -> 8 | L4: =IF(LEFT($N$8)="F",9,IF(LEFT($N$8)="B",18,"ERROR")) -> 9 | M4: =IF(LEFT($N$8)="F","OUT",IF(LEFT($N$8)="B","IN","ERROR")) -> OUT
A5: WHITE | D5: =IF($D$4=1,'COURSE & LEAGUE DETAILS'!$B$6,IF($D$4=10,'COURSE & LEAGUE DETAILS'!$B$14,"ERROR")) -> 460 | E5: =IF($D$4=1,'COURSE & LEAGUE DETAILS'!$C$6,IF($D$4=10,'COURSE & LEAGUE DETAILS'!$C$14,"ERROR")) -> 275 | F5: =IF($D$4=1,'COURSE & LEAGUE DETAILS'!$D$6,IF($D$4=10,'COURSE & LEAGUE DETAILS'!$D$14,"ERROR")) -> 525 | G5: =IF($D$4=1,'COURSE & LEAGUE DETAILS'!$E$6,IF($D$4=10,'COURSE & LEAGUE DETAILS'!$E$14,"ERROR")) -> 295 | H5: =IF($D$4=1,'COURSE & LEAGUE DETAILS'!$F$6,IF($D$4=10,'COURSE & LEAGUE DETAILS'!$F$14,"ERROR")) -> 345 | I5: =IF($D$4=1,'COURSE & LEAGUE DETAILS'!$G$6,IF($D$4=10,'COURSE & LEAGUE DETAILS'!$G$14,"ERROR")) -> 175 | J5: =IF($D$4=1,'COURSE & LEAGUE DETAILS'!$H$6,IF($D$4=10,'COURSE & LEAGUE DETAILS'!$H$14,"ERROR")) -> 405 | K5: =IF($D$4=1,'COURSE & LEAGUE DETAILS'!$I$6,IF($D$4=10,'COURSE & LEAGUE DETAILS'!$I$14,"ERROR")) -> 145 | L5: =IF($D$4=1,'COURSE & LEAGUE DETAILS'!$J$6,IF($D$4=10,'COURSE & LEAGUE DETAILS'!$J$14,"ERROR")) -> 320 | M5: =IF($D$4=1,'COURSE & LEAGUE DETAILS'!$K$6,IF($D$4=10,'COURSE & LEAGUE DETAILS'!$K$14,"ERROR")) -> 2945
A6: MEN'S PAR | D6: =IF($D$4=1,'COURSE & LEAGUE DETAILS'!$B$7,IF($D$4=10,'COURSE & LEAGUE DETAILS'!$B$15,"ERROR")) -> 5 | E6: =IF($D$4=1,'COURSE & LEAGUE DETAILS'!$C$7,IF($D$4=10,'COURSE & LEAGUE DETAILS'!$C$15,"ERROR")) -> 4 | F6: =IF($D$4=1,'COURSE & LEAGUE DETAILS'!$D$7,IF($D$4=10,'COURSE & LEAGUE DETAILS'!$D$15,"ERROR")) -> 5 | G6: =IF($D$4=1,'COURSE & LEAGUE DETAILS'!$E$7,IF($D$4=10,'COURSE & LEAGUE DETAILS'!$E$15,"ERROR")) -> 4 | H6: =IF($D$4=1,'COURSE & LEAGUE DETAILS'!$F$7,IF($D$4=10,'COURSE & LEAGUE DETAILS'!$F$15,"ERROR")) -> 4 | I6: =IF($D$4=1,'COURSE & LEAGUE DETAILS'!$G$7,IF($D$4=10,'COURSE & LEAGUE DETAILS'!$G$15,"ERROR")) -> 3 | J6: =IF($D$4=1,'COURSE & LEAGUE DETAILS'!$H$7,IF($D$4=10,'COURSE & LEAGUE DETAILS'!$H$15,"ERROR")) -> 4 | K6: =IF($D$4=1,'COURSE & LEAGUE DETAILS'!$I$7,IF($D$4=10,'COURSE & LEAGUE DETAILS'!$I$15,"ERROR")) -> 3 | L6: =IF($D$4=1,'COURSE & LEAGUE DETAILS'!$J$7,IF($D$4=10,'COURSE & LEAGUE DETAILS'!$J$15,"ERROR")) -> 4 | M6: =IF($D$4=1,'COURSE & LEAGUE DETAILS'!$K$7,IF($D$4=10,'COURSE & LEAGUE DETAILS'!$K$15,"ERROR")) -> 36 | N6: =PRINT!F28 -> Week 7
A7: MEN'S HCP | D7: =IF($D$4=1,'COURSE & LEAGUE DETAILS'!$B$8,IF($D$4=10,'COURSE & LEAGUE DETAILS'!$B$16,"ERROR")) -> 5 | E7: =IF($D$4=1,'COURSE & LEAGUE DETAILS'!$C$8,IF($D$4=10,'COURSE & LEAGUE DETAILS'!$C$16,"ERROR")) -> 7 | F7: =IF($D$4=1,'COURSE & LEAGUE DETAILS'!$D$8,IF($D$4=10,'COURSE & LEAGUE DETAILS'!$D$16,"ERROR")) -> 3 | G7: =IF($D$4=1,'COURSE & LEAGUE DETAILS'!$E$8,IF($D$4=10,'COURSE & LEAGUE DETAILS'!$E$16,"ERROR")) -> 9 | H7: =IF($D$4=1,'COURSE & LEAGUE DETAILS'!$F$8,IF($D$4=10,'COURSE & LEAGUE DETAILS'!$F$16,"ERROR")) -> 11 | I7: =IF($D$4=1,'COURSE & LEAGUE DETAILS'!$G$8,IF($D$4=10,'COURSE & LEAGUE DETAILS'!$G$16,"ERROR")) -> 17 | J7: =IF($D$4=1,'COURSE & LEAGUE DETAILS'!$H$8,IF($D$4=10,'COURSE & LEAGUE DETAILS'!$H$16,"ERROR")) -> 1 | K7: =IF($D$4=1,'COURSE & LEAGUE DETAILS'!$I$8,IF($D$4=10,'COURSE & LEAGUE DETAILS'!$I$16,"ERROR")) -> 15 | L7: =IF($D$4=1,'COURSE & LEAGUE DETAILS'!$J$8,IF($D$4=10,'COURSE & LEAGUE DETAILS'!$J$16,"ERROR")) -> 13 | N7: =HLOOKUP($N$6,SCHEDULE!$C$11:$M$13,2,FALSE) -> 2013-08-14
A8: RED | D8: =IF($D$4=1,'COURSE & LEAGUE DETAILS'!$B$9,IF($D$4=10,'COURSE & LEAGUE DETAILS'!$B$17,"ERROR")) -> 375 | E8: =IF($D$4=1,'COURSE & LEAGUE DETAILS'!$C$9,IF($D$4=10,'COURSE & LEAGUE DETAILS'!$C$17,"ERROR")) -> 250 | F8: =IF($D$4=1,'COURSE & LEAGUE DETAILS'!$D$9,IF($D$4=10,'COURSE & LEAGUE DETAILS'!$D$17,"ERROR")) -> 475 | G8: =IF($D$4=1,'COURSE & LEAGUE DETAILS'!$E$9,IF($D$4=10,'COURSE & LEAGUE DETAILS'!$E$17,"ERROR")) -> 255 | H8: =IF($D$4=1,'COURSE & LEAGUE DETAILS'!$F$9,IF($D$4=10,'COURSE & LEAGUE DETAILS'!$F$17,"ERROR")) -> 325 | I8: =IF($D$4=1,'COURSE & LEAGUE DETAILS'!$G$9,IF($D$4=10,'COURSE & LEAGUE DETAILS'!$G$17,"ERROR")) -> 155 | J8: =IF($D$4=1,'COURSE & LEAGUE DETAILS'!$H$9,IF($D$4=10,'COURSE & LEAGUE DETAILS'!$H$17,"ERROR")) -> 375 | K8: =IF($D$4=1,'COURSE & LEAGUE DETAILS'!$I$9,IF($D$4=10,'COURSE & LEAGUE DETAILS'!$I$17,"ERROR")) -> 130 | L8: =IF($D$4=1,'COURSE & LEAGUE DETAILS'!$J$9,IF($D$4=10,'COURSE & LEAGUE DETAILS'!$J$17,"ERROR")) -> 290 | M8: =IF($D$4=1,'COURSE & LEAGUE DETAILS'!$K$9,IF($D$4=10,'COURSE & LEAGUE DETAILS'!$K$17,"ERROR")) -> 2630 | N8: =HLOOKUP($N$6,SCHEDULE!$C$11:$M$13,3,FALSE) -> FRONT
A9: WOMEN'S PAR | D9: =IF($D$4=1,'COURSE & LEAGUE DETAILS'!$B$10,IF($D$4=10,'COURSE & LEAGUE DETAILS'!$B$18,"ERROR")) -> 5 | E9: =IF($D$4=1,'COURSE & LEAGUE DETAILS'!$C$10,IF($D$4=10,'COURSE & LEAGUE DETAILS'!$C$18,"ERROR")) -> 4 | F9: =IF($D$4=1,'COURSE & LEAGUE DETAILS'!$D$10,IF($D$4=10,'COURSE & LEAGUE DETAILS'!$D$18,"ERROR")) -> 5 | G9: =IF($D$4=1,'COURSE & LEAGUE DETAILS'!$E$10,IF($D$4=10,'COURSE & LEAGUE DETAILS'!$E$18,"ERROR")) -> 4 | H9: =IF($D$4=1,'COURSE & LEAGUE DETAILS'!$F$10,IF($D$4=10,'COURSE & LEAGUE DETAILS'!$F$18,"ERROR")) -> 4 | I9: =IF($D$4=1,'COURSE & LEAGUE DETAILS'!$G$10,IF($D$4=10,'COURSE & LEAGUE DETAILS'!$G$18,"ERROR")) -> 3 | J9: =IF($D$4=1,'COURSE & LEAGUE DETAILS'!$H$10,IF($D$4=10,'COURSE & LEAGUE DETAILS'!$H$18,"ERROR")) -> 5 | K9: =IF($D$4=1,'COURSE & LEAGUE DETAILS'!$I$10,IF($D$4=10,'COURSE & LEAGUE DETAILS'!$I$18,"ERROR")) -> 3 | L9: =IF($D$4=1,'COURSE & LEAGUE DETAILS'!$J$10,IF($D$4=10,'COURSE & LEAGUE DETAILS'!$J$18,"ERROR")) -> 4 | M9: =IF($D$4=1,'COURSE & LEAGUE DETAILS'!$K$10,IF($D$4=10,'COURSE & LEAGUE DETAILS'!$K$18,"ERROR")) -> 37 | N9: =IF(PRINT!$F$31="All",SCHEDULE!$C$16,PRINT!$F$31) -> 4:00
A10: HCP | B10: TEAM | C10: WOMEN'S HCP | D10: =IF($D$4=1,'COURSE & LEAGUE DETAILS'!$B$11,IF($D$4=10,'COURSE & LEAGUE DETAILS'!$B$19,"ERROR")) -> 5 | E10: =IF($D$4=1,'COURSE & LEAGUE DETAILS'!$C$11,IF($D$4=10,'COURSE & LEAGUE DETAILS'!$C$19,"ERROR")) -> 7 | F10: =IF($D$4=1,'COURSE & LEAGUE DETAILS'!$D$11,IF($D$4=10,'COURSE & LEAGUE DETAILS'!$D$19,"ERROR")) -> 3 | G10: =IF($D$4=1,'COURSE & LEAGUE DETAILS'!$E$11,IF($D$4=10,'COURSE & LEAGUE DETAILS'!$E$19,"ERROR")) -> 9 | H10: =IF($D$4=1,'COURSE & LEAGUE DETAILS'!$F$11,IF($D$4=10,'COURSE & LEAGUE DETAILS'!$F$19,"ERROR")) -> 11 | I10: =IF($D$4=1,'COURSE & LEAGUE DETAILS'!$G$11,IF($D$4=10,'COURSE & LEAGUE DETAILS'!$G$19,"ERROR")) -> 17 | J10: =IF($D$4=1,'COURSE & LEAGUE DETAILS'!$H$11,IF($D$4=10,'COURSE & LEAGUE DETAILS'!$H$19,"ERROR")) -> 1 | K10: =IF($D$4=1,'COURSE & LEAGUE DETAILS'!$I$11,IF($D$4=10,'COURSE & LEAGUE DETAILS'!$I$19,"ERROR")) -> 15 | L10: =IF($D$4=1,'COURSE & LEAGUE DETAILS'!$J$11,IF($D$4=10,'COURSE & LEAGUE DETAILS'!$J$19,"ERROR")) -> 13 | N10: =VLOOKUP($N9,SCHEDULE!$C$16:$M$26,RIGHT($N6,LEN($N6)-FIND(" ",$N6))+1,FALSE) -> 5 v 10
D11: =D25 -> 1 | E11: =E25 -> 1 | F11: 1 | G11: 1 | H11: 1 | I11: 0 | J11: 1 | K11: 0 | L11: 0 | M11: =SUM(D11:L11) -> 6
A12: =IF(B12="DNP",IF(B14="DNP","ERROR",A14),IF(B12="COURSE",0,VLOOKUP(VLOOKUP(B12,'LEAGUE MEMBERSHIP'!E:G,3,FALSE),'INDIVIDUAL SCORES'!$A$74:$P$2799,16,FALSE))) -> 9 | B12: =$N12&"A" -> 5A | C12: =VLOOKUP(B12,'LEAGUE MEMBERSHIP'!$E$8:$F$107,2,FALSE) -> Dennis Normandin | N12: =LEFT(SUBSTITUTE(N10," v ",","),FIND(",",SUBSTITUTE(N10," v ",","))-1) -> 5
D13: =D26 -> 1 | E13: =E26 -> 1 | F13: 1 | G13: 0 | H13: 0 | I13: 0 | J13: 1 | K13: 0 | L13: 0 | M13: =SUM(D13:L13) -> 4
A14: =IF(B14="DNP",IF(B12="DNP","ERROR",A12),IF(B14="COURSE",0,VLOOKUP(VLOOKUP(B14,'LEAGUE MEMBERSHIP'!E:G,3,FALSE),'INDIVIDUAL SCORES'!$A$74:$P$2799,16,FALSE))) -> 7 | B14: =$N12&"B" -> 5B | C14: =VLOOKUP(B14,'LEAGUE MEMBERSHIP'!$E$8:$F$107,2,FALSE) -> Mark Normandin
C15: +/-
D17: =D28 -> 0 | E17: =E28 -> 0 | F17: 0 | G17: 0 | H17: 0 | I17: 0 | J17: 0 | K17: 0 | L17: 0 | M17: =SUM(D17:L17) -> 0
A18: =IF(B18="DNP",IF(B20="DNP","ERROR",A20),IF(B18="COURSE",0,VLOOKUP(VLOOKUP(B18,'LEAGUE MEMBERSHIP'!E:G,3,FALSE),'INDIVIDUAL SCORES'!$A$74:$P$2799,16,FALSE))) -> 3 | B18: =IF($N18="COURSE","COURSE",$N18&"A") -> 10A | C18: =VLOOKUP(B18,'LEAGUE MEMBERSHIP'!$E$8:$F$107,2,FALSE) -> Ron Eckstrom | N18: =RIGHT(SUBSTITUTE(N10," v ",","),LEN(SUBSTITUTE(N10," v ",","))-FIND(",",SUBSTITUTE(N10," v ",","))) -> 10
D19: =D29 -> 1 | E19: =E29 -> 1 | F19: 1 | G19: 1 | H19: 1 | I19: 1 | J19: 2 | K19: 1 | L19: 1 | M19: =SUM(D19:L19) -> 10
A20: =IF(B20="DNP",IF(B18="DNP","ERROR",A18),IF(B20="COURSE",0,VLOOKUP(VLOOKUP(B20,'LEAGUE MEMBERSHIP'!E:G,3,FALSE),'INDIVIDUAL SCORES'!$A$74:$P$2799,16,FALSE))) -> 13 | B20: =IF($N18="COURSE","COURSE",$N18&"B") -> 10B | C20: =VLOOKUP(B20,'LEAGUE MEMBERSHIP'!$E$8:$F$107,2,FALSE) -> Beth Romano
A22: =CONCATENATE("TEE TIME: ",TEXT(N9,"h:mm")," PM") -> TEE TIME: 4:00 PM
C23: Men's Hcp. Rank | D23: =RANK(D7,$D$7:$L$7,1) -> 3 | E23: =RANK(E7,$D$7:$L$7,1) -> 4 | F23: 2 | G23: 5 | H23: 6 | I23: 9 | J23: 1 | K23: 8 | L23: 7
C24: Women's Hcp. Rank | D24: =RANK(D10,$D$10:$L$10,1) -> 3 | E24: =RANK(E10,$D$10:$L$10,1) -> 4 | F24: 2 | G24: 5 | H24: 6 | I24: 9 | J24: 1 | K24: 8 | L24: 7
A25: =MIN(A12:A20) -> 3 | B25: =A12-A25 -> 6 | C25: =VLOOKUP(VLOOKUP(B12,'LEAGUE MEMBERSHIP'!E:G,3,FALSE),'LEAGUE MEMBERSHIP'!$A$8:$D$107,4,FALSE) -> M | D25: =IF($C25="M",IF($B25>=D23,IF(D6=3,1,IF($B25-9>=D23,2,1)),0),IF($C25="F",IF($B25>=D24,IF(D9=3,1,IF($B25-9>=D24,2,1)),0),0)) -> 1 | E25: =IF($C25="M",IF($B25>=E23,IF(E6=3,1,IF($B25-9>=E23,2,1)),0),IF($C25="F",IF($B25>=E24,IF(E9=3,1,IF($B25-9>=E24,2,1)),0),0)) -> 1 | F25: 1 | G25: 1 | H25: 1 | I25: 0 | J25: 1 | K25: 0 | L25: 0
B26: =A14-A25 -> 4 | C26: =VLOOKUP(VLOOKUP(B14,'LEAGUE MEMBERSHIP'!E:G,3,FALSE),'LEAGUE MEMBERSHIP'!$A$8:$D$107,4,FALSE) -> M | D26: =IF($C26="M",IF($B26>=D23,IF(D6=3,1,IF($B26-9>=D23,2,1)),0),IF($C26="F",IF($B26>=D24,IF(D9=3,1,IF($B26-9>=D24,2,1)),0),0)) -> 1 | E26: =IF($C26="M",IF($B26>=E23,IF(E6=3,1,IF($B26-9>=E23,2,1)),0),IF($C26="F",IF($B26>=E24,IF(E9=3,1,IF($B26-9>=E24,2,1)),0),0)) -> 1 | F26: 1 | G26: 0 | H26: 0 | I26: 0 | J26: 1 | K26: 0 | L26: 0
B28: =A18-A25 -> 0 | C28: =VLOOKUP(VLOOKUP(B18,'LEAGUE MEMBERSHIP'!E:G,3,FALSE),'LEAGUE MEMBERSHIP'!$A$8:$D$107,4,FALSE) -> M | D28: =IF($C28="M",IF($B28>=D23,IF(D6=3,1,IF($B28-9>=D23,2,1)),0),IF($C28="F",IF($B28>=D24,IF(D9=3,1,IF($B28-9>=D24,2,1)),0),0)) -> 0 | E28: =IF($C28="M",IF($B28>=E23,IF(E6=3,1,IF($B28-9>=E23,2,1)),0),IF($C28="F",IF($B28>=E24,IF(E9=3,1,IF($B28-9>=E24,2,1)),0),0)) -> 0 | F28: 0 | G28: 0 | H28: 0 | I28: 0 | J28: 0 | K28: 0 | L28: 0
B29: =A20-A25 -> 10 | C29: =VLOOKUP(VLOOKUP(B20,'LEAGUE MEMBERSHIP'!E:G,3,FALSE),'LEAGUE MEMBERSHIP'!$A$8:$D$107,4,FALSE) -> F | D29: =IF($C29="M",IF($B29>=D23,IF(D6=3,1,IF($B29-9>=D23,2,1)),0),IF($C29="F",IF($B29>=D24,IF(D9=3,1,IF($B29-9>=D24,2,1)),0),0)) -> 1 | E29: =IF($C29="M",IF($B29>=E23,IF(E6=3,1,IF($B29-9>=E23,2,1)),0),IF($C29="F",IF($B29>=E24,IF(E9=3,1,IF($B29-9>=E24,2,1)),0),0)) -> 1 | F29: 1 | G29: 1 | H29: 1 | I29: 1 | J29: 2 | K29: 1 | L29: 1
A32: =MAIN!F8 -> Final Standings - Second Half
A34: Rank | B34: Team | F34: Points
A35: =MAIN!F11 -> 1 | B35: =MAIN!G11 -> 10 Ron Eckstrom / Beth Romano | F35: =MAIN!K11 -> 43.5
A36: =MAIN!F12 -> 2 | B36: =MAIN!G12 -> 05 Dennis Normandin / Mark Normandin | F36: =MAIN!K12 -> 42.5
A37: =MAIN!F13 -> 3 | B37: =MAIN!G13 -> 15 Tim Hurley / John Elie | F37: =MAIN!K13 -> 42
A38: =MAIN!F14 -> 4 | B38: =MAIN!G14 -> 16 Deb DeCarolis / Joey DeCarolis | F38: =MAIN!K14 -> 41.5
A39: =MAIN!F15 -> 5 | B39: =MAIN!G15 -> 12 Sal Cuifetti / Paul LeBlanc | F39: =MAIN!K15 -> 41
A40: =MAIN!F16 -> 6 | B40: =MAIN!G16 -> 19 Gary Leavenworth / Patty Leavenworth | F40: =MAIN!K16 -> 40.5
A41: =MAIN!F17 -> 7T | B41: =MAIN!G17 -> 01 Lester Lockhart / Pete Normandin | F41: =MAIN!K17 -> 39
A42: =MAIN!F18 -> 7T | B42: =MAIN!G18 -> 02 Dave Cormier / Adam Williamson | F42: =MAIN!K18 -> 39
A43: =MAIN!F19 -> 9 | B43: =MAIN!G19 -> 20 Paul Fontaine / Ralph Romano III | F43: =MAIN!K19 -> 38
A44: =MAIN!F20 -> 10 | B44: =MAIN!G20 -> 17 Gary Bittner / Mike Dauphinais | F44: =MAIN!K20 -> 37 | H44: =" " & MAIN!M10 -> Team 04 def. Team 16, 5.0 - 4.0
A45: =MAIN!F21 -> 11 | B45: =MAIN!G21 -> 11 Ray Henderson / Zachary Wallace | F45: =MAIN!K21 -> 36.5 | H45: =" " & MAIN!M11 -> Team 08 def. Team 20, 5.0 - 4.0
A46: =MAIN!F22 -> 12T | B46: =MAIN!G22 -> 03 Pete Romano / Don Frigoletto | F46: =MAIN!K22 -> 35 | H46: =" " & MAIN!M12 -> Team 12 def. Team 01, 6.0 - 3.0
A47: =MAIN!F23 -> 12T | B47: =MAIN!G23 -> 04 Peg Romano / Lynn Laroche | F47: =MAIN!K23 -> 35 | H47: =" " & MAIN!M13 -> Team 14 def. Team 02, 5.0 - 4.0
A48: =MAIN!F24 -> 14 | B48: =MAIN!G24 -> 08 Mike Sunderland / Debbie Sunderland | F48: =MAIN!K24 -> 34.5 | H48: =" " & MAIN!M14 -> Team 05 def. Team 17, 6.5 - 2.5
A49: =MAIN!F25 -> 15 | B49: =MAIN!G25 -> 09 Mike Doane / John Cassin | F49: =MAIN!K25 -> 32.5 | H49: =" " & MAIN!M15 -> Team 15 def. Team 03, 5.5 - 3.5
A50: =MAIN!F26 -> 16 | B50: =MAIN!G26 -> 06 Vance Butterfield / Bob Schleyer | F50: =MAIN!K26 -> 30.5 | H50: =" " & MAIN!M16 -> Team 10 def. Team 09, 7.0 - 2.0
A51: =MAIN!F27 -> 17 | B51: =MAIN!G27 -> 18 Norm Gamache / Michelle Bouvier | F51: =MAIN!K27 -> 29 | H51: =" " & MAIN!M17 -> Team 19 def. Team 07, 4.0 - 0.0
A52: =MAIN!F28 -> 18 | B52: =MAIN!G28 -> 14 Doug Cormier / Ralph Romano, Jr. | F52: =MAIN!K28 -> 27.5 | H52: =" " & MAIN!M18 -> Team 11 def. Team 13, 6.5 - 2.5
A53: =MAIN!F29 -> 19 | B53: =MAIN!G29 -> 13 Kyle Currier / Walter Drake | F53: =MAIN!K29 -> 19.5 | H53: =" " & MAIN!M19 -> Team 18 def. Team 06, 4.5 - 0.0
A54: =MAIN!F30 -> 20T | B54: =MAIN!G30 -> 07 Steve Scapparone / Dave Hyre | F54: =MAIN!K30 -> 0
A55: =MAIN!F31 -> 20T | B55: =MAIN!G31 -> 21 / | F55: =MAIN!K31 -> 0
A56: =MAIN!F32 -> 20T | B56: =MAIN!G32 -> 22 / | F56: =MAIN!K32 -> 0
A57: ='COURSE & LEAGUE DETAILS'!A49 -> To view scores, handicaps, etc., go to http://www.rromano.com and click on the Romano Golf League 2013 Spreadsheet

Sheet SCORECARD (2)
A1: ='COURSE & LEAGUE DETAILS'!$B$3 -> Woods at Westminster | O1: Sub1 | P1: =IFERROR(VLOOKUP(O1,'LEAGUE MEMBERSHIP'!$E$8:$F$107,2,FALSE),"") -> Becky Bartkus | R1: Sub11 | S1: =IFERROR(VLOOKUP(R1,'LEAGUE MEMBERSHIP'!$E$8:$F$107,2,FALSE),"") -> Don Shank | U1: Sub21 | V1: =IFERROR(VLOOKUP(U1,'LEAGUE MEMBERSHIP'!$E$8:$F$107,2,FALSE),"") -> Dennis St. Jean
A2: ='COURSE & LEAGUE DETAILS'!$B$2&" - "&N6&" - "&N8&" - "&TEXT(N7, "MMM dd, yyyy") -> Romano Golf League - Week 7 - FRONT - Aug 14, 2013 | O2: Sub2 | P2: =IFERROR(VLOOKUP(O2,'LEAGUE MEMBERSHIP'!$E$8:$F$107,2,FALSE),"") -> P.J. Romano | R2: Sub12 | S2: =IFERROR(VLOOKUP(R2,'LEAGUE MEMBERSHIP'!$E$8:$F$107,2,FALSE),"") -> Chris Barry | U2: Sub22 | V2: =IFERROR(VLOOKUP(U2,'LEAGUE MEMBERSHIP'!$E$8:$F$107,2,FALSE),"") -> Joe Fratticelli
O3: Sub3 | P3: =IFERROR(VLOOKUP(O3,'LEAGUE MEMBERSHIP'!$E$8:$F$107,2,FALSE),"") -> Mike Forbes | R3: Sub13 | S3: =IFERROR(VLOOKUP(R3,'LEAGUE MEMBERSHIP'!$E$8:$F$107,2,FALSE),"") -> Tom Farias | U3: Sub23 | V3: =IFERROR(VLOOKUP(U3,'LEAGUE MEMBERSHIP'!$E$8:$F$107,2,FALSE),"") -> Pete Collette
A4: HOLE | D4: =IF(LEFT($N$8)="F",1,IF(LEFT($N$8)="B",10,"ERROR")) -> 1 | E4: =IF(LEFT($N$8)="F",2,IF(LEFT($N$8)="B",11,"ERROR")) -> 2 | F4: =IF(LEFT($N$8)="F",3,IF(LEFT($N$8)="B",12,"ERROR")) -> 3 | G4: =IF(LEFT($N$8)="F",4,IF(LEFT($N$8)="B",13,"ERROR")) -> 4 | H4: =IF(LEFT($N$8)="F",5,IF(LEFT($N$8)="B",14,"ERROR")) -> 5 | I4: =IF(LEFT($N$8)="F",6,IF(LEFT($N$8)="B",15,"ERROR")) -> 6 | J4: =IF(LEFT($N$8)="F",7,IF(LEFT($N$8)="B",16,"ERROR")) -> 7 | K4: =IF(LEFT($N$8)="F",8,IF(LEFT($N$8)="B",17,"ERROR")) -> 8 | L4: =IF(LEFT($N$8)="F",9,IF(LEFT($N$8)="B",18,"ERROR")) -> 9 | M4: =IF(LEFT($N$8)="F","OUT",IF(LEFT($N$8)="B","IN","ERROR")) -> OUT | O4: Sub4 | P4: =IFERROR(VLOOKUP(O4,'LEAGUE MEMBERSHIP'!$E$8:$F$107,2,FALSE),"") -> Mike Romano | R4: Sub14 | S4: =IFERROR(VLOOKUP(R4,'LEAGUE MEMBERSHIP'!$E$8:$F$107,2,FALSE),"") -> Jeff Erskine | U4: Sub24 | V4: =IFERROR(VLOOKUP(U4,'LEAGUE MEMBERSHIP'!$E$8:$F$107,2,FALSE),"") -> Shane McCarthy
A5: WHITE | D5: =IF($D$4=1,'COURSE & LEAGUE DETAILS'!$B$6,IF($D$4=10,'COURSE & LEAGUE DETAILS'!$B$14,"ERROR")) -> 460 | E5: =IF($D$4=1,'COURSE & LEAGUE DETAILS'!$C$6,IF($D$4=10,'COURSE & LEAGUE DETAILS'!$C$14,"ERROR")) -> 275 | F5: =IF($D$4=1,'COURSE & LEAGUE DETAILS'!$D$6,IF($D$4=10,'COURSE & LEAGUE DETAILS'!$D$14,"ERROR")) -> 525 | G5: =IF($D$4=1,'COURSE & LEAGUE DETAILS'!$E$6,IF($D$4=10,'COURSE & LEAGUE DETAILS'!$E$14,"ERROR")) -> 295 | H5: =IF($D$4=1,'COURSE & LEAGUE DETAILS'!$F$6,IF($D$4=10,'COURSE & LEAGUE DETAILS'!$F$14,"ERROR")) -> 345 | I5: =IF($D$4=1,'COURSE & LEAGUE DETAILS'!$G$6,IF($D$4=10,'COURSE & LEAGUE DETAILS'!$G$14,"ERROR")) -> 175 | J5: =IF($D$4=1,'COURSE & LEAGUE DETAILS'!$H$6,IF($D$4=10,'COURSE & LEAGUE DETAILS'!$H$14,"ERROR")) -> 405 | K5: =IF($D$4=1,'COURSE & LEAGUE DETAILS'!$I$6,IF($D$4=10,'COURSE & LEAGUE DETAILS'!$I$14,"ERROR")) -> 145 | L5: =IF($D$4=1,'COURSE & LEAGUE DETAILS'!$J$6,IF($D$4=10,'COURSE & LEAGUE DETAILS'!$J$14,"ERROR")) -> 320 | M5: =IF($D$4=1,'COURSE & LEAGUE DETAILS'!$K$6,IF($D$4=10,'COURSE & LEAGUE DETAILS'!$K$14,"ERROR")) -> 2945 | O5: Sub5 | P5: =IFERROR(VLOOKUP(O5,'LEAGUE MEMBERSHIP'!$E$8:$F$107,2,FALSE),"") -> Jono Normandin | R5: Sub15 | S5: =IFERROR(VLOOKUP(R5,'LEAGUE MEMBERSHIP'!$E$8:$F$107,2,FALSE),"") -> Jeff Richard | U5: Sub25 | V5: =IFERROR(VLOOKUP(U5,'LEAGUE MEMBERSHIP'!$E$8:$F$107,2,FALSE),"") -> Brenda Louney
A6: MEN'S PAR | D6: =IF($D$4=1,'COURSE & LEAGUE DETAILS'!$B$7,IF($D$4=10,'COURSE & LEAGUE DETAILS'!$B$15,"ERROR")) -> 5 | E6: =IF($D$4=1,'COURSE & LEAGUE DETAILS'!$C$7,IF($D$4=10,'COURSE & LEAGUE DETAILS'!$C$15,"ERROR")) -> 4 | F6: =IF($D$4=1,'COURSE & LEAGUE DETAILS'!$D$7,IF($D$4=10,'COURSE & LEAGUE DETAILS'!$D$15,"ERROR")) -> 5 | G6: =IF($D$4=1,'COURSE & LEAGUE DETAILS'!$E$7,IF($D$4=10,'COURSE & LEAGUE DETAILS'!$E$15,"ERROR")) -> 4 | H6: =IF($D$4=1,'COURSE & LEAGUE DETAILS'!$F$7,IF($D$4=10,'COURSE & LEAGUE DETAILS'!$F$15,"ERROR")) -> 4 | I6: =IF($D$4=1,'COURSE & LEAGUE DETAILS'!$G$7,IF($D$4=10,'COURSE & LEAGUE DETAILS'!$G$15,"ERROR")) -> 3 | J6: =IF($D$4=1,'COURSE & LEAGUE DETAILS'!$H$7,IF($D$4=10,'COURSE & LEAGUE DETAILS'!$H$15,"ERROR")) -> 4 | K6: =IF($D$4=1,'COURSE & LEAGUE DETAILS'!$I$7,IF($D$4=10,'COURSE & LEAGUE DETAILS'!$I$15,"ERROR")) -> 3 | L6: =IF($D$4=1,'COURSE & LEAGUE DETAILS'!$J$7,IF($D$4=10,'COURSE & LEAGUE DETAILS'!$J$15,"ERROR")) -> 4 | M6: =IF($D$4=1,'COURSE & LEAGUE DETAILS'!$K$7,IF($D$4=10,'COURSE & LEAGUE DETAILS'!$K$15,"ERROR")) -> 36 | N6: =PRINT!F28 -> Week 7 | O6: Sub6 | P6: =IFERROR(VLOOKUP(O6,'LEAGUE MEMBERSHIP'!$E$8:$F$107,2,FALSE),"") -> Scott Leavenworth | R6: Sub16 | S6: =IFERROR(VLOOKUP(R6,'LEAGUE MEMBERSHIP'!$E$8:$F$107,2,FALSE),"") -> Paul Stedman | U6: Sub26 | V6: =IFERROR(VLOOKUP(U6,'LEAGUE MEMBERSHIP'!$E$8:$F$107,2,FALSE),"") -> Mark Louney
A7: MEN'S HCP | D7: =IF($D$4=1,'COURSE & LEAGUE DETAILS'!$B$8,IF($D$4=10,'COURSE & LEAGUE DETAILS'!$B$16,"ERROR")) -> 5 | E7: =IF($D$4=1,'COURSE & LEAGUE DETAILS'!$C$8,IF($D$4=10,'COURSE & LEAGUE DETAILS'!$C$16,"ERROR")) -> 7 | F7: =IF($D$4=1,'COURSE & LEAGUE DETAILS'!$D$8,IF($D$4=10,'COURSE & LEAGUE DETAILS'!$D$16,"ERROR")) -> 3 | G7: =IF($D$4=1,'COURSE & LEAGUE DETAILS'!$E$8,IF($D$4=10,'COURSE & LEAGUE DETAILS'!$E$16,"ERROR")) -> 9 | H7: =IF($D$4=1,'COURSE & LEAGUE DETAILS'!$F$8,IF($D$4=10,'COURSE & LEAGUE DETAILS'!$F$16,"ERROR")) -> 11 | I7: =IF($D$4=1,'COURSE & LEAGUE DETAILS'!$G$8,IF($D$4=10,'COURSE & LEAGUE DETAILS'!$G$16,"ERROR")) -> 17 | J7: =IF($D$4=1,'COURSE & LEAGUE DETAILS'!$H$8,IF($D$4=10,'COURSE & LEAGUE DETAILS'!$H$16,"ERROR")) -> 1 | K7: =IF($D$4=1,'COURSE & LEAGUE DETAILS'!$I$8,IF($D$4=10,'COURSE & LEAGUE DETAILS'!$I$16,"ERROR")) -> 15 | L7: =IF($D$4=1,'COURSE & LEAGUE DETAILS'!$J$8,IF($D$4=10,'COURSE & LEAGUE DETAILS'!$J$16,"ERROR")) -> 13 | N7: =HLOOKUP($N$6,SCHEDULE!$C$11:$M$13,2,FALSE) -> 2013-08-14 | O7: Sub7 | P7: =IFERROR(VLOOKUP(O7,'LEAGUE MEMBERSHIP'!$E$8:$F$107,2,FALSE),"") -> PJ Fontaine | R7: Sub17 | S7: =IFERROR(VLOOKUP(R7,'LEAGUE MEMBERSHIP'!$E$8:$F$107,2,FALSE),"") -> Deb Passios | U7: Sub27 | V7: =IFERROR(VLOOKUP(U7,'LEAGUE MEMBERSHIP'!$E$8:$F$107,2,FALSE),"") -> Victor Szewczyk
A8: RED | D8: =IF($D$4=1,'COURSE & LEAGUE DETAILS'!$B$9,IF($D$4=10,'COURSE & LEAGUE DETAILS'!$B$17,"ERROR")) -> 375 | E8: =IF($D$4=1,'COURSE & LEAGUE DETAILS'!$C$9,IF($D$4=10,'COURSE & LEAGUE DETAILS'!$C$17,"ERROR")) -> 250 | F8: =IF($D$4=1,'COURSE & LEAGUE DETAILS'!$D$9,IF($D$4=10,'COURSE & LEAGUE DETAILS'!$D$17,"ERROR")) -> 475 | G8: =IF($D$4=1,'COURSE & LEAGUE DETAILS'!$E$9,IF($D$4=10,'COURSE & LEAGUE DETAILS'!$E$17,"ERROR")) -> 255 | H8: =IF($D$4=1,'COURSE & LEAGUE DETAILS'!$F$9,IF($D$4=10,'COURSE & LEAGUE DETAILS'!$F$17,"ERROR")) -> 325 | I8: =IF($D$4=1,'COURSE & LEAGUE DETAILS'!$G$9,IF($D$4=10,'COURSE & LEAGUE DETAILS'!$G$17,"ERROR")) -> 155 | J8: =IF($D$4=1,'COURSE & LEAGUE DETAILS'!$H$9,IF($D$4=10,'COURSE & LEAGUE DETAILS'!$H$17,"ERROR")) -> 375 | K8: =IF($D$4=1,'COURSE & LEAGUE DETAILS'!$I$9,IF($D$4=10,'COURSE & LEAGUE DETAILS'!$I$17,"ERROR")) -> 130 | L8: =IF($D$4=1,'COURSE & LEAGUE DETAILS'!$J$9,IF($D$4=10,'COURSE & LEAGUE DETAILS'!$J$17,"ERROR")) -> 290 | M8: =IF($D$4=1,'COURSE & LEAGUE DETAILS'!$K$9,IF($D$4=10,'COURSE & LEAGUE DETAILS'!$K$17,"ERROR")) -> 2630 | N8: =HLOOKUP($N$6,SCHEDULE!$C$11:$M$13,3,FALSE) -> FRONT | O8: Sub8 | P8: =IFERROR(VLOOKUP(O8,'LEAGUE MEMBERSHIP'!$E$8:$F$107,2,FALSE),"") -> Yogi DiPasquale | R8: Sub18 | S8: =IFERROR(VLOOKUP(R8,'LEAGUE MEMBERSHIP'!$E$8:$F$107,2,FALSE),"") -> Joe Pearson | U8: Sub28 | V8: =IFERROR(VLOOKUP(U8,'LEAGUE MEMBERSHIP'!$E$8:$F$107,2,FALSE),"") -> Matt Lee
A9: WOMEN'S PAR | D9: =IF($D$4=1,'COURSE & LEAGUE DETAILS'!$B$10,IF($D$4=10,'COURSE & LEAGUE DETAILS'!$B$18,"ERROR")) -> 5 | E9: =IF($D$4=1,'COURSE & LEAGUE DETAILS'!$C$10,IF($D$4=10,'COURSE & LEAGUE DETAILS'!$C$18,"ERROR")) -> 4 | F9: =IF($D$4=1,'COURSE & LEAGUE DETAILS'!$D$10,IF($D$4=10,'COURSE & LEAGUE DETAILS'!$D$18,"ERROR")) -> 5 | G9: =IF($D$4=1,'COURSE & LEAGUE DETAILS'!$E$10,IF($D$4=10,'COURSE & LEAGUE DETAILS'!$E$18,"ERROR")) -> 4 | H9: =IF($D$4=1,'COURSE & LEAGUE DETAILS'!$F$10,IF($D$4=10,'COURSE & LEAGUE DETAILS'!$F$18,"ERROR")) -> 4 | I9: =IF($D$4=1,'COURSE & LEAGUE DETAILS'!$G$10,IF($D$4=10,'COURSE & LEAGUE DETAILS'!$G$18,"ERROR")) -> 3 | J9: =IF($D$4=1,'COURSE & LEAGUE DETAILS'!$H$10,IF($D$4=10,'COURSE & LEAGUE DETAILS'!$H$18,"ERROR")) -> 5 | K9: =IF($D$4=1,'COURSE & LEAGUE DETAILS'!$I$10,IF($D$4=10,'COURSE & LEAGUE DETAILS'!$I$18,"ERROR")) -> 3 | L9: =IF($D$4=1,'COURSE & LEAGUE DETAILS'!$J$10,IF($D$4=10,'COURSE & LEAGUE DETAILS'!$J$18,"ERROR")) -> 4 | M9: =IF($D$4=1,'COURSE & LEAGUE DETAILS'!$K$10,IF($D$4=10,'COURSE & LEAGUE DETAILS'!$K$18,"ERROR")) -> 37 | N9: =IF(PRINT!$F$31="All",SCHEDULE!$C$16,PRINT!$F$31) -> 4:00 | O9: Sub9 | P9: =IFERROR(VLOOKUP(O9,'LEAGUE MEMBERSHIP'!$E$8:$F$107,2,FALSE),"") -> Jon Friberg | R9: Sub19 | S9: =IFERROR(VLOOKUP(R9,'LEAGUE MEMBERSHIP'!$E$8:$F$107,2,FALSE),"") -> Audrey Henderson | U9: Sub29 | V9: =IFERROR(VLOOKUP(U9,'LEAGUE MEMBERSHIP'!$E$8:$F$107,2,FALSE),"") -> Jay Melansom
A10: HCP | B10: TEAM | C10: WOMEN'S HCP | D10: =IF($D$4=1,'COURSE & LEAGUE DETAILS'!$B$11,IF($D$4=10,'COURSE & LEAGUE DETAILS'!$B$19,"ERROR")) -> 5 | E10: =IF($D$4=1,'COURSE & LEAGUE DETAILS'!$C$11,IF($D$4=10,'COURSE & LEAGUE DETAILS'!$C$19,"ERROR")) -> 7 | F10: =IF($D$4=1,'COURSE & LEAGUE DETAILS'!$D$11,IF($D$4=10,'COURSE & LEAGUE DETAILS'!$D$19,"ERROR")) -> 3 | G10: =IF($D$4=1,'COURSE & LEAGUE DETAILS'!$E$11,IF($D$4=10,'COURSE & LEAGUE DETAILS'!$E$19,"ERROR")) -> 9 | H10: =IF($D$4=1,'COURSE & LEAGUE DETAILS'!$F$11,IF($D$4=10,'COURSE & LEAGUE DETAILS'!$F$19,"ERROR")) -> 11 | I10: =IF($D$4=1,'COURSE & LEAGUE DETAILS'!$G$11,IF($D$4=10,'COURSE & LEAGUE DETAILS'!$G$19,"ERROR")) -> 17 | J10: =IF($D$4=1,'COURSE & LEAGUE DETAILS'!$H$11,IF($D$4=10,'COURSE & LEAGUE DETAILS'!$H$19,"ERROR")) -> 1 | K10: =IF($D$4=1,'COURSE & LEAGUE DETAILS'!$I$11,IF($D$4=10,'COURSE & LEAGUE DETAILS'!$I$19,"ERROR")) -> 15 | L10: =IF($D$4=1,'COURSE & LEAGUE DETAILS'!$J$11,IF($D$4=10,'COURSE & LEAGUE DETAILS'!$J$19,"ERROR")) -> 13 | N10: =VLOOKUP($N9,SCHEDULE!$C$16:$M$26,RIGHT($N6,LEN($N6)-FIND(" ",$N6))+1,FALSE) -> 5 v 10 | O10: Sub10 | P10: =IFERROR(VLOOKUP(O10,'LEAGUE MEMBERSHIP'!$E$8:$F$107,2,FALSE),"") -> Jim Hedlund | R10: Sub20 | S10: =IFERROR(VLOOKUP(R10,'LEAGUE MEMBERSHIP'!$E$8:$F$107,2,FALSE),"") -> David St. Jean | U10: Sub30 | V10: =IFERROR(VLOOKUP(U10,'LEAGUE MEMBERSHIP'!$E$8:$F$107,2,FALSE),"") -> 
D11: =D25 -> 1 | E11: =E25 -> 1 | F11: 1 | G11: 1 | H11: 1 | I11: 0 | J11: 1 | K11: 0 | L11: 0 | M11: =SUM(D11:L11) -> 6
A12: =IF(B12="DNP",IF(B14="DNP","ERROR",A14),IF(B12="COURSE",0,VLOOKUP(VLOOKUP(B12,'LEAGUE MEMBERSHIP'!E:G,3,FALSE),'INDIVIDUAL SCORES'!$A$74:$P$2799,16,FALSE))) -> 9 | B12: =$N$12&"A" -> 5A | C12: =VLOOKUP(B12,'LEAGUE MEMBERSHIP'!$E$8:$F$107,2,FALSE) -> Dennis Normandin | N12: =LEFT(SUBSTITUTE(N10," v ",","),FIND(",",SUBSTITUTE(N10," v ",","))-1) -> 5 | S12: =IFERROR(IF(LEFT(R12,6)="Course","Course",IF(LEFT(R12,3)="DNP","DNP",IF(FIND(" - ",R12) = 5,LEFT(R12,4),LEFT(R12,5)))),"") ->  | U12: =IFERROR(IF(LEFT(T12,6)="Course","Course",IF(LEFT(T12,3)="DNP","DNP",IF(FIND(" - ",T12) = 5,LEFT(T12,4),LEFT(T12,5)))),"") -> 
D13: =D26 -> 1 | E13: =E26 -> 1 | F13: 1 | G13: 0 | H13: 0 | I13: 0 | J13: 1 | K13: 0 | L13: 0 | M13: =SUM(D13:L13) -> 4
A14: =IF(B14="DNP",IF(B12="DNP","ERROR",A12),IF(B14="COURSE",0,VLOOKUP(VLOOKUP(B14,'LEAGUE MEMBERSHIP'!E:G,3,FALSE),'INDIVIDUAL SCORES'!$A$74:$P$2799,16,FALSE))) -> 7 | B14: =$N$12&"B" -> 5B | C14: =VLOOKUP(B14,'LEAGUE MEMBERSHIP'!$E$8:$F$107,2,FALSE) -> Mark Normandin | S14: =IFERROR(B12&" - "&VLOOKUP(B12,'LEAGUE MEMBERSHIP'!E:F,2,FALSE),"") -> 5A - Dennis Normandin | U14: =" Team "&N12&" v Team "&N18 -> Team 5 v Team 10
C15: +/- | S15: =IFERROR(B14&" - "&VLOOKUP(B14,'LEAGUE MEMBERSHIP'!E:F,2,FALSE),"") -> 5B - Mark Normandin
S16: =IFERROR(B18&" - "&VLOOKUP(B18,'LEAGUE MEMBERSHIP'!E:F,2,FALSE),"") -> 10A - Ron Eckstrom
D17: =D28 -> 0 | E17: =E28 -> 0 | F17: 0 | G17: 0 | H17: 0 | I17: 0 | J17: 0 | K17: 0 | L17: 0 | M17: =SUM(D17:L17) -> 0 | S17: =IFERROR(B20&" - "&VLOOKUP(B20,'LEAGUE MEMBERSHIP'!E:F,2,FALSE),"") -> 10B - Beth Romano
A18: =IF(B18="DNP",IF(B20="DNP","ERROR",A20),IF(B18="COURSE",0,VLOOKUP(VLOOKUP(B18,'LEAGUE MEMBERSHIP'!E:G,3,FALSE),'INDIVIDUAL SCORES'!$A$74:$P$2799,16,FALSE))) -> 3 | B18: =$N$18&"A" -> 10A | C18: =VLOOKUP(B18,'LEAGUE MEMBERSHIP'!$E$8:$F$107,2,FALSE) -> Ron Eckstrom | N18: =RIGHT(SUBSTITUTE(N10," v ",","),LEN(SUBSTITUTE(N10," v ",","))-FIND(",",SUBSTITUTE(N10," v ",","))) -> 10
D19: =D29 -> 1 | E19: =E29 -> 1 | F19: 1 | G19: 1 | H19: 1 | I19: 1 | J19: 2 | K19: 1 | L19: 1 | M19: =SUM(D19:L19) -> 10
A20: =IF(B20="DNP",IF(B18="DNP","ERROR",A18),IF(B20="COURSE",0,VLOOKUP(VLOOKUP(B20,'LEAGUE MEMBERSHIP'!E:G,3,FALSE),'INDIVIDUAL SCORES'!$A$74:$P$2799,16,FALSE))) -> 13 | B20: =$N$18&"B" -> 10B | C20: =VLOOKUP(B20,'LEAGUE MEMBERSHIP'!$E$8:$F$107,2,FALSE) -> Beth Romano
R21: ='LEAGUE MEMBERSHIP'!J62&" - "&'LEAGUE MEMBERSHIP'!K62 -> Sub1 - Becky Bartkus
A22: =CONCATENATE("TEE TIME: ",TEXT(N9,"h:mm")," PM") -> TEE TIME: 4:00 PM | R22: ='LEAGUE MEMBERSHIP'!J63&" - "&'LEAGUE MEMBERSHIP'!K63 -> Sub2 - P.J. Romano
C23: Men's Hcp. Rank | D23: =RANK(D7,$D$7:$L$7,1) -> 3 | E23: =RANK(E7,$D$7:$L$7,1) -> 4 | F23: 2 | G23: 5 | H23: 6 | I23: 9 | J23: 1 | K23: 8 | L23: 7 | R23: ='LEAGUE MEMBERSHIP'!J64&" - "&'LEAGUE MEMBERSHIP'!K64 -> Sub3 - Mike Forbes
C24: Women's Hcp. Rank | D24: =RANK(D10,$D$10:$L$10,1) -> 3 | E24: =RANK(E10,$D$10:$L$10,1) -> 4 | F24: 2 | G24: 5 | H24: 6 | I24: 9 | J24: 1 | K24: 8 | L24: 7 | R24: ='LEAGUE MEMBERSHIP'!J65&" - "&'LEAGUE MEMBERSHIP'!K65 -> Sub4 - Mike Romano
A25: =MIN(A12:A20) -> 3 | B25: =A12-A25 -> 6 | C25: =VLOOKUP(VLOOKUP(B12,'LEAGUE MEMBERSHIP'!E:G,3,FALSE),'LEAGUE MEMBERSHIP'!$A$8:$D$107,4,FALSE) -> M | D25: =IF($C25="M",IF($B25>=D23,IF(D6=3,1,IF($B25-9>=D23,2,1)),0),IF($C25="F",IF($B25>=D24,IF(D9=3,1,IF($B25-9>=D24,2,1)),0),0)) -> 1 | E25: =IF($C25="M",IF($B25>=E23,IF(E6=3,1,IF($B25-9>=E23,2,1)),0),IF($C25="F",IF($B25>=E24,IF(E9=3,1,IF($B25-9>=E24,2,1)),0),0)) -> 1 | F25: 1 | G25: 1 | H25: 1 | I25: 0 | J25: 1 | K25: 0 | L25: 0 | R25: ='LEAGUE MEMBERSHIP'!J66&" - "&'LEAGUE MEMBERSHIP'!K66 -> Sub5 - Jono Normandin
B26: =A14-A25 -> 4 | C26: =VLOOKUP(VLOOKUP(B14,'LEAGUE MEMBERSHIP'!E:G,3,FALSE),'LEAGUE MEMBERSHIP'!$A$8:$D$107,4,FALSE) -> M | D26: =IF($C26="M",IF($B26>=D23,IF(D6=3,1,IF($B26-9>=D23,2,1)),0),IF($C26="F",IF($B26>=D24,IF(D9=3,1,IF($B26-9>=D24,2,1)),0),0)) -> 1 | E26: =IF($C26="M",IF($B26>=E23,IF(E6=3,1,IF($B26-9>=E23,2,1)),0),IF($C26="F",IF($B26>=E24,IF(E9=3,1,IF($B26-9>=E24,2,1)),0),0)) -> 1 | F26: 1 | G26: 0 | H26: 0 | I26: 0 | J26: 1 | K26: 0 | L26: 0 | R26: ='LEAGUE MEMBERSHIP'!J67&" - "&'LEAGUE MEMBERSHIP'!K67 -> Sub6 - Scott Leavenworth
R27: ='LEAGUE MEMBERSHIP'!J68&" - "&'LEAGUE MEMBERSHIP'!K68 -> Sub7 - PJ Fontaine
B28: =A18-A25 -> 0 | C28: =VLOOKUP(VLOOKUP(B18,'LEAGUE MEMBERSHIP'!E:G,3,FALSE),'LEAGUE MEMBERSHIP'!$A$8:$D$107,4,FALSE) -> M | D28: =IF($C28="M",IF($B28>=D23,IF(D6=3,1,IF($B28-9>=D23,2,1)),0),IF($C28="F",IF($B28>=D24,IF(D9=3,1,IF($B28-9>=D24,2,1)),0),0)) -> 0 | E28: =IF($C28="M",IF($B28>=E23,IF(E6=3,1,IF($B28-9>=E23,2,1)),0),IF($C28="F",IF($B28>=E24,IF(E9=3,1,IF($B28-9>=E24,2,1)),0),0)) -> 0 | F28: 0 | G28: 0 | H28: 0 | I28: 0 | J28: 0 | K28: 0 | L28: 0 | R28: ='LEAGUE MEMBERSHIP'!J69&" - "&'LEAGUE MEMBERSHIP'!K69 -> Sub8 - Yogi DiPasquale
B29: =A20-A25 -> 10 | C29: =VLOOKUP(VLOOKUP(B20,'LEAGUE MEMBERSHIP'!E:G,3,FALSE),'LEAGUE MEMBERSHIP'!$A$8:$D$107,4,FALSE) -> F | D29: =IF($C29="M",IF($B29>=D23,IF(D6=3,1,IF($B29-9>=D23,2,1)),0),IF($C29="F",IF($B29>=D24,IF(D9=3,1,IF($B29-9>=D24,2,1)),0),0)) -> 1 | E29: =IF($C29="M",IF($B29>=E23,IF(E6=3,1,IF($B29-9>=E23,2,1)),0),IF($C29="F",IF($B29>=E24,IF(E9=3,1,IF($B29-9>=E24,2,1)),0),0)) -> 1 | F29: 1 | G29: 1 | H29: 1 | I29: 1 | J29: 2 | K29: 1 | L29: 1 | R29: ='LEAGUE MEMBERSHIP'!J70&" - "&'LEAGUE MEMBERSHIP'!K70 -> Sub9 - Jon Friberg
R30: ='LEAGUE MEMBERSHIP'!J71&" - "&'LEAGUE MEMBERSHIP'!K71 -> Sub10 - Jim Hedlund
R31: ='LEAGUE MEMBERSHIP'!J72&" - "&'LEAGUE MEMBERSHIP'!K72 -> Sub11 - Don Shank
A32: =MAIN!F8 -> Final Standings - Second Half | R32: ='LEAGUE MEMBERSHIP'!J73&" - "&'LEAGUE MEMBERSHIP'!K73 -> Sub12 - Chris Barry
R33: ='LEAGUE MEMBERSHIP'!J74&" - "&'LEAGUE MEMBERSHIP'!K74 -> Sub13 - Tom Farias
A34: Rank | B34: Team | F34: Points | R34: ='LEAGUE MEMBERSHIP'!J75&" - "&'LEAGUE MEMBERSHIP'!K75 -> Sub14 - Jeff Erskine
A35: =MAIN!F11 -> 1 | B35: =MAIN!G11 -> 10 Ron Eckstrom / Beth Romano | F35: =MAIN!K11 -> 43.5 | R35: ='LEAGUE MEMBERSHIP'!J76&" - "&'LEAGUE MEMBERSHIP'!K76 -> Sub15 - Jeff Richard
A36: =MAIN!F12 -> 2 | B36: =MAIN!G12 -> 05 Dennis Normandin / Mark Normandin | F36: =MAIN!K12 -> 42.5 | R36: ='LEAGUE MEMBERSHIP'!J77&" - "&'LEAGUE MEMBERSHIP'!K77 -> Sub16 - Paul Stedman
A37: =MAIN!F13 -> 3 | B37: =MAIN!G13 -> 15 Tim Hurley / John Elie | F37: =MAIN!K13 -> 42 | R37: ='LEAGUE MEMBERSHIP'!J78&" - "&'LEAGUE MEMBERSHIP'!K78 -> Sub17 - Deb Passios
A38: =MAIN!F14 -> 4 | B38: =MAIN!G14 -> 16 Deb DeCarolis / Joey DeCarolis | F38: =MAIN!K14 -> 41.5 | R38: ='LEAGUE MEMBERSHIP'!J79&" - "&'LEAGUE MEMBERSHIP'!K79 -> Sub18 - Joe Pearson
A39: =MAIN!F15 -> 5 | B39: =MAIN!G15 -> 12 Sal Cuifetti / Paul LeBlanc | F39: =MAIN!K15 -> 41 | R39: ='LEAGUE MEMBERSHIP'!J80&" - "&'LEAGUE MEMBERSHIP'!K80 -> Sub19 - Audrey Henderson
A40: =MAIN!F16 -> 6 | B40: =MAIN!G16 -> 19 Gary Leavenworth / Patty Leavenworth | F40: =MAIN!K16 -> 40.5 | R40: ='LEAGUE MEMBERSHIP'!J81&" - "&'LEAGUE MEMBERSHIP'!K81 -> Sub20 - David St. Jean
A41: =MAIN!F17 -> 7T | B41: =MAIN!G17 -> 01 Lester Lockhart / Pete Normandin | F41: =MAIN!K17 -> 39 | R41: ='LEAGUE MEMBERSHIP'!J82&" - "&'LEAGUE MEMBERSHIP'!K82 -> Sub21 - Dennis St. Jean
A42: =MAIN!F18 -> 7T | B42: =MAIN!G18 -> 02 Dave Cormier / Adam Williamson | F42: =MAIN!K18 -> 39 | R42: ='LEAGUE MEMBERSHIP'!J83&" - "&'LEAGUE MEMBERSHIP'!K83 -> Sub22 - Joe Fratticelli
A43: =MAIN!F19 -> 9 | B43: =MAIN!G19 -> 20 Paul Fontaine / Ralph Romano III | F43: =MAIN!K19 -> 38 | R43: ='LEAGUE MEMBERSHIP'!J84&" - "&'LEAGUE MEMBERSHIP'!K84 -> Sub23 - Pete Collette
A44: =MAIN!F20 -> 10 | B44: =MAIN!G20 -> 17 Gary Bittner / Mike Dauphinais | F44: =MAIN!K20 -> 37 | R44: ='LEAGUE MEMBERSHIP'!J85&" - "&'LEAGUE MEMBERSHIP'!K85 -> Sub24 - Shane McCarthy
A45: =MAIN!F21 -> 11 | B45: =MAIN!G21 -> 11 Ray Henderson / Zachary Wallace | F45: =MAIN!K21 -> 36.5 | R45: ='LEAGUE MEMBERSHIP'!J86&" - "&'LEAGUE MEMBERSHIP'!K86 -> Sub25 - Brenda Louney
A46: =MAIN!F22 -> 12T | B46: =MAIN!G22 -> 03 Pete Romano / Don Frigoletto | F46: =MAIN!K22 -> 35 | R46: ='LEAGUE MEMBERSHIP'!J87&" - "&'LEAGUE MEMBERSHIP'!K87 -> Sub26 - Mark Louney
A47: =MAIN!F23 -> 12T | B47: =MAIN!G23 -> 04 Peg Romano / Lynn Laroche | F47: =MAIN!K23 -> 35 | R47: ='LEAGUE MEMBERSHIP'!J88&" - "&'LEAGUE MEMBERSHIP'!K88 -> Sub27 - Victor Szewczyk
A48: =MAIN!F24 -> 14 | B48: =MAIN!G24 -> 08 Mike Sunderland / Debbie Sunderland | F48: =MAIN!K24 -> 34.5 | R48: ='LEAGUE MEMBERSHIP'!J89&" - "&'LEAGUE MEMBERSHIP'!K89 -> Sub28 - Matt Lee
A49: =MAIN!F25 -> 15 | B49: =MAIN!G25 -> 09 Mike Doane / John Cassin | F49: =MAIN!K25 -> 32.5 | R49: ='LEAGUE MEMBERSHIP'!J90&" - "&'LEAGUE MEMBERSHIP'!K90 -> Sub29 - Jay Melansom
A50: =MAIN!F26 -> 16 | B50: =MAIN!G26 -> 06 Vance Butterfield / Bob Schleyer | F50: =MAIN!K26 -> 30.5 | R50: ='LEAGUE MEMBERSHIP'!J91&" - "&'LEAGUE MEMBERSHIP'!K91 -> Sub30 -
A51: =MAIN!F27 -> 17 | B51: =MAIN!G27 -> 18 Norm Gamache / Michelle Bouvier | F51: =MAIN!K27 -> 29
A52: =MAIN!F28 -> 18 | B52: =MAIN!G28 -> 14 Doug Cormier / Ralph Romano, Jr. | F52: =MAIN!K28 -> 27.5
A53: =MAIN!F29 -> 19 | B53: =MAIN!G29 -> 13 Kyle Currier / Walter Drake | F53: =MAIN!K29 -> 19.5
A54: =MAIN!F30 -> 20T | B54: =MAIN!G30 -> 07 Steve Scapparone / Dave Hyre | F54: =MAIN!K30 -> 0
A55: =MAIN!F31 -> 20T | B55: =MAIN!G31 -> 21 / | F55: =MAIN!K31 -> 0
A56: =MAIN!F32 -> 20T | B56: =MAIN!G32 -> 22 / | F56: =MAIN!K32 -> 0
A57: ='COURSE & LEAGUE DETAILS'!A49 -> To view scores, handicaps, etc., go to http://www.rromano.com and click on the Romano Golf League 2013 Spreadsheet
B61: =$N$12&"A" -> 5A
B63: =$N$12&"B" -> 5B
B67: =$N$18&"A" -> 10A
B69: =$N$18&"B" -> 10B

Sheet SCHEDULE
L1: 1st Half
L2: 2nd Half
C10: =IF(J31=$L$1,C51,IF(J31=$L$2,C71,"ERROR")) -> Schedule - Second Half 2013
C11: Week | D11: =IF($J$31="1st Half",IF(D52<>"",D52,""),IF($J$31="2nd Half",IF(D72<>"",D72,""))) -> Week 1 | E11: =IF($J$31="1st Half",IF(E52<>"",E52,""),IF($J$31="2nd Half",IF(E72<>"",E72,""))) -> Week 2 | F11: Week 3 | G11: Week 4 | H11: Week 5 | I11: Week 6 | J11: Week 7 | K11: Week 8 | L11: Week 9
C12: Date | D12: =IF($J$31="1st Half",IF(D53<>"",D53,""),IF($J$31="2nd Half",IF(D73<>"",D73,""))) -> 2013-07-03 | E12: 2013-07-10 | F12: 2013-07-17 | G12: 2013-07-24 | H12: 2013-07-31 | I12: 2013-08-07 | J12: 2013-08-14 | K12: 2013-08-21 | L12: 2013-08-28
C13: Side | D13: FRONT | E13: BACK | F13: FRONT | G13: BACK | H13: FRONT | I13: BACK | J13: FRONT | K13: BACK | L13: FRONT
C14: Tee Time
C15: All
C16: =IF($J$31="1st Half",IF(C56<>"",C56,""),IF($J$31="2nd Half",IF(C76<>"",C76,""))) -> 4:00 | D16: 11 v 2 | E16: 12 v 5 | F16: 1 v 18 | G16: 14 v 20 | H16: 15 v 17 | I16: 14 v 16 | J16: 5 v 10 | K16: 7 v 10 | L16: 4 v 16 | N16: 16
C17: 4:08 | D17: 16 v 7 | E17: 18 v 20 | F17: 14 v 9 | G17: 3 v 6 | H17: 5 v 6 | I17: 13 v 17 | J17: 11 v 17 | K17: 8 v 9 | L17: 8 v 20 | N17: 17
C18: 4:16 | D18: 17 v 8 | E18: 16 v 9 | F18: 16 v 20 | G18: 2 v 7 | H18: 1 v 16 | I18: 4 v 9 | J18: 1 v 14 | K18: 6 v 20 | L18: 1 v 12 | N18: 18
C19: 4:24 | D19: 12 v 3 | E19: 11 v 4 | F19: 11 v 6 | G19: 11 v 8 | H19: 11 v 10 | I19: 2 v 20 | J19: 7 v 8 | K19: 11 v 15 | L19: 2 v 14 | N19: 19
C20: 4:32 | D20: 14 v 5 | E20: 14 v 7 | F20: 3 v 4 | G20: 13 v 10 | H20: 2 v 9 | I20: 5 v 8 | J20: 13 v 15 | K20: 5 v 19 | L20: 5 v 17 | N20: 20
C21: 4:40 | D21: 13 v 4 | E21: 13 v 6 | F21: 17 v 19 | G21: 16 v 18 | H21: 12 v 20 | I21: 3 v 10 | J21: 3 v 19 | K21: 3 v 17 | L21: 3 v 15 | N21: 21
C22: 4:48 | D22: 1 v 20 | E22: 2 v 3 | F22: 15 v 10 | G22: 1 v 17 | H22: 3 v 8 | I22: 11 v 19 | J22: 6 v 9 | K22: 4 v 18 | L22: 9 v 10 | N22: 22
C23: 4:56 | D23: =IF($J$31="1st Half",IF(D63<>"",D63,""),IF($J$31="2nd Half",IF(D83<>"",D83,""))) -> 18 v 9 | E23: 15 v 8 | F23: 2 v 5 | G23: 4 v 5 | H23: 14 v 18 | I23: 6 v 7 | J23: 4 v 20 | K23: 2 v 16 | L23: 7 v 19 | N23: 23
C24: 5:04 | D24: =IF($J$31="1st Half",IF(D64<>"",D64,""),IF($J$31="2nd Half",IF(D84<>"",D84,""))) -> 19 v 10 | E24: 1 v 19 | F24: 13 v 8 | G24: 15 v 19 | H24: 4 v 7 | I24: 12 v 18 | J24: 2 v 18 | K24: 1 v 13 | L24: 11 v 13 | N24: 24
C25: 5:12 | D25: =IF($J$31="1st Half",IF(D65<>"",D65,""),IF($J$31="2nd Half",IF(D85<>"",D85,""))) -> 15 v 6 | E25: 17 v 10 | F25: 12 v 7 | G25: 12 v 9 | H25: 13 v 19 | I25: 1 v 15 | J25: 12 v 16 | K25: 12 v 14 | L25: 6 v 18 | N25: 25
C26: =IF(J31=$L$1,IF(C66<>"",C66,""),IF(J31=$L$2,IF(C86<>"",C86,""),"ERROR")) ->  | D26: =IF($J$31="1st Half",IF(D66<>"",D66,""),IF($J$31="2nd Half",IF(D86<>"",D86,""))) ->  | N26: 26
C27: Closest to Pin | D27: =IF(J31=$L$1,D67,IF(J31=$L$2,D87,"ERROR")) -> 8 | E27: =IF(J31=$L$1,E67,IF(J31=$L$2,E87,"ERROR")) -> 16 | F27: =IF(J31=$L$1,F67,IF(J31=$L$2,F87,"ERROR")) -> 6 | G27: =IF(J31=$L$1,G67,IF(J31=$L$2,G87,"ERROR")) -> 14 | H27: =IF(J31=$L$1,H67,IF(J31=$L$2,H87,"ERROR")) -> 8 | I27: =IF(J31=$L$1,I67,IF(J31=$L$2,I87,"ERROR")) -> 16 | J27: =IF(J31=$L$1,J67,IF(J31=$L$2,J87,"ERROR")) -> 6 | K27: =IF(J31=$L$1,K67,IF(J31=$L$2,K87,"ERROR")) -> 14 | L27: =IF(J31=$L$1,L67,IF(J31=$L$2,L87,"ERROR")) -> 8 | M27: =IF(J31=$L$1,M67,IF(J31=$L$2,M87,"ERROR")) -> 
J31: 2nd Half
C51: ="Schedule - First Half " & 'COURSE & LEAGUE DETAILS'!F2 -> Schedule - First Half 2013
B52: x | C52: Week | D52: Week 1 | E52: Week 2 | F52: Week 3 | G52: Week 4 | H52: Week 5 | I52: Week 6 | J52: Week 7 | K52: Week 8 | L52: Week 9 | M52: Week 10
C53: Date | D53: 2013-04-24 | E53: 2013-05-01 | F53: 2013-05-08 | G53: 2013-05-15 | H53: 2013-05-22 | I53: 2013-05-29 | J53: 2013-06-05 | K53: 2013-06-12 | L53: 2013-06-19 | M53: 2013-06-26
C54: Side | D54: FRONT | E54: BACK | F54: FRONT | G54: BACK | H54: FRONT | I54: BACK | J54: FRONT | K54: BACK | L54: FRONT | M54: BACK
C55: Tee Time
B56: 04:00:00 | C56: =TEXT(B56,"h:mm") -> 4:00 | D56: 4 v 14 | E56: 8 v 16 | F56: 9 v 15 | G56: 8 v 12 | H56: 20 v 13 | I56: 9 v 3 | J56: 16 v 13 | K56: 1 v 8 | L56: 18 v 5 | M56: 16 v 5
B57: 04:08:00 | C57: 4:08 | D57: 5 v 15 | E57: 3 v 11 | F57: 5 v 11 | G57: 1 v 4 | H57: 6 v 4 | I57: 20 v 11 | J57: 20 v 3 | K57: 15 v 12 | L57: 15 v 2 | M57: 15 v 4
B58: 04:16:00 | C58: 4:16 | D58: 1 v 11 | E58: 1 v 2 | F58: 1 v 3 | G58: 9 v 13 | H58: 1 v 5 | I58: 1 v 6 | J58: 8 v 6 | K58: 16 v 11 | L58: 20 v 7 | M58: 12 v 11
B59: 04:24:00 | C59: 4:24 | D59: 3 v 13 | E59: 9 v 17 | F59: 6 v 12 | G59: 20 v 15 | H59: 18 v 15 | I59: 19 v 12 | J59: 9 v 5 | K59: 18 v 3 | L59: 16 v 3 | M59: 20 v 9
B60: 04:32:00 | C60: 4:32 | D60: 7 v 17 | E60: 6 v 14 | F60: 20 v 17 | G60: 6 v 2 | H60: 9 v 11 | I60: 16 v 15 | J60: 17 v 12 | K60: 10 v 6 | L60: 13 v 12 | M60: 13 v 2
B61: 04:40:00 | C61: 4:40 | D61: 8 v 18 | E61: 4 v 12 | F61: 4 v 2 | G61: 18 v 17 | H61: 10 v 12 | I61: 17 v 14 | J61: 18 v 11 | K61: 20 v 5 | L61: 14 v 11 | M61: 1 v 10
B62: 04:48:00 | C62: 4:48 | D62: 9 v 19 | E62: 10 v 18 | F62: 10 v 16 | G62: 10 v 14 | H62: 19 v 14 | I62: 18 v 13 | J62: 1 v 7 | K62: 17 v 2 | L62: 17 v 4 | M62: 18 v 7
B63: =IF(B$99>7,"4:56:00 AM","") -> 4:56:00 AM | C63: 4:56 | D63: 2 v 12 | E63: 7 v 15 | F63: 19 v 18 | G63: 7 v 11 | H63: 7 v 3 | I63: 10 v 2 | J63: 19 v 2 | K63: 14 v 13 | L63: 19 v 6 | M63: 17 v 6
B64: =IF(B$99>8,"5:04:00 AM","") -> 5:04:00 AM | C64: 5:04 | D64: 6 v 16 | E64: 20 v 19 | F64: 8 v 14 | G64: 19 v 16 | H64: 17 v 16 | I64: 8 v 4 | J64: 15 v 14 | K64: 19 v 4 | L64: 1 v 9 | M64: 19 v 8
B65: =IF(B$99>9,"5:12:00 AM","") -> 5:12:00 AM | C65: =TEXT(B65,"h:mm") -> 5:12 | D65: 10 v 20 | E65: 5 v 13 | F65: 7 v 13 | G65: 5 v 3 | H65: 8 v 2 | I65: 7 v 5 | J65: 10 v 4 | K65: 9 v 7 | L65: 10 v 8 | M65: 14 v 3
B66: =IF(B$99>10,"5:20:00 AM","") ->  | C66: =TEXT(B66,"h:mm") -> 
C67: Closest to Pin | D67: =IF(D54="FRONT",6,14) -> 6 | E67: =IF(E54="FRONT",6,14) -> 14 | F67: =IF(F54="FRONT",8,16) -> 8 | G67: =IF(G54="FRONT",8,16) -> 16 | H67: =IF(H54="FRONT",6,14) -> 6 | I67: =IF(I54="FRONT",6,14) -> 14 | J67: =IF(J54="FRONT",8,16) -> 8 | K67: =IF(K54="FRONT",8,IF(K54="","",16)) -> 16 | L67: =IF(L54="FRONT",6,IF(L54="","",14)) -> 6 | M67: =IF(M54="FRONT",6,IF(M54="","",14)) -> 14
C71: ="Schedule - Second Half " & 'COURSE & LEAGUE DETAILS'!F2 -> Schedule - Second Half 2013
B72: x | C72: Week | D72: Week 1 | E72: Week 2 | F72: Week 3 | G72: Week 4 | H72: Week 5 | I72: Week 6 | J72: Week 7 | K72: Week 8 | L72: Week 9
C73: Date | D73: 2013-07-03 | E73: 2013-07-10 | F73: 2013-07-17 | G73: 2013-07-24 | H73: 2013-07-31 | I73: 2013-08-07 | J73: 2013-08-14 | K73: 2013-08-21 | L73: 2013-08-28
C74: Side | D74: FRONT | E74: BACK | F74: FRONT | G74: BACK | H74: FRONT | I74: BACK | J74: FRONT | K74: BACK | L74: FRONT
C75: Tee Time
B76: 04:00:00 | C76: =TEXT(B76,"h:mm") -> 4:00 | D76: 11 v 2 | E76: 12 v 5 | F76: 1 v 18 | G76: 14 v 20 | H76: 15 v 17 | I76: 14 v 16 | J76: 5 v 10 | K76: 7 v 10 | L76: 4 v 16
B77: 04:08:00 | C77: 4:08 | D77: 16 v 7 | E77: 18 v 20 | F77: 14 v 9 | G77: 3 v 6 | H77: 5 v 6 | I77: 13 v 17 | J77: 11 v 17 | K77: 8 v 9 | L77: 8 v 20
B78: 04:16:00 | C78: 4:16 | D78: 17 v 8 | E78: 16 v 9 | F78: 16 v 20 | G78: 2 v 7 | H78: 1 v 16 | I78: 4 v 9 | J78: 1 v 14 | K78: 6 v 20 | L78: 1 v 12
B79: 04:24:00 | C79: 4:24 | D79: 12 v 3 | E79: 11 v 4 | F79: 11 v 6 | G79: 11 v 8 | H79: 11 v 10 | I79: 2 v 20 | J79: 7 v 8 | K79: 11 v 15 | L79: 2 v 14
B80: 04:32:00 | C80: 4:32 | D80: 14 v 5 | E80: 14 v 7 | F80: 3 v 4 | G80: 13 v 10 | H80: 2 v 9 | I80: 5 v 8 | J80: 13 v 15 | K80: 5 v 19 | L80: 5 v 17
B81: 04:40:00 | C81: 4:40 | D81: 13 v 4 | E81: 13 v 6 | F81: 17 v 19 | G81: 16 v 18 | H81: 12 v 20 | I81: 3 v 10 | J81: 3 v 19 | K81: 3 v 17 | L81: 3 v 15
B82: 04:48:00 | C82: 4:48 | D82: 1 v 20 | E82: 2 v 3 | F82: 15 v 10 | G82: 1 v 17 | H82: 3 v 8 | I82: 11 v 19 | J82: 6 v 9 | K82: 4 v 18 | L82: 9 v 10
B83: =IF(B$99>7,"4:56:00 AM","") -> 4:56:00 AM | C83: 4:56 | D83: 18 v 9 | E83: 15 v 8 | F83: 2 v 5 | G83: 4 v 5 | H83: 14 v 18 | I83: 6 v 7 | J83: 4 v 20 | K83: 2 v 16 | L83: 7 v 19
B84: =IF(B$99>8,"5:04:00 AM","") -> 5:04:00 AM | C84: 5:04 | D84: 19 v 10 | E84: 1 v 19 | F84: 13 v 8 | G84: 15 v 19 | H84: 4 v 7 | I84: 12 v 18 | J84: 2 v 18 | K84: 1 v 13 | L84: 11 v 13
B85: =IF(B$99>9,"5:12:00 AM","") -> 5:12:00 AM | C85: 5:12 | D85: 15 v 6 | E85: 17 v 10 | F85: 12 v 7 | G85: 12 v 9 | H85: 13 v 19 | I85: 1 v 15 | J85: 12 v 16 | K85: 12 v 14 | L85: 6 v 18
B86: =IF(B$99>10,"5:20:00 AM","") -> 
C87: Closest to Pin | D87: =IF(D74="FRONT",8,16) -> 8 | E87: =IF(E74="FRONT",8,16) -> 16 | F87: =IF(F74="FRONT",6,14) -> 6 | G87: =IF(G74="FRONT",6,14) -> 14 | H87: =IF(H74="FRONT",8,16) -> 8 | I87: =IF(I74="FRONT",8,16) -> 16 | J87: =IF(J74="FRONT",6,14) -> 6 | K87: =IF(K74="FRONT",6,IF(K74="","",14)) -> 14 | L87: =IF(L74="FRONT",8,IF(L74="","",16)) -> 8 | M87: =IF(M74="FRONT",8,IF(M74="","",16)) -> 
A96: No. Weeks
B99: 10
A100: Team1 | B100: Team2 | E100: x
E101: x
D102: =A102&" v "&B102 -> v
D103: =A103&" v "&B103 -> v
D104: v
D105: v
D106: v
D107: v
D108: v
D109: v
D110: v
D111: v
A115: No. Teams
A116: 14
A117: 16
A118: 18
A119: 20
A120: 22
A122: Start Date
A123: 2012-04-25
A124: 2013-04-24
A125: 2013-05-01
A126: 2014-04-23
A127: 2014-04-30
A128: 2015-04-22
A129: 2015-04-29
A130: 2016-04-27
A132: Side
A133: FRONT
A134: BACK
A136: No. Weeks
A137: 13
A138: 14
A139: 15
A140: 16
A141: 17
A142: 18
A143: 19
A144: 20
A145: 21
A146: 22
A147: 23
A148: 24
A150: Half | B150: Week
A151: 1st Half | B151: Week 10
A152: Switch1 | B152: Switch2
A154: Matches
A155: =IF(HLOOKUP($B$151,$D$52:$M$66,5,FALSE)<>0,IF($A$151=$L$1,HLOOKUP($B$151,$D$52:$M$66,5,FALSE),HLOOKUP($B$151,$D$72:$M$86,5,FALSE)),"") -> 16 v 5
A156: =IF(HLOOKUP($B$151,$D$52:$M$66,6,FALSE)<>0,IF($A$151=$L$1,HLOOKUP($B$151,$D$52:$M$66,6,FALSE),HLOOKUP($B$151,$D$72:$M$86,6,FALSE)),"") -> 15 v 4
A157: =IF(HLOOKUP($B$151,$D$52:$M$66,7,FALSE)<>0,IF($A$151=$L$1,HLOOKUP($B$151,$D$52:$M$66,7,FALSE),HLOOKUP($B$151,$D$72:$M$86,7,FALSE)),"") -> 12 v 11
A158: =IF(HLOOKUP($B$151,$D$52:$M$66,8,FALSE)<>0,IF($A$151=$L$1,HLOOKUP($B$151,$D$52:$M$66,8,FALSE),HLOOKUP($B$151,$D$72:$M$86,8,FALSE)),"") -> 20 v 9
A159: =IF(HLOOKUP($B$151,$D$52:$M$66,9,FALSE)<>0,IF($A$151=$L$1,HLOOKUP($B$151,$D$52:$M$66,9,FALSE),HLOOKUP($B$151,$D$72:$M$86,9,FALSE)),"") -> 13 v 2
A160: =IF(HLOOKUP($B$151,$D$52:$M$66,10,FALSE)<>0,IF($A$151=$L$1,HLOOKUP($B$151,$D$52:$M$66,10,FALSE),HLOOKUP($B$151,$D$72:$M$86,10,FALSE)),"") -> 1 v 10
A161: =IF(HLOOKUP($B$151,$D$52:$M$66,11,FALSE)<>0,IF($A$151=$L$1,HLOOKUP($B$151,$D$52:$M$66,11,FALSE),HLOOKUP($B$151,$D$72:$M$86,11,FALSE)),"") -> 18 v 7
A162: =IF(HLOOKUP($B$151,$D$52:$M$66,12,FALSE)="","",IF($A$151=$L$1,HLOOKUP($B$151,$D$52:$M$66,12,FALSE),IF(HLOOKUP($B$151,$D$72:$M$86,12,FALSE)="","",HLOOKUP($B$151,$D$72:$M$86,12,FALSE)))) -> 17 v 6
A163: =IF(HLOOKUP($B$151,$D$52:$M$66,13,FALSE)="","",IF($A$151=$L$1,HLOOKUP($B$151,$D$52:$M$66,13,FALSE),IF(HLOOKUP($B$151,$D$72:$M$86,13,FALSE)="","",HLOOKUP($B$151,$D$72:$M$86,13,FALSE)))) -> 19 v 8
A164: =IF(HLOOKUP($B$151,$D$52:$M$66,14,FALSE)="","",IF($A$151=$L$1,HLOOKUP($B$151,$D$52:$M$66,14,FALSE),IF(HLOOKUP($B$151,$D$72:$M$86,14,FALSE)="","",HLOOKUP($B$151,$D$72:$M$86,14,FALSE)))) -> 14 v 3
A165: =IF(HLOOKUP($B$151,$D$52:$M$66,15,FALSE)="","",IF($A$151=$L$1,HLOOKUP($B$151,$D$52:$M$66,15,FALSE),IF(HLOOKUP($B$151,$D$72:$M$86,15,FALSE)="","",HLOOKUP($B$151,$D$72:$M$86,15,FALSE)))) -> 
A167: Week 1
A168: Week 2
A169: Week 3
A170: Week 4
A171: Week 5
A172: Week 6
A173: Week 7
A174: =IF(K52="","","Week 8") -> Week 8
A175: =IF(L52="","","Week 9") -> Week 9
A176: =IF(M52="","","Week 10") -> Week 10
A177: =IF(N52="","","Week 11") -> 
A200: 1st Half Ends
A201: Week 10
A202: 2d Half Ends
A203: Week 9

Sheet ARCHIVED HCPS
J1: Inactive Members
J2: ='COURSE & LEAGUE DETAILS'!B2&" - "&'COURSE & LEAGUE DETAILS'!F2 -> Romano Golf League - 2013
A7: Last Name | B7: First Name | C7: M / F | D7: TelNo | E7: Hcp. | F7: Prior Scores
A8: Behringer | B8: Rob | C8: M | E8: 9 | F8: 2009-09-09 | G8: 2009-09-02 | H8: 2009-08-26 | I8: 2009-08-19 | J8: 2009-08-12 | K8: =B8&" "&A8 -> Rob Behringer
F9: 51 | G9: 44 | H9: 40 | I9: 57 | J9: 42 | K9: =B9&" "&A9 -> 
A10: Dyment | B10: Mark | C10: M | E10: 10 | F10: 2009-09-02 | G10: 2009-08-26 | H10: 2009-08-05 | I10: 2009-07-29 | J10: 2009-07-15 | K10: Mark Dyment
F11: 56 | G11: 43 | H11: 47 | I11: 50 | J11: 49
A12: Money | B12: David | C12: M | E12: 15 | F12: 2009-08-26 | G12: 2009-08-19 | H12: 2009-08-12 | I12: 2009-08-05 | J12: 2009-07-29 | K12: David Money
F13: 58 | G13: 57 | H13: 51 | I13: 55 | J13: 55
A14: Normandin, Jr. | B14: Pete | C14: M | E14: 11 | F14: 2009-07-29 | G14: 2009-07-22 | H14: 2009-07-15 | I14: 2009-07-08 | J14: 2009-06-24 | K14: Pete Normandin, Jr.
F15: 47 | G15: 48 | H15: 47 | I15: 54 | J15: 52
A16: Robinson | B16: Doug | C16: M | E16: 10 | F16: 2009-09-09 | G16: 2009-09-02 | H16: 2009-08-26 | I16: 2009-08-19 | J16: 2009-08-12 | K16: Doug Robinson
F17: 50 | G17: 47 | H17: 48 | I17: 50 | J17: 48
A18: Baker | B18: Bruce | C18: M | E18: 14 | F18: '08 Score | G18: '08 Score | H18: '08 Score | I18: '08 Score | J18: '08 Score | K18: Bruce Baker
F19: 58 | G19: 54 | H19: 53 | I19: 50 | J19: 54
A20: Fisher | B20: Frank | C20: M | E20: 7 | F20: 2011-08-24 | G20: 2011-08-17 | H20: 2011-08-10 | I20: 2011-08-03 | J20: 2011-07-27 | K20: Frank Fisher
F21: 41 | G21: 40 | H21: 55 | I21: 41 | J21: 45
A22: Buhts | B22: Chris | C22: M | E22: 8 | F22: 2011-08-24 | G22: 2011-08-17 | H22: 2011-08-10 | I22: 2011-08-03 | J22: 2011-07-20 | K22: Chris Buhts
F23: 51 | G23: 47 | H23: 46 | I23: 45 | J23: 43
A24: Vitone | B24: Dan | C24: M | E24: 12 | F24: 2011-08-17 | G24: 2011-08-03 | H24: 2011-06-29 | I24: 2011-06-15 | J24: 2011-06-08 | K24: Dan Vitone
F25: 55 | G25: 48 | H25: 53 | I25: 54 | J25: 48
A26: Bowes | B26: Jack | C26: M | E26: 18 | F26: 2009-05-20 | G26: 2009-05-13 | H26: 2009-05-06 | I26: 2009-04-29 | J26: Calc. | K26: Jack Bowes
F27: 60 | G27: 60 | H27: 53 | I27: 63 | J27: 56
A28: Baker | B28: Cindy | C28: F | E28: 16 | F28: 2010-07-28 | G28: 2010-06-23 | H28: 2010-05-05 | I28: '08 Score | J28: '08 Score | K28: Cindy Baker
F29: 52 | G29: 60 | H29: 57 | I29: 51 | J29: 58
A30: Bobusia | B30: Mike | C30: M | E30: 6 | F30: 2010-08-25 | G30: 2010-08-18 | H30: 2010-08-11 | I30: 2010-08-04 | J30: 2010-07-28 | K30: Mike Bobusia
F31: 42 | G31: 42 | H31: 49 | I31: 44 | J31: 40
A32: Butterfield | B32: Vance | C32: M | E32: 18 | F32: Calc. | G32: Calc. | H32: Calc. | I32: Calc. | J32: Calc. | K32: Vance Butterfield
F33: 59 | G33: 59 | H33: 59 | I33: 59 | J33: 59
A34: Gamache | B34: Mike | C34: M | E34: 12 | F34: 2011-08-24 | G34: 2011-08-17 | H34: 2011-08-10 | I34: 2011-07-27 | J34: 2011-07-20 | K34: Mike Gamache
F35: 52 | G35: 55 | H35: 45 | I35: 52 | J35: 50
A36: Stedman | B36: Paul | C36: M | E36: 4 | F36: Calc. | G36: Calc. | H36: Calc. | I36: Calc. | J36: Calc. | K36: Paul Stedman
F37: 41 | G37: 41 | H37: 41 | I37: 41 | J37: 41
A38: Stedmab | B38: Paul | C38: M | E38: 0 | F38: Calc. | G38: Calc. | H38: Calc. | I38: Calc. | J38: Calc. | K38: Paul Stedmab
F39: 36 | G39: 36 | H39: 36 | I39: 36 | J39: 36
A40: Henderson | B40: Zack | C40: M | E40: 8 | F40: 2012-08-29 | G40: 2012-08-01 | H40: 2012-06-20 | I40: Calc. | J40: Calc. | K40: Calc.
F41: 55 | G41: 53 | H41: 51 | I41: 36 | J41: 36 | K41: 36
A42: Currier | B42: Kyle | C42: M | E42: 6 | F42: Calc. | G42: Calc. | H42: Calc. | I42: Calc. | J42: Calc. | K42: =B42&" "&A42 -> Kyle Currier
F43: 44 | G43: 44 | H43: 44 | I43: 44 | J43: 44
A44: Boisvert | B44: Norman | C44: M | E44: 20 | F44: 2011-07-06 | G44: 2010-08-18 | H44: 2010-08-11 | I44: 2010-08-04 | J44: 2010-07-21 | K44: Norman Boisvert | L44: Calc. | M44: Calc.
F45: 65 | G45: 60 | H45: 60 | I45: 60 | J45: 61 | L45: 36 | M45: 36
A46: Candelet | B46: Gary | C46: M | E46: 9 | F46: 2012-08-22 | G46: 2012-08-15 | H46: 2012-08-08 | I46: 2012-08-01 | J46: 2012-07-18 | K46: 41073 | L46: 41052 | M46: 41045 | N46: 41038 | O46: 40779 | P46: 40772 | Q46: 40765 | R46: 40758 | S46: 40744
F47: 47 | G47: 49 | H47: 51 | I47: 41 | J47: 48 | K47: 46 | L47: 49 | M47: 50 | N47: 52 | O47: 47 | P47: 54 | Q47: 59 | R47: 54 | S47: 48
A48: Egan | B48: Rick | C48: M | E48: 14 | F48: 2009-06-17 | G48: '08 Score | H48: '08 Score | I48: '08 Score | J48: '08 Score | K48: Rick Egan
F49: 53 | G49: 50 | H49: 58 | I49: 50 | J49: 55
K97: =B97&" "&A97 -> 
K160: =B160&" "&A160 -> 
K224: =B224&" "&A224 -> 
K288: =B288&" "&A288 -> 
K352: =B352&" "&A352 -> 
K416: =B416&" "&A416 -> 
K461: =B461&" "&A461 -> 

Sheet MATCH RESULTS
B1: ='SCORE ENTRY WORKSHEET'!$N$12 -> Week 9 | J1: Match Results
B2: ='SCORE ENTRY WORKSHEET'!$C$21 -> Team 04
B3: ='SCORE ENTRY WORKSHEET'!$M$21 -> 0
B4: ='SCORE ENTRY WORKSHEET'!$C$22 -> Team 16
B5: ='SCORE ENTRY WORKSHEET'!$M$22 -> 0
B6: =IF(B3=B5,B2&" and "&B4&" tie, "&TEXT(B3,"0.0")&" - "&TEXT(B5,"0.0"),IF(B3>B5,B2&" def. "&B4&", "&TEXT(B3,"0.0")&" - "&TEXT(B5,"0.0"),IF(B5>B3,B4&" def. "&B2&", "&TEXT(B5,"0.0")&" - "&TEXT(B3,"0.0")))) -> Team 04 and Team 16 tie, 0.0 - 0.0
B13: Week 1 | F13: Week 2 | J13: Week 3 | N13: Week 4 | R13: Week 5
B14: =IF($K$1="1st Half",HLOOKUP(B13,SCHEDULE!$D$52:$M$53,2,FALSE),HLOOKUP(B13,SCHEDULE!$D$72:$M$73,2,FALSE)) -> 2013-07-03 | F14: =IF($K$1="1st Half",HLOOKUP(F13,SCHEDULE!$D$52:$M$53,2,FALSE),HLOOKUP(F13,SCHEDULE!$D$72:$M$73,2,FALSE)) -> 2013-07-10 | J14: =IF($K$1="1st Half",HLOOKUP(J13,SCHEDULE!$D$52:$M$53,2,FALSE),HLOOKUP(J13,SCHEDULE!$D$72:$M$73,2,FALSE)) -> 2013-07-17 | N14: =IF($K$1="1st Half",HLOOKUP(N13,SCHEDULE!$D$52:$M$53,2,FALSE),HLOOKUP(N13,SCHEDULE!$D$72:$M$73,2,FALSE)) -> 2013-07-24 | R14: =IF($K$1="1st Half",HLOOKUP(R13,SCHEDULE!$D$52:$M$53,2,FALSE),HLOOKUP(R13,SCHEDULE!$D$72:$M$73,2,FALSE)) -> 2013-07-31
B27: Week 6 | F27: Week 7 | J27: Week 8 | N27: Week 9 | R27: Week 10
B28: =IF($K$1="1st Half",HLOOKUP(B27,SCHEDULE!$D$52:$M$53,2,FALSE),HLOOKUP(B27,SCHEDULE!$D$72:$M$73,2,FALSE)) -> 2013-08-07 | F28: =IF($K$1="1st Half",HLOOKUP(F27,SCHEDULE!$D$52:$M$53,2,FALSE),HLOOKUP(F27,SCHEDULE!$D$72:$M$73,2,FALSE)) -> 2013-08-14 | J28: =IF($K$1="1st Half",IF(ISERROR(HLOOKUP(J27,SCHEDULE!$D$52:$M$53,2,FALSE)),"",HLOOKUP(J27,SCHEDULE!$D$52:$M$53,2,FALSE)),IF(ISERROR(HLOOKUP(J27,SCHEDULE!$D$72:$M$73,2,FALSE)),"",HLOOKUP(J27,SCHEDULE!$D$72:$M$73,2,FALSE))) -> 2013-08-21 | N28: =IF($K$1="1st Half",IF(ISERROR(HLOOKUP(N27,SCHEDULE!$D$52:$M$53,2,FALSE)),"",HLOOKUP(N27,SCHEDULE!$D$52:$M$53,2,FALSE)),IF(ISERROR(HLOOKUP(N27,SCHEDULE!$D$72:$M$73,2,FALSE)),"",HLOOKUP(N27,SCHEDULE!$D$72:$M$73,2,FALSE))) -> 2013-08-28 | R28: =IF($K$1="1st Half",IF(ISERROR(HLOOKUP(R27,SCHEDULE!$D$52:$M$53,2,FALSE)),"",HLOOKUP(R27,SCHEDULE!$D$52:$M$53,2,FALSE)),IF(ISERROR(HLOOKUP(R27,SCHEDULE!$D$72:$M$73,2,FALSE)),"",HLOOKUP(R27,SCHEDULE!$D$72:$M$73,2,FALSE))) -> 

Sheet MATCH RESULTS - 2nd Half 2011
B1: ='SCORE ENTRY WORKSHEET'!$N$12 -> Week 9 | J1: ="Match Results - 2nd Half 2011" -> Match Results - 2nd Half 2011
B2: ='SCORE ENTRY WORKSHEET'!$C$21 -> Team 04
B3: ='SCORE ENTRY WORKSHEET'!$M$21 -> 0
B4: ='SCORE ENTRY WORKSHEET'!$C$22 -> Team 16
B5: ='SCORE ENTRY WORKSHEET'!$M$22 -> 0
B6: =IF(B3=B5,B2&" and "&B4&" tie, "&TEXT(B3,"0.0")&" - "&TEXT(B5,"0.0"),IF(B3>B5,B2&" def. "&B4&", "&TEXT(B3,"0.0")&" - "&TEXT(B5,"0.0"),IF(B5>B3,B4&" def. "&B2&", "&TEXT(B5,"0.0")&" - "&TEXT(B3,"0.0")))) -> Team 04 and Team 16 tie, 0.0 - 0.0
B11: Week 1 | F11: Week 2 | J11: Week 3 | N11: Week 4 | R11: Week 5
B12: 2011-06-29 | F12: 2011-07-06 | J12: 2011-07-13 | N12: 2011-07-20 | R12: 2011-07-27
B13: Team 01 def. Team 13, 5.0 - 4.0 | F13: Team 15 def. Team 06, 5.5 - 3.5 | J13: Team 01 and Team 05 tie, 4.5 - 4.5 | N13: Team 07 def. Team 05, 6.5 - 2.5 | R13: Team 06 def. Team 09, 5.0 - 4.0
B14: Team 03 def. Team 17, 6.0 - 3.0 | F14: Team 01 def. Team 18, 8.5 - 0.0 | J14: Team 03 def. Team 08, 7.0 - 0.0 | N14: Team 14 def. Team 15, 5.0 - 4.0 | R14: Team 02 def. Team 08, 6.5 - 2.5
B15: Team 04 and Team 18 tie, 4.5 - 4.5 | F15: Team 17 def. Team 02, 6.5 - 2.5 | J15: Team 07 def. Team 04, 6.0 - 3.0 | N15: Team 10 def. Team 18, 6.0 - 0.0 | R15: Team 04 def. Team 01, 6.5 - 2.5
B16: Team 15 def. Team 05, 6.0 - 3.0 | F16: Team 03 def. Team 07, 5.5 - 0.0 | J16: Team 20 def. Team 06, 5.5 - 3.5 | N16: Team 01 def. Team 08, 6.0 - 3.0 | R16: Team 07 def. Team 11, 5.5 - 3.5
B17: Team 10 def. Team 02, 5.5 - 3.5 | F17: Team 20 def. Team 11, 7.0 - 0.0 | J17: Team 09 def. Team 11, 5.5 - 3.5 | N17: Team 11 def. Team 12, 6.5 - 2.5 | R17: Team 03 and Team 05 tie, 4.5 - 4.5
B18: Team 11 def. Team 06, 7.0 - 2.0 | F18: Team 08 def. Team 16, 5.5 - 3.5 | J18: Team 15 def. Team 16, 6.0 - 3.0 | N18: Team 16 def. Team 17, 7.0 - 2.0 | R18: Team 15 def. Team 19, 6.0 - 3.0
B19: Team 20 def. Team 08, 6.5 - 2.5 | F19: Team 12 def. Team 10, 5.0 - 4.0 | J19: Team 19 def. Team 10, 5.0 - 4.0 | N19: Team 06 def. Team 02, 5.0 - 4.0 | R19: Team 18 def. Team 20, 5.0 - 4.0
B20: Team 09 def. Team 14, 6.5 - 2.5 | F20: Team 13 def. Team 14, 5.0 - 4.0 | J20: Team 18 def. Team 14, 5.5 - 3.5 | N20: Team 09 and Team 13 tie, 4.5 - 4.5 | R20: Team 10 def. Team 13, 6.5 - 2.5
B21: Team 16 def. Team 07, 5.5 - 3.5 | F21: Team 09 def. Team 05, 6.0 - 3.0 | J21: Team 12 def. Team 02, 7.0 - 2.0 | N21: Team 19 def. Team 20, 6.0 - 3.0 | R21: Team 12 def. Team 16, 6.0 - 0.0
B22: Team 19 def. Team 12, 7.5 - 1.5 | F22: Team 19 def. Team 04, 5.0 - 4.0 | J22: Team 13 and Team 17 tie, 4.5 - 4.5 | N22: Team 03 and Team 04 tie, 4.5 - 4.5 | R22: Team 14 def. Team 17, 5.5 - 3.5
B25: Week 6 | F25: Week 7 | J25: Week 8 | N25: Week 9 | R25: Week 10
B26: 2011-08-03 | F26: 2011-08-10 | J26: 2011-08-17 | N26: 2011-08-24 | R26: 1900-01-01
B27: Team 15 def. Team 01, 5.0 - 4.0 | F27: Team 16 def. Team 01, 5.5 - 3.5 | J27: Team 18 def. Team 11, 5.0 - 4.0 | N27: Team 07 def. Team 14, 5.5 - 3.5
B28: Team 02 def. Team 14, 6.0 - 3.0 | F28: Team 04 def. Team 13, 5.0 - 4.0 | J28: Team 12 def. Team 17, 7.5 - 1.5 | N28: Team 10 def. Team 05, 8.5 - 0.5
B29: Team 16 and Team 04 tie, 4.5 - 4.5 | F29: Team 11 def. Team 02, 5.0 - 4.0 | J29: Team 03 def. Team 01, 5.0 - 4.0 | N29: Team 06 def. Team 04, 5.0 - 4.0
B30: Team 10 def. Team 09, 5.5 - 3.5 | F30: Team 20 def. Team 14, 5.5 - 3.5 | J30: Team 02 def. Team 09, 6.0 - 3.0 | N30: Team 09 def. Team 16, 7.0 - 2.0
B31: Team 12 def. Team 07, 7.0 - 2.0 | F31: Team 09 def. Team 18, 5.5 - 3.5 | J31: Team 04 def. Team 15, 5.5 - 3.5 | N31: Team 03 def. Team 11, 5.5 - 3.5
B32: Team 20 def. Team 03, 5.0 - 4.0 | F32: Team 19 def. Team 07, 5.0 - 4.0 | J32: Team 07 def. Team 20, 5.5 - 3.5 | N32: Team 20 def. Team 15, 6.5 - 2.5
B33: Team 19 def. Team 06, 7.5 - 1.5 | F33: Team 15 def. Team 03, 6.5 - 2.5 | J33: Team 13 and Team 19 tie, 4.5 - 4.5 | N33: Team 01 def. Team 17, 5.0 - 4.0
B34: Team 17 def. Team 18, 5.0 - 4.0 | F34: Team 05 def. Team 12, 7.5 - 1.5 | J34: Team 14 def. Team 08, 5.0 - 4.0 | N34: Team 19 def. Team 02, 5.0 - 4.0
B35: Team 05 def. Team 11, 8.5 - 0.0 | F35: Team 17 def. Team 10, 6.0 - 3.0 | J35: Team 10 def. Team 16, 5.5 - 3.5 | N35: Team 12 def. Team 13, 6.5 - 2.5
B36: Team 08 def. Team 13, 6.0 - 3.0 | F36: Team 06 def. Team 08, 7.5 - 0.0 | J36: Team 05 and Team 06 tie, 4.5 - 4.5 | N36: Team 08 and Team 18 tie, 4.5 - 4.5

Sheet MATCH RESULTS - 1st Half 2012
B1: ='SCORE ENTRY WORKSHEET'!$N$12 -> Week 9 | J1: ="Match Results - " & K1 & " " & 'COURSE & LEAGUE DETAILS'!F2 -> Match Results - 1st Half 2013 | K1: 1st Half
B2: ='SCORE ENTRY WORKSHEET'!$C$21 -> Team 04
B3: ='SCORE ENTRY WORKSHEET'!$M$21 -> 0
B4: ='SCORE ENTRY WORKSHEET'!$C$22 -> Team 16
B5: ='SCORE ENTRY WORKSHEET'!$M$22 -> 0
B6: =IF(B3=B5,B2&" and "&B4&" tie, "&TEXT(B3,"0.0")&" - "&TEXT(B5,"0.0"),IF(B3>B5,B2&" def. "&B4&", "&TEXT(B3,"0.0")&" - "&TEXT(B5,"0.0"),IF(B5>B3,B4&" def. "&B2&", "&TEXT(B5,"0.0")&" - "&TEXT(B3,"0.0")))) -> Team 04 and Team 16 tie, 0.0 - 0.0
B13: Week 1 | F13: Week 2 | J13: Week 3 | N13: Week 4 | R13: Week 5
B14: =IF($K$1="1st Half",HLOOKUP(B13,SCHEDULE!$D$52:$M$53,2,FALSE),HLOOKUP(B13,SCHEDULE!$D$72:$M$73,2,FALSE)) -> 2013-04-24 | F14: =IF($K$1="1st Half",HLOOKUP(F13,SCHEDULE!$D$52:$M$53,2,FALSE),HLOOKUP(F13,SCHEDULE!$D$72:$M$73,2,FALSE)) -> 2013-05-01 | J14: =IF($K$1="1st Half",HLOOKUP(J13,SCHEDULE!$D$52:$M$53,2,FALSE),HLOOKUP(J13,SCHEDULE!$D$72:$M$73,2,FALSE)) -> 2013-05-08 | N14: =IF($K$1="1st Half",HLOOKUP(N13,SCHEDULE!$D$52:$M$53,2,FALSE),HLOOKUP(N13,SCHEDULE!$D$72:$M$73,2,FALSE)) -> 2013-05-15 | R14: =IF($K$1="1st Half",HLOOKUP(R13,SCHEDULE!$D$52:$M$53,2,FALSE),HLOOKUP(R13,SCHEDULE!$D$72:$M$73,2,FALSE)) -> 2013-05-22
B15: Team 12 def. Team 02, 7.5 - 1.5 | F15: Team 02 def. Team 01, 5.5 - 3.5 | J15: Team 06 and Team 12 tie, 4.5 - 4.5 | N15: Team 11 def. Team 07, 5.5 - 3.5 | R15: Team 13 def. Team 20, 5.0 - 4.0
B16: Team 11 def. Team 01, 6.5 - 2.5 | F16: Team 17 def. Team 09, 7.0 - 2.0 | J16: Team 17 def. Team 20, 5.5 - 3.5 | N16: Team 12 def. Team 08, 6.5 - 2.5 | R16: Team 05 def. Team 01, 6.5 - 2.5
B17: Team 15 def. Team 05, 5.0 - 4.0 | F17: Team 07 and Team 15 tie, 4.5 - 4.5 | J17: Team 02 def. Team 04, 7.5 - 1.5 | N17: Team 01 def. Team 04, 5.0 - 4.0 | R17: Team 08 def. Team 02, 5.5 - 3.5
B18: Team 20 def. Team 10, 5.0 - 4.0 | F18: Team 05 def. Team 13, 5.5 - 3.5 | J18: Team 11 def. Team 05, 5.5 - 3.5 | N18: Team 05 def. Team 03, 5.0 - 4.0 | R18: Team 11 def. Team 09, 5.5 - 3.5
B19: Team 08 def. Team 18, 6.5 - 2.5 | F19: Team 08 def. Team 16, 6.5 - 0.0 | J19: Team 01 def. Team 03, 7.5 - 1.5 | N19: Team 17 def. Team 18, 5.0 - 4.0 | R19: Team 18 def. Team 15, 5.5 - 3.5
B20: Team 06 and Team 16 tie, 0.0 - 0.0 | F20: Team 03 def. Team 11, 5.0 - 4.0 | J20: Team 08 def. Team 14, 5.5 - 3.5 | N20: Team 15 def. Team 20, 6.5 - 2.5 | R20: Team 14 def. Team 19, 6.5 - 2.5
B21: Team 07 def. Team 17, 6.0 - 3.0 | F21: Team 12 def. Team 04, 7.0 - 2.0 | J21: Team 10 def. Team 16, 6.0 - 0.0 | N21: Team 14 def. Team 10, 5.0 - 4.0 | R21: Team 17 and Team 16 tie, 4.5 - 4.5
B22: Team 14 def. Team 04, 5.5 - 3.5 | F22: Team 20 and Team 19 tie, 4.5 - 4.5 | J22: Team 19 def. Team 18, 6.5 - 2.5 | N22: Team 13 def. Team 09, 6.0 - 3.0 | R22: Team 04 def. Team 06, 6.0 - 0.0
B23: Team 19 def. Team 09, 5.0 - 4.0 | F23: Team 14 def. Team 06, 7.0 - 2.0 | J23: Team 07 def. Team 13, 6.0 - 3.0 | N23: Team 16 def. Team 19, 6.5 - 2.5 | R23: Team 07 def. Team 03, 5.0 - 4.0
B24: Team 03 def. Team 13, 6.0 - 3.0 | F24: Team 10 def. Team 18, 7.5 - 1.5 | J24: Team 15 def. Team 09, 7.5 - 0.0 | N24: Team 02 def. Team 06, 6.0 - 3.0 | R24: Team 12 def. Team 10, 5.5 - 3.5
B27: Week 6 | F27: Week 7 | J27: Week 8 | N27: Week 9 | R27: Week 10
B28: =IF($K$1="1st Half",HLOOKUP(B27,SCHEDULE!$D$52:$M$53,2,FALSE),HLOOKUP(B27,SCHEDULE!$D$72:$M$73,2,FALSE)) -> 2013-05-29 | F28: =IF($K$1="1st Half",HLOOKUP(F27,SCHEDULE!$D$52:$M$53,2,FALSE),HLOOKUP(F27,SCHEDULE!$D$72:$M$73,2,FALSE)) -> 2013-06-05 | J28: =IF($K$1="1st Half",IF(ISERROR(HLOOKUP(J27,SCHEDULE!$D$52:$M$53,2,FALSE)),"",HLOOKUP(J27,SCHEDULE!$D$52:$M$53,2,FALSE)),IF(ISERROR(HLOOKUP(J27,SCHEDULE!$D$72:$M$73,2,FALSE)),"",HLOOKUP(J27,SCHEDULE!$D$72:$M$73,2,FALSE))) -> 2013-06-12 | N28: =IF($K$1="1st Half",IF(ISERROR(HLOOKUP(N27,SCHEDULE!$D$52:$M$53,2,FALSE)),"",HLOOKUP(N27,SCHEDULE!$D$52:$M$53,2,FALSE)),IF(ISERROR(HLOOKUP(N27,SCHEDULE!$D$72:$M$73,2,FALSE)),"",HLOOKUP(N27,SCHEDULE!$D$72:$M$73,2,FALSE))) -> 2013-06-19 | R28: =IF($K$1="1st Half",IF(ISERROR(HLOOKUP(R27,SCHEDULE!$D$52:$M$53,2,FALSE)),"",HLOOKUP(R27,SCHEDULE!$D$52:$M$53,2,FALSE)),IF(ISERROR(HLOOKUP(R27,SCHEDULE!$D$72:$M$73,2,FALSE)),"",HLOOKUP(R27,SCHEDULE!$D$72:$M$73,2,FALSE))) -> 2013-06-26
B29: Team 06 def. Team 01, 6.5 - 2.5 | J29: Team 17 def. Team 02, 5.0 - 4.0 | N29: Team 01 def. Team 09, 5.5 - 3.5 | R29: Team 20 def. Team 09, 7.0 - 2.0
B30: Team 20 def. Team 11, 6.0 - 3.0 | J30: Team 16 def. Team 11, 5.5 - 3.5 | N30: Team 20 and Team 07 tie, 4.5 - 4.5 | R30: Team 13 def. Team 02, 5.0 - 4.0
B31: Team 08 def. Team 04, 7.0 - 2.0 | J31: Team 20 def. Team 05, 6.5 - 2.5 | N31: Team 08 def. Team 10, 5.5 - 3.5 | R31: Team 11 def. Team 12, 5.0 - 4.0
B32: Team 03 def. Team 09, 6.5 - 2.5 | J32: Team 01 def. Team 08, 7.5 - 1.5 | N32: Team 18 and Team 05 tie, 4.5 - 4.5 | R32: Team 01 and Team 10 tie, 4.5 - 4.5
B33: Team 05 def. Team 07, 5.0 - 4.0 | J33: Team 12 def. Team 15, 6.0 - 3.0 | N33: Team 11 def. Team 14, 4.5 - 0.0 | R33: Team 17 def. Team 06, 5.5 - 3.5
B34: Team 17 def. Team 14, 8.0 - 0.0 | J34: Team 07 def. Team 09, 5.0 - 4.0 | N34: Team 02 def. Team 15, 5.0 - 0.0 | R34: Team 18 and Team 07 tie, 4.5 - 4.5
B35: Team 10 def. Team 02, 5.5 - 3.5 | J35: Team 14 def. Team 13, 7.5 - 0.0 | N35: Team 17 def. Team 04, 7.0 - 2.0 | R35: Team 03 def. Team 14, 7.0 - 2.0
B36: Team 18 def. Team 13, 6.0 - 3.0 | J36: Team 04 def. Team 19, 5.5 - 3.5 | N36: Team 12 def. Team 13, 6.0 - 3.0 | R36: Team 04 def. Team 15, 6.5 - 0.0
B37: Team 15 def. Team 16, 6.0 - 3.0 | J37: Team 06 def. Team 10, 5.5 - 3.5 | N37: Team 06 def. Team 19, 7.0 - 2.0 | R37: Team 05 def. Team 16, 5.0 - 4.0
B38: Team 19 def. Team 12, 5.0 - 4.0 | J38: Team 18 def. Team 03, 6.0 - 3.0 | N38: Team 16 def. Team 03, 5.0 - 4.0 | R38: Team 08 def. Team 19, 5.0 - 4.0

Sheet MATCH RESULTS - 2nd Half 2012
B1: ='SCORE ENTRY WORKSHEET'!$N$12 -> Week 9 | J1: ="Match Results - " & K1 & " " & 'COURSE & LEAGUE DETAILS'!F2 -> Match Results - 2nd Half 2013 | K1: 2nd Half
B2: ='SCORE ENTRY WORKSHEET'!$C$21 -> Team 04
B3: ='SCORE ENTRY WORKSHEET'!$M$21 -> 0
B4: ='SCORE ENTRY WORKSHEET'!$C$22 -> Team 16
B5: ='SCORE ENTRY WORKSHEET'!$M$22 -> 0
B6: =IF(B3=B5,B2&" and "&B4&" tie, "&TEXT(B3,"0.0")&" - "&TEXT(B5,"0.0"),IF(B3>B5,B2&" def. "&B4&", "&TEXT(B3,"0.0")&" - "&TEXT(B5,"0.0"),IF(B5>B3,B4&" def. "&B2&", "&TEXT(B5,"0.0")&" - "&TEXT(B3,"0.0")))) -> Team 04 and Team 16 tie, 0.0 - 0.0
B13: Week 1 | F13: Week 2 | J13: Week 3 | N13: Week 4 | R13: Week 5
B14: =IF($K$1="1st Half",HLOOKUP(B13,SCHEDULE!$D$52:$M$53,2,FALSE),HLOOKUP(B13,SCHEDULE!$D$72:$M$73,2,FALSE)) -> 2013-07-03 | F14: =IF($K$1="1st Half",HLOOKUP(F13,SCHEDULE!$D$52:$M$53,2,FALSE),HLOOKUP(F13,SCHEDULE!$D$72:$M$73,2,FALSE)) -> 2013-07-10 | J14: =IF($K$1="1st Half",HLOOKUP(J13,SCHEDULE!$D$52:$M$53,2,FALSE),HLOOKUP(J13,SCHEDULE!$D$72:$M$73,2,FALSE)) -> 2013-07-17 | N14: =IF($K$1="1st Half",HLOOKUP(N13,SCHEDULE!$D$52:$M$53,2,FALSE),HLOOKUP(N13,SCHEDULE!$D$72:$M$73,2,FALSE)) -> 2013-07-24 | R14: =IF($K$1="1st Half",HLOOKUP(R13,SCHEDULE!$D$52:$M$53,2,FALSE),HLOOKUP(R13,SCHEDULE!$D$72:$M$73,2,FALSE)) -> 2013-07-31
B15: Team 01 def. Team 20, 7.0 - 2.0 | F15: Team 16 def. Team 09, 6.0 - 3.0 | J15: Team 11 def. Team 06, 5.5 - 3.5 | N15: Team 08 def. Team 11, 6.0 - 3.0 | R15: Team 06 def. Team 05, 5.5 - 3.5
B16: Team 05 def. Team 14, 6.5 - 0.0 | F16: Team 20 def. Team 18, 5.5 - 3.5 | J16: Team 20 def. Team 16, 5.0 - 4.0 | N16: Team 05 def. Team 04, 5.0 - 4.0 | R16: Team 04 def. Team 07, 6.0 - 0.0
B17: Team 02 def. Team 11, 5.0 - 4.0 | F17: Team 12 def. Team 05, 5.0 - 4.0 | J17: Team 01 def. Team 18, 6.5 - 2.5 | N17: Team 12 and Team 09 tie, 4.5 - 4.5 | R17: Team 01 and Team 16 tie, 4.5 - 4.5
B18: Team 17 def. Team 08, 5.5 - 0.0 | F18: Team 04 def. Team 11, 4.5 - 0.0 | J18: Team 07 def. Team 12, 5.5 - 3.5 | N18: Team 13 def. Team 10, 5.5 - 3.5 | R18: Team 12 def. Team 20, 6.5 - 2.5
B19: Team 12 def. Team 03, 7.0 - 2.0 | F19: Team 15 def. Team 08, 6.0 - 3.0 | J19: Team 08 def. Team 13, 5.0 - 4.0 | N19: Team 14 def. Team 20, 6.0 - 3.0 | R19: Team 14 def. Team 18, 5.0 - 4.0
B20: Team 15 and Team 06 tie, 4.5 - 4.5 | F20: Team 17 def. Team 10, 5.0 - 4.0 | J20: Team 05 def. Team 02, 6.5 - 2.5 | N20: Team 18 def. Team 16, 8.0 - 1.0 | R20: Team 17 def. Team 15, 5.0 - 4.0
B21: Team 13 def. Team 04, 7.0 - 2.0 | F21: Team 19 def. Team 01, 5.0 - 4.0 | J21: Team 09 def. Team 14, 6.5 - 2.5 | N21: Team 02 and Team 07 tie, 4.5 - 4.5 | R21: Team 03 and Team 08 tie, 4.5 - 4.5
B22: Team 10 def. Team 19, 5.5 - 3.5 | F22: Team 07 def. Team 14, 7.5 - 1.5 | J22: Team 19 def. Team 17, 5.0 - 4.0 | N22: Team 17 def. Team 01, 6.0 - 3.0 | R22: Team 11 def. Team 10, 6.5 - 2.5
B23: Team 09 def. Team 18, 6.0 - 3.0 | F23: Team 03 def. Team 02, 5.5 - 3.5 | J23: Team 03 def. Team 04, 6.5 - 2.5 | N23: Team 06 def. Team 03, 5.0 - 4.0 | R23: Team 02 def. Team 09, 4.5 - 0.0
B24: Team 16 def. Team 07, 5.0 - 4.0 | F24: Team 13 and Team 06 tie, 4.5 - 4.5 | J24: Team 15 and Team 10 tie, 4.5 - 4.5 | N24: Team 19 def. Team 15, 5.0 - 4.0 | R24: Team 13 def. Team 19, 5.0 - 4.0
B27: Week 6 | F27: Week 7 | J27: Week 8 | N27: Week 9 | R27: Week 10
B28: =IF($K$1="1st Half",HLOOKUP(B27,SCHEDULE!$D$52:$M$53,2,FALSE),HLOOKUP(B27,SCHEDULE!$D$72:$M$73,2,FALSE)) -> 2013-08-07 | F28: =IF($K$1="1st Half",HLOOKUP(F27,SCHEDULE!$D$52:$M$53,2,FALSE),HLOOKUP(F27,SCHEDULE!$D$72:$M$73,2,FALSE)) -> 2013-08-14 | J28: =IF($K$1="1st Half",IF(ISERROR(HLOOKUP(J27,SCHEDULE!$D$52:$M$53,2,FALSE)),"",HLOOKUP(J27,SCHEDULE!$D$52:$M$53,2,FALSE)),IF(ISERROR(HLOOKUP(J27,SCHEDULE!$D$72:$M$73,2,FALSE)),"",HLOOKUP(J27,SCHEDULE!$D$72:$M$73,2,FALSE))) -> 2013-08-21 | N28: =IF($K$1="1st Half",IF(ISERROR(HLOOKUP(N27,SCHEDULE!$D$52:$M$53,2,FALSE)),"",HLOOKUP(N27,SCHEDULE!$D$52:$M$53,2,FALSE)),IF(ISERROR(HLOOKUP(N27,SCHEDULE!$D$72:$M$73,2,FALSE)),"",HLOOKUP(N27,SCHEDULE!$D$72:$M$73,2,FALSE))) -> 2013-08-28 | R28: =IF($K$1="1st Half",IF(ISERROR(HLOOKUP(R27,SCHEDULE!$D$52:$M$53,2,FALSE)),"",HLOOKUP(R27,SCHEDULE!$D$52:$M$53,2,FALSE)),IF(ISERROR(HLOOKUP(R27,SCHEDULE!$D$72:$M$73,2,FALSE)),"",HLOOKUP(R27,SCHEDULE!$D$72:$M$73,2,FALSE))) -> 
B29: Team 05 def. Team 08, 6.5 - 2.5 | F29: Team 08 def. Team 07, 6.5 - 0.0 | J29: Team 20 def. Team 06, 5.5 - 3.5 | N29: Team 05 def. Team 17, 5.5 - 3.5
B30: Team 16 def. Team 14, 5.5 - 3.5 | F30: Team 11 def. Team 17, 5.0 - 4.0 | J30: Team 12 def. Team 14, 5.5 - 3.5 | N30: Team 13 def. Team 11, 5.0 - 4.0
B31: Team 20 def. Team 02, 6.5 - 2.5 | F31: Team 05 def. Team 10, 5.0 - 4.0 | J31: Team 16 def. Team 02, 6.0 - 3.0 | N31: Team 12 def. Team 01, 5.5 - 3.5
B32: Team 01 def. Team 15, 6.0 - 0.0 | F32: Team 20 def. Team 04, 8.0 - 1.0 | J32: Team 13 def. Team 01, 5.0 - 4.0 | N32: Team 08 def. Team 20, 5.5 - 3.5
B33: Team 13 def. Team 17, 5.0 - 4.0 | F33: Team 01 def. Team 14, 5.5 - 3.5 | J33: Team 10 def. Team 07, 7.0 - 0.0 | N33: Team 10 def. Team 09, 7.0 - 2.0
B34: Team 11 and Team 19 tie, 4.5 - 4.5 | F34: Team 06 def. Team 09, 5.0 - 4.0 | J34: Team 04 and Team 18 tie, 4.5 - 4.5 | N34: Team 03 def. Team 15, 6.5 - 2.5
B35: Team 10 def. Team 03, 5.0 - 4.0 | F35: Team 16 def. Team 12, 5.5 - 3.5 | J35: Team 03 and Team 17 tie, 4.5 - 4.5 | N35: Team 19 def. Team 07, 5.5 - 0.0
B36: Team 12 def. Team 18, 6.5 - 2.5 | F36: Team 03 def. Team 19, 5.5 - 3.5 | J36: Team 05 def. Team 19, 6.5 - 2.5 | N36: Team 16 def. Team 04, 5.5 - 3.5
B37: Team 09 def. Team 04, 6.5 - 2.5 | F37: Team 13 def. Team 15, 5.5 - 3.5 | J37: Team 11 def. Team 15, 5.5 - 3.5 | N37: Team 02 def. Team 14, 5.0 - 4.0
B38: Team 06 def. Team 07, 6.5 - 0.0 | F38: Team 18 def. Team 02, 5.5 - 3.5 | J38: Team 08 def. Team 09, 6.5 - 2.5 | N38: Team 06 def. Team 18, 5.0 - 4.0

Sheet MATCH RESULTS - 1st Half 2013
B1: ='SCORE ENTRY WORKSHEET'!$N$12 -> Week 9 | J1: ="Match Results - " & K1 & " " & 'COURSE & LEAGUE DETAILS'!F2 -> Match Results - 1st Half 2013 | K1: 1st Half
B2: ='SCORE ENTRY WORKSHEET'!$C$21 -> Team 04
B3: ='SCORE ENTRY WORKSHEET'!$M$21 -> 0
B4: ='SCORE ENTRY WORKSHEET'!$C$22 -> Team 16
B5: ='SCORE ENTRY WORKSHEET'!$M$22 -> 0
B6: =IF(B3=B5,B2&" and "&B4&" tie, "&TEXT(B3,"0.0")&" - "&TEXT(B5,"0.0"),IF(B3>B5,B2&" def. "&B4&", "&TEXT(B3,"0.0")&" - "&TEXT(B5,"0.0"),IF(B5>B3,B4&" def. "&B2&", "&TEXT(B5,"0.0")&" - "&TEXT(B3,"0.0")))) -> Team 04 and Team 16 tie, 0.0 - 0.0
B13: Week 1 | F13: Week 2 | J13: Week 3 | N13: Week 4 | R13: Week 5
B14: =IF($K$1="1st Half",HLOOKUP(B13,SCHEDULE!$D$52:$M$53,2,FALSE),HLOOKUP(B13,SCHEDULE!$D$72:$M$73,2,FALSE)) -> 2013-04-24 | F14: =IF($K$1="1st Half",HLOOKUP(F13,SCHEDULE!$D$52:$M$53,2,FALSE),HLOOKUP(F13,SCHEDULE!$D$72:$M$73,2,FALSE)) -> 2013-05-01 | J14: =IF($K$1="1st Half",HLOOKUP(J13,SCHEDULE!$D$52:$M$53,2,FALSE),HLOOKUP(J13,SCHEDULE!$D$72:$M$73,2,FALSE)) -> 2013-05-08 | N14: =IF($K$1="1st Half",HLOOKUP(N13,SCHEDULE!$D$52:$M$53,2,FALSE),HLOOKUP(N13,SCHEDULE!$D$72:$M$73,2,FALSE)) -> 2013-05-15 | R14: =IF($K$1="1st Half",HLOOKUP(R13,SCHEDULE!$D$52:$M$53,2,FALSE),HLOOKUP(R13,SCHEDULE!$D$72:$M$73,2,FALSE)) -> 2013-05-22
F15: Team 16 def. Team 08, 5.5 - 3.5 | N15: Team 08 def. Team 12, 6.5 - 2.5 | R15: Team 20 def. Team 13, 5.0 - 4.0
F16: Team 03 def. Team 11, 6.0 - 3.0 | N16: Team 04 def. Team 01, 6.5 - 2.5 | R16: Team 06 def. Team 04, 6.0 - 3.0
F17: Team 01 def. Team 02, 7.0 - 2.0 | N17: Team 13 def. Team 09, 6.5 - 2.5 | R17: Team 01 def. Team 05, 5.0 - 4.0
F18: Team 09 def. Team 17, 6.5 - 2.5 | N18: Team 20 def. Team 15, 6.0 - 0.0 | R18: Team 15 def. Team 18, 6.5 - 2.5
F19: Team 14 def. Team 06, 4.5 - 0.0 | N19: Team 02 def. Team 06, 5.0 - 4.0 | R19: Team 11 def. Team 09, 5.0 - 4.0
F20: Team 04 def. Team 12, 5.5 - 3.5 | N20: Team 17 def. Team 18, 5.5 - 3.5 | R20: Team 12 def. Team 10, 5.5 - 3.5
F21: Team 18 def. Team 10, 5.0 - 4.0 | N21: Team 10 def. Team 14, 6.0 - 3.0 | R21: Team 19 def. Team 14, 5.0 - 4.0
F22: Team 15 def. Team 07, 6.5 - 0.0 | N22: Team 11 def. Team 07, 4.5 - 0.0 | R22: Team 03 def. Team 07, 5.5 - 0.0
F23: Team 19 def. Team 20, 5.0 - 4.0 | N23: Team 16 def. Team 19, 5.0 - 4.0 | R23: Team 17 def. Team 16, 5.0 - 4.0
F24: Team 05 def. Team 13, 5.5 - 3.5 | N24: Team 05 and Team 03 tie, 4.5 - 4.5 | R24: Team 08 def. Team 02, 6.0 - 3.0
B27: Week 6 | F27: Week 7 | J27: Week 8 | N27: Week 9 | R27: Week 10
B28: =IF($K$1="1st Half",HLOOKUP(B27,SCHEDULE!$D$52:$M$53,2,FALSE),HLOOKUP(B27,SCHEDULE!$D$72:$M$73,2,FALSE)) -> 2013-05-29 | F28: =IF($K$1="1st Half",HLOOKUP(F27,SCHEDULE!$D$52:$M$53,2,FALSE),HLOOKUP(F27,SCHEDULE!$D$72:$M$73,2,FALSE)) -> 2013-06-05 | J28: =IF($K$1="1st Half",IF(ISERROR(HLOOKUP(J27,SCHEDULE!$D$52:$M$53,2,FALSE)),"",HLOOKUP(J27,SCHEDULE!$D$52:$M$53,2,FALSE)),IF(ISERROR(HLOOKUP(J27,SCHEDULE!$D$72:$M$73,2,FALSE)),"",HLOOKUP(J27,SCHEDULE!$D$72:$M$73,2,FALSE))) -> 2013-06-12 | N28: =IF($K$1="1st Half",IF(ISERROR(HLOOKUP(N27,SCHEDULE!$D$52:$M$53,2,FALSE)),"",HLOOKUP(N27,SCHEDULE!$D$52:$M$53,2,FALSE)),IF(ISERROR(HLOOKUP(N27,SCHEDULE!$D$72:$M$73,2,FALSE)),"",HLOOKUP(N27,SCHEDULE!$D$72:$M$73,2,FALSE))) -> 2013-06-19 | R28: =IF($K$1="1st Half",IF(ISERROR(HLOOKUP(R27,SCHEDULE!$D$52:$M$53,2,FALSE)),"",HLOOKUP(R27,SCHEDULE!$D$52:$M$53,2,FALSE)),IF(ISERROR(HLOOKUP(R27,SCHEDULE!$D$72:$M$73,2,FALSE)),"",HLOOKUP(R27,SCHEDULE!$D$72:$M$73,2,FALSE))) -> 2013-06-26
B29: Team 09 and Team 03 tie, 4.5 - 4.5 | F29: Team 13 def. Team 16, 5.5 - 3.5 | J29: Team 08 def. Team 01, 5.0 - 4.0 | N29: Team 05 def. Team 18, 5.5 - 0.0 | R29: Team 05 def. Team 16, 6.0 - 3.0
B30: Team 20 and Team 11 tie, 4.5 - 4.5 | F30: Team 20 def. Team 03, 8.0 - 1.0 | J30: Team 12 def. Team 15, 5.0 - 4.0 | N30: Team 02 def. Team 15, 6.0 - 3.0 | R30: Team 04 def. Team 15, 5.0 - 4.0
B31: Team 01 and Team 06 tie, 4.5 - 4.5 | F31: Team 08 def. Team 06, 5.0 - 4.0 | J31: Team 11 def. Team 16, 5.5 - 3.5 | N31: Team 20 def. Team 07, 7.5 - 0.0 | R31: Team 12 def. Team 11, 5.5 - 3.5
B32: Team 19 def. Team 12, 5.0 - 4.0 | F32: Team 09 def. Team 05, 5.0 - 4.0 | J32: Team 03 def. Team 18, 7.0 - 2.0 | N32: Team 16 def. Team 03, 6.0 - 3.0 | R32: Team 20 def. Team 09, 6.0 - 3.0
B33: Team 15 def. Team 16, 5.0 - 4.0 | F33: Team 17 def. Team 12, 6.0 - 3.0 | J33: Team 06 def. Team 10, 7.5 - 1.5 | N33: Team 12 def. Team 13, 5.0 - 4.0 | R33: Team 13 and Team 02 tie, 4.5 - 4.5
B34: Team 17 and Team 14 tie, 4.5 - 4.5 | F34: Team 11 def. Team 18, 5.0 - 0.0 | J34: Team 20 def. Team 05, 6.0 - 3.0 | N34: Team 11 def. Team 14, 5.0 - 4.0 | R34: Team 01 def. Team 10, 6.0 - 3.0
B35: Team 18 def. Team 13, 6.5 - 2.5 | F35: Team 01 def. Team 07, 4.0 - 0.0 | J35: Team 02 def. Team 17, 6.0 - 3.0 | N35: Team 17 def. Team 04, 5.0 - 4.0 | R35: Team 18 def. Team 07, 5.0 - 0.0
B36: Team 10 and Team 02 tie, 4.5 - 4.5 | F36: Team 19 def. Team 02, 5.5 - 3.5 | J36: Team 14 and Team 13 tie, 4.5 - 4.5 | N36: Team 19 and Team 06 tie, 4.5 - 4.5 | R36: Team 17 def. Team 06, 5.5 - 3.5
B37: Team 04 def. Team 08, 6.0 - 0.0 | F37: Team 14 def. Team 15, 5.0 - 4.0 | J37: Team 19 def. Team 04, 5.0 - 4.0 | N37: Team 01 def. Team 09, 5.0 - 4.0 | R37: Team 19 def. Team 08, 5.0 - 4.0
B38: Team 05 def. Team 07, 7.0 - 0.0 | F38: Team 10 def. Team 04, 6.0 - 3.0 | J38: Team 09 def. Team 07, 5.5 - 0.0 | N38: Team 08 def. Team 10, 6.0 - 3.0 | R38: Team 03 def. Team 14, 6.0 - 3.0

Sheet MATCH RESULTS - 2nd Half 2013
B1: ='SCORE ENTRY WORKSHEET'!$N$12 -> Week 9 | J1: ="Match Results - " & K1 & " " & 'COURSE & LEAGUE DETAILS'!F2 -> Match Results - 2nd Half 2013 | K1: 2nd Half
B2: ='SCORE ENTRY WORKSHEET'!$C$21 -> Team 04
B3: ='SCORE ENTRY WORKSHEET'!$M$21 -> 0
B4: ='SCORE ENTRY WORKSHEET'!$C$22 -> Team 16
B5: ='SCORE ENTRY WORKSHEET'!$M$22 -> 0
B6: =IF(B3=B5,B2&" and "&B4&" tie, "&TEXT(B3,"0.0")&" - "&TEXT(B5,"0.0"),IF(B3>B5,B2&" def. "&B4&", "&TEXT(B3,"0.0")&" - "&TEXT(B5,"0.0"),IF(B5>B3,B4&" def. "&B2&", "&TEXT(B5,"0.0")&" - "&TEXT(B3,"0.0")))) -> Team 04 and Team 16 tie, 0.0 - 0.0
B13: Week 1 | F13: Week 2 | J13: Week 3 | N13: Week 4 | R13: Week 5
B14: =IF($K$1="1st Half",HLOOKUP(B13,SCHEDULE!$D$52:$M$53,2,FALSE),HLOOKUP(B13,SCHEDULE!$D$72:$M$73,2,FALSE)) -> 2013-07-03 | F14: =IF($K$1="1st Half",HLOOKUP(F13,SCHEDULE!$D$52:$M$53,2,FALSE),HLOOKUP(F13,SCHEDULE!$D$72:$M$73,2,FALSE)) -> 2013-07-10 | J14: =IF($K$1="1st Half",HLOOKUP(J13,SCHEDULE!$D$52:$M$53,2,FALSE),HLOOKUP(J13,SCHEDULE!$D$72:$M$73,2,FALSE)) -> 2013-07-17 | N14: =IF($K$1="1st Half",HLOOKUP(N13,SCHEDULE!$D$52:$M$53,2,FALSE),HLOOKUP(N13,SCHEDULE!$D$72:$M$73,2,FALSE)) -> 2013-07-24 | R14: =IF($K$1="1st Half",HLOOKUP(R13,SCHEDULE!$D$52:$M$53,2,FALSE),HLOOKUP(R13,SCHEDULE!$D$72:$M$73,2,FALSE)) -> 2013-07-31
B15: Team 02 def. Team 11, 6.5 - 2.5 | J15: Team 01 def. Team 18, 6.5 - 2.5 | N15: Team 20 def. Team 14, 6.0 - 3.0 | R15: Team 17 def. Team 15, 5.0 - 4.0
B16: Team 16 def. Team 07, 6.0 - 0.0 | J16: Team 09 def. Team 14, 7.0 - 2.0 | N16: Team 03 def. Team 06, 6.0 - 3.0 | R16: Team 05 def. Team 06, 6.0 - 3.0
B17: Team 08 def. Team 17, 5.5 - 3.5 | J17: Team 16 def. Team 20, 7.5 - 1.5 | N17: Team 02 def. Team 07, 7.0 - 0.0 | R17: Team 01 def. Team 16, 5.5 - 3.5
B18: Team 03 def. Team 12, 5.5 - 3.5 | J18: Team 06 def. Team 11, 6.0 - 3.0 | N18: Team 11 def. Team 08, 6.5 - 2.5 | R18: Team 11 and Team 10 tie, 4.5 - 4.5
B19: Team 05 def. Team 14, 5.5 - 3.5 | J19: Team 03 def. Team 04, 5.5 - 3.5 | N19: Team 10 def. Team 13, 6.0 - 3.0 | R19: Team 02 def. Team 09, 6.0 - 3.0
B20: Team 04 def. Team 13, 5.0 - 0.0 | J20: Team 17 def. Team 19, 5.0 - 4.0 | N20: Team 16 def. Team 18, 9.0 - 0.0 | R20: Team 20 def. Team 12, 5.5 - 3.5
B21: Team 20 def. Team 01, 5.5 - 3.5 | J21: Team 15 def. Team 10, 5.5 - 3.5 | N21: Team 01 def. Team 17, 5.5 - 3.5 | R21: Team 03 and Team 08 tie, 4.5 - 4.5
B22: Team 18 and Team 09 tie, 4.5 - 4.5 | J22: Team 02 def. Team 05, 5.0 - 4.0 | N22: Team 05 def. Team 04, 5.0 - 4.0 | R22: Team 14 and Team 18 tie, 4.5 - 4.5
B23: Team 19 and Team 10 tie, 4.5 - 4.5 | J23: Team 13 def. Team 08, 5.0 - 4.0 | N23: Team 19 def. Team 15, 5.0 - 4.0 | R23: Team 04 def. Team 07, 4.0 - 0.0
B24: Team 15 def. Team 06, 5.5 - 3.5 | J24: Team 12 def. Team 07, 7.5 - 0.0 | N24: Team 09 def. Team 12, 6.0 - 3.0 | R24: Team 19 def. Team 13, 7.5 - 1.5
B27: Week 6 | F27: Week 7 | J27: Week 8 | N27: Week 9 | R27: Week 10
B28: =IF($K$1="1st Half",HLOOKUP(B27,SCHEDULE!$D$52:$M$53,2,FALSE),HLOOKUP(B27,SCHEDULE!$D$72:$M$73,2,FALSE)) -> 2013-08-07 | F28: =IF($K$1="1st Half",HLOOKUP(F27,SCHEDULE!$D$52:$M$53,2,FALSE),HLOOKUP(F27,SCHEDULE!$D$72:$M$73,2,FALSE)) -> 2013-08-14 | J28: =IF($K$1="1st Half",IF(ISERROR(HLOOKUP(J27,SCHEDULE!$D$52:$M$53,2,FALSE)),"",HLOOKUP(J27,SCHEDULE!$D$52:$M$53,2,FALSE)),IF(ISERROR(HLOOKUP(J27,SCHEDULE!$D$72:$M$73,2,FALSE)),"",HLOOKUP(J27,SCHEDULE!$D$72:$M$73,2,FALSE))) -> 2013-08-21 | N28: =IF($K$1="1st Half",IF(ISERROR(HLOOKUP(N27,SCHEDULE!$D$52:$M$53,2,FALSE)),"",HLOOKUP(N27,SCHEDULE!$D$52:$M$53,2,FALSE)),IF(ISERROR(HLOOKUP(N27,SCHEDULE!$D$72:$M$73,2,FALSE)),"",HLOOKUP(N27,SCHEDULE!$D$72:$M$73,2,FALSE))) -> 2013-08-28 | R28: =IF($K$1="1st Half",IF(ISERROR(HLOOKUP(R27,SCHEDULE!$D$52:$M$53,2,FALSE)),"",HLOOKUP(R27,SCHEDULE!$D$52:$M$53,2,FALSE)),IF(ISERROR(HLOOKUP(R27,SCHEDULE!$D$72:$M$73,2,FALSE)),"",HLOOKUP(R27,SCHEDULE!$D$72:$M$73,2,FALSE))) -> 
B29: Team 14 def. Team 16, 5.5 - 3.5 | F29: Team 10 def. Team 05, 5.5 - 3.5 | J29: Team 10 def. Team 07, 7.0 - 0.0 | N29: Team 04 def. Team 16, 5.0 - 4.0
B30: Team 17 def. Team 13, 7.0 - 2.0 | F30: Team 11 and Team 17 tie, 4.5 - 4.5 | J30: Team 08 def. Team 09, 8.0 - 1.0 | N30: Team 08 def. Team 20, 5.0 - 4.0
B31: Team 09 def. Team 04, 5.0 - 4.0 | F31: Team 01 def. Team 14, 7.0 - 2.0 | J31: Team 06 def. Team 20, 5.0 - 4.0 | N31: Team 12 def. Team 01, 6.0 - 3.0
B32: Team 20 def. Team 02, 7.5 - 1.5 | F32: Team 08 def. Team 07, 5.0 - 0.0 | J32: Team 11 def. Team 15, 5.0 - 4.0 | N32: Team 14 def. Team 02, 5.0 - 4.0
B33: Team 05 def. Team 08, 8.0 - 0.0 | F33: Team 15 def. Team 13, 6.5 - 2.5 | J33: Team 19 def. Team 05, 5.0 - 4.0 | N33: Team 05 def. Team 17, 6.5 - 2.5
B34: Team 10 def. Team 03, 5.5 - 3.5 | F34: Team 19 def. Team 03, 5.5 - 3.5 | J34: Team 17 def. Team 03, 6.0 - 3.0 | N34: Team 15 def. Team 03, 5.5 - 3.5
B35: Team 19 def. Team 11, 5.0 - 4.0 | F35: Team 06 def. Team 09, 5.0 - 4.0 | J35: Team 04 and Team 18 tie, 4.5 - 4.5 | N35: Team 10 def. Team 09, 7.0 - 2.0
B36: Team 06 def. Team 07, 5.0 - 0.0 | F36: Team 04 def. Team 20, 5.0 - 4.0 | J36: Team 02 def. Team 16, 5.0 - 4.0 | N36: Team 19 def. Team 07, 4.0 - 0.0
B37: Team 12 def. Team 18, 5.5 - 3.5 | F37: Team 18 def. Team 02, 5.0 - 4.0 | J37: Team 01 def. Team 13, 6.0 - 3.0 | N37: Team 11 def. Team 13, 6.5 - 2.5
B38: Team 15 def. Team 01, 7.0 - 2.0 | F38: Team 12 def. Team 16, 5.0 - 4.0 | J38: Team 12 def. Team 14, 7.0 - 2.0 | N38: Team 18 def. Team 06, 4.5 - 0.0

Sheet POINTS
A1: ='SCORE ENTRY WORKSHEET'!$C$21 -> Team 04 | B1: ='SCORE ENTRY WORKSHEET'!M21 -> 0 | J1: ="Team Points - " & K1 & " " & 'COURSE & LEAGUE DETAILS'!F2 -> Team Points - 2013
A2: ='SCORE ENTRY WORKSHEET'!$C$22 -> Team 16 | B2: ='SCORE ENTRY WORKSHEET'!M22 -> 0
A3: Week: | B3: ='SCORE ENTRY WORKSHEET'!N12 -> Week 9
A6: 1
D8: Points | O8: Total
C9: Week: | E9: Week 1 | F9: Week 2 | G9: Week 3 | H9: Week 4 | I9: Week 5 | J9: Week 6 | K9: Week 7 | L9: Week 8 | M9: Week 9 | N9: Week 10
C10: Date: | E10: =IF($K$1="1st Half",SCHEDULE!D53,SCHEDULE!D73) -> 2013-07-03 | F10: =IF($K$1="1st Half",SCHEDULE!E53,SCHEDULE!E73) -> 2013-07-10 | G10: =IF($K$1="1st Half",SCHEDULE!F53,SCHEDULE!F73) -> 2013-07-17 | H10: =IF($K$1="1st Half",SCHEDULE!G53,SCHEDULE!G73) -> 2013-07-24 | I10: =IF($K$1="1st Half",SCHEDULE!H53,SCHEDULE!H73) -> 2013-07-31 | J10: =IF($K$1="1st Half",SCHEDULE!I53,SCHEDULE!I73) -> 2013-08-07 | K10: =IF($K$1="1st Half",SCHEDULE!J53,SCHEDULE!J73) -> 2013-08-14 | L10: =IF($K$1="1st Half",IF(SCHEDULE!K53<>"",SCHEDULE!K53,""),IF(SCHEDULE!K73<>"",SCHEDULE!K73,"")) -> 2013-08-21 | M10: =IF($K$1="1st Half",IF(SCHEDULE!L53<>"",SCHEDULE!L53,""),IF(SCHEDULE!L73<>"",SCHEDULE!L73,"")) -> 2013-08-28 | N10: =IF($K$1="1st Half",IF(SCHEDULE!M53<>"",SCHEDULE!M53,""),IF(SCHEDULE!M73<>"",SCHEDULE!M73,"")) -> 
C11: Team 01 | D11: " | O11: =SUM(E11:N11) -> 0
C12: Team 02 | D12: " | O12: 0
C13: Team 03 | D13: " | O13: 0
C14: Team 04 | D14: " | O14: 0
C15: Team 05 | D15: " | O15: 0
C16: Team 06 | D16: " | O16: 0
C17: Team 07 | D17: " | O17: 0
C18: Team 08 | D18: " | O18: 0
C19: Team 09 | D19: " | O19: 0
C20: Team 10 | D20: " | O20: 0
C21: Team 11 | D21: " | O21: 0
C22: Team 12 | D22: " | O22: 0
C23: Team 13 | D23: " | O23: 0
C24: Team 14 | D24: " | O24: 0
C25: Team 15 | D25: " | O25: 0
C26: Team 16 | D26: " | O26: 0
C27: Team 17 | D27: " | O27: 0
C28: Team 18 | D28: " | O28: 0
C29: Team 19 | D29: " | O29: 0
C30: Team 20 | D30: " | O30: 0
C31: Team 21 | D31: " | O31: =SUM(E31:N31) -> 0
C32: Team 22 | D32: " | O32: 0

Sheet POINTS - 1st Half 2011
A1: ='SCORE ENTRY WORKSHEET'!$C$21 -> Team 04 | B1: ='SCORE ENTRY WORKSHEET'!M21 -> 0
A2: ='SCORE ENTRY WORKSHEET'!$C$22 -> Team 16 | B2: ='SCORE ENTRY WORKSHEET'!M22 -> 0
A3: Week: | B3: ='SCORE ENTRY WORKSHEET'!N12 -> Week 9
A6: 1
D8: Points | O8: Total
C9: Week: | E9: Week 1 | F9: Week 2 | G9: Week 3 | H9: Week 4 | I9: Week 5 | J9: Week 6 | K9: Week 7 | L9: Week 8 | M9: Week 9
C10: Date: | E10: =SCHEDULE!D53 -> 2013-04-24 | F10: =SCHEDULE!E53 -> 2013-05-01 | G10: =SCHEDULE!F53 -> 2013-05-08 | H10: =SCHEDULE!G53 -> 2013-05-15 | I10: =SCHEDULE!H53 -> 2013-05-22 | J10: =SCHEDULE!I53 -> 2013-05-29 | K10: =SCHEDULE!J53 -> 2013-06-05 | L10: =SCHEDULE!K53 -> 2013-06-12 | M10: =SCHEDULE!L53 -> 2013-06-19
C11: Team 01 | D11: " | E11: 5 | G11: 3.5 | I11: 6.5 | K11: 5.5 | L11: 4 | O11: =SUM(E11:N11) -> 24.5
C12: Team 02 | D12: " | E12: 3.5 | G12: 5.5 | I12: 4.5 | K12: 3.5 | L12: 4.5 | O12: 21.5
C13: Team 03 | D13: " | E13: 6 | G13: 5.5 | I13: 4.5 | K13: 3.5 | L13: 4 | O13: 23.5
C14: Team 04 | D14: " | E14: 5 | G14: 3.5 | I14: 1.5 | K14: 5 | L14: 2.5 | O14: 17.5
C15: Team 05 | D15: " | E15: 4 | G15: 8 | I15: 3 | K15: 4.5 | L15: 5 | O15: 24.5
C16: Team 06 | D16: " | E16: 3 | G16: 6 | I16: 2.5 | K16: 6.5 | L16: 3.5 | O16: 21.5
C17: Team 07 | D17: " | E17: 4.5 | G17: 3.5 | I17: 4.5 | K17: 5 | L17: 5.5 | O17: 23
C18: Team 08 | D18: " | E18: 5 | G18: 5.5 | I18: 7.5 | K18: 5.5 | L18: 3 | O18: 26.5
C19: Team 09 | D19: " | E19: 4.5 | G19: 5.5 | I19: 6 | K19: 3 | L19: 6 | O19: 25
C20: Team 10 | D20: " | E20: 4 | G20: 4 | I20: 4.5 | K20: 4 | L20: 5 | O20: 21.5
C21: Team 11 | D21: " | E21: 4 | G21: 3 | I21: 5.5 | K21: 3 | L21: 4 | O21: 19.5
C22: Team 12 | D22: " | E22: 5 | G22: 4 | I22: 4.5 | K22: 2 | L22: 5 | O22: 20.5
C23: Team 13 | D23: " | E23: 5 | G23: 3.5 | I23: 3.5 | K23: 0 | L23: 4 | O23: 16
C24: Team 14 | D24: " | E24: 4 | G24: 5.5 | I24: 0 | K24: 5.5 | L24: 4 | O24: 19
C25: Team 15 | D25: " | E25: 4 | G25: 5 | I25: 4.5 | K25: 3.5 | L25: 5 | O25: 22
C26: Team 16 | D26: " | E26: 5.5 | G26: 6 | I26: 6 | K26: 2.5 | L26: 4 | O26: 24
C27: Team 17 | D27: " | E27: 4.5 | G27: 3 | I27: 3 | K27: 6 | L27: 6.5 | O27: 23
C28: Team 18 | D28: " | E28: 5 | G28: 0 | I28: 6 | K28: 7 | L28: 5 | O28: 23
C29: Team 19 | D29: " | E29: 4.5 | G29: 3.5 | I29: 3 | K29: 6 | L29: 5 | O29: 22
C30: Team 20 | D30: " | E30: 4 | G30: 5 | I30: 5.5 | K30: 4.5 | L30: 4.5 | O30: 23.5
C31: Team 21 | D31: " | O31: 0
C32: Team 22 | D32: " | O32: 0

Sheet POINTS - 2nd Half 2011
A1: ='SCORE ENTRY WORKSHEET'!$C$21 -> Team 04 | B1: ='SCORE ENTRY WORKSHEET'!M21 -> 0 | J1: ="Team Points - " & SCHEDULE!J31 -> Team Points - 2nd Half
A2: ='SCORE ENTRY WORKSHEET'!$C$22 -> Team 16 | B2: ='SCORE ENTRY WORKSHEET'!M22 -> 0
A3: Week: | B3: ='SCORE ENTRY WORKSHEET'!N12 -> Week 9
A6: 1
D8: Points | O8: Total
C9: Week: | E9: =SCHEDULE!D11 -> Week 1 | F9: Week 2 | G9: Week 3 | H9: Week 4 | I9: Week 5 | J9: Week 6 | K9: Week 7 | L9: Week 8 | M9: Week 9 | N9: Week 10
C10: Date: | E10: =SCHEDULE!D73 -> 2013-07-03 | F10: =SCHEDULE!E73 -> 2013-07-10 | G10: =SCHEDULE!F73 -> 2013-07-17 | H10: =SCHEDULE!G73 -> 2013-07-24 | I10: =SCHEDULE!H73 -> 2013-07-31 | J10: =SCHEDULE!I73 -> 2013-08-07 | K10: =SCHEDULE!J73 -> 2013-08-14 | L10: =SCHEDULE!K73 -> 2013-08-21 | M10: =SCHEDULE!L73 -> 2013-08-28
C11: Team 01 | D11: " | E11: 5 | F11: 8.5 | G11: 4.5 | H11: 6 | I11: 2.5 | J11: 4 | K11: 3.5 | L11: 4 | M11: 5 | O11: =SUM(E11:N11) -> 43
C12: Team 02 | D12: " | E12: 3.5 | F12: 2.5 | G12: 2 | H12: 4 | I12: 6.5 | J12: 6 | K12: 4 | L12: 6 | M12: 4 | O12: 38.5
C13: Team 03 | D13: " | E13: 6 | F13: 5.5 | G13: 7 | H13: 4.5 | I13: 4.5 | J13: 4 | K13: 2.5 | L13: 5 | M13: 5.5 | O13: 44.5
C14: Team 04 | D14: " | E14: 4.5 | F14: 4 | G14: 3 | H14: 4.5 | I14: 6.5 | J14: 4.5 | K14: 5 | L14: 5.5 | M14: 4 | O14: 41.5
C15: Team 05 | D15: " | E15: 3 | F15: 3 | G15: 4.5 | H15: 2.5 | I15: 4.5 | J15: 8.5 | K15: 7.5 | L15: 4.5 | M15: 0.5 | O15: 38.5
C16: Team 06 | D16: " | E16: 2 | F16: 3.5 | G16: 3.5 | H16: 5 | I16: 5 | J16: 1.5 | K16: 7.5 | L16: 4.5 | M16: 5 | O16: 37.5
C17: Team 07 | D17: " | E17: 0 | F17: 0 | G17: 6 | H17: 6.5 | I17: 5.5 | J17: 2 | K17: 4 | L17: 5.5 | M17: 5.5 | O17: 35
C18: Team 08 | D18: " | E18: 2.5 | F18: 5.5 | G18: 0 | H18: 3 | I18: 2.5 | J18: 6 | K18: 0 | L18: 4 | M18: 4.5 | O18: 28
C19: Team 09 | D19: " | E19: 6.5 | F19: 6 | G19: 5.5 | H19: 4.5 | I19: 4 | J19: 3.5 | K19: 5.5 | L19: 3 | M19: 7 | O19: 45.5
C20: Team 10 | D20: " | E20: 5.5 | F20: 4 | G20: 4 | H20: 6 | I20: 6.5 | J20: 5.5 | K20: 3 | L20: 5.5 | M20: 8.5 | O20: 48.5
C21: Team 11 | D21: " | E21: 7 | F21: 0 | G21: 3.5 | H21: 6.5 | I21: 3.5 | J21: 0 | K21: 5 | L21: 4 | M21: 3.5 | O21: 33
C22: Team 12 | D22: " | E22: 1.5 | F22: 5 | G22: 7 | H22: 2.5 | I22: 6 | J22: 7 | K22: 1.5 | L22: 7.5 | M22: 6.5 | O22: 44.5
C23: Team 13 | D23: " | E23: 4 | F23: 5 | G23: 4.5 | H23: 4.5 | I23: 2.5 | J23: 3 | K23: 4 | L23: 4.5 | M23: 2.5 | O23: 34.5
C24: Team 14 | D24: " | E24: 2.5 | F24: 4 | G24: 3.5 | H24: 5 | I24: 5.5 | J24: 3 | K24: 3.5 | L24: 5 | M24: 3.5 | O24: 35.5
C25: Team 15 | D25: " | E25: 6 | F25: 5.5 | G25: 6 | H25: 4 | I25: 6 | J25: 5 | K25: 6.5 | L25: 3.5 | M25: 2.5 | O25: 45
C26: Team 16 | D26: " | E26: 5.5 | F26: 3.5 | G26: 3 | H26: 7 | I26: 0 | J26: 4.5 | K26: 5.5 | L26: 3.5 | M26: 2 | O26: 34.5
C27: Team 17 | D27: " | E27: 0 | F27: 6.5 | G27: 4.5 | H27: 2 | I27: 3.5 | J27: 5 | K27: 6 | L27: 1.5 | M27: 4 | O27: 33
C28: Team 18 | D28: " | E28: 4.5 | F28: 0 | G28: 5.5 | H28: 0 | I28: 5 | J28: 4 | K28: 3.5 | L28: 5 | M28: 4.5 | O28: 32
C29: Team 19 | D29: " | E29: 7.5 | F29: 5 | G29: 5 | H29: 6 | I29: 3 | J29: 7.5 | K29: 5 | L29: 4.5 | M29: 5 | O29: 48.5
C30: Team 20 | D30: " | E30: 6.5 | F30: 7 | G30: 5.5 | H30: 3 | I30: 4 | J30: 5 | K30: 5.5 | L30: 3.5 | M30: 6.5 | O30: 46.5
C31: Team 21 | D31: " | O31: =SUM(E31:N31) -> 0
C32: Team 22 | D32: " | O32: 0

Sheet POINTS - 1st Half 2012
A1: ='SCORE ENTRY WORKSHEET'!$C$21 -> Team 04 | B1: ='SCORE ENTRY WORKSHEET'!M21 -> 0 | J1: ="Team Points - " & K1 & " " & 'COURSE & LEAGUE DETAILS'!F2 -> Team Points - 1st Half 2013 | K1: 1st Half
A2: ='SCORE ENTRY WORKSHEET'!$C$22 -> Team 16 | B2: ='SCORE ENTRY WORKSHEET'!M22 -> 0
A3: Week: | B3: ='SCORE ENTRY WORKSHEET'!N12 -> Week 9
A6: 1
D8: Points | O8: Total
C9: Week: | E9: Week 1 | F9: Week 2 | G9: Week 3 | H9: Week 4 | I9: Week 5 | J9: Week 6 | K9: Week 7 | L9: Week 8 | M9: Week 9 | N9: Week 10
C10: Date: | E10: =IF($K$1="1st Half",SCHEDULE!D53,SCHEDULE!D73) -> 2013-04-24 | F10: =IF($K$1="1st Half",SCHEDULE!E53,SCHEDULE!E73) -> 2013-05-01 | G10: =IF($K$1="1st Half",SCHEDULE!F53,SCHEDULE!F73) -> 2013-05-08 | H10: =IF($K$1="1st Half",SCHEDULE!G53,SCHEDULE!G73) -> 2013-05-15 | I10: =IF($K$1="1st Half",SCHEDULE!H53,SCHEDULE!H73) -> 2013-05-22 | J10: =IF($K$1="1st Half",SCHEDULE!I53,SCHEDULE!I73) -> 2013-05-29 | K10: =IF($K$1="1st Half",SCHEDULE!J53,SCHEDULE!J73) -> 2013-06-05 | L10: =IF($K$1="1st Half",IF(SCHEDULE!K53<>"",SCHEDULE!K53,""),IF(SCHEDULE!K73<>"",SCHEDULE!K73,"")) -> 2013-06-12 | M10: =IF($K$1="1st Half",IF(SCHEDULE!L53<>"",SCHEDULE!L53,""),IF(SCHEDULE!L73<>"",SCHEDULE!L73,"")) -> 2013-06-19 | N10: =IF($K$1="1st Half",IF(SCHEDULE!M53<>"",SCHEDULE!M53,""),IF(SCHEDULE!M73<>"",SCHEDULE!M73,"")) -> 2013-06-26
C11: Team 01 | D11: " | E11: 2.5 | F11: 3.5 | G11: 7.5 | H11: 5 | I11: 2.5 | J11: 2.5 | L11: 7.5 | M11: 5.5 | N11: 4.5 | O11: =SUM(E11:N11) -> 41
C12: Team 02 | D12: " | E12: 1.5 | F12: 5.5 | G12: 7.5 | H12: 6 | I12: 3.5 | J12: 3.5 | L12: 4 | M12: 5 | N12: 4 | O12: 40.5
C13: Team 03 | D13: " | E13: 6 | F13: 5 | G13: 1.5 | H13: 4 | I13: 4 | J13: 6.5 | L13: 3 | M13: 4 | N13: 7 | O13: 41
C14: Team 04 | D14: " | E14: 3.5 | F14: 2 | G14: 1.5 | H14: 4 | I14: 6 | J14: 2 | L14: 5.5 | M14: 2 | N14: 6.5 | O14: 33
C15: Team 05 | D15: " | E15: 4 | F15: 5.5 | G15: 3.5 | H15: 5 | I15: 6.5 | J15: 5 | L15: 2.5 | M15: 4.5 | N15: 5 | O15: 41.5
C16: Team 06 | D16: " | E16: 0 | F16: 2 | G16: 4.5 | H16: 3 | I16: 0 | J16: 6.5 | L16: 5.5 | M16: 7 | N16: 3.5 | O16: 32
C17: Team 07 | D17: " | E17: 6 | F17: 4.5 | G17: 6 | H17: 3.5 | I17: 5 | J17: 4 | L17: 5 | M17: 4.5 | N17: 4.5 | O17: 43
C18: Team 08 | D18: " | E18: 6.5 | F18: 6.5 | G18: 5.5 | H18: 2.5 | I18: 5.5 | J18: 7 | L18: 1.5 | M18: 5.5 | N18: 5 | O18: 45.5
C19: Team 09 | D19: " | E19: 4 | F19: 2 | G19: 0 | H19: 3 | I19: 3.5 | J19: 2.5 | L19: 4 | M19: 3.5 | N19: 2 | O19: 24.5
C20: Team 10 | D20: " | E20: 4 | F20: 7.5 | G20: 6 | H20: 4 | I20: 3.5 | J20: 5.5 | L20: 3.5 | M20: 3.5 | N20: 4.5 | O20: 42
C21: Team 11 | D21: " | E21: 6.5 | F21: 4 | G21: 5.5 | H21: 5.5 | I21: 5.5 | J21: 3 | L21: 3.5 | M21: 4.5 | N21: 5 | O21: 43
C22: Team 12 | D22: " | E22: 7.5 | F22: 7 | G22: 4.5 | H22: 6.5 | I22: 5.5 | J22: 4 | L22: 6 | M22: 6 | N22: 4 | O22: 51
C23: Team 13 | D23: " | E23: 3 | F23: 3.5 | G23: 3 | H23: 6 | I23: 5 | J23: 3 | L23: 0 | M23: 3 | N23: 5 | O23: 31.5
C24: Team 14 | D24: " | E24: 5.5 | F24: 7 | G24: 3.5 | H24: 5 | I24: 6.5 | J24: 0 | L24: 7.5 | M24: 0 | N24: 2 | O24: 37
C25: Team 15 | D25: " | E25: 5 | F25: 4.5 | G25: 7.5 | H25: 6.5 | I25: 3.5 | J25: 6 | L25: 3 | M25: 0 | N25: 0 | O25: 36
C26: Team 16 | D26: " | E26: 0 | F26: 0 | G26: 0 | H26: 6.5 | I26: 4.5 | J26: 3 | L26: 5.5 | M26: 5 | N26: 4 | O26: 28.5
C27: Team 17 | D27: " | E27: 3 | F27: 7 | G27: 5.5 | H27: 5 | I27: 4.5 | J27: 8 | L27: 5 | M27: 7 | N27: 5.5 | O27: 50.5
C28: Team 18 | D28: " | E28: 2.5 | F28: 1.5 | G28: 2.5 | H28: 4 | I28: 5.5 | J28: 6 | L28: 6 | M28: 4.5 | N28: 4.5 | O28: 37
C29: Team 19 | D29: " | E29: 5 | F29: 4.5 | G29: 6.5 | H29: 2.5 | I29: 2.5 | J29: 5 | L29: 3.5 | M29: 2 | N29: 4 | O29: 35.5
C30: Team 20 | D30: " | E30: 5 | F30: 4.5 | G30: 3.5 | H30: 2.5 | I30: 4 | J30: 6 | L30: 6.5 | M30: 4.5 | N30: 7 | O30: 43.5
C31: Team 21 | D31: " | O31: =SUM(E31:N31) -> 0
C32: Team 22 | D32: " | O32: 0

Sheet POINTS - 2nd Half 2012
A1: ='SCORE ENTRY WORKSHEET'!$C$21 -> Team 04 | B1: ='SCORE ENTRY WORKSHEET'!M21 -> 0 | J1: ="Team Points - " & K1 & " " & 'COURSE & LEAGUE DETAILS'!F2 -> Team Points - 2nd Half 2013 | K1: 2nd Half
A2: ='SCORE ENTRY WORKSHEET'!$C$22 -> Team 16 | B2: ='SCORE ENTRY WORKSHEET'!M22 -> 0
A3: Week: | B3: ='SCORE ENTRY WORKSHEET'!N12 -> Week 9
A6: 1
D8: Points | O8: Total
C9: Week: | E9: Week 1 | F9: Week 2 | G9: Week 3 | H9: Week 4 | I9: Week 5 | J9: Week 6 | K9: Week 7 | L9: Week 8 | M9: Week 9 | N9: Week 10
C10: Date: | E10: =IF($K$1="1st Half",SCHEDULE!D53,SCHEDULE!D73) -> 2013-07-03 | F10: =IF($K$1="1st Half",SCHEDULE!E53,SCHEDULE!E73) -> 2013-07-10 | G10: =IF($K$1="1st Half",SCHEDULE!F53,SCHEDULE!F73) -> 2013-07-17 | H10: =IF($K$1="1st Half",SCHEDULE!G53,SCHEDULE!G73) -> 2013-07-24 | I10: =IF($K$1="1st Half",SCHEDULE!H53,SCHEDULE!H73) -> 2013-07-31 | J10: =IF($K$1="1st Half",SCHEDULE!I53,SCHEDULE!I73) -> 2013-08-07 | K10: =IF($K$1="1st Half",SCHEDULE!J53,SCHEDULE!J73) -> 2013-08-14 | L10: =IF($K$1="1st Half",IF(SCHEDULE!K53<>"",SCHEDULE!K53,""),IF(SCHEDULE!K73<>"",SCHEDULE!K73,"")) -> 2013-08-21 | M10: =IF($K$1="1st Half",IF(SCHEDULE!L53<>"",SCHEDULE!L53,""),IF(SCHEDULE!L73<>"",SCHEDULE!L73,"")) -> 2013-08-28 | N10: =IF($K$1="1st Half",IF(SCHEDULE!M53<>"",SCHEDULE!M53,""),IF(SCHEDULE!M73<>"",SCHEDULE!M73,"")) -> 
C11: Team 01 | D11: " | E11: 7 | F11: 4 | G11: 6.5 | H11: 3 | I11: 4.5 | J11: 6 | K11: 5.5 | L11: 4 | M11: 3.5 | O11: =SUM(E11:N11) -> 44
C12: Team 02 | D12: " | E12: 5 | F12: 3.5 | G12: 2.5 | H12: 4.5 | I12: 4.5 | J12: 2.5 | K12: 3.5 | L12: 3 | M12: 5 | O12: 34
C13: Team 03 | D13: " | E13: 2 | F13: 5.5 | G13: 6.5 | H13: 4 | I13: 4.5 | J13: 4 | K13: 5.5 | L13: 4.5 | M13: 6.5 | O13: 43
C14: Team 04 | D14: " | E14: 2 | F14: 4.5 | G14: 2.5 | H14: 4 | I14: 6 | J14: 2.5 | K14: 1 | L14: 4.5 | M14: 3.5 | O14: 30.5
C15: Team 05 | D15: " | E15: 6.5 | F15: 4 | G15: 6.5 | H15: 5 | I15: 3.5 | J15: 6.5 | K15: 5 | L15: 6.5 | M15: 5.5 | O15: 49
C16: Team 06 | D16: " | E16: 4.5 | F16: 4.5 | G16: 3.5 | H16: 5 | I16: 5.5 | J16: 6.5 | K16: 5 | L16: 3.5 | M16: 5 | O16: 43
C17: Team 07 | D17: " | E17: 4 | F17: 7.5 | G17: 5.5 | H17: 4.5 | I17: 0 | J17: 0 | K17: 0 | L17: 0 | M17: 0 | O17: 21.5
C18: Team 08 | D18: " | E18: 0 | F18: 3 | G18: 5 | H18: 6 | I18: 4.5 | J18: 2.5 | K18: 6.5 | L18: 6.5 | M18: 5.5 | O18: 39.5
C19: Team 09 | D19: " | E19: 6 | F19: 3 | G19: 6.5 | H19: 4.5 | I19: 0 | J19: 6.5 | K19: 4 | L19: 2.5 | M19: 2 | O19: 35
C20: Team 10 | D20: " | E20: 5.5 | F20: 4 | G20: 4.5 | H20: 3.5 | I20: 2.5 | J20: 5 | K20: 4 | L20: 7 | M20: 7 | O20: 43
C21: Team 11 | D21: " | E21: 4 | F21: 0 | G21: 5.5 | H21: 3 | I21: 6.5 | J21: 4.5 | K21: 5 | L21: 5.5 | M21: 4 | O21: 38
C22: Team 12 | D22: " | E22: 7 | F22: 5 | G22: 3.5 | H22: 4.5 | I22: 6.5 | J22: 6.5 | K22: 3.5 | L22: 5.5 | M22: 5.5 | O22: 47.5
C23: Team 13 | D23: " | E23: 7 | F23: 4.5 | G23: 4 | H23: 5.5 | I23: 5 | J23: 5 | K23: 5.5 | L23: 5 | M23: 5 | O23: 46.5
C24: Team 14 | D24: " | E24: 0 | F24: 1.5 | G24: 2.5 | H24: 6 | I24: 5 | J24: 3.5 | K24: 3.5 | L24: 3.5 | M24: 4 | O24: 29.5
C25: Team 15 | D25: " | E25: 4.5 | F25: 6 | G25: 4.5 | H25: 4 | I25: 4 | J25: 0 | K25: 3.5 | L25: 3.5 | M25: 2.5 | O25: 32.5
C26: Team 16 | D26: " | E26: 5 | F26: 6 | G26: 4 | H26: 1 | I26: 4.5 | J26: 5.5 | K26: 5.5 | L26: 6 | M26: 5.5 | O26: 43
C27: Team 17 | D27: " | E27: 5.5 | F27: 5 | G27: 4 | H27: 6 | I27: 5 | J27: 4 | K27: 4 | L27: 4.5 | M27: 3.5 | O27: 41.5
C28: Team 18 | D28: " | E28: 3 | F28: 3.5 | G28: 2.5 | H28: 8 | I28: 4 | J28: 2.5 | K28: 5.5 | L28: 4.5 | M28: 4 | O28: 37.5
C29: Team 19 | D29: " | E29: 3.5 | F29: 5 | G29: 5 | H29: 5 | I29: 4 | J29: 4.5 | K29: 3.5 | L29: 2.5 | M29: 5.5 | O29: 38.5
C30: Team 20 | D30: " | E30: 2 | F30: 5.5 | G30: 5 | H30: 3 | I30: 2.5 | J30: 6.5 | K30: 8 | L30: 5.5 | M30: 3.5 | O30: 41.5
C31: Team 21 | D31: " | O31: =SUM(E31:N31) -> 0
C32: Team 22 | D32: " | O32: 0

Sheet POINTS - 1st Half 2013
A1: ='SCORE ENTRY WORKSHEET'!$C$21 -> Team 04 | B1: ='SCORE ENTRY WORKSHEET'!M21 -> 0 | J1: ="Team Points - " & K1 & " " & 'COURSE & LEAGUE DETAILS'!F2 -> Team Points - 1st Half 2013 | K1: 1st Half
A2: ='SCORE ENTRY WORKSHEET'!$C$22 -> Team 16 | B2: ='SCORE ENTRY WORKSHEET'!M22 -> 0
A3: Week: | B3: ='SCORE ENTRY WORKSHEET'!N12 -> Week 9
A6: 1
D8: Points | O8: Total
C9: Week: | E9: Week 1 | F9: Week 2 | G9: Week 3 | H9: Week 4 | I9: Week 5 | J9: Week 6 | K9: Week 7 | L9: Week 8 | M9: Week 9 | N9: Week 10
C10: Date: | E10: =IF($K$1="1st Half",SCHEDULE!D53,SCHEDULE!D73) -> 2013-04-24 | F10: =IF($K$1="1st Half",SCHEDULE!E53,SCHEDULE!E73) -> 2013-05-01 | G10: =IF($K$1="1st Half",SCHEDULE!F53,SCHEDULE!F73) -> 2013-05-08 | H10: =IF($K$1="1st Half",SCHEDULE!G53,SCHEDULE!G73) -> 2013-05-15 | I10: =IF($K$1="1st Half",SCHEDULE!H53,SCHEDULE!H73) -> 2013-05-22 | J10: =IF($K$1="1st Half",SCHEDULE!I53,SCHEDULE!I73) -> 2013-05-29 | K10: =IF($K$1="1st Half",SCHEDULE!J53,SCHEDULE!J73) -> 2013-06-05 | L10: =IF($K$1="1st Half",IF(SCHEDULE!K53<>"",SCHEDULE!K53,""),IF(SCHEDULE!K73<>"",SCHEDULE!K73,"")) -> 2013-06-12 | M10: =IF($K$1="1st Half",IF(SCHEDULE!L53<>"",SCHEDULE!L53,""),IF(SCHEDULE!L73<>"",SCHEDULE!L73,"")) -> 2013-06-19 | N10: =IF($K$1="1st Half",IF(SCHEDULE!M53<>"",SCHEDULE!M53,""),IF(SCHEDULE!M73<>"",SCHEDULE!M73,"")) -> 2013-06-26
C11: Team 01 | D11: " | F11: 7 | H11: 2.5 | I11: 5 | J11: 4.5 | K11: 4 | L11: 4 | M11: 5 | N11: 6 | O11: =SUM(E11:N11) -> 38
C12: Team 02 | D12: " | F12: 2 | H12: 5 | I12: 3 | J12: 4.5 | K12: 3.5 | L12: 6 | M12: 6 | N12: 4.5 | O12: 34.5
C13: Team 03 | D13: " | F13: 6 | H13: 4.5 | I13: 5.5 | J13: 4.5 | K13: 1 | L13: 7 | M13: 3 | N13: 6 | O13: 37.5
C14: Team 04 | D14: " | F14: 5.5 | H14: 6.5 | I14: 3 | J14: 6 | K14: 3 | L14: 4 | M14: 4 | N14: 5 | O14: 37
C15: Team 05 | D15: " | F15: 5.5 | H15: 4.5 | I15: 4 | J15: 7 | K15: 4 | L15: 3 | M15: 5.5 | N15: 6 | O15: 39.5
C16: Team 06 | D16: " | F16: 0 | H16: 4 | I16: 6 | J16: 4.5 | K16: 4 | L16: 7.5 | M16: 4.5 | N16: 3.5 | O16: 34
C17: Team 07 | D17: " | F17: 0 | H17: 0 | I17: 0 | J17: 0 | K17: 0 | L17: 0 | M17: 0 | N17: 0 | O17: 0
C18: Team 08 | D18: " | F18: 3.5 | H18: 6.5 | I18: 6 | J18: 0 | K18: 5 | L18: 5 | M18: 6 | N18: 4 | O18: 36
C19: Team 09 | D19: " | F19: 6.5 | H19: 2.5 | I19: 4 | J19: 4.5 | K19: 5 | L19: 5.5 | M19: 4 | N19: 3 | O19: 35
C20: Team 10 | D20: " | F20: 4 | H20: 6 | I20: 3.5 | J20: 4.5 | K20: 6 | L20: 1.5 | M20: 3 | N20: 3 | O20: 31.5
C21: Team 11 | D21: " | F21: 3 | H21: 4.5 | I21: 5 | J21: 4.5 | K21: 5 | L21: 5.5 | M21: 5 | N21: 3.5 | O21: 36
C22: Team 12 | D22: " | F22: 3.5 | H22: 2.5 | I22: 5.5 | J22: 4 | K22: 3 | L22: 5 | M22: 5 | N22: 5.5 | O22: 34
C23: Team 13 | D23: " | F23: 3.5 | H23: 6.5 | I23: 4 | J23: 2.5 | K23: 5.5 | L23: 4.5 | M23: 4 | N23: 4.5 | O23: 35
C24: Team 14 | D24: " | F24: 4.5 | H24: 3 | I24: 4 | J24: 4.5 | K24: 5 | L24: 4.5 | M24: 4 | N24: 3 | O24: 32.5
C25: Team 15 | D25: " | F25: 6.5 | H25: 0 | I25: 6.5 | J25: 5 | K25: 4 | L25: 4 | M25: 3 | N25: 4 | O25: 33
C26: Team 16 | D26: " | F26: 5.5 | H26: 5 | I26: 4 | J26: 4 | K26: 3.5 | L26: 3.5 | M26: 6 | N26: 3 | O26: 34.5
C27: Team 17 | D27: " | F27: 2.5 | H27: 5.5 | I27: 5 | J27: 4.5 | K27: 6 | L27: 3 | M27: 5 | N27: 5.5 | O27: 37
C28: Team 18 | D28: " | F28: 5 | H28: 3.5 | I28: 2.5 | J28: 6.5 | K28: 0 | L28: 2 | M28: 0 | N28: 5 | O28: 24.5
C29: Team 19 | D29: " | F29: 5 | H29: 4 | I29: 5 | J29: 5 | K29: 5.5 | L29: 5 | M29: 4.5 | N29: 5 | O29: 39
C30: Team 20 | D30: " | F30: 4 | H30: 6 | I30: 5 | J30: 4.5 | K30: 8 | L30: 6 | M30: 7.5 | N30: 6 | O30: 47
C31: Team 21 | D31: " | O31: =SUM(E31:N31) -> 0
C32: Team 22 | D32: " | O32: 0

Sheet POINTS - 2nd Half 2013
A1: ='SCORE ENTRY WORKSHEET'!$C$21 -> Team 04 | B1: ='SCORE ENTRY WORKSHEET'!M21 -> 0 | J1: ="Team Points - " & K1 & " " & 'COURSE & LEAGUE DETAILS'!F2 -> Team Points - 2nd Half 2013 | K1: 2nd Half
A2: ='SCORE ENTRY WORKSHEET'!$C$22 -> Team 16 | B2: ='SCORE ENTRY WORKSHEET'!M22 -> 0
A3: Week: | B3: ='SCORE ENTRY WORKSHEET'!N12 -> Week 9
A6: 1
D8: Points | O8: Total
C9: Week: | E9: Week 1 | F9: Week 2 | G9: Week 3 | H9: Week 4 | I9: Week 5 | J9: Week 6 | K9: Week 7 | L9: Week 8 | M9: Week 9 | N9: Week 10
C10: Date: | E10: =IF($K$1="1st Half",SCHEDULE!D53,SCHEDULE!D73) -> 2013-07-03 | F10: =IF($K$1="1st Half",SCHEDULE!E53,SCHEDULE!E73) -> 2013-07-10 | G10: =IF($K$1="1st Half",SCHEDULE!F53,SCHEDULE!F73) -> 2013-07-17 | H10: =IF($K$1="1st Half",SCHEDULE!G53,SCHEDULE!G73) -> 2013-07-24 | I10: =IF($K$1="1st Half",SCHEDULE!H53,SCHEDULE!H73) -> 2013-07-31 | J10: =IF($K$1="1st Half",SCHEDULE!I53,SCHEDULE!I73) -> 2013-08-07 | K10: =IF($K$1="1st Half",SCHEDULE!J53,SCHEDULE!J73) -> 2013-08-14 | L10: =IF($K$1="1st Half",IF(SCHEDULE!K53<>"",SCHEDULE!K53,""),IF(SCHEDULE!K73<>"",SCHEDULE!K73,"")) -> 2013-08-21 | M10: =IF($K$1="1st Half",IF(SCHEDULE!L53<>"",SCHEDULE!L53,""),IF(SCHEDULE!L73<>"",SCHEDULE!L73,"")) -> 2013-08-28 | N10: =IF($K$1="1st Half",IF(SCHEDULE!M53<>"",SCHEDULE!M53,""),IF(SCHEDULE!M73<>"",SCHEDULE!M73,"")) -> 
C11: Team 01 | D11: " | E11: 3.5 | G11: 6.5 | H11: 5.5 | I11: 5.5 | J11: 2 | K11: 7 | L11: 6 | M11: 3 | O11: =SUM(E11:N11) -> 39
C12: Team 02 | D12: " | E12: 6.5 | G12: 5 | H12: 7 | I12: 6 | J12: 1.5 | K12: 4 | L12: 5 | M12: 4 | O12: 39
C13: Team 03 | D13: " | E13: 5.5 | G13: 5.5 | H13: 6 | I13: 4.5 | J13: 3.5 | K13: 3.5 | L13: 3 | M13: 3.5 | O13: 35
C14: Team 04 | D14: " | E14: 5 | G14: 3.5 | H14: 4 | I14: 4 | J14: 4 | K14: 5 | L14: 4.5 | M14: 5 | O14: 35
C15: Team 05 | D15: " | E15: 5.5 | G15: 4 | H15: 5 | I15: 6 | J15: 8 | K15: 3.5 | L15: 4 | M15: 6.5 | O15: 42.5
C16: Team 06 | D16: " | E16: 3.5 | G16: 6 | H16: 3 | I16: 3 | J16: 5 | K16: 5 | L16: 5 | M16: 0 | O16: 30.5
C17: Team 07 | D17: " | E17: 0 | G17: 0 | H17: 0 | I17: 0 | J17: 0 | K17: 0 | L17: 0 | M17: 0 | O17: 0
C18: Team 08 | D18: " | E18: 5.5 | G18: 4 | H18: 2.5 | I18: 4.5 | J18: 0 | K18: 5 | L18: 8 | M18: 5 | O18: 34.5
C19: Team 09 | D19: " | E19: 4.5 | G19: 7 | H19: 6 | I19: 3 | J19: 5 | K19: 4 | L19: 1 | M19: 2 | O19: 32.5
C20: Team 10 | D20: " | E20: 4.5 | G20: 3.5 | H20: 6 | I20: 4.5 | J20: 5.5 | K20: 5.5 | L20: 7 | M20: 7 | O20: 43.5
C21: Team 11 | D21: " | E21: 2.5 | G21: 3 | H21: 6.5 | I21: 4.5 | J21: 4 | K21: 4.5 | L21: 5 | M21: 6.5 | O21: 36.5
C22: Team 12 | D22: " | E22: 3.5 | G22: 7.5 | H22: 3 | I22: 3.5 | J22: 5.5 | K22: 5 | L22: 7 | M22: 6 | O22: 41
C23: Team 13 | D23: " | E23: 0 | G23: 5 | H23: 3 | I23: 1.5 | J23: 2 | K23: 2.5 | L23: 3 | M23: 2.5 | O23: 19.5
C24: Team 14 | D24: " | E24: 3.5 | G24: 2 | H24: 3 | I24: 4.5 | J24: 5.5 | K24: 2 | L24: 2 | M24: 5 | O24: 27.5
C25: Team 15 | D25: " | E25: 5.5 | G25: 5.5 | H25: 4 | I25: 4 | J25: 7 | K25: 6.5 | L25: 4 | M25: 5.5 | O25: 42
C26: Team 16 | D26: " | E26: 6 | G26: 7.5 | H26: 9 | I26: 3.5 | J26: 3.5 | K26: 4 | L26: 4 | M26: 4 | O26: 41.5
C27: Team 17 | D27: " | E27: 3.5 | G27: 5 | H27: 3.5 | I27: 5 | J27: 7 | K27: 4.5 | L27: 6 | M27: 2.5 | O27: 37
C28: Team 18 | D28: " | E28: 4.5 | G28: 2.5 | H28: 0 | I28: 4.5 | J28: 3.5 | K28: 5 | L28: 4.5 | M28: 4.5 | O28: 29
C29: Team 19 | D29: " | E29: 4.5 | G29: 4 | H29: 5 | I29: 7.5 | J29: 5 | K29: 5.5 | L29: 5 | M29: 4 | O29: 40.5
C30: Team 20 | D30: " | E30: 5.5 | G30: 1.5 | H30: 6 | I30: 5.5 | J30: 7.5 | K30: 4 | L30: 4 | M30: 4 | O30: 38
C31: Team 21 | D31: " | O31: =SUM(E31:N31) -> 0
C32: Team 22 | D32: " | O32: 0

Sheet STANDINGS
L1: =IF(N2="","Team Standings",IF(N4="1st Half",IF(N2=N3,"Final Standings - First Half","Team Standings After "&N2),IF(N4="2nd Half",IF(N2=N3,"Final Standings - Second Half","Team Standings After "&N2)))) -> Team Standings
J8: "Standings Through "&'SCORE ENTRY WORKSHEET'!D24
D10: Rank | E10: =L1 -> Team Standings | I10: Points
C11: =RANK(I11,$I$11:$I$32) ->  | D11: =IF(C11=C10,C11&"T",IF(C11=C12,C11&"T",C11)) ->  | E11: ="01 "&VLOOKUP("Team 1",'LEAGUE MEMBERSHIP'!$I:$M,3,FALSE)&" / "&VLOOKUP("Team 1",'LEAGUE MEMBERSHIP'!$I:$M,5,FALSE) -> 01 Lester Lockhart / Pete Normandin
D12: =IF(C12=C11,C12&"T",IF(C12=C13,C12&"T",C12)) ->  | E12: ="02 "&VLOOKUP("Team 2",'LEAGUE MEMBERSHIP'!$I:$M,3,FALSE)&" / "&VLOOKUP("Team 2",'LEAGUE MEMBERSHIP'!$I:$M,5,FALSE) -> 02 Dave Cormier / Adam Williamson
E13: ="03 "&VLOOKUP("Team 3",'LEAGUE MEMBERSHIP'!$I:$M,3,FALSE)&" / "&VLOOKUP("Team 3",'LEAGUE MEMBERSHIP'!$I:$M,5,FALSE) -> 03 Pete Romano / Don Frigoletto
E14: ="04 "&VLOOKUP("Team 4",'LEAGUE MEMBERSHIP'!$I:$M,3,FALSE)&" / "&VLOOKUP("Team 4",'LEAGUE MEMBERSHIP'!$I:$M,5,FALSE) -> 04 Peg Romano / Lynn Laroche
E15: ="05 "&VLOOKUP("Team 5",'LEAGUE MEMBERSHIP'!$I:$M,3,FALSE)&" / "&VLOOKUP("Team 5",'LEAGUE MEMBERSHIP'!$I:$M,5,FALSE) -> 05 Dennis Normandin / Mark Normandin
E16: ="06 "&VLOOKUP("Team 6",'LEAGUE MEMBERSHIP'!$I:$M,3,FALSE)&" / "&VLOOKUP("Team 6",'LEAGUE MEMBERSHIP'!$I:$M,5,FALSE) -> 06 Vance Butterfield / Bob Schleyer
E17: ="07 "&VLOOKUP("Team 7",'LEAGUE MEMBERSHIP'!$I:$M,3,FALSE)&" / "&VLOOKUP("Team 7",'LEAGUE MEMBERSHIP'!$I:$M,5,FALSE) -> 07 Steve Scapparone / Dave Hyre
E18: ="08 "&VLOOKUP("Team 8",'LEAGUE MEMBERSHIP'!$I:$M,3,FALSE)&" / "&VLOOKUP("Team 8",'LEAGUE MEMBERSHIP'!$I:$M,5,FALSE) -> 08 Mike Sunderland / Debbie Sunderland
E19: ="09 "&VLOOKUP("Team 9",'LEAGUE MEMBERSHIP'!$I:$M,3,FALSE)&" / "&VLOOKUP("Team 9",'LEAGUE MEMBERSHIP'!$I:$M,5,FALSE) -> 09 Mike Doane / John Cassin
E20: ="10 "&VLOOKUP("Team 10",'LEAGUE MEMBERSHIP'!$I:$M,3,FALSE)&" / "&VLOOKUP("Team 10",'LEAGUE MEMBERSHIP'!$I:$M,5,FALSE) -> 10 Ron Eckstrom / Beth Romano
E21: ="11 "&VLOOKUP("Team 11",'LEAGUE MEMBERSHIP'!$I:$M,3,FALSE)&" / "&VLOOKUP("Team 11",'LEAGUE MEMBERSHIP'!$I:$M,5,FALSE) -> 11 Ray Henderson / Zachary Wallace
E22: ="12 "&VLOOKUP("Team 12",'LEAGUE MEMBERSHIP'!$I:$M,3,FALSE)&" / "&VLOOKUP("Team 12",'LEAGUE MEMBERSHIP'!$I:$M,5,FALSE) -> 12 Sal Cuifetti / Paul LeBlanc
E23: ="13 "&VLOOKUP("Team 13",'LEAGUE MEMBERSHIP'!$I:$M,3,FALSE)&" / "&VLOOKUP("Team 13",'LEAGUE MEMBERSHIP'!$I:$M,5,FALSE) -> 13 Kyle Currier / Walter Drake
E24: ="14 "&VLOOKUP("Team 14",'LEAGUE MEMBERSHIP'!$I:$M,3,FALSE)&" / "&VLOOKUP("Team 14",'LEAGUE MEMBERSHIP'!$I:$M,5,FALSE) -> 14 Doug Cormier / Ralph Romano, Jr.
E25: ="15 "&VLOOKUP("Team 15",'LEAGUE MEMBERSHIP'!$I:$M,3,FALSE)&" / "&VLOOKUP("Team 15",'LEAGUE MEMBERSHIP'!$I:$M,5,FALSE) -> 15 Tim Hurley / John Elie
E26: ="16 "&VLOOKUP("Team 16",'LEAGUE MEMBERSHIP'!$I:$M,3,FALSE)&" / "&VLOOKUP("Team 16",'LEAGUE MEMBERSHIP'!$I:$M,5,FALSE) -> 16 Deb DeCarolis / Joey DeCarolis
E27: ="17 "&VLOOKUP("Team 17",'LEAGUE MEMBERSHIP'!$I:$M,3,FALSE)&" / "&VLOOKUP("Team 17",'LEAGUE MEMBERSHIP'!$I:$M,5,FALSE) -> 17 Gary Bittner / Mike Dauphinais
D28: =IF(C28=C27,C28&"T",IF(C28=C29,C28&"T",C28)) ->  | E28: ="18 "&VLOOKUP("Team 18",'LEAGUE MEMBERSHIP'!$I:$M,3,FALSE)&" / "&VLOOKUP("Team 18",'LEAGUE MEMBERSHIP'!$I:$M,5,FALSE) -> 18 Norm Gamache / Michelle Bouvier
C29: =RANK(I29,$I$11:$I$32) ->  | D29: =IF(C29=C28,C29&"T",IF(C29=C30,C29&"T",C29)) ->  | E29: ="19 "&VLOOKUP("Team 19",'LEAGUE MEMBERSHIP'!$I:$M,3,FALSE)&" / "&VLOOKUP("Team 19",'LEAGUE MEMBERSHIP'!$I:$M,5,FALSE) -> 19 Gary Leavenworth / Patty Leavenworth
C30: =RANK(I30,$I$11:$I$32) ->  | D30: =IF(C30=C29,C30&"T",IF(C30=C31,C30&"T",C30)) ->  | E30: ="20 "&VLOOKUP("Team 20",'LEAGUE MEMBERSHIP'!$I:$M,3,FALSE)&" / "&VLOOKUP("Team 20",'LEAGUE MEMBERSHIP'!$I:$M,5,FALSE) -> 20 Paul Fontaine / Ralph Romano III
D31: =IF(C31=C28,C31&"T",IF(C31=C32,C31&"T",C31)) ->  | E31: ="21 "&VLOOKUP("Team 21",'LEAGUE MEMBERSHIP'!$I:$M,3,FALSE)&" / "&VLOOKUP("Team 21",'LEAGUE MEMBERSHIP'!$I:$M,5,FALSE) -> 21 / | I31: =VLOOKUP("Team "&LEFT(E31,2),#REF!,13,FALSE) -> 
D32: =IF(C32=C31,C32&"T",IF(C32=C33,C32&"T",C32)) ->  | E32: ="22 "&VLOOKUP("Team 22",'LEAGUE MEMBERSHIP'!$I:$M,3,FALSE)&" / "&VLOOKUP("Team 22",'LEAGUE MEMBERSHIP'!$I:$M,5,FALSE) -> 22 / | I32: =VLOOKUP("Team "&LEFT(E32,2),#REF!,13,FALSE) -> 
I33: -1

Sheet STANDINGS - 1st Half 2012
L1: =IF(N2="","Team Standings",IF(N4="1st Half",IF(N2=N3,"Final Standings - First Half","Team Standings After "&N2),IF(N4="2nd Half",IF(N2=N3,"Final Standings - Second Half","Team Standings After "&N2)))) -> Final Standings - First Half
N2: Week 10
N3: Week 10
N4: 1st Half
J8: "Standings Through "&'SCORE ENTRY WORKSHEET'!D24
D10: Rank | E10: =L1 -> Final Standings - First Half | I10: Points
C11: =RANK(I11,$I$11:$I$32) -> 1 | D11: =IF(C11=C10,C11&"T",IF(C11=C12,C11&"T",C11)) -> 1 | E11: ="12 "&VLOOKUP("Team 12",'LEAGUE MEMBERSHIP'!$I:$M,3,FALSE)&" / "&VLOOKUP("Team 12",'LEAGUE MEMBERSHIP'!$I:$M,5,FALSE) -> 12 Sal Cuifetti / Paul LeBlanc | I11: =VLOOKUP("Team "&LEFT(E11,2),'POINTS - 1st Half 2012'!$C$11:$O$32,13,FALSE) -> 51
C12: 2 | D12: =IF(C12=C11,C12&"T",IF(C12=C13,C12&"T",C12)) -> 2 | E12: ="17 "&VLOOKUP("Team 17",'LEAGUE MEMBERSHIP'!$I:$M,3,FALSE)&" / "&VLOOKUP("Team 17",'LEAGUE MEMBERSHIP'!$I:$M,5,FALSE) -> 17 Gary Bittner / Mike Dauphinais | I12: =VLOOKUP("Team "&LEFT(E12,2),'POINTS - 1st Half 2012'!$C$11:$O$32,13,FALSE) -> 50.5
C13: 3 | D13: 3 | E13: ="08 "&VLOOKUP("Team 8",'LEAGUE MEMBERSHIP'!$I:$M,3,FALSE)&" / "&VLOOKUP("Team 8",'LEAGUE MEMBERSHIP'!$I:$M,5,FALSE) -> 08 Mike Sunderland / Debbie Sunderland | I13: =VLOOKUP("Team "&LEFT(E13,2),'POINTS - 1st Half 2012'!$C$11:$O$32,13,FALSE) -> 45.5
C14: 4 | D14: 4 | E14: ="20 "&VLOOKUP("Team 20",'LEAGUE MEMBERSHIP'!$I:$M,3,FALSE)&" / "&VLOOKUP("Team 20",'LEAGUE MEMBERSHIP'!$I:$M,5,FALSE) -> 20 Paul Fontaine / Ralph Romano III | I14: =VLOOKUP("Team "&LEFT(E14,2),'POINTS - 1st Half 2012'!$C$11:$O$32,13,FALSE) -> 43.5
C15: 5 | D15: 5T | E15: ="07 "&VLOOKUP("Team 7",'LEAGUE MEMBERSHIP'!$I:$M,3,FALSE)&" / "&VLOOKUP("Team 7",'LEAGUE MEMBERSHIP'!$I:$M,5,FALSE) -> 07 Steve Scapparone / Dave Hyre | I15: =VLOOKUP("Team "&LEFT(E15,2),'POINTS - 1st Half 2012'!$C$11:$O$32,13,FALSE) -> 43
C16: 5 | D16: 5T | E16: ="11 "&VLOOKUP("Team 11",'LEAGUE MEMBERSHIP'!$I:$M,3,FALSE)&" / "&VLOOKUP("Team 11",'LEAGUE MEMBERSHIP'!$I:$M,5,FALSE) -> 11 Ray Henderson / Zachary Wallace | I16: =VLOOKUP("Team "&LEFT(E16,2),'POINTS - 1st Half 2012'!$C$11:$O$32,13,FALSE) -> 43
C17: 7 | D17: 7 | E17: ="10 "&VLOOKUP("Team 10",'LEAGUE MEMBERSHIP'!$I:$M,3,FALSE)&" / "&VLOOKUP("Team 10",'LEAGUE MEMBERSHIP'!$I:$M,5,FALSE) -> 10 Ron Eckstrom / Beth Romano | I17: =VLOOKUP("Team "&LEFT(E17,2),'POINTS - 1st Half 2012'!$C$11:$O$32,13,FALSE) -> 42
C18: 8 | D18: 8 | E18: ="05 "&VLOOKUP("Team 5",'LEAGUE MEMBERSHIP'!$I:$M,3,FALSE)&" / "&VLOOKUP("Team 5",'LEAGUE MEMBERSHIP'!$I:$M,5,FALSE) -> 05 Dennis Normandin / Mark Normandin | I18: =VLOOKUP("Team "&LEFT(E18,2),'POINTS - 1st Half 2012'!$C$11:$O$32,13,FALSE) -> 41.5
C19: 9 | D19: 9T | E19: ="01 "&VLOOKUP("Team 1",'LEAGUE MEMBERSHIP'!$I:$M,3,FALSE)&" / "&VLOOKUP("Team 1",'LEAGUE MEMBERSHIP'!$I:$M,5,FALSE) -> 01 Lester Lockhart / Pete Normandin | I19: =VLOOKUP("Team "&LEFT(E19,2),'POINTS - 1st Half 2012'!$C$11:$O$32,13,FALSE) -> 41
C20: 9 | D20: 9T | E20: ="03 "&VLOOKUP("Team 3",'LEAGUE MEMBERSHIP'!$I:$M,3,FALSE)&" / "&VLOOKUP("Team 3",'LEAGUE MEMBERSHIP'!$I:$M,5,FALSE) -> 03 Pete Romano / Don Frigoletto | I20: =VLOOKUP("Team "&LEFT(E20,2),'POINTS - 1st Half 2012'!$C$11:$O$32,13,FALSE) -> 41
C21: 11 | D21: 11 | E21: ="02 "&VLOOKUP("Team 2",'LEAGUE MEMBERSHIP'!$I:$M,3,FALSE)&" / "&VLOOKUP("Team 2",'LEAGUE MEMBERSHIP'!$I:$M,5,FALSE) -> 02 Dave Cormier / Adam Williamson | I21: =VLOOKUP("Team "&LEFT(E21,2),'POINTS - 1st Half 2012'!$C$11:$O$32,13,FALSE) -> 40.5
C22: 12 | D22: 12T | E22: ="14 "&VLOOKUP("Team 14",'LEAGUE MEMBERSHIP'!$I:$M,3,FALSE)&" / "&VLOOKUP("Team 14",'LEAGUE MEMBERSHIP'!$I:$M,5,FALSE) -> 14 Doug Cormier / Ralph Romano, Jr. | I22: =VLOOKUP("Team "&LEFT(E22,2),'POINTS - 1st Half 2012'!$C$11:$O$32,13,FALSE) -> 37
C23: 12 | D23: 12T | E23: ="18 "&VLOOKUP("Team 18",'LEAGUE MEMBERSHIP'!$I:$M,3,FALSE)&" / "&VLOOKUP("Team 18",'LEAGUE MEMBERSHIP'!$I:$M,5,FALSE) -> 18 Norm Gamache / Michelle Bouvier | I23: =VLOOKUP("Team "&LEFT(E23,2),'POINTS - 1st Half 2012'!$C$11:$O$32,13,FALSE) -> 37
C24: 14 | D24: 14 | E24: ="15 "&VLOOKUP("Team 15",'LEAGUE MEMBERSHIP'!$I:$M,3,FALSE)&" / "&VLOOKUP("Team 15",'LEAGUE MEMBERSHIP'!$I:$M,5,FALSE) -> 15 Tim Hurley / John Elie | I24: =VLOOKUP("Team "&LEFT(E24,2),'POINTS - 1st Half 2012'!$C$11:$O$32,13,FALSE) -> 36
C25: 15 | D25: 15 | E25: ="19 "&VLOOKUP("Team 19",'LEAGUE MEMBERSHIP'!$I:$M,3,FALSE)&" / "&VLOOKUP("Team 19",'LEAGUE MEMBERSHIP'!$I:$M,5,FALSE) -> 19 Gary Leavenworth / Patty Leavenworth | I25: =VLOOKUP("Team "&LEFT(E25,2),'POINTS - 1st Half 2012'!$C$11:$O$32,13,FALSE) -> 35.5
C26: 16 | D26: 16 | E26: ="04 "&VLOOKUP("Team 4",'LEAGUE MEMBERSHIP'!$I:$M,3,FALSE)&" / "&VLOOKUP("Team 4",'LEAGUE MEMBERSHIP'!$I:$M,5,FALSE) -> 04 Peg Romano / Lynn Laroche | I26: =VLOOKUP("Team "&LEFT(E26,2),'POINTS - 1st Half 2012'!$C$11:$O$32,13,FALSE) -> 33
C27: 17 | D27: 17 | E27: ="06 "&VLOOKUP("Team 6",'LEAGUE MEMBERSHIP'!$I:$M,3,FALSE)&" / "&VLOOKUP("Team 6",'LEAGUE MEMBERSHIP'!$I:$M,5,FALSE) -> 06 Vance Butterfield / Bob Schleyer | I27: =VLOOKUP("Team "&LEFT(E27,2),'POINTS - 1st Half 2012'!$C$11:$O$32,13,FALSE) -> 32
C28: 18 | D28: =IF(C28=C27,C28&"T",IF(C28=C29,C28&"T",C28)) -> 18 | E28: ="13 "&VLOOKUP("Team 13",'LEAGUE MEMBERSHIP'!$I:$M,3,FALSE)&" / "&VLOOKUP("Team 13",'LEAGUE MEMBERSHIP'!$I:$M,5,FALSE) -> 13 Kyle Currier / Walter Drake | I28: =VLOOKUP("Team "&LEFT(E28,2),'POINTS - 1st Half 2012'!$C$11:$O$32,13,FALSE) -> 31.5
C29: =RANK(I29,$I$11:$I$32) -> 19 | D29: =IF(C29=C28,C29&"T",IF(C29=C30,C29&"T",C29)) -> 19 | E29: ="16 "&VLOOKUP("Team 16",'LEAGUE MEMBERSHIP'!$I:$M,3,FALSE)&" / "&VLOOKUP("Team 16",'LEAGUE MEMBERSHIP'!$I:$M,5,FALSE) -> 16 Deb DeCarolis / Joey DeCarolis | I29: =VLOOKUP("Team "&LEFT(E29,2),'POINTS - 1st Half 2012'!$C$11:$O$32,13,FALSE) -> 28.5
C30: =RANK(I30,$I$11:$I$32) -> 20 | D30: =IF(C30=C29,C30&"T",IF(C30=C31,C30&"T",C30)) -> 20 | E30: ="09 "&VLOOKUP("Team 9",'LEAGUE MEMBERSHIP'!$I:$M,3,FALSE)&" / "&VLOOKUP("Team 9",'LEAGUE MEMBERSHIP'!$I:$M,5,FALSE) -> 09 Mike Doane / John Cassin | I30: =VLOOKUP("Team "&LEFT(E30,2),'POINTS - 1st Half 2012'!$C$11:$O$32,13,FALSE) -> 24.5
C31: 21 | D31: =IF(C31=C28,C31&"T",IF(C31=C32,C31&"T",C31)) -> 21T | E31: ="21 "&VLOOKUP("Team 21",'LEAGUE MEMBERSHIP'!$I:$M,3,FALSE)&" / "&VLOOKUP("Team 21",'LEAGUE MEMBERSHIP'!$I:$M,5,FALSE) -> 21 / | I31: =VLOOKUP("Team "&LEFT(E31,2),'POINTS - 1st Half 2012'!$C$11:$O$32,13,FALSE) -> 0
C32: 21 | D32: =IF(C32=C31,C32&"T",IF(C32=C33,C32&"T",C32)) -> 21T | E32: ="22 "&VLOOKUP("Team 22",'LEAGUE MEMBERSHIP'!$I:$M,3,FALSE)&" / "&VLOOKUP("Team 22",'LEAGUE MEMBERSHIP'!$I:$M,5,FALSE) -> 22 / | I32: =VLOOKUP("Team "&LEFT(E32,2),'POINTS - 1st Half 2012'!$C$11:$O$32,13,FALSE) -> 0
I33: -1

Sheet STANDINGS - 2nd Half 2012
L1: =IF(N2="","Team Standings",IF(N4="1st Half",IF(N2=N3,"Final Standings - First Half","Team Standings After "&N2),IF(N4="2nd Half",IF(N2=N3,"Final Standings - Second Half","Team Standings After "&N2)))) -> Final Standings - Second Half
N2: Week 9
N3: Week 9
N4: 2nd Half
J8: "Standings Through "&'SCORE ENTRY WORKSHEET'!D24
D10: Rank | E10: =L1 -> Final Standings - Second Half | I10: Points
C11: =RANK(I11,$I$11:$I$32) -> 1 | D11: =IF(C11=C10,C11&"T",IF(C11=C12,C11&"T",C11)) -> 1 | E11: ="05 "&VLOOKUP("Team 5",'LEAGUE MEMBERSHIP'!$I:$M,3,FALSE)&" / "&VLOOKUP("Team 5",'LEAGUE MEMBERSHIP'!$I:$M,5,FALSE) -> 05 Dennis Normandin / Mark Normandin | I11: =VLOOKUP("Team "&LEFT(E11,2),'POINTS - 2nd Half 2012'!$C$11:$O$32,13,FALSE) -> 49
C12: 2 | D12: =IF(C12=C11,C12&"T",IF(C12=C13,C12&"T",C12)) -> 2 | E12: ="12 "&VLOOKUP("Team 12",'LEAGUE MEMBERSHIP'!$I:$M,3,FALSE)&" / "&VLOOKUP("Team 12",'LEAGUE MEMBERSHIP'!$I:$M,5,FALSE) -> 12 Sal Cuifetti / Paul LeBlanc | I12: =VLOOKUP("Team "&LEFT(E12,2),'POINTS - 2nd Half 2012'!$C$11:$O$32,13,FALSE) -> 47.5
C13: 3 | D13: 3 | E13: ="13 "&VLOOKUP("Team 13",'LEAGUE MEMBERSHIP'!$I:$M,3,FALSE)&" / "&VLOOKUP("Team 13",'LEAGUE MEMBERSHIP'!$I:$M,5,FALSE) -> 13 Kyle Currier / Walter Drake | I13: =VLOOKUP("Team "&LEFT(E13,2),'POINTS - 2nd Half 2012'!$C$11:$O$32,13,FALSE) -> 46.5
C14: 4 | D14: 4 | E14: ="01 "&VLOOKUP("Team 1",'LEAGUE MEMBERSHIP'!$I:$M,3,FALSE)&" / "&VLOOKUP("Team 1",'LEAGUE MEMBERSHIP'!$I:$M,5,FALSE) -> 01 Lester Lockhart / Pete Normandin | I14: =VLOOKUP("Team "&LEFT(E14,2),'POINTS - 2nd Half 2012'!$C$11:$O$32,13,FALSE) -> 44
C15: 5 | D15: 5T | E15: ="03 "&VLOOKUP("Team 3",'LEAGUE MEMBERSHIP'!$I:$M,3,FALSE)&" / "&VLOOKUP("Team 3",'LEAGUE MEMBERSHIP'!$I:$M,5,FALSE) -> 03 Pete Romano / Don Frigoletto | I15: =VLOOKUP("Team "&LEFT(E15,2),'POINTS - 2nd Half 2012'!$C$11:$O$32,13,FALSE) -> 43
C16: 5 | D16: 5T | E16: ="06 "&VLOOKUP("Team 6",'LEAGUE MEMBERSHIP'!$I:$M,3,FALSE)&" / "&VLOOKUP("Team 6",'LEAGUE MEMBERSHIP'!$I:$M,5,FALSE) -> 06 Vance Butterfield / Bob Schleyer | I16: =VLOOKUP("Team "&LEFT(E16,2),'POINTS - 2nd Half 2012'!$C$11:$O$32,13,FALSE) -> 43
C17: 5 | D17: 5T | E17: ="10 "&VLOOKUP("Team 10",'LEAGUE MEMBERSHIP'!$I:$M,3,FALSE)&" / "&VLOOKUP("Team 10",'LEAGUE MEMBERSHIP'!$I:$M,5,FALSE) -> 10 Ron Eckstrom / Beth Romano | I17: =VLOOKUP("Team "&LEFT(E17,2),'POINTS - 2nd Half 2012'!$C$11:$O$32,13,FALSE) -> 43
C18: 5 | D18: 5T | E18: ="16 "&VLOOKUP("Team 16",'LEAGUE MEMBERSHIP'!$I:$M,3,FALSE)&" / "&VLOOKUP("Team 16",'LEAGUE MEMBERSHIP'!$I:$M,5,FALSE) -> 16 Deb DeCarolis / Joey DeCarolis | I18: =VLOOKUP("Team "&LEFT(E18,2),'POINTS - 2nd Half 2012'!$C$11:$O$32,13,FALSE) -> 43
C19: 9 | D19: 9T | E19: ="17 "&VLOOKUP("Team 17",'LEAGUE MEMBERSHIP'!$I:$M,3,FALSE)&" / "&VLOOKUP("Team 17",'LEAGUE MEMBERSHIP'!$I:$M,5,FALSE) -> 17 Gary Bittner / Mike Dauphinais | I19: =VLOOKUP("Team "&LEFT(E19,2),'POINTS - 2nd Half 2012'!$C$11:$O$32,13,FALSE) -> 41.5
C20: 9 | D20: 9T | E20: ="20 "&VLOOKUP("Team 20",'LEAGUE MEMBERSHIP'!$I:$M,3,FALSE)&" / "&VLOOKUP("Team 20",'LEAGUE MEMBERSHIP'!$I:$M,5,FALSE) -> 20 Paul Fontaine / Ralph Romano III | I20: =VLOOKUP("Team "&LEFT(E20,2),'POINTS - 2nd Half 2012'!$C$11:$O$32,13,FALSE) -> 41.5
C21: 11 | D21: 11 | E21: ="08 "&VLOOKUP("Team 8",'LEAGUE MEMBERSHIP'!$I:$M,3,FALSE)&" / "&VLOOKUP("Team 8",'LEAGUE MEMBERSHIP'!$I:$M,5,FALSE) -> 08 Mike Sunderland / Debbie Sunderland | I21: =VLOOKUP("Team "&LEFT(E21,2),'POINTS - 2nd Half 2012'!$C$11:$O$32,13,FALSE) -> 39.5
C22: 12 | D22: 12 | E22: ="19 "&VLOOKUP("Team 19",'LEAGUE MEMBERSHIP'!$I:$M,3,FALSE)&" / "&VLOOKUP("Team 19",'LEAGUE MEMBERSHIP'!$I:$M,5,FALSE) -> 19 Gary Leavenworth / Patty Leavenworth | I22: =VLOOKUP("Team "&LEFT(E22,2),'POINTS - 2nd Half 2012'!$C$11:$O$32,13,FALSE) -> 38.5
C23: 13 | D23: 13 | E23: ="11 "&VLOOKUP("Team 11",'LEAGUE MEMBERSHIP'!$I:$M,3,FALSE)&" / "&VLOOKUP("Team 11",'LEAGUE MEMBERSHIP'!$I:$M,5,FALSE) -> 11 Ray Henderson / Zachary Wallace | I23: =VLOOKUP("Team "&LEFT(E23,2),'POINTS - 2nd Half 2012'!$C$11:$O$32,13,FALSE) -> 38
C24: 14 | D24: 14 | E24: ="18 "&VLOOKUP("Team 18",'LEAGUE MEMBERSHIP'!$I:$M,3,FALSE)&" / "&VLOOKUP("Team 18",'LEAGUE MEMBERSHIP'!$I:$M,5,FALSE) -> 18 Norm Gamache / Michelle Bouvier | I24: =VLOOKUP("Team "&LEFT(E24,2),'POINTS - 2nd Half 2012'!$C$11:$O$32,13,FALSE) -> 37.5
C25: 15 | D25: 15 | E25: ="09 "&VLOOKUP("Team 9",'LEAGUE MEMBERSHIP'!$I:$M,3,FALSE)&" / "&VLOOKUP("Team 9",'LEAGUE MEMBERSHIP'!$I:$M,5,FALSE) -> 09 Mike Doane / John Cassin | I25: =VLOOKUP("Team "&LEFT(E25,2),'POINTS - 2nd Half 2012'!$C$11:$O$32,13,FALSE) -> 35
C26: 16 | D26: 16 | E26: ="02 "&VLOOKUP("Team 2",'LEAGUE MEMBERSHIP'!$I:$M,3,FALSE)&" / "&VLOOKUP("Team 2",'LEAGUE MEMBERSHIP'!$I:$M,5,FALSE) -> 02 Dave Cormier / Adam Williamson | I26: =VLOOKUP("Team "&LEFT(E26,2),'POINTS - 2nd Half 2012'!$C$11:$O$32,13,FALSE) -> 34
C27: 17 | D27: 17 | E27: ="15 "&VLOOKUP("Team 15",'LEAGUE MEMBERSHIP'!$I:$M,3,FALSE)&" / "&VLOOKUP("Team 15",'LEAGUE MEMBERSHIP'!$I:$M,5,FALSE) -> 15 Tim Hurley / John Elie | I27: =VLOOKUP("Team "&LEFT(E27,2),'POINTS - 2nd Half 2012'!$C$11:$O$32,13,FALSE) -> 32.5
C28: 18 | D28: =IF(C28=C27,C28&"T",IF(C28=C29,C28&"T",C28)) -> 18 | E28: ="04 "&VLOOKUP("Team 4",'LEAGUE MEMBERSHIP'!$I:$M,3,FALSE)&" / "&VLOOKUP("Team 4",'LEAGUE MEMBERSHIP'!$I:$M,5,FALSE) -> 04 Peg Romano / Lynn Laroche | I28: =VLOOKUP("Team "&LEFT(E28,2),'POINTS - 2nd Half 2012'!$C$11:$O$32,13,FALSE) -> 30.5
C29: =RANK(I29,$I$11:$I$32) -> 19 | D29: =IF(C29=C28,C29&"T",IF(C29=C30,C29&"T",C29)) -> 19 | E29: ="14 "&VLOOKUP("Team 14",'LEAGUE MEMBERSHIP'!$I:$M,3,FALSE)&" / "&VLOOKUP("Team 14",'LEAGUE MEMBERSHIP'!$I:$M,5,FALSE) -> 14 Doug Cormier / Ralph Romano, Jr. | I29: =VLOOKUP("Team "&LEFT(E29,2),'POINTS - 2nd Half 2012'!$C$11:$O$32,13,FALSE) -> 29.5
C30: =RANK(I30,$I$11:$I$32) -> 20 | D30: =IF(C30=C29,C30&"T",IF(C30=C31,C30&"T",C30)) -> 20 | E30: ="07 "&VLOOKUP("Team 7",'LEAGUE MEMBERSHIP'!$I:$M,3,FALSE)&" / "&VLOOKUP("Team 7",'LEAGUE MEMBERSHIP'!$I:$M,5,FALSE) -> 07 Steve Scapparone / Dave Hyre | I30: =VLOOKUP("Team "&LEFT(E30,2),'POINTS - 2nd Half 2012'!$C$11:$O$32,13,FALSE) -> 21.5
C31: 21 | D31: =IF(C31=C28,C31&"T",IF(C31=C32,C31&"T",C31)) -> 21T | E31: ="21 "&VLOOKUP("Team 21",'LEAGUE MEMBERSHIP'!$I:$M,3,FALSE)&" / "&VLOOKUP("Team 21",'LEAGUE MEMBERSHIP'!$I:$M,5,FALSE) -> 21 / | I31: =VLOOKUP("Team "&LEFT(E31,2),'POINTS - 2nd Half 2012'!$C$11:$O$32,13,FALSE) -> 0
C32: 21 | D32: =IF(C32=C31,C32&"T",IF(C32=C33,C32&"T",C32)) -> 21T | E32: ="22 "&VLOOKUP("Team 22",'LEAGUE MEMBERSHIP'!$I:$M,3,FALSE)&" / "&VLOOKUP("Team 22",'LEAGUE MEMBERSHIP'!$I:$M,5,FALSE) -> 22 / | I32: =VLOOKUP("Team "&LEFT(E32,2),'POINTS - 2nd Half 2012'!$C$11:$O$32,13,FALSE) -> 0
I33: -1

Sheet STANDINGS - 1st Half 2013
L1: =IF(N2="","Team Standings",IF(N4="1st Half",IF(N2=N3,"Final Standings - First Half","Team Standings After "&N2),IF(N4="2nd Half",IF(N2=N3,"Final Standings - Second Half","Team Standings After "&N2)))) -> Final Standings - First Half
N2: Week 10
N3: Week 10
N4: 1st Half
J8: "Standings Through "&'SCORE ENTRY WORKSHEET'!D24
D10: Rank | E10: =L1 -> Final Standings - First Half | I10: Points
C11: =RANK(I11,$I$11:$I$32) -> 1 | D11: =IF(C11=C10,C11&"T",IF(C11=C12,C11&"T",C11)) -> 1 | E11: ="20 "&VLOOKUP("Team 20",'LEAGUE MEMBERSHIP'!$I:$M,3,FALSE)&" / "&VLOOKUP("Team 20",'LEAGUE MEMBERSHIP'!$I:$M,5,FALSE) -> 20 Paul Fontaine / Ralph Romano III | I11: =VLOOKUP("Team "&LEFT(E11,2),'POINTS - 1st Half 2013'!$C$11:$O$32,13,FALSE) -> 47
C12: 2 | D12: =IF(C12=C11,C12&"T",IF(C12=C13,C12&"T",C12)) -> 2 | E12: ="05 "&VLOOKUP("Team 5",'LEAGUE MEMBERSHIP'!$I:$M,3,FALSE)&" / "&VLOOKUP("Team 5",'LEAGUE MEMBERSHIP'!$I:$M,5,FALSE) -> 05 Dennis Normandin / Mark Normandin | I12: =VLOOKUP("Team "&LEFT(E12,2),'POINTS - 1st Half 2013'!$C$11:$O$32,13,FALSE) -> 39.5
C13: 3 | D13: 3 | E13: ="19 "&VLOOKUP("Team 19",'LEAGUE MEMBERSHIP'!$I:$M,3,FALSE)&" / "&VLOOKUP("Team 19",'LEAGUE MEMBERSHIP'!$I:$M,5,FALSE) -> 19 Gary Leavenworth / Patty Leavenworth | I13: =VLOOKUP("Team "&LEFT(E13,2),'POINTS - 1st Half 2013'!$C$11:$O$32,13,FALSE) -> 39
C14: 4 | D14: 4 | E14: ="01 "&VLOOKUP("Team 1",'LEAGUE MEMBERSHIP'!$I:$M,3,FALSE)&" / "&VLOOKUP("Team 1",'LEAGUE MEMBERSHIP'!$I:$M,5,FALSE) -> 01 Lester Lockhart / Pete Normandin | I14: =VLOOKUP("Team "&LEFT(E14,2),'POINTS - 1st Half 2013'!$C$11:$O$32,13,FALSE) -> 38
C15: 5 | D15: 5 | E15: ="03 "&VLOOKUP("Team 3",'LEAGUE MEMBERSHIP'!$I:$M,3,FALSE)&" / "&VLOOKUP("Team 3",'LEAGUE MEMBERSHIP'!$I:$M,5,FALSE) -> 03 Pete Romano / Don Frigoletto | I15: =VLOOKUP("Team "&LEFT(E15,2),'POINTS - 1st Half 2013'!$C$11:$O$32,13,FALSE) -> 37.5
C16: 6 | D16: 6T | E16: ="04 "&VLOOKUP("Team 4",'LEAGUE MEMBERSHIP'!$I:$M,3,FALSE)&" / "&VLOOKUP("Team 4",'LEAGUE MEMBERSHIP'!$I:$M,5,FALSE) -> 04 Peg Romano / Lynn Laroche | I16: =VLOOKUP("Team "&LEFT(E16,2),'POINTS - 1st Half 2013'!$C$11:$O$32,13,FALSE) -> 37
C17: 6 | D17: 6T | E17: ="17 "&VLOOKUP("Team 17",'LEAGUE MEMBERSHIP'!$I:$M,3,FALSE)&" / "&VLOOKUP("Team 17",'LEAGUE MEMBERSHIP'!$I:$M,5,FALSE) -> 17 Gary Bittner / Mike Dauphinais | I17: =VLOOKUP("Team "&LEFT(E17,2),'POINTS - 1st Half 2013'!$C$11:$O$32,13,FALSE) -> 37
C18: 8 | D18: 8T | E18: ="08 "&VLOOKUP("Team 8",'LEAGUE MEMBERSHIP'!$I:$M,3,FALSE)&" / "&VLOOKUP("Team 8",'LEAGUE MEMBERSHIP'!$I:$M,5,FALSE) -> 08 Mike Sunderland / Debbie Sunderland | I18: =VLOOKUP("Team "&LEFT(E18,2),'POINTS - 1st Half 2013'!$C$11:$O$32,13,FALSE) -> 36
C19: 8 | D19: 8T | E19: ="11 "&VLOOKUP("Team 11",'LEAGUE MEMBERSHIP'!$I:$M,3,FALSE)&" / "&VLOOKUP("Team 11",'LEAGUE MEMBERSHIP'!$I:$M,5,FALSE) -> 11 Ray Henderson / Zachary Wallace | I19: =VLOOKUP("Team "&LEFT(E19,2),'POINTS - 1st Half 2013'!$C$11:$O$32,13,FALSE) -> 36
C20: 10 | D20: 10T | E20: ="09 "&VLOOKUP("Team 9",'LEAGUE MEMBERSHIP'!$I:$M,3,FALSE)&" / "&VLOOKUP("Team 9",'LEAGUE MEMBERSHIP'!$I:$M,5,FALSE) -> 09 Mike Doane / John Cassin | I20: =VLOOKUP("Team "&LEFT(E20,2),'POINTS - 1st Half 2013'!$C$11:$O$32,13,FALSE) -> 35
C21: 10 | D21: 10T | E21: ="13 "&VLOOKUP("Team 13",'LEAGUE MEMBERSHIP'!$I:$M,3,FALSE)&" / "&VLOOKUP("Team 13",'LEAGUE MEMBERSHIP'!$I:$M,5,FALSE) -> 13 Kyle Currier / Walter Drake | I21: =VLOOKUP("Team "&LEFT(E21,2),'POINTS - 1st Half 2013'!$C$11:$O$32,13,FALSE) -> 35
C22: 12 | D22: 12T | E22: ="02 "&VLOOKUP("Team 2",'LEAGUE MEMBERSHIP'!$I:$M,3,FALSE)&" / "&VLOOKUP("Team 2",'LEAGUE MEMBERSHIP'!$I:$M,5,FALSE) -> 02 Dave Cormier / Adam Williamson | I22: =VLOOKUP("Team "&LEFT(E22,2),'POINTS - 1st Half 2013'!$C$11:$O$32,13,FALSE) -> 34.5
C23: 12 | D23: 12T | E23: ="16 "&VLOOKUP("Team 16",'LEAGUE MEMBERSHIP'!$I:$M,3,FALSE)&" / "&VLOOKUP("Team 16",'LEAGUE MEMBERSHIP'!$I:$M,5,FALSE) -> 16 Deb DeCarolis / Joey DeCarolis | I23: =VLOOKUP("Team "&LEFT(E23,2),'POINTS - 1st Half 2013'!$C$11:$O$32,13,FALSE) -> 34.5
C24: 14 | D24: 14T | E24: ="06 "&VLOOKUP("Team 6",'LEAGUE MEMBERSHIP'!$I:$M,3,FALSE)&" / "&VLOOKUP("Team 6",'LEAGUE MEMBERSHIP'!$I:$M,5,FALSE) -> 06 Vance Butterfield / Bob Schleyer | I24: =VLOOKUP("Team "&LEFT(E24,2),'POINTS - 1st Half 2013'!$C$11:$O$32,13,FALSE) -> 34
C25: 14 | D25: 14T | E25: ="12 "&VLOOKUP("Team 12",'LEAGUE MEMBERSHIP'!$I:$M,3,FALSE)&" / "&VLOOKUP("Team 12",'LEAGUE MEMBERSHIP'!$I:$M,5,FALSE) -> 12 Sal Cuifetti / Paul LeBlanc | I25: =VLOOKUP("Team "&LEFT(E25,2),'POINTS - 1st Half 2013'!$C$11:$O$32,13,FALSE) -> 34
C26: 16 | D26: 16 | E26: ="15 "&VLOOKUP("Team 15",'LEAGUE MEMBERSHIP'!$I:$M,3,FALSE)&" / "&VLOOKUP("Team 15",'LEAGUE MEMBERSHIP'!$I:$M,5,FALSE) -> 15 Tim Hurley / John Elie | I26: =VLOOKUP("Team "&LEFT(E26,2),'POINTS - 1st Half 2013'!$C$11:$O$32,13,FALSE) -> 33
C27: 17 | D27: 17 | E27: ="14 "&VLOOKUP("Team 14",'LEAGUE MEMBERSHIP'!$I:$M,3,FALSE)&" / "&VLOOKUP("Team 14",'LEAGUE MEMBERSHIP'!$I:$M,5,FALSE) -> 14 Doug Cormier / Ralph Romano, Jr. | I27: =VLOOKUP("Team "&LEFT(E27,2),'POINTS - 1st Half 2013'!$C$11:$O$32,13,FALSE) -> 32.5
C28: 18 | D28: =IF(C28=C27,C28&"T",IF(C28=C29,C28&"T",C28)) -> 18 | E28: ="10 "&VLOOKUP("Team 10",'LEAGUE MEMBERSHIP'!$I:$M,3,FALSE)&" / "&VLOOKUP("Team 10",'LEAGUE MEMBERSHIP'!$I:$M,5,FALSE) -> 10 Ron Eckstrom / Beth Romano | I28: =VLOOKUP("Team "&LEFT(E28,2),'POINTS - 1st Half 2013'!$C$11:$O$32,13,FALSE) -> 31.5
C29: =RANK(I29,$I$11:$I$32) -> 19 | D29: =IF(C29=C28,C29&"T",IF(C29=C30,C29&"T",C29)) -> 19 | E29: ="18 "&VLOOKUP("Team 18",'LEAGUE MEMBERSHIP'!$I:$M,3,FALSE)&" / "&VLOOKUP("Team 18",'LEAGUE MEMBERSHIP'!$I:$M,5,FALSE) -> 18 Norm Gamache / Michelle Bouvier | I29: =VLOOKUP("Team "&LEFT(E29,2),'POINTS - 1st Half 2013'!$C$11:$O$32,13,FALSE) -> 24.5
C30: =RANK(I30,$I$11:$I$32) -> 20 | D30: =IF(C30=C29,C30&"T",IF(C30=C31,C30&"T",C30)) -> 20 | E30: ="07 "&VLOOKUP("Team 7",'LEAGUE MEMBERSHIP'!$I:$M,3,FALSE)&" / "&VLOOKUP("Team 7",'LEAGUE MEMBERSHIP'!$I:$M,5,FALSE) -> 07 Steve Scapparone / Dave Hyre | I30: =VLOOKUP("Team "&LEFT(E30,2),'POINTS - 1st Half 2013'!$C$11:$O$32,13,FALSE) -> 0
E31: ="21 "&VLOOKUP("Team 21",'LEAGUE MEMBERSHIP'!$I:$M,3,FALSE)&" / "&VLOOKUP("Team 21",'LEAGUE MEMBERSHIP'!$I:$M,5,FALSE) -> 21 /
E32: ="22 "&VLOOKUP("Team 22",'LEAGUE MEMBERSHIP'!$I:$M,3,FALSE)&" / "&VLOOKUP("Team 22",'LEAGUE MEMBERSHIP'!$I:$M,5,FALSE) -> 22 /
I33: -1

Sheet STANDINGS - 2nd Half 2013
L1: =IF(N2="","Team Standings",IF(N4="1st Half",IF(N2=N3,"Final Standings - First Half","Team Standings After "&N2),IF(N4="2nd Half",IF(N2=N3,"Final Standings - Second Half","Team Standings After "&N2)))) -> Final Standings - Second Half
N2: Week 9
N3: Week 9
N4: 2nd Half
J8: "Standings Through "&'SCORE ENTRY WORKSHEET'!D24
D10: Rank | E10: =L1 -> Final Standings - Second Half | I10: Points
C11: =RANK(I11,$I$11:$I$32) -> 1 | D11: =IF(C11=C10,C11&"T",IF(C11=C12,C11&"T",C11)) -> 1 | E11: ="10 "&VLOOKUP("Team 10",'LEAGUE MEMBERSHIP'!$I:$M,3,FALSE)&" / "&VLOOKUP("Team 10",'LEAGUE MEMBERSHIP'!$I:$M,5,FALSE) -> 10 Ron Eckstrom / Beth Romano | I11: =VLOOKUP("Team "&LEFT(E11,2),'POINTS - 2nd Half 2013'!$C$11:$O$32,13,FALSE) -> 43.5
C12: 2 | D12: =IF(C12=C11,C12&"T",IF(C12=C13,C12&"T",C12)) -> 2 | E12: ="05 "&VLOOKUP("Team 5",'LEAGUE MEMBERSHIP'!$I:$M,3,FALSE)&" / "&VLOOKUP("Team 5",'LEAGUE MEMBERSHIP'!$I:$M,5,FALSE) -> 05 Dennis Normandin / Mark Normandin | I12: =VLOOKUP("Team "&LEFT(E12,2),'POINTS - 2nd Half 2013'!$C$11:$O$32,13,FALSE) -> 42.5
C13: 3 | D13: 3 | E13: ="15 "&VLOOKUP("Team 15",'LEAGUE MEMBERSHIP'!$I:$M,3,FALSE)&" / "&VLOOKUP("Team 15",'LEAGUE MEMBERSHIP'!$I:$M,5,FALSE) -> 15 Tim Hurley / John Elie | I13: =VLOOKUP("Team "&LEFT(E13,2),'POINTS - 2nd Half 2013'!$C$11:$O$32,13,FALSE) -> 42
C14: 4 | D14: 4 | E14: ="16 "&VLOOKUP("Team 16",'LEAGUE MEMBERSHIP'!$I:$M,3,FALSE)&" / "&VLOOKUP("Team 16",'LEAGUE MEMBERSHIP'!$I:$M,5,FALSE) -> 16 Deb DeCarolis / Joey DeCarolis | I14: =VLOOKUP("Team "&LEFT(E14,2),'POINTS - 2nd Half 2013'!$C$11:$O$32,13,FALSE) -> 41.5
C15: 5 | D15: 5 | E15: ="12 "&VLOOKUP("Team 12",'LEAGUE MEMBERSHIP'!$I:$M,3,FALSE)&" / "&VLOOKUP("Team 12",'LEAGUE MEMBERSHIP'!$I:$M,5,FALSE) -> 12 Sal Cuifetti / Paul LeBlanc | I15: =VLOOKUP("Team "&LEFT(E15,2),'POINTS - 2nd Half 2013'!$C$11:$O$32,13,FALSE) -> 41
C16: 6 | D16: 6 | E16: ="19 "&VLOOKUP("Team 19",'LEAGUE MEMBERSHIP'!$I:$M,3,FALSE)&" / "&VLOOKUP("Team 19",'LEAGUE MEMBERSHIP'!$I:$M,5,FALSE) -> 19 Gary Leavenworth / Patty Leavenworth | I16: =VLOOKUP("Team "&LEFT(E16,2),'POINTS - 2nd Half 2013'!$C$11:$O$32,13,FALSE) -> 40.5
C17: 7 | D17: 7T | E17: ="01 "&VLOOKUP("Team 1",'LEAGUE MEMBERSHIP'!$I:$M,3,FALSE)&" / "&VLOOKUP("Team 1",'LEAGUE MEMBERSHIP'!$I:$M,5,FALSE) -> 01 Lester Lockhart / Pete Normandin | I17: =VLOOKUP("Team "&LEFT(E17,2),'POINTS - 2nd Half 2013'!$C$11:$O$32,13,FALSE) -> 39
C18: 7 | D18: 7T | E18: ="02 "&VLOOKUP("Team 2",'LEAGUE MEMBERSHIP'!$I:$M,3,FALSE)&" / "&VLOOKUP("Team 2",'LEAGUE MEMBERSHIP'!$I:$M,5,FALSE) -> 02 Dave Cormier / Adam Williamson | I18: =VLOOKUP("Team "&LEFT(E18,2),'POINTS - 2nd Half 2013'!$C$11:$O$32,13,FALSE) -> 39
C19: 9 | D19: 9 | E19: ="20 "&VLOOKUP("Team 20",'LEAGUE MEMBERSHIP'!$I:$M,3,FALSE)&" / "&VLOOKUP("Team 20",'LEAGUE MEMBERSHIP'!$I:$M,5,FALSE) -> 20 Paul Fontaine / Ralph Romano III | I19: =VLOOKUP("Team "&LEFT(E19,2),'POINTS - 2nd Half 2013'!$C$11:$O$32,13,FALSE) -> 38
C20: 10 | D20: 10 | E20: ="17 "&VLOOKUP("Team 17",'LEAGUE MEMBERSHIP'!$I:$M,3,FALSE)&" / "&VLOOKUP("Team 17",'LEAGUE MEMBERSHIP'!$I:$M,5,FALSE) -> 17 Gary Bittner / Mike Dauphinais | I20: =VLOOKUP("Team "&LEFT(E20,2),'POINTS - 2nd Half 2013'!$C$11:$O$32,13,FALSE) -> 37
C21: 11 | D21: 11 | E21: ="11 "&VLOOKUP("Team 11",'LEAGUE MEMBERSHIP'!$I:$M,3,FALSE)&" / "&VLOOKUP("Team 11",'LEAGUE MEMBERSHIP'!$I:$M,5,FALSE) -> 11 Ray Henderson / Zachary Wallace | I21: =VLOOKUP("Team "&LEFT(E21,2),'POINTS - 2nd Half 2013'!$C$11:$O$32,13,FALSE) -> 36.5
C22: 12 | D22: 12T | E22: ="03 "&VLOOKUP("Team 3",'LEAGUE MEMBERSHIP'!$I:$M,3,FALSE)&" / "&VLOOKUP("Team 3",'LEAGUE MEMBERSHIP'!$I:$M,5,FALSE) -> 03 Pete Romano / Don Frigoletto | I22: =VLOOKUP("Team "&LEFT(E22,2),'POINTS - 2nd Half 2013'!$C$11:$O$32,13,FALSE) -> 35
C23: 12 | D23: 12T | E23: ="04 "&VLOOKUP("Team 4",'LEAGUE MEMBERSHIP'!$I:$M,3,FALSE)&" / "&VLOOKUP("Team 4",'LEAGUE MEMBERSHIP'!$I:$M,5,FALSE) -> 04 Peg Romano / Lynn Laroche | I23: =VLOOKUP("Team "&LEFT(E23,2),'POINTS - 2nd Half 2013'!$C$11:$O$32,13,FALSE) -> 35
C24: 14 | D24: 14 | E24: ="08 "&VLOOKUP("Team 8",'LEAGUE MEMBERSHIP'!$I:$M,3,FALSE)&" / "&VLOOKUP("Team 8",'LEAGUE MEMBERSHIP'!$I:$M,5,FALSE) -> 08 Mike Sunderland / Debbie Sunderland | I24: =VLOOKUP("Team "&LEFT(E24,2),'POINTS - 2nd Half 2013'!$C$11:$O$32,13,FALSE) -> 34.5
C25: 15 | D25: 15 | E25: ="09 "&VLOOKUP("Team 9",'LEAGUE MEMBERSHIP'!$I:$M,3,FALSE)&" / "&VLOOKUP("Team 9",'LEAGUE MEMBERSHIP'!$I:$M,5,FALSE) -> 09 Mike Doane / John Cassin | I25: =VLOOKUP("Team "&LEFT(E25,2),'POINTS - 2nd Half 2013'!$C$11:$O$32,13,FALSE) -> 32.5
C26: 16 | D26: 16 | E26: ="06 "&VLOOKUP("Team 6",'LEAGUE MEMBERSHIP'!$I:$M,3,FALSE)&" / "&VLOOKUP("Team 6",'LEAGUE MEMBERSHIP'!$I:$M,5,FALSE) -> 06 Vance Butterfield / Bob Schleyer | I26: =VLOOKUP("Team "&LEFT(E26,2),'POINTS - 2nd Half 2013'!$C$11:$O$32,13,FALSE) -> 30.5
C27: 17 | D27: 17 | E27: ="18 "&VLOOKUP("Team 18",'LEAGUE MEMBERSHIP'!$I:$M,3,FALSE)&" / "&VLOOKUP("Team 18",'LEAGUE MEMBERSHIP'!$I:$M,5,FALSE) -> 18 Norm Gamache / Michelle Bouvier | I27: =VLOOKUP("Team "&LEFT(E27,2),'POINTS - 2nd Half 2013'!$C$11:$O$32,13,FALSE) -> 29
C28: 18 | D28: =IF(C28=C27,C28&"T",IF(C28=C29,C28&"T",C28)) -> 18 | E28: ="14 "&VLOOKUP("Team 14",'LEAGUE MEMBERSHIP'!$I:$M,3,FALSE)&" / "&VLOOKUP("Team 14",'LEAGUE MEMBERSHIP'!$I:$M,5,FALSE) -> 14 Doug Cormier / Ralph Romano, Jr. | I28: =VLOOKUP("Team "&LEFT(E28,2),'POINTS - 2nd Half 2013'!$C$11:$O$32,13,FALSE) -> 27.5
C29: =RANK(I29,$I$11:$I$32) -> 19 | D29: =IF(C29=C28,C29&"T",IF(C29=C30,C29&"T",C29)) -> 19 | E29: ="13 "&VLOOKUP("Team 13",'LEAGUE MEMBERSHIP'!$I:$M,3,FALSE)&" / "&VLOOKUP("Team 13",'LEAGUE MEMBERSHIP'!$I:$M,5,FALSE) -> 13 Kyle Currier / Walter Drake | I29: =VLOOKUP("Team "&LEFT(E29,2),'POINTS - 2nd Half 2013'!$C$11:$O$32,13,FALSE) -> 19.5
C30: =RANK(I30,$I$11:$I$32) -> 20 | D30: =IF(C30=C29,C30&"T",IF(C30=C31,C30&"T",C30)) -> 20T | E30: ="07 "&VLOOKUP("Team 7",'LEAGUE MEMBERSHIP'!$I:$M,3,FALSE)&" / "&VLOOKUP("Team 7",'LEAGUE MEMBERSHIP'!$I:$M,5,FALSE) -> 07 Steve Scapparone / Dave Hyre | I30: =VLOOKUP("Team "&LEFT(E30,2),'POINTS - 2nd Half 2013'!$C$11:$O$32,13,FALSE) -> 0
C31: 20 | D31: =IF(C31=C28,C31&"T",IF(C31=C32,C31&"T",C31)) -> 20T | E31: ="21 "&VLOOKUP("Team 21",'LEAGUE MEMBERSHIP'!$I:$M,3,FALSE)&" / "&VLOOKUP("Team 21",'LEAGUE MEMBERSHIP'!$I:$M,5,FALSE) -> 21 / | I31: =VLOOKUP("Team "&LEFT(E31,2),'POINTS - 2nd Half 2013'!$C$11:$O$32,13,FALSE) -> 0
C32: 20 | D32: =IF(C32=C31,C32&"T",IF(C32=C33,C32&"T",C32)) -> 20T | E32: ="22 "&VLOOKUP("Team 22",'LEAGUE MEMBERSHIP'!$I:$M,3,FALSE)&" / "&VLOOKUP("Team 22",'LEAGUE MEMBERSHIP'!$I:$M,5,FALSE) -> 22 / | I32: =VLOOKUP("Team "&LEFT(E32,2),'POINTS - 2nd Half 2013'!$C$11:$O$32,13,FALSE) -> 0
I33: -1

Sheet INDIVIDUAL SCORES
P1: Gary Bittner | W1: =VLOOKUP(RIGHT(LEFT(P5,(LEN((LEFT(P5,FIND("RGL",P5)+3)))+3)),7),'INDIVIDUAL SCORES'!$A$74:$P$2799,16,FALSE) -> 3
M4: =RIGHT($P$5,LEN($P$5)-FIND("RGL",$P$5)-9) -> Ron Eckstrom
M5: =LEFT(RIGHT($P$5,LEN($P$5)-FIND("RGL",$P$5)-9), FIND(" ",RIGHT($P$5,LEN($P$5)-FIND("RGL",$P$5)-9))-1) -> Ron | P5: 10A - RGL-046 - Ron Eckstrom | Q5: 10A - RGL-046 - Ron Eckstrom | R5: 10A - RGL-046 - Ron Eckstrom
B6: 2 | C6: 3 | D6: 4 | E6: 5 | F6: 6 | G6: 7 | H6: 8 | I6: 9 | J6: 10 | K6: 11 | L6: 12 | M6: 13
W8: ='INDIVIDUAL SCORES'!M4 & " - Front" -> Ron Eckstrom - Front | X8: =11-COUNTBLANK(N15:N25) -> 7
W9: ='INDIVIDUAL SCORES'!M4 & " - Back" -> Ron Eckstrom - Back | X9: =11-COUNTBLANK(N34:N44) -> 7
E11: Front | P11: =IF(ISERROR(VLOOKUP('LEAGUE MEMBERSHIP'!J8,'LEAGUE MEMBERSHIP'!E:G,3,FALSE)),"",'LEAGUE MEMBERSHIP'!J8&" - "&VLOOKUP('LEAGUE MEMBERSHIP'!J8,'LEAGUE MEMBERSHIP'!E:G,3,FALSE)&" - "&('LEAGUE MEMBERSHIP'!K8)) -> 1A - RGL-024 - Lester Lockhart | S11: =IF(ISERROR(VLOOKUP('LEAGUE MEMBERSHIP'!L8,'LEAGUE MEMBERSHIP'!E:G,3,FALSE)),"",'LEAGUE MEMBERSHIP'!L8&" - "&VLOOKUP('LEAGUE MEMBERSHIP'!L8,'LEAGUE MEMBERSHIP'!E:G,3,FALSE)&" - "&('LEAGUE MEMBERSHIP'!M8)) -> 1B - RGL-028 - Pete Normandin
B12: Date | C12: Hcp | D12: Side | E12: 1 | F12: 2 | G12: 3 | H12: 4 | I12: 5 | J12: 6 | K12: 7 | L12: 8 | M12: 9 | N12: Total | P12: =IF(ISERROR(VLOOKUP('LEAGUE MEMBERSHIP'!J9,'LEAGUE MEMBERSHIP'!E:G,3,FALSE)),"",'LEAGUE MEMBERSHIP'!J9&" - "&VLOOKUP('LEAGUE MEMBERSHIP'!J9,'LEAGUE MEMBERSHIP'!E:G,3,FALSE)&" - "&('LEAGUE MEMBERSHIP'!K9)) -> 2A - RGL-007 - Dave Cormier | S12: =IF(ISERROR(VLOOKUP('LEAGUE MEMBERSHIP'!L9,'LEAGUE MEMBERSHIP'!E:G,3,FALSE)),"",'LEAGUE MEMBERSHIP'!L9&" - "&VLOOKUP('LEAGUE MEMBERSHIP'!L9,'LEAGUE MEMBERSHIP'!E:G,3,FALSE)&" - "&('LEAGUE MEMBERSHIP'!M9)) -> 2B - RGL-048 - Adam Williamson
C13: Men's Par | E13: 5 | F13: 4 | G13: 5 | H13: 4 | I13: 4 | J13: 3 | K13: 4 | L13: 3 | M13: 4 | N13: =SUM(E13:M13) -> 36 | P13: =IF(ISERROR(VLOOKUP('LEAGUE MEMBERSHIP'!J10,'LEAGUE MEMBERSHIP'!E:G,3,FALSE)),"",'LEAGUE MEMBERSHIP'!J10&" - "&VLOOKUP('LEAGUE MEMBERSHIP'!J10,'LEAGUE MEMBERSHIP'!E:G,3,FALSE)&" - "&('LEAGUE MEMBERSHIP'!K10)) -> 3A - RGL-033 - Pete Romano | S13: =IF(ISERROR(VLOOKUP('LEAGUE MEMBERSHIP'!L10,'LEAGUE MEMBERSHIP'!E:G,3,FALSE)),"",'LEAGUE MEMBERSHIP'!L10&" - "&VLOOKUP('LEAGUE MEMBERSHIP'!L10,'LEAGUE MEMBERSHIP'!E:G,3,FALSE)&" - "&('LEAGUE MEMBERSHIP'!M10)) -> 3B - RGL-014 - Don Frigoletto
C14: Women's Par | E14: 5 | F14: 4 | G14: 5 | H14: 4 | I14: 4 | J14: 3 | K14: 5 | L14: 3 | M14: 4 | N14: =SUM(E14:M14) -> 37 | P14: =IF(ISERROR(VLOOKUP('LEAGUE MEMBERSHIP'!J11,'LEAGUE MEMBERSHIP'!E:G,3,FALSE)),"",'LEAGUE MEMBERSHIP'!J11&" - "&VLOOKUP('LEAGUE MEMBERSHIP'!J11,'LEAGUE MEMBERSHIP'!E:G,3,FALSE)&" - "&('LEAGUE MEMBERSHIP'!K11)) -> 4A - RGL-032 - Peg Romano | S14: =IF(ISERROR(VLOOKUP('LEAGUE MEMBERSHIP'!L11,'LEAGUE MEMBERSHIP'!E:G,3,FALSE)),"",'LEAGUE MEMBERSHIP'!L11&" - "&VLOOKUP('LEAGUE MEMBERSHIP'!L11,'LEAGUE MEMBERSHIP'!E:G,3,FALSE)&" - "&('LEAGUE MEMBERSHIP'!M11)) -> 4B - RGL-021 - Lynn Laroche
A15: =LEFT(RIGHT($P$5,LEN($P$5)-FIND("RGL",$P$5)+1),7)&" 1" -> RGL-046 1 | B15: =IF(VLOOKUP($A15,$A$74:$N$2799,B$6,FALSE)<>"",VLOOKUP($A15,$A$74:$N$2799,B$6,FALSE),"") -> 2013-05-22 | C15: =IF(VLOOKUP($A15,$A$74:$N$2778,C$6,FALSE)<>"",VLOOKUP($A15,$A$74:$N$2778,C$6,FALSE),"") -> 1 | D15: Front | E15: 5 | F15: 4 | G15: 8 | H15: 4 | I15: 4 | J15: 3 | K15: 4 | L15: 3 | M15: 4 | N15: =IF(SUM(E15:M15)<>0,SUM(E15:M15),"") -> 39 | P15: =IF(ISERROR(VLOOKUP('LEAGUE MEMBERSHIP'!J12,'LEAGUE MEMBERSHIP'!E:G,3,FALSE)),"",'LEAGUE MEMBERSHIP'!J12&" - "&VLOOKUP('LEAGUE MEMBERSHIP'!J12,'LEAGUE MEMBERSHIP'!E:G,3,FALSE)&" - "&('LEAGUE MEMBERSHIP'!K12)) -> 5A - RGL-026 - Dennis Normandin | S15: =IF(ISERROR(VLOOKUP('LEAGUE MEMBERSHIP'!L12,'LEAGUE MEMBERSHIP'!E:G,3,FALSE)),"",'LEAGUE MEMBERSHIP'!L12&" - "&VLOOKUP('LEAGUE MEMBERSHIP'!L12,'LEAGUE MEMBERSHIP'!E:G,3,FALSE)&" - "&('LEAGUE MEMBERSHIP'!M12)) -> 5B - RGL-027 - Mark Normandin
A16: =LEFT(RIGHT($P$5,LEN($P$5)-FIND("RGL",$P$5)+1),7)&" 2" -> RGL-046 2 | B16: =IF(VLOOKUP($A16,$A$74:$N$2778,B$6,FALSE)<>"",VLOOKUP($A16,$A$74:$N$2778,B$6,FALSE),"") -> 2013-06-19 | C16: 3 | D16: Front | E16: 5 | F16: 4 | G16: 6 | H16: 4 | I16: 4 | J16: 4 | K16: 5 | L16: 4 | M16: 4 | N16: =IF(SUM(E16:M16)<>0,SUM(E16:M16),"") -> 40 | P16: =IF(ISERROR(VLOOKUP('LEAGUE MEMBERSHIP'!J13,'LEAGUE MEMBERSHIP'!E:G,3,FALSE)),"",'LEAGUE MEMBERSHIP'!J13&" - "&VLOOKUP('LEAGUE MEMBERSHIP'!J13,'LEAGUE MEMBERSHIP'!E:G,3,FALSE)&" - "&('LEAGUE MEMBERSHIP'!K13)) -> 6A - RGL-006 - Vance Butterfield | S16: =IF(ISERROR(VLOOKUP('LEAGUE MEMBERSHIP'!L13,'LEAGUE MEMBERSHIP'!E:G,3,FALSE)),"",'LEAGUE MEMBERSHIP'!L13&" - "&VLOOKUP('LEAGUE MEMBERSHIP'!L13,'LEAGUE MEMBERSHIP'!E:G,3,FALSE)&" - "&('LEAGUE MEMBERSHIP'!M13)) -> 6B - RGL-037 - Bob Schleyer
A17: =LEFT(RIGHT($P$5,LEN($P$5)-FIND("RGL",$P$5)+1),7)&" 3" -> RGL-046 3 | B17: 2013-07-03 | C17: 3 | D17: Front | E17: 6 | F17: 6 | G17: 6 | H17: 6 | I17: 3 | J17: 3 | K17: 7 | L17: 4 | M17: 3 | N17: 44 | P17: =IF(ISERROR(VLOOKUP('LEAGUE MEMBERSHIP'!J14,'LEAGUE MEMBERSHIP'!E:G,3,FALSE)),"",'LEAGUE MEMBERSHIP'!J14&" - "&VLOOKUP('LEAGUE MEMBERSHIP'!J14,'LEAGUE MEMBERSHIP'!E:G,3,FALSE)&" - "&('LEAGUE MEMBERSHIP'!K14)) -> 7A - RGL-036 - Steve Scapparone | S17: =IF(ISERROR(VLOOKUP('LEAGUE MEMBERSHIP'!L14,'LEAGUE MEMBERSHIP'!E:G,3,FALSE)),"",'LEAGUE MEMBERSHIP'!L14&" - "&VLOOKUP('LEAGUE MEMBERSHIP'!L14,'LEAGUE MEMBERSHIP'!E:G,3,FALSE)&" - "&('LEAGUE MEMBERSHIP'!M14)) -> 7B - RGL-020 - Dave Hyre
A18: =LEFT(RIGHT($P$5,LEN($P$5)-FIND("RGL",$P$5)+1),7)&" 4" -> RGL-046 4 | B18: 2013-07-17 | C18: 4 | D18: Front | E18: 6 | F18: 6 | G18: 6 | H18: 4 | I18: 4 | J18: 4 | K18: 4 | L18: 3 | M18: 6 | N18: 43 | P18: =IF(ISERROR(VLOOKUP('LEAGUE MEMBERSHIP'!J15,'LEAGUE MEMBERSHIP'!E:G,3,FALSE)),"",'LEAGUE MEMBERSHIP'!J15&" - "&VLOOKUP('LEAGUE MEMBERSHIP'!J15,'LEAGUE MEMBERSHIP'!E:G,3,FALSE)&" - "&('LEAGUE MEMBERSHIP'!K15)) -> 8A - RGL-063 - Mike Sunderland | S18: =IF(ISERROR(VLOOKUP('LEAGUE MEMBERSHIP'!L15,'LEAGUE MEMBERSHIP'!E:G,3,FALSE)),"",'LEAGUE MEMBERSHIP'!L15&" - "&VLOOKUP('LEAGUE MEMBERSHIP'!L15,'LEAGUE MEMBERSHIP'!E:G,3,FALSE)&" - "&('LEAGUE MEMBERSHIP'!M15)) -> 8B - RGL-040 - Debbie Sunderland
A19: =LEFT(RIGHT($P$5,LEN($P$5)-FIND("RGL",$P$5)+1),7)&" 5" -> RGL-046 5 | B19: 2013-07-31 | C19: 4 | D19: Front | E19: 6 | F19: 4 | G19: 5 | H19: 5 | I19: 5 | J19: 3 | K19: 4 | L19: 4 | M19: 5 | N19: 41 | P19: =IF(ISERROR(VLOOKUP('LEAGUE MEMBERSHIP'!J16,'LEAGUE MEMBERSHIP'!E:G,3,FALSE)),"",'LEAGUE MEMBERSHIP'!J16&" - "&VLOOKUP('LEAGUE MEMBERSHIP'!J16,'LEAGUE MEMBERSHIP'!E:G,3,FALSE)&" - "&('LEAGUE MEMBERSHIP'!K16)) -> 9A - RGL-015 - Mike Doane | S19: =IF(ISERROR(VLOOKUP('LEAGUE MEMBERSHIP'!L16,'LEAGUE MEMBERSHIP'!E:G,3,FALSE)),"",'LEAGUE MEMBERSHIP'!L16&" - "&VLOOKUP('LEAGUE MEMBERSHIP'!L16,'LEAGUE MEMBERSHIP'!E:G,3,FALSE)&" - "&('LEAGUE MEMBERSHIP'!M16)) -> 9B - RGL-005 - John Cassin
A20: =LEFT(RIGHT($P$5,LEN($P$5)-FIND("RGL",$P$5)+1),7)&" 6" -> RGL-046 6 | B20: 2013-08-14 | C20: 4 | D20: Front | E20: 6 | F20: 5 | G20: 5 | H20: 5 | I20: 3 | J20: 4 | K20: 6 | L20: 3 | M20: 3 | N20: 40 | P20: =IF(ISERROR(VLOOKUP('LEAGUE MEMBERSHIP'!J17,'LEAGUE MEMBERSHIP'!E:G,3,FALSE)),"",'LEAGUE MEMBERSHIP'!J17&" - "&VLOOKUP('LEAGUE MEMBERSHIP'!J17,'LEAGUE MEMBERSHIP'!E:G,3,FALSE)&" - "&('LEAGUE MEMBERSHIP'!K17)) -> 10A - RGL-046 - Ron Eckstrom | S20: =IF(ISERROR(VLOOKUP('LEAGUE MEMBERSHIP'!L17,'LEAGUE MEMBERSHIP'!E:G,3,FALSE)),"",'LEAGUE MEMBERSHIP'!L17&" - "&VLOOKUP('LEAGUE MEMBERSHIP'!L17,'LEAGUE MEMBERSHIP'!E:G,3,FALSE)&" - "&('LEAGUE MEMBERSHIP'!M17)) -> 10B - RGL-060 - Beth Romano
A21: =LEFT(RIGHT($P$5,LEN($P$5)-FIND("RGL",$P$5)+1),7)&" 7" -> RGL-046 7 | B21: 2013-08-28 | C21: 3 | D21: Front | E21: 7 | F21: 4 | G21: 5 | H21: 4 | I21: 3 | J21: 3 | K21: 5 | L21: 3 | M21: 5 | N21: 39 | P21: =IF(ISERROR(VLOOKUP('LEAGUE MEMBERSHIP'!J18,'LEAGUE MEMBERSHIP'!E:G,3,FALSE)),"",'LEAGUE MEMBERSHIP'!J18&" - "&VLOOKUP('LEAGUE MEMBERSHIP'!J18,'LEAGUE MEMBERSHIP'!E:G,3,FALSE)&" - "&('LEAGUE MEMBERSHIP'!K18)) -> 11A - RGL-018 - Ray Henderson | S21: =IF(ISERROR(VLOOKUP('LEAGUE MEMBERSHIP'!L18,'LEAGUE MEMBERSHIP'!E:G,3,FALSE)),"",'LEAGUE MEMBERSHIP'!L18&" - "&VLOOKUP('LEAGUE MEMBERSHIP'!L18,'LEAGUE MEMBERSHIP'!E:G,3,FALSE)&" - "&('LEAGUE MEMBERSHIP'!M18)) -> 11B - RGL-044 - Zachary Wallace
A22: =LEFT(RIGHT($P$5,LEN($P$5)-FIND("RGL",$P$5)+1),7)&" 8" -> RGL-046 8 | P22: =IF(ISERROR(VLOOKUP('LEAGUE MEMBERSHIP'!J19,'LEAGUE MEMBERSHIP'!E:G,3,FALSE)),"",'LEAGUE MEMBERSHIP'!J19&" - "&VLOOKUP('LEAGUE MEMBERSHIP'!J19,'LEAGUE MEMBERSHIP'!E:G,3,FALSE)&" - "&('LEAGUE MEMBERSHIP'!K19)) -> 12A - RGL-050 - Sal Cuifetti | S22: =IF(ISERROR(VLOOKUP('LEAGUE MEMBERSHIP'!L19,'LEAGUE MEMBERSHIP'!E:G,3,FALSE)),"",'LEAGUE MEMBERSHIP'!L19&" - "&VLOOKUP('LEAGUE MEMBERSHIP'!L19,'LEAGUE MEMBERSHIP'!E:G,3,FALSE)&" - "&('LEAGUE MEMBERSHIP'!M19)) -> 12B - RGL-031 - Paul LeBlanc
A23: =LEFT(RIGHT($P$5,LEN($P$5)-FIND("RGL",$P$5)+1),7)&" 9" -> RGL-046 9 | P23: =IF(ISERROR(VLOOKUP('LEAGUE MEMBERSHIP'!J20,'LEAGUE MEMBERSHIP'!E:G,3,FALSE)),"",'LEAGUE MEMBERSHIP'!J20&" - "&VLOOKUP('LEAGUE MEMBERSHIP'!J20,'LEAGUE MEMBERSHIP'!E:G,3,FALSE)&" - "&('LEAGUE MEMBERSHIP'!K20)) -> 13A - RGL-047 - Kyle Currier | S23: =IF(ISERROR(VLOOKUP('LEAGUE MEMBERSHIP'!L20,'LEAGUE MEMBERSHIP'!E:G,3,FALSE)),"",'LEAGUE MEMBERSHIP'!L20&" - "&VLOOKUP('LEAGUE MEMBERSHIP'!L20,'LEAGUE MEMBERSHIP'!E:G,3,FALSE)&" - "&('LEAGUE MEMBERSHIP'!M20)) -> 13B - RGL-010 - Walter Drake
A24: =LEFT(RIGHT($P$5,LEN($P$5)-FIND("RGL",$P$5)+1),7)&" 10" -> RGL-046 10 | P24: =IF(ISERROR(VLOOKUP('LEAGUE MEMBERSHIP'!J21,'LEAGUE MEMBERSHIP'!E:G,3,FALSE)),"",'LEAGUE MEMBERSHIP'!J21&" - "&VLOOKUP('LEAGUE MEMBERSHIP'!J21,'LEAGUE MEMBERSHIP'!E:G,3,FALSE)&" - "&('LEAGUE MEMBERSHIP'!K21)) -> 14A - RGL-008 - Doug Cormier | S24: =IF(ISERROR(VLOOKUP('LEAGUE MEMBERSHIP'!L21,'LEAGUE MEMBERSHIP'!E:G,3,FALSE)),"",'LEAGUE MEMBERSHIP'!L21&" - "&VLOOKUP('LEAGUE MEMBERSHIP'!L21,'LEAGUE MEMBERSHIP'!E:G,3,FALSE)&" - "&('LEAGUE MEMBERSHIP'!M21)) -> 14B - RGL-035 - Ralph Romano, Jr.
A25: =LEFT(RIGHT($P$5,LEN($P$5)-FIND("RGL",$P$5)+1),7)&" 11" -> RGL-046 11 | P25: =IF(ISERROR(VLOOKUP('LEAGUE MEMBERSHIP'!J22,'LEAGUE MEMBERSHIP'!E:G,3,FALSE)),"",'LEAGUE MEMBERSHIP'!J22&" - "&VLOOKUP('LEAGUE MEMBERSHIP'!J22,'LEAGUE MEMBERSHIP'!E:G,3,FALSE)&" - "&('LEAGUE MEMBERSHIP'!K22)) -> 15A - RGL-019 - Tim Hurley | S25: =IF(ISERROR(VLOOKUP('LEAGUE MEMBERSHIP'!L22,'LEAGUE MEMBERSHIP'!E:G,3,FALSE)),"",'LEAGUE MEMBERSHIP'!L22&" - "&VLOOKUP('LEAGUE MEMBERSHIP'!L22,'LEAGUE MEMBERSHIP'!E:G,3,FALSE)&" - "&('LEAGUE MEMBERSHIP'!M22)) -> 15B - RGL-012 - John Elie
P26: =IF(ISERROR(VLOOKUP('LEAGUE MEMBERSHIP'!J23,'LEAGUE MEMBERSHIP'!E:G,3,FALSE)),"",'LEAGUE MEMBERSHIP'!J23&" - "&VLOOKUP('LEAGUE MEMBERSHIP'!J23,'LEAGUE MEMBERSHIP'!E:G,3,FALSE)&" - "&('LEAGUE MEMBERSHIP'!K23)) -> 16A - RGL-066 - Deb DeCarolis | S26: =IF(ISERROR(VLOOKUP('LEAGUE MEMBERSHIP'!L23,'LEAGUE MEMBERSHIP'!E:G,3,FALSE)),"",'LEAGUE MEMBERSHIP'!L23&" - "&VLOOKUP('LEAGUE MEMBERSHIP'!L23,'LEAGUE MEMBERSHIP'!E:G,3,FALSE)&" - "&('LEAGUE MEMBERSHIP'!M23)) -> 16B - RGL-043 - Joey DeCarolis
A27: =RIGHT($P$5,LEN($P$5)-FIND("RGL",$P$5)-9)&" - Avg. Score" -> Ron Eckstrom - Avg. Score | D27: Front | E27: =IF(ISERROR(SUMIF($D$15:$D$25,"="&$D27,E$15:E$25)/COUNTIF($D$15:$D$25,"="&$D27)),"",SUMIF($D$15:$D$25,"="&$D27,E$15:E$25)/COUNTIF($D$15:$D$25,"="&$D27)) -> 5.857142857 | F27: 4.714285714 | G27: 5.857142857 | H27: 4.571428571 | I27: 3.714285714 | J27: 3.428571429 | K27: 5 | L27: 3.428571429 | M27: 4.285714286 | N27: 40.85714286 | P27: =IF(ISERROR(VLOOKUP('LEAGUE MEMBERSHIP'!J24,'LEAGUE MEMBERSHIP'!E:G,3,FALSE)),"",'LEAGUE MEMBERSHIP'!J24&" - "&VLOOKUP('LEAGUE MEMBERSHIP'!J24,'LEAGUE MEMBERSHIP'!E:G,3,FALSE)&" - "&('LEAGUE MEMBERSHIP'!K24)) -> 17A - RGL-003 - Gary Bittner | S27: =IF(ISERROR(VLOOKUP('LEAGUE MEMBERSHIP'!L24,'LEAGUE MEMBERSHIP'!E:G,3,FALSE)),"",'LEAGUE MEMBERSHIP'!L24&" - "&VLOOKUP('LEAGUE MEMBERSHIP'!L24,'LEAGUE MEMBERSHIP'!E:G,3,FALSE)&" - "&('LEAGUE MEMBERSHIP'!M24)) -> 17B - RGL-009 - Mike Dauphinais
B28: League Avg. - Front Side | D28: Front | E28: =IF(ISERROR(SUMIF($D$78:$D$2774,"="&$D28,E$78:E$2774)/COUNTIF($D$78:$D$2774,"="&$D28)),"",SUMIF($D$78:$D$2774,"="&$D28,E$78:E$2774)/COUNTIF($D$78:$D$2774,"="&$D28)) -> 6.965277778 | F28: 5.5 | G28: 6.986111111 | H28: 5.534722222 | I28: 5.059027778 | J28: 4.055555556 | K28: 6.208333333 | L28: 4.041666667 | M28: 4.951388889 | N28: =IF(SUM(E28:M28)<>0,SUM(E28:M28),"") -> 49.30208333 | P28: =IF(ISERROR(VLOOKUP('LEAGUE MEMBERSHIP'!J25,'LEAGUE MEMBERSHIP'!E:G,3,FALSE)),"",'LEAGUE MEMBERSHIP'!J25&" - "&VLOOKUP('LEAGUE MEMBERSHIP'!J25,'LEAGUE MEMBERSHIP'!E:G,3,FALSE)&" - "&('LEAGUE MEMBERSHIP'!K25)) -> 18A - RGL-016 - Norm Gamache | S28: =IF(ISERROR(VLOOKUP('LEAGUE MEMBERSHIP'!L25,'LEAGUE MEMBERSHIP'!E:G,3,FALSE)),"",'LEAGUE MEMBERSHIP'!L25&" - "&VLOOKUP('LEAGUE MEMBERSHIP'!L25,'LEAGUE MEMBERSHIP'!E:G,3,FALSE)&" - "&('LEAGUE MEMBERSHIP'!M25)) -> 18B - RGL-045 - Michelle Bouvier
P29: =IF(ISERROR(VLOOKUP('LEAGUE MEMBERSHIP'!J26,'LEAGUE MEMBERSHIP'!E:G,3,FALSE)),"",'LEAGUE MEMBERSHIP'!J26&" - "&VLOOKUP('LEAGUE MEMBERSHIP'!J26,'LEAGUE MEMBERSHIP'!E:G,3,FALSE)&" - "&('LEAGUE MEMBERSHIP'!K26)) -> 19A - RGL-022 - Gary Leavenworth | S29: =IF(ISERROR(VLOOKUP('LEAGUE MEMBERSHIP'!L26,'LEAGUE MEMBERSHIP'!E:G,3,FALSE)),"",'LEAGUE MEMBERSHIP'!L26&" - "&VLOOKUP('LEAGUE MEMBERSHIP'!L26,'LEAGUE MEMBERSHIP'!E:G,3,FALSE)&" - "&('LEAGUE MEMBERSHIP'!M26)) -> 19B - RGL-023 - Patty Leavenworth
E30: Back | P30: =IF(ISERROR(VLOOKUP('LEAGUE MEMBERSHIP'!J27,'LEAGUE MEMBERSHIP'!E:G,3,FALSE)),"",'LEAGUE MEMBERSHIP'!J27&" - "&VLOOKUP('LEAGUE MEMBERSHIP'!J27,'LEAGUE MEMBERSHIP'!E:G,3,FALSE)&" - "&('LEAGUE MEMBERSHIP'!K27)) -> 20A - RGL-055 - Paul Fontaine | S30: =IF(ISERROR(VLOOKUP('LEAGUE MEMBERSHIP'!L27,'LEAGUE MEMBERSHIP'!E:G,3,FALSE)),"",'LEAGUE MEMBERSHIP'!L27&" - "&VLOOKUP('LEAGUE MEMBERSHIP'!L27,'LEAGUE MEMBERSHIP'!E:G,3,FALSE)&" - "&('LEAGUE MEMBERSHIP'!M27)) -> 20B - RGL-034 - Ralph Romano III
B31: Date | C31: Hcp | D31: Side | E31: 10 | F31: 11 | G31: 12 | H31: 13 | I31: 14 | J31: 15 | K31: 16 | L31: 17 | M31: 18 | N31: Total | P31: =IF(ISERROR(VLOOKUP('LEAGUE MEMBERSHIP'!J28,'LEAGUE MEMBERSHIP'!E:G,3,FALSE)),"",'LEAGUE MEMBERSHIP'!J28&" - "&VLOOKUP('LEAGUE MEMBERSHIP'!J28,'LEAGUE MEMBERSHIP'!E:G,3,FALSE)&" - "&('LEAGUE MEMBERSHIP'!K28)) ->  | S31: =IF(ISERROR(VLOOKUP('LEAGUE MEMBERSHIP'!L28,'LEAGUE MEMBERSHIP'!E:G,3,FALSE)),"",'LEAGUE MEMBERSHIP'!L28&" - "&VLOOKUP('LEAGUE MEMBERSHIP'!L28,'LEAGUE MEMBERSHIP'!E:G,3,FALSE)&" - "&('LEAGUE MEMBERSHIP'!M28)) -> 
C32: Men's Par | E32: 5 | F32: 4 | G32: 4 | H32: 5 | I32: 3 | J32: 4 | K32: 3 | L32: 4 | M32: 4 | N32: =SUM(E32:M32) -> 36 | P32: =IF(ISERROR(VLOOKUP('LEAGUE MEMBERSHIP'!J30,'LEAGUE MEMBERSHIP'!E:G,3,FALSE)),"",'LEAGUE MEMBERSHIP'!J30&" - "&VLOOKUP('LEAGUE MEMBERSHIP'!J30,'LEAGUE MEMBERSHIP'!E:G,3,FALSE)&" - "&('LEAGUE MEMBERSHIP'!K30)) -> Sub1 - RGL-001 - Becky Bartkus | S32: =IF(ISERROR(VLOOKUP('LEAGUE MEMBERSHIP'!J46,'LEAGUE MEMBERSHIP'!E:G,3,FALSE)),"",'LEAGUE MEMBERSHIP'!J46&" - "&VLOOKUP('LEAGUE MEMBERSHIP'!J46,'LEAGUE MEMBERSHIP'!E:G,3,FALSE)&" - "&('LEAGUE MEMBERSHIP'!K46)) -> Sub17 - RGL-064 - Deb Passios
C33: Women's Par | E33: 4 | F33: 4 | G33: 4 | H33: 5 | I33: 3 | J33: 4 | K33: 3 | L33: 4 | M33: 4 | N33: =SUM(E33:M33) -> 35 | P33: =IF(ISERROR(VLOOKUP('LEAGUE MEMBERSHIP'!J31,'LEAGUE MEMBERSHIP'!E:G,3,FALSE)),"",'LEAGUE MEMBERSHIP'!J31&" - "&VLOOKUP('LEAGUE MEMBERSHIP'!J31,'LEAGUE MEMBERSHIP'!E:G,3,FALSE)&" - "&('LEAGUE MEMBERSHIP'!K31)) -> Sub2 - RGL-062 - P.J. Romano | S33: =IF(ISERROR(VLOOKUP('LEAGUE MEMBERSHIP'!J47,'LEAGUE MEMBERSHIP'!E:G,3,FALSE)),"",'LEAGUE MEMBERSHIP'!J47&" - "&VLOOKUP('LEAGUE MEMBERSHIP'!J47,'LEAGUE MEMBERSHIP'!E:G,3,FALSE)&" - "&('LEAGUE MEMBERSHIP'!K47)) -> Sub18 - RGL-030 - Joe Pearson
A34: =LEFT(RIGHT($P$5,LEN($P$5)-FIND("RGL",$P$5)+1),7)&" 12" -> RGL-046 12 | B34: =IF(VLOOKUP($A34,$A$74:$N$2778,B$6,FALSE)<>"",VLOOKUP($A34,$A$74:$N$2778,B$6,FALSE),"") -> 2013-05-01 | C34: 3 | D34: Back | E34: 5 | F34: 5 | G34: 4 | H34: 5 | I34: 3 | J34: 5 | K34: 3 | L34: 4 | M34: 4 | N34: 38 | P34: =IF(ISERROR(VLOOKUP('LEAGUE MEMBERSHIP'!J32,'LEAGUE MEMBERSHIP'!E:G,3,FALSE)),"",'LEAGUE MEMBERSHIP'!J32&" - "&VLOOKUP('LEAGUE MEMBERSHIP'!J32,'LEAGUE MEMBERSHIP'!E:G,3,FALSE)&" - "&('LEAGUE MEMBERSHIP'!K32)) -> Sub3 - RGL-057 - Mike Forbes | S34: =IF(ISERROR(VLOOKUP('LEAGUE MEMBERSHIP'!J48,'LEAGUE MEMBERSHIP'!E:G,3,FALSE)),"",'LEAGUE MEMBERSHIP'!J48&" - "&VLOOKUP('LEAGUE MEMBERSHIP'!J48,'LEAGUE MEMBERSHIP'!E:G,3,FALSE)&" - "&('LEAGUE MEMBERSHIP'!K48)) -> Sub19 - RGL-017 - Audrey Henderson
A35: =LEFT(RIGHT($P$5,LEN($P$5)-FIND("RGL",$P$5)+1),7)&" 13" -> RGL-046 13 | B35: 2013-05-29 | C35: 2 | D35: Back | E35: 8 | F35: 6 | G35: 3 | H35: 7 | I35: 4 | J35: 3 | K35: 4 | L35: 4 | M35: 4 | N35: 43 | P35: =IF(ISERROR(VLOOKUP('LEAGUE MEMBERSHIP'!J33,'LEAGUE MEMBERSHIP'!E:G,3,FALSE)),"",'LEAGUE MEMBERSHIP'!J33&" - "&VLOOKUP('LEAGUE MEMBERSHIP'!J33,'LEAGUE MEMBERSHIP'!E:G,3,FALSE)&" - "&('LEAGUE MEMBERSHIP'!K33)) -> Sub4 - RGL-061 - Mike Romano | S35: =IF(ISERROR(VLOOKUP('LEAGUE MEMBERSHIP'!J49,'LEAGUE MEMBERSHIP'!E:G,3,FALSE)),"",'LEAGUE MEMBERSHIP'!J49&" - "&VLOOKUP('LEAGUE MEMBERSHIP'!J49,'LEAGUE MEMBERSHIP'!E:G,3,FALSE)&" - "&('LEAGUE MEMBERSHIP'!K49)) -> Sub20 - RGL-038 - David St. Jean
A36: =LEFT(RIGHT($P$5,LEN($P$5)-FIND("RGL",$P$5)+1),7)&" 14" -> RGL-046 14 | B36: 2013-06-12 | C36: 2 | D36: Back | E36: 5 | F36: 4 | G36: 4 | H36: 7 | I36: 4 | J36: 4 | K36: 4 | L36: 4 | M36: 4 | N36: 40 | P36: =IF(ISERROR(VLOOKUP('LEAGUE MEMBERSHIP'!J34,'LEAGUE MEMBERSHIP'!E:G,3,FALSE)),"",'LEAGUE MEMBERSHIP'!J34&" - "&VLOOKUP('LEAGUE MEMBERSHIP'!J34,'LEAGUE MEMBERSHIP'!E:G,3,FALSE)&" - "&('LEAGUE MEMBERSHIP'!K34)) -> Sub5 - RGL-059 - Jono Normandin | S36: =IF(ISERROR(VLOOKUP('LEAGUE MEMBERSHIP'!J50,'LEAGUE MEMBERSHIP'!E:G,3,FALSE)),"",'LEAGUE MEMBERSHIP'!J50&" - "&VLOOKUP('LEAGUE MEMBERSHIP'!J50,'LEAGUE MEMBERSHIP'!E:G,3,FALSE)&" - "&('LEAGUE MEMBERSHIP'!K50)) -> Sub21 - RGL-039 - Dennis St. Jean
A37: =LEFT(RIGHT($P$5,LEN($P$5)-FIND("RGL",$P$5)+1),7)&" 15" -> RGL-046 15 | B37: 2013-06-26 | C37: 3 | D37: Back | E37: 5 | F37: 4 | G37: 4 | H37: 4 | I37: 3 | J37: 6 | K37: 3 | L37: 3 | M37: 4 | N37: 36 | P37: =IF(ISERROR(VLOOKUP('LEAGUE MEMBERSHIP'!J35,'LEAGUE MEMBERSHIP'!E:G,3,FALSE)),"",'LEAGUE MEMBERSHIP'!J35&" - "&VLOOKUP('LEAGUE MEMBERSHIP'!J35,'LEAGUE MEMBERSHIP'!E:G,3,FALSE)&" - "&('LEAGUE MEMBERSHIP'!K35)) -> Sub6 - RGL-058 - Scott Leavenworth | S37: =IF(ISERROR(VLOOKUP('LEAGUE MEMBERSHIP'!J51,'LEAGUE MEMBERSHIP'!E:G,3,FALSE)),"",'LEAGUE MEMBERSHIP'!J51&" - "&VLOOKUP('LEAGUE MEMBERSHIP'!J51,'LEAGUE MEMBERSHIP'!E:G,3,FALSE)&" - "&('LEAGUE MEMBERSHIP'!K51)) -> Sub22 - RGL-049 - Joe Fratticelli
A38: =LEFT(RIGHT($P$5,LEN($P$5)-FIND("RGL",$P$5)+1),7)&" 16" -> RGL-046 16 | B38: 2013-07-24 | C38: 4 | D38: Back | E38: 5 | F38: 5 | G38: 5 | H38: 5 | I38: 3 | J38: 3 | K38: 3 | L38: 4 | M38: 6 | N38: 39 | P38: =IF(ISERROR(VLOOKUP('LEAGUE MEMBERSHIP'!J36,'LEAGUE MEMBERSHIP'!E:G,3,FALSE)),"",'LEAGUE MEMBERSHIP'!J36&" - "&VLOOKUP('LEAGUE MEMBERSHIP'!J36,'LEAGUE MEMBERSHIP'!E:G,3,FALSE)&" - "&('LEAGUE MEMBERSHIP'!K36)) -> Sub7 - RGL-056 - PJ Fontaine | S38: =IF(ISERROR(VLOOKUP('LEAGUE MEMBERSHIP'!J52,'LEAGUE MEMBERSHIP'!E:G,3,FALSE)),"",'LEAGUE MEMBERSHIP'!J52&" - "&VLOOKUP('LEAGUE MEMBERSHIP'!J52,'LEAGUE MEMBERSHIP'!E:G,3,FALSE)&" - "&('LEAGUE MEMBERSHIP'!K52)) -> Sub23 - RGL-052 - Pete Collette
A39: =LEFT(RIGHT($P$5,LEN($P$5)-FIND("RGL",$P$5)+1),7)&" 17" -> RGL-046 17 | B39: 2013-08-07 | C39: 4 | D39: Back | E39: 5 | F39: 5 | G39: 4 | H39: 7 | I39: 3 | J39: 4 | K39: 3 | L39: 5 | M39: 4 | N39: 40 | P39: =IF(ISERROR(VLOOKUP('LEAGUE MEMBERSHIP'!J37,'LEAGUE MEMBERSHIP'!E:G,3,FALSE)),"",'LEAGUE MEMBERSHIP'!J37&" - "&VLOOKUP('LEAGUE MEMBERSHIP'!J37,'LEAGUE MEMBERSHIP'!E:G,3,FALSE)&" - "&('LEAGUE MEMBERSHIP'!K37)) -> Sub8 - RGL-051 - Yogi DiPasquale | S39: =IF(ISERROR(VLOOKUP('LEAGUE MEMBERSHIP'!J53,'LEAGUE MEMBERSHIP'!E:G,3,FALSE)),"",'LEAGUE MEMBERSHIP'!J53&" - "&VLOOKUP('LEAGUE MEMBERSHIP'!J53,'LEAGUE MEMBERSHIP'!E:G,3,FALSE)&" - "&('LEAGUE MEMBERSHIP'!K53)) -> Sub24 - RGL-054 - Shane McCarthy
A40: =LEFT(RIGHT($P$5,LEN($P$5)-FIND("RGL",$P$5)+1),7)&" 18" -> RGL-046 18 | B40: 2013-08-21 | C40: 4 | D40: Back | E40: 5 | F40: 5 | G40: 4 | H40: 4 | I40: 4 | J40: 6 | K40: 3 | L40: 4 | M40: 4 | N40: 39 | P40: =IF(ISERROR(VLOOKUP('LEAGUE MEMBERSHIP'!J38,'LEAGUE MEMBERSHIP'!E:G,3,FALSE)),"",'LEAGUE MEMBERSHIP'!J38&" - "&VLOOKUP('LEAGUE MEMBERSHIP'!J38,'LEAGUE MEMBERSHIP'!E:G,3,FALSE)&" - "&('LEAGUE MEMBERSHIP'!K38)) -> Sub9 - RGL-013 - Jon Friberg | S40: =IF(ISERROR(VLOOKUP('LEAGUE MEMBERSHIP'!J54,'LEAGUE MEMBERSHIP'!E:G,3,FALSE)),"",'LEAGUE MEMBERSHIP'!J54&" - "&VLOOKUP('LEAGUE MEMBERSHIP'!J54,'LEAGUE MEMBERSHIP'!E:G,3,FALSE)&" - "&('LEAGUE MEMBERSHIP'!K54)) -> Sub25 - RGL-067 - Brenda Louney
A41: =LEFT(RIGHT($P$5,LEN($P$5)-FIND("RGL",$P$5)+1),7)&" 19" -> RGL-046 19 | P41: =IF(ISERROR(VLOOKUP('LEAGUE MEMBERSHIP'!J39,'LEAGUE MEMBERSHIP'!E:G,3,FALSE)),"",'LEAGUE MEMBERSHIP'!J39&" - "&VLOOKUP('LEAGUE MEMBERSHIP'!J39,'LEAGUE MEMBERSHIP'!E:G,3,FALSE)&" - "&('LEAGUE MEMBERSHIP'!K39)) -> Sub10 - RGL-065 - Jim Hedlund | S41: =IF(ISERROR(VLOOKUP('LEAGUE MEMBERSHIP'!J55,'LEAGUE MEMBERSHIP'!E:G,3,FALSE)),"",'LEAGUE MEMBERSHIP'!J55&" - "&VLOOKUP('LEAGUE MEMBERSHIP'!J55,'LEAGUE MEMBERSHIP'!E:G,3,FALSE)&" - "&('LEAGUE MEMBERSHIP'!K55)) -> Sub26 - RGL-068 - Mark Louney
A42: =LEFT(RIGHT($P$5,LEN($P$5)-FIND("RGL",$P$5)+1),7)&" 20" -> RGL-046 20 | P42: =IF(ISERROR(VLOOKUP('LEAGUE MEMBERSHIP'!J40,'LEAGUE MEMBERSHIP'!E:G,3,FALSE)),"",'LEAGUE MEMBERSHIP'!J40&" - "&VLOOKUP('LEAGUE MEMBERSHIP'!J40,'LEAGUE MEMBERSHIP'!E:G,3,FALSE)&" - "&('LEAGUE MEMBERSHIP'!K40)) -> Sub11 - RGL-041 - Don Shank | S42: =IF(ISERROR(VLOOKUP('LEAGUE MEMBERSHIP'!J56,'LEAGUE MEMBERSHIP'!E:G,3,FALSE)),"",'LEAGUE MEMBERSHIP'!J56&" - "&VLOOKUP('LEAGUE MEMBERSHIP'!J56,'LEAGUE MEMBERSHIP'!E:G,3,FALSE)&" - "&('LEAGUE MEMBERSHIP'!K56)) -> Sub27 - RGL-069 - Victor Szewczyk
A43: =LEFT(RIGHT($P$5,LEN($P$5)-FIND("RGL",$P$5)+1),7)&" 21" -> RGL-046 21 | P43: =IF(ISERROR(VLOOKUP('LEAGUE MEMBERSHIP'!J41,'LEAGUE MEMBERSHIP'!E:G,3,FALSE)),"",'LEAGUE MEMBERSHIP'!J41&" - "&VLOOKUP('LEAGUE MEMBERSHIP'!J41,'LEAGUE MEMBERSHIP'!E:G,3,FALSE)&" - "&('LEAGUE MEMBERSHIP'!K41)) -> Sub12 - RGL-002 - Chris Barry | S43: =IF(ISERROR(VLOOKUP('LEAGUE MEMBERSHIP'!J57,'LEAGUE MEMBERSHIP'!E:G,3,FALSE)),"",'LEAGUE MEMBERSHIP'!J57&" - "&VLOOKUP('LEAGUE MEMBERSHIP'!J57,'LEAGUE MEMBERSHIP'!E:G,3,FALSE)&" - "&('LEAGUE MEMBERSHIP'!K57)) -> Sub28 - RGL-004 - Matt Lee
A44: =LEFT(RIGHT($P$5,LEN($P$5)-FIND("RGL",$P$5)+1),7)&" 22" -> RGL-046 22 | P44: =IF(ISERROR(VLOOKUP('LEAGUE MEMBERSHIP'!J42,'LEAGUE MEMBERSHIP'!E:G,3,FALSE)),"",'LEAGUE MEMBERSHIP'!J42&" - "&VLOOKUP('LEAGUE MEMBERSHIP'!J42,'LEAGUE MEMBERSHIP'!E:G,3,FALSE)&" - "&('LEAGUE MEMBERSHIP'!K42)) -> Sub13 - RGL-011 - Tom Farias | S44: =IF(ISERROR(VLOOKUP('LEAGUE MEMBERSHIP'!J58,'LEAGUE MEMBERSHIP'!E:G,3,FALSE)),"",'LEAGUE MEMBERSHIP'!J58&" - "&VLOOKUP('LEAGUE MEMBERSHIP'!J58,'LEAGUE MEMBERSHIP'!E:G,3,FALSE)&" - "&('LEAGUE MEMBERSHIP'!K58)) -> Sub29 - RGL-053 - Jay Melansom
A45: =LEFT(RIGHT($P$5,LEN($P$5)-FIND("RGL",$P$5)+1),7)&" 23" -> RGL-046 23 | P45: =IF(ISERROR(VLOOKUP('LEAGUE MEMBERSHIP'!J43,'LEAGUE MEMBERSHIP'!E:G,3,FALSE)),"",'LEAGUE MEMBERSHIP'!J43&" - "&VLOOKUP('LEAGUE MEMBERSHIP'!J43,'LEAGUE MEMBERSHIP'!E:G,3,FALSE)&" - "&('LEAGUE MEMBERSHIP'!K43)) -> Sub14 - RGL-025 - Jeff Erskine | S45: =IF(ISERROR(VLOOKUP('LEAGUE MEMBERSHIP'!J59,'LEAGUE MEMBERSHIP'!E:G,3,FALSE)),"",'LEAGUE MEMBERSHIP'!J59&" - "&VLOOKUP('LEAGUE MEMBERSHIP'!J59,'LEAGUE MEMBERSHIP'!E:G,3,FALSE)&" - "&('LEAGUE MEMBERSHIP'!K59)) -> 
A46: =RIGHT($P$5,LEN($P$5)-FIND("RGL",$P$5)-9)&" - Avg. Score" -> Ron Eckstrom - Avg. Score | D46: Back | E46: =IF(ISERROR(SUMIF($D$34:$D$45,"="&$D46,E$34:E$45)/COUNTIF($D$34:$D$45,"="&$D46)),"",SUMIF($D$34:$D$45,"="&$D46,E$34:E$45)/COUNTIF($D$34:$D$45,"="&$D46)) -> 5.428571429 | F46: 4.857142857 | G46: 4 | H46: 5.571428571 | I46: 3.428571429 | J46: 4.428571429 | K46: 3.285714286 | L46: 4 | M46: 4.285714286 | N46: =IF(SUM(E46:M46)<>0,SUM(E46:M46),"") -> 39.28571429 | P46: =IF(ISERROR(VLOOKUP('LEAGUE MEMBERSHIP'!J44,'LEAGUE MEMBERSHIP'!E:G,3,FALSE)),"",'LEAGUE MEMBERSHIP'!J44&" - "&VLOOKUP('LEAGUE MEMBERSHIP'!J44,'LEAGUE MEMBERSHIP'!E:G,3,FALSE)&" - "&('LEAGUE MEMBERSHIP'!K44)) -> Sub15 - RGL-042 - Jeff Richard
A47: League Avg. - Back Side | D47: Back | E47: =IF(ISERROR(SUMIF($D$78:$D$2774,"="&$D47,E$78:E$2774)/COUNTIF($D$78:$D$2774,"="&$D47)),"",SUMIF($D$78:$D$2774,"="&$D47,E$78:E$2774)/COUNTIF($D$78:$D$2774,"="&$D47)) -> 6.192307692 | F47: 5.423076923 | G47: 5.227272727 | H47: 6.283216783 | I47: 4.286713287 | J47: 5.265734266 | K47: 4.202797203 | L47: 4.814685315 | M47: 5.206293706 | N47: =IF(SUM(E47:M47)<>0,SUM(E47:M47),"") -> 46.9020979 | P47: =IF(ISERROR(VLOOKUP('LEAGUE MEMBERSHIP'!J45,'LEAGUE MEMBERSHIP'!E:G,3,FALSE)),"",'LEAGUE MEMBERSHIP'!J45&" - "&VLOOKUP('LEAGUE MEMBERSHIP'!J45,'LEAGUE MEMBERSHIP'!E:G,3,FALSE)&" - "&('LEAGUE MEMBERSHIP'!K45)) -> Sub16 - RGL-029 - Paul Stedman
F64: 1/10 | G64: 2/11 | H64: 3/12 | I64: 4/13 | J64: 5/14 | K64: 6/15 | L64: 7/16 | M64: 8/17 | N64: 9/18 | O64: Total
A65: ='SCORE ENTRY WORKSHEET'!B18 -> 4A | B65: =VLOOKUP(A65,'LEAGUE MEMBERSHIP'!E$8:G$107,3,FALSE) -> RGL-032 | C65: ='SCORE ENTRY WORKSHEET'!N13 -> 2013-08-28 | D65: ='SCORE ENTRY WORKSHEET'!A18 -> 14 | E65: =IF('SCORE ENTRY WORKSHEET'!$N$14="BACK","Back",IF('SCORE ENTRY WORKSHEET'!$N$14="FRONT","Front","")) -> Front | F65: =IF('SCORE ENTRY WORKSHEET'!D18<>"",'SCORE ENTRY WORKSHEET'!D18,"") ->  | G65: =IF('SCORE ENTRY WORKSHEET'!E18<>"",'SCORE ENTRY WORKSHEET'!E18,"") ->  | H65: =IF('SCORE ENTRY WORKSHEET'!F18<>"",'SCORE ENTRY WORKSHEET'!F18,"") ->  | I65: =IF('SCORE ENTRY WORKSHEET'!G18<>"",'SCORE ENTRY WORKSHEET'!G18,"") ->  | J65: =IF('SCORE ENTRY WORKSHEET'!H18<>"",'SCORE ENTRY WORKSHEET'!H18,"") ->  | K65: =IF('SCORE ENTRY WORKSHEET'!I18<>"",'SCORE ENTRY WORKSHEET'!I18,"") ->  | L65: =IF('SCORE ENTRY WORKSHEET'!J18<>"",'SCORE ENTRY WORKSHEET'!J18,"") ->  | M65: =IF('SCORE ENTRY WORKSHEET'!K18<>"",'SCORE ENTRY WORKSHEET'!K18,"") ->  | N65: =IF('SCORE ENTRY WORKSHEET'!L18<>"",'SCORE ENTRY WORKSHEET'!L18,"") ->  | O65: =IF('SCORE ENTRY WORKSHEET'!M18<>"",'SCORE ENTRY WORKSHEET'!M18,"") -> 
A66: ='SCORE ENTRY WORKSHEET'!B20 -> 4B | B66: =VLOOKUP(A66,'LEAGUE MEMBERSHIP'!E$8:G$107,3,FALSE) -> RGL-021 | C66: ='SCORE ENTRY WORKSHEET'!N13 -> 2013-08-28 | D66: ='SCORE ENTRY WORKSHEET'!A20 -> 14 | E66: =IF('SCORE ENTRY WORKSHEET'!$N$14="BACK","Back",IF('SCORE ENTRY WORKSHEET'!$N$14="FRONT","Front","")) -> Front | F66: =IF('SCORE ENTRY WORKSHEET'!D20<>"",'SCORE ENTRY WORKSHEET'!D20,"") ->  | G66: =IF('SCORE ENTRY WORKSHEET'!E20<>"",'SCORE ENTRY WORKSHEET'!E20,"") ->  | H66: =IF('SCORE ENTRY WORKSHEET'!F20<>"",'SCORE ENTRY WORKSHEET'!F20,"") ->  | I66: =IF('SCORE ENTRY WORKSHEET'!G20<>"",'SCORE ENTRY WORKSHEET'!G20,"") ->  | J66: =IF('SCORE ENTRY WORKSHEET'!H20<>"",'SCORE ENTRY WORKSHEET'!H20,"") ->  | K66: =IF('SCORE ENTRY WORKSHEET'!I20<>"",'SCORE ENTRY WORKSHEET'!I20,"") ->  | L66: =IF('SCORE ENTRY WORKSHEET'!J20<>"",'SCORE ENTRY WORKSHEET'!J20,"") ->  | M66: =IF('SCORE ENTRY WORKSHEET'!K20<>"",'SCORE ENTRY WORKSHEET'!K20,"") ->  | N66: =IF('SCORE ENTRY WORKSHEET'!L20<>"",'SCORE ENTRY WORKSHEET'!L20,"") ->  | O66: =IF('SCORE ENTRY WORKSHEET'!M20<>"",'SCORE ENTRY WORKSHEET'!M20,"") -> 
A67: ='SCORE ENTRY WORKSHEET'!B24 -> 16A | B67: =VLOOKUP(A67,'LEAGUE MEMBERSHIP'!E$8:G$107,3,FALSE) -> RGL-066 | C67: ='SCORE ENTRY WORKSHEET'!N13 -> 2013-08-28 | D67: ='SCORE ENTRY WORKSHEET'!A24 -> 10 | E67: =IF('SCORE ENTRY WORKSHEET'!$N$14="BACK","Back",IF('SCORE ENTRY WORKSHEET'!$N$14="FRONT","Front","")) -> Front | F67: =IF('SCORE ENTRY WORKSHEET'!D24<>"",'SCORE ENTRY WORKSHEET'!D24,"") ->  | G67: =IF('SCORE ENTRY WORKSHEET'!E24<>"",'SCORE ENTRY WORKSHEET'!E24,"") ->  | H67: =IF('SCORE ENTRY WORKSHEET'!F24<>"",'SCORE ENTRY WORKSHEET'!F24,"") ->  | I67: =IF('SCORE ENTRY WORKSHEET'!G24<>"",'SCORE ENTRY WORKSHEET'!G24,"") ->  | J67: =IF('SCORE ENTRY WORKSHEET'!H24<>"",'SCORE ENTRY WORKSHEET'!H24,"") ->  | K67: =IF('SCORE ENTRY WORKSHEET'!I24<>"",'SCORE ENTRY WORKSHEET'!I24,"") ->  | L67: =IF('SCORE ENTRY WORKSHEET'!J24<>"",'SCORE ENTRY WORKSHEET'!J24,"") ->  | M67: =IF('SCORE ENTRY WORKSHEET'!K24<>"",'SCORE ENTRY WORKSHEET'!K24,"") ->  | N67: =IF('SCORE ENTRY WORKSHEET'!L24<>"",'SCORE ENTRY WORKSHEET'!L24,"") ->  | O67: =IF('SCORE ENTRY WORKSHEET'!M24<>"",'SCORE ENTRY WORKSHEET'!M24,"") -> 
A68: ='SCORE ENTRY WORKSHEET'!B26 -> 16B | B68: =VLOOKUP(A68,'LEAGUE MEMBERSHIP'!E$8:G$107,3,FALSE) -> RGL-043 | C68: ='SCORE ENTRY WORKSHEET'!N13 -> 2013-08-28 | D68: ='SCORE ENTRY WORKSHEET'!A26 -> 6 | E68: =IF('SCORE ENTRY WORKSHEET'!$N$14="BACK","Back",IF('SCORE ENTRY WORKSHEET'!$N$14="FRONT","Front","")) -> Front | F68: =IF('SCORE ENTRY WORKSHEET'!D26<>"",'SCORE ENTRY WORKSHEET'!D26,"") ->  | G68: =IF('SCORE ENTRY WORKSHEET'!E26<>"",'SCORE ENTRY WORKSHEET'!E26,"") ->  | H68: =IF('SCORE ENTRY WORKSHEET'!F26<>"",'SCORE ENTRY WORKSHEET'!F26,"") ->  | I68: =IF('SCORE ENTRY WORKSHEET'!G26<>"",'SCORE ENTRY WORKSHEET'!G26,"") ->  | J68: =IF('SCORE ENTRY WORKSHEET'!H26<>"",'SCORE ENTRY WORKSHEET'!H26,"") ->  | K68: =IF('SCORE ENTRY WORKSHEET'!I26<>"",'SCORE ENTRY WORKSHEET'!I26,"") ->  | L68: =IF('SCORE ENTRY WORKSHEET'!J26<>"",'SCORE ENTRY WORKSHEET'!J26,"") ->  | M68: =IF('SCORE ENTRY WORKSHEET'!K26<>"",'SCORE ENTRY WORKSHEET'!K26,"") ->  | N68: =IF('SCORE ENTRY WORKSHEET'!L26<>"",'SCORE ENTRY WORKSHEET'!L26,"") ->  | O68: =IF('SCORE ENTRY WORKSHEET'!M26<>"",'SCORE ENTRY WORKSHEET'!M26,"") -> 
P71: 0.8
O72: =Q73 -> 0 | P72: =IF(Q73<>"",ROUND($P$71*(AVERAGE(Q73:U73)-36),0),"") -> 
A74: Player # | B74: Date | C74: Handicap | D74: Side | E74: 1 / 10 | F74: 2 / 11 | G74: 3 / 12 | H74: 4 / 13 | I74: 5 / 14 | J74: 6 / 15 | K74: 7 / 16 | L74: 8 / 17 | M74: 9 / 18 | P74: Current Hcp | Q74: Sc. 1 | R74: Sc 2 | S74: Sc. 3 | T74: Sc. 4 | U74: Sc. 5
A76: RGL-001 | B76: x | N76: x | O76: =Q77 -> 42 | P76: =IF(Q77<>"",ROUND($P$71*(AVERAGE(Q77:U77)-36),0),"") -> 9 | Q76: 2010-08-11 | R76: 2009-09-09 | S76: 2009-09-02 | T76: 2009-08-26 | U76: 2009-08-19
B77: x | N77: x | Q77: 42 | R77: 42 | S77: 56 | T77: 47 | U77: 52
A78: RGL-001 1
A79: RGL-001 2
A80: RGL-001 3
A81: RGL-001 4
A82: RGL-001 5
A83: RGL-001 6
A84: RGL-001 7
A85: RGL-001 8
A86: RGL-001 9
A87: RGL-001 10
A88: RGL-001 11
B89: x | N89: x
A90: RGL-001 12
A91: RGL-001 13
A92: RGL-001 14
A93: RGL-001 15
A94: RGL-001 16
A95: RGL-001 17
A96: RGL-001 18
A97: RGL-001 19
A98: RGL-001 20
A99: RGL-001 21
A100: RGL-001 22
A101: RGL-001 23
A103: RGL-002 | B103: x | N103: x | O103: =Q104 -> 60 | P103: =IF(Q104<>"",ROUND($P$71*(AVERAGE(Q104:U104)-36),0),"") -> 11 | Q103: 2011-08-03 | R103: 2011-06-15 | S103: 2011-05-25 | T103: Calc. | U103: Calc.
B104: x | N104: x | Q104: 60 | R104: 56 | S104: 62 | T104: 36 | U104: 36
A105: RGL-002 1
A106: RGL-002 2
A107: RGL-002 3
A108: RGL-002 4
A109: RGL-002 5
A110: RGL-002 6
A111: RGL-002 7
A112: RGL-002 8
A113: RGL-002 9
A114: RGL-002 10
A115: RGL-002 11
B116: x | N116: x
A117: RGL-002 12
A118: RGL-002 13
A119: RGL-002 14
A120: RGL-002 15
A121: RGL-002 16
A122: RGL-002 17
A123: RGL-002 18
A124: RGL-002 19
A125: RGL-002 20
A126: RGL-002 21
A127: RGL-002 22
A128: RGL-002 23
A130: RGL-003 | B130: x | N130: x | O130: 43 | P130: =IF(Q131<>"",ROUND($P$71*(AVERAGE(Q131:U131)-36),0),"") -> 5 | Q130: 2013-08-28 | R130: 2013-08-21 | S130: 2013-08-07 | T130: 2013-07-31 | U130: 2013-07-24 | V130: 2013-07-17 | W130: 2013-07-03 | X130: 2013-06-26 | Y130: 2013-06-19 | Z130: 2013-06-12 | AA130: 2013-06-05 | AB130: 2013-05-29 | AC130: 2013-05-22 | AD130: 2013-05-15 | AE130: 2013-05-01 | AF130: 2012-09-05 | AG130: 2012-08-29 | AH130: 2012-08-22 | AI130: 2012-08-15 | AJ130: 2012-08-08 | AK130: 2012-07-25 | AL130: 2012-07-18 | AM130: 2012-07-11 | AN130: 2012-06-27 | AO130: 2012-06-20 | AP130: 2012-06-13 | AQ130: 2012-05-30 | AR130: 2012-05-23 | AS130: 2012-05-16 | AT130: 2012-05-09 | AU130: 2012-05-02 | AV130: 2012-04-25 | AW130: 2011-08-24 | AX130: 2011-08-10 | AY130: 2011-08-03 | AZ130: 2011-07-27 | BA130: 2011-07-20
B131: x | N131: x | Q131: 43 | R131: 38 | S131: 42 | T131: 43 | U131: 45 | V131: 44 | W131: 49 | X131: 45 | Y131: 47 | Z131: 43 | AA131: 50 | AB131: 43 | AC131: 46 | AD131: 45 | AE131: 50 | AF131: 48 | AG131: 42 | AH131: 45 | AI131: 49 | AJ131: 48 | AK131: 45 | AL131: 42 | AM131: 43 | AN131: 45 | AO131: 48 | AP131: 46 | AQ131: 44 | AR131: 47 | AS131: 47 | AT131: 49 | AU131: 42 | AV131: 50 | AW131: 49 | AX131: 47 | AY131: 51 | AZ131: 46 | BA131: 51
A132: RGL-003 1 | B132: 2013-05-22 | C132: 8 | D132: Front | E132: 7 | F132: 5 | G132: 7 | H132: 5 | I132: 4 | J132: 4 | K132: 6 | L132: 3 | M132: 5
A133: RGL-003 2 | B133: 2013-06-05 | C133: 8 | D133: Front | E133: 5 | F133: 8 | G133: 7 | H133: 7 | I133: 4 | J133: 4 | K133: 4 | L133: 5 | M133: 6
A134: RGL-003 3 | B134: 2013-06-19 | C134: 8 | D134: Front | E134: 6 | F134: 6 | G134: 7 | H134: 6 | I134: 4 | J134: 3 | K134: 7 | L134: 3 | M134: 5
A135: RGL-003 4 | B135: 2013-07-03 | C135: 8 | D135: Front | E135: 7 | F135: 5 | G135: 6 | H135: 5 | I135: 5 | J135: 3 | K135: 7 | L135: 4 | M135: 7
A136: RGL-003 5 | B136: 2013-07-17 | C136: 9 | D136: Front | E136: 7 | F136: 8 | G136: 6 | H136: 4 | I136: 4 | J136: 3 | K136: 5 | L136: 3 | M136: 4
A137: RGL-003 6 | B137: 2013-07-31 | C137: 8 | D137: Front | E137: 5 | F137: 4 | G137: 6 | H137: 6 | I137: 3 | J137: 3 | K137: 6 | L137: 4 | M137: 6
A138: RGL-003 7 | B138: 2013-08-28 | C138: 5 | D138: Front | E138: 5 | F138: 4 | G138: 6 | H138: 5 | I138: 5 | J138: 4 | K138: 6 | L138: 4 | M138: 4
A139: RGL-003 8
A140: RGL-003 9
A141: RGL-003 10
A142: RGL-003 11
B143: x | N143: x
A144: RGL-003 12 | B144: 2013-05-01 | C144: 8 | D144: Back | E144: 7 | F144: 8 | G144: 8 | H144: 6 | I144: 6 | J144: 4 | K144: 2 | L144: 4 | M144: 5
A145: RGL-003 13 | B145: 2013-05-15 | C145: 9 | D145: Back | E145: 6 | F145: 5 | G145: 6 | H145: 5 | I145: 5 | J145: 6 | K145: 2 | L145: 6 | M145: 4
A146: RGL-003 14 | B146: 2013-05-29 | C146: 8 | D146: Back | E146: 5 | F146: 5 | G146: 6 | H146: 7 | I146: 4 | J146: 3 | K146: 4 | L146: 4 | M146: 5
A147: RGL-003 15 | B147: 2013-06-12 | C147: 9 | D147: Back | E147: 7 | F147: 4 | G147: 5 | H147: 6 | I147: 4 | J147: 5 | K147: 3 | L147: 4 | M147: 5
A148: RGL-003 16 | B148: 2013-06-26 | C148: 8 | D148: Back | E148: 8 | F148: 5 | G148: 4 | H148: 5 | I148: 3 | J148: 7 | K148: 3 | L148: 6 | M148: 4
A149: RGL-003 17 | B149: 2013-07-24 | C149: 8 | D149: Back | E149: 6 | F149: 7 | G149: 4 | H149: 7 | I149: 3 | J149: 4 | K149: 4 | L149: 4 | M149: 6
A150: RGL-003 18 | B150: 2013-08-07 | C150: 7 | D150: Back | E150: 5 | F150: 4 | G150: 5 | H150: 6 | I150: 5 | J150: 4 | K150: 3 | L150: 4 | M150: 6
A151: RGL-003 19 | B151: 2013-08-21 | C151: 7 | D151: Back | E151: 4 | F151: 5 | G151: 4 | H151: 5 | I151: 4 | J151: 5 | K151: 3 | L151: 4 | M151: 4
A152: RGL-003 20
A153: RGL-003 21
A154: RGL-003 22
A155: RGL-003 23
A157: RGL-004 | B157: x | N157: x | O157: 43 | P157: =IF(Q158<>"",ROUND($P$71*(AVERAGE(Q158:U158)-36),0),"") -> 1 | Q157: 2013-08-07 | R157: Calc. | S157: Calc. | T157: Calc. | U157: Calc. | V157: Calc.
B158: x | N158: x | Q158: 43 | R158: 36 | S158: 36 | T158: 36 | U158: 36 | V158: 36
A159: RGL-004 1
A160: RGL-004 2
A161: RGL-004 3
A162: RGL-004 4
A163: RGL-004 5
A164: RGL-004 6
A165: RGL-004 7
A166: RGL-004 8
A167: RGL-004 9
A168: RGL-004 10
A169: RGL-004 11
B170: x | N170: x
A171: RGL-004 12 | B171: 2013-08-07 | C171: 0 | D171: Back | E171: 5 | F171: 4 | G171: 5 | H171: 8 | I171: 5 | J171: 6 | K171: 3 | L171: 3 | M171: 4
A172: RGL-004 13
A173: RGL-004 14
A174: RGL-004 15
A175: RGL-004 16
A176: RGL-004 17
A177: RGL-004 18
A178: RGL-004 19
A179: RGL-004 20
A180: RGL-004 21
A181: RGL-004 22
A182: RGL-004 23
A184: RGL-005 | B184: x | N184: x | O184: 50 | P184: =IF(Q185<>"",ROUND($P$71*(AVERAGE(Q185:U185)-36),0),"") -> 7 | Q184: 2013-08-28 | R184: 2013-08-14 | S184: 2013-08-07 | T184: 2013-07-31 | U184: 2013-07-24 | V184: 2013-07-17 | W184: 2013-07-03 | X184: 2013-06-26 | Y184: 2013-06-19 | Z184: 2013-06-12 | AA184: 2013-06-05 | AB184: 2013-05-29 | AC184: 2013-05-22 | AD184: 2013-05-15 | AE184: 2013-05-01 | AF184: 2012-09-05 | AG184: 2012-08-29 | AH184: 2012-08-22 | AI184: 2012-08-15 | AJ184: 2012-08-01 | AK184: 2012-07-25 | AL184: 2012-07-18 | AM184: 2012-07-11 | AN184: 2012-06-27 | AO184: 2012-06-20 | AP184: 2012-06-13 | AQ184: 2012-05-30 | AR184: 2012-05-23 | AS184: 2012-05-16 | AT184: 2012-05-02 | AU184: 2012-04-25 | AV184: 2011-08-24 | AW184: 2011-08-17 | AX184: 2011-08-03 | AY184: 2011-07-27 | AZ184: 2011-07-20
B185: x | N185: x | Q185: 50 | R185: 48 | S185: 43 | T185: 44 | U185: 41 | V185: 52 | W185: 49 | X185: 46 | Y185: 48 | Z185: 46 | AA185: 55 | AB185: 50 | AC185: 45 | AD185: 45 | AE185: 38 | AF185: 51 | AG185: 46 | AH185: 44 | AI185: 41 | AJ185: 45 | AK185: 49 | AL185: 45 | AM185: 43 | AN185: 45 | AO185: 44 | AP185: 38 | AQ185: 44 | AR185: 48 | AS185: 46 | AT185: 43 | AU185: 44 | AV185: 49 | AW185: 53 | AX185: 44 | AY185: 46 | AZ185: 43
A186: RGL-005 1 | B186: 2013-05-22 | C186: 7 | D186: Front | E186: 9 | F186: 5 | G186: 4 | H186: 5 | I186: 5 | J186: 4 | K186: 5 | L186: 3 | M186: 5
A187: RGL-005 2 | B187: 2013-06-05 | C187: 8 | D187: Front | E187: 8 | F187: 6 | G187: 8 | H187: 8 | I187: 4 | J187: 4 | K187: 7 | L187: 4 | M187: 6
A188: RGL-005 3 | B188: 2013-06-19 | C188: 10 | D188: Front | E188: 7 | F188: 6 | G188: 5 | H188: 5 | I188: 6 | J188: 5 | K188: 8 | L188: 3 | M188: 3
A189: RGL-005 4 | B189: 2013-07-03 | C189: 10 | D189: Front | E189: 9 | F189: 5 | G189: 6 | H189: 6 | I189: 6 | J189: 3 | K189: 5 | L189: 4 | M189: 5
A190: RGL-005 5 | B190: 2013-07-17 | C190: 10 | D190: Front | E190: 6 | F190: 6 | G190: 6 | H190: 6 | I190: 6 | J190: 5 | K190: 8 | L190: 4 | M190: 5
A191: RGL-005 6 | B191: 2013-07-31 | C191: 9 | D191: Front | E191: 7 | F191: 5 | G191: 7 | H191: 5 | I191: 4 | J191: 3 | K191: 5 | L191: 4 | M191: 4
A192: RGL-005 7 | B192: 2013-08-14 | C192: 8 | D192: Front | E192: 7 | F192: 5 | G192: 6 | H192: 7 | I192: 6 | J192: 4 | K192: 6 | L192: 3 | M192: 4
A193: RGL-005 8 | B193: 41514 | C193: 8 | D193: Front | E193: 10 | F193: 5 | G193: 7 | H193: 5 | I193: 5 | J193: 3 | K193: 5 | L193: 4 | M193: 6
A194: RGL-005 9
A195: RGL-005 10
A196: RGL-005 11
B197: x | N197: x
A198: RGL-005 12 | B198: 2013-05-01 | C198: 8 | D198: Back | E198: 4 | F198: 3 | G198: 6 | H198: 5 | I198: 3 | J198: 5 | K198: 4 | L198: 4 | M198: 4
A199: RGL-005 13 | B199: 2013-05-15 | C199: 6 | D199: Back | E199: 8 | F199: 4 | G199: 5 | H199: 7 | I199: 4 | J199: 5 | K199: 4 | L199: 3 | M199: 5
A200: RGL-005 14 | B200: 2013-05-29 | C200: 7 | D200: Back | E200: 8 | F200: 7 | G200: 4 | H200: 7 | I200: 4 | J200: 5 | K200: 6 | L200: 5 | M200: 4
A201: RGL-005 15 | B201: 2013-06-12 | C201: 8 | D201: Back | E201: 7 | F201: 5 | G201: 6 | H201: 5 | I201: 5 | J201: 5 | K201: 5 | L201: 4 | M201: 4
A202: RGL-005 16 | B202: 2013-06-26 | C202: 10 | D202: Back | E202: 6 | F202: 6 | G202: 6 | H202: 5 | I202: 4 | J202: 6 | K202: 4 | L202: 4 | M202: 5
A203: RGL-005 17 | B203: 2013-07-24 | C203: 10 | D203: Back | E203: 5 | F203: 6 | G203: 4 | H203: 4 | I203: 4 | J203: 5 | K203: 3 | L203: 5 | M203: 5
A204: RGL-005 18 | B204: 2013-08-07 | C204: 8 | D204: Back | E204: 7 | F204: 3 | G204: 4 | H204: 6 | I204: 3 | J204: 5 | K204: 4 | L204: 5 | M204: 6
A205: RGL-005 19
A206: RGL-005 20
A207: RGL-005 21
A208: RGL-005 22
A209: RGL-005 23
A211: RGL-006 | B211: x | N211: x | O211: 41 | P211: =IF(Q212<>"",ROUND($P$71*(AVERAGE(Q212:U212)-36),0),"") -> 6 | Q211: 2013-08-21 | R211: 2013-08-14 | S211: 2013-08-07 | T211: 2013-07-31 | U211: 2013-07-24 | V211: 2013-07-17 | W211: 2013-07-03 | X211: 2013-06-19 | Y211: 2013-06-12 | Z211: 2013-06-05 | AA211: 2013-05-29 | AB211: 2013-05-22 | AC211: 2012-09-05 | AD211: 2012-08-22 | AE211: 2012-08-15 | AF211: 2012-07-25 | AG211: 2012-07-18 | AH211: 2012-07-11 | AI211: 2012-06-27 | AJ211: 2012-06-20 | AK211: 2012-06-13 | AL211: 2012-05-30 | AM211: 2012-05-16 | AN211: 2012-05-02 | AO211: Calc. | AP211: Calc. | AQ211: Calc. | AR211: Calc. | AS211: Calc.
B212: x | N212: x | Q212: 41 | R212: 44 | S212: 43 | T212: 46 | U212: 45 | V212: 42 | W212: 46 | X212: 46 | Y212: 41 | Z212: 48 | AA212: 44 | AB212: 39 | AC212: 41 | AD212: 46 | AE212: 40 | AF212: 42 | AG212: 39 | AH212: 51 | AI212: 46 | AJ212: 41 | AK212: 45 | AL212: 42 | AM212: 42 | AN212: 47 | AO212: 47 | AP212: 47 | AQ212: 47 | AR212: 47 | AS212: 47
A213: RGL-006 1 | B213: 2013-05-22 | C213: 4 | D213: Front | E213: 6 | F213: 5 | G213: 6 | H213: 4 | I213: 4 | J213: 4 | K213: 4 | L213: 2 | M213: 4
A214: RGL-006 2 | B214: 2013-06-05 | C214: 5 | D214: Front | E214: 7 | F214: 5 | G214: 6 | H214: 5 | I214: 4 | J214: 5 | K214: 8 | L214: 3 | M214: 5
A215: RGL-006 3 | B215: 2013-06-19 | C215: 5 | D215: Front | E215: 6 | F215: 6 | G215: 7 | H215: 6 | I215: 4 | J215: 3 | K215: 6 | L215: 4 | M215: 4
A216: RGL-006 4 | B216: 2013-07-03 | C216: 6 | D216: Front | E216: 9 | F216: 5 | G216: 7 | H216: 7 | I216: 4 | J216: 3 | K216: 4 | L216: 3 | M216: 4
A217: RGL-006 5 | B217: 2013-07-17 | C217: 7 | D217: Front | E217: 4 | F217: 5 | G217: 7 | H217: 7 | I217: 4 | J217: 3 | K217: 5 | L217: 4 | M217: 3
A218: RGL-006 6 | B218: 2013-07-31 | C218: 6 | D218: Front | E218: 5 | F218: 5 | G218: 7 | H218: 4 | I218: 5 | J218: 4 | K218: 5 | L218: 4 | M218: 7
A219: RGL-006 7 | B219: 2013-08-14 | C219: 7 | D219: Front | E219: 5 | F219: 4 | G219: 7 | H219: 5 | I219: 5 | J219: 3 | K219: 5 | L219: 5 | M219: 5
A220: RGL-006 8
A221: RGL-006 9
A222: RGL-006 10
A223: RGL-006 11
B224: x | N224: x
A225: RGL-006 12 | B225: 2013-05-29 | C225: 4 | D225: Back | E225: 5 | F225: 5 | G225: 5 | H225: 5 | I225: 3 | J225: 5 | K225: 6 | L225: 6 | M225: 4
A226: RGL-006 13 | B226: 2013-06-12 | C226: 6 | D226: Back | E226: 6 | F226: 6 | G226: 6 | H226: 5 | I226: 3 | J226: 4 | K226: 4 | L226: 4 | M226: 3
A227: RGL-006 14 | B227: 2013-07-24 | C227: 7 | D227: Back | E227: 6 | F227: 5 | G227: 6 | H227: 5 | I227: 4 | J227: 5 | K227: 4 | L227: 5 | M227: 5
A228: RGL-006 15 | B228: 2013-08-07 | C228: 7 | D228: Back | E228: 5 | F228: 5 | G228: 5 | H228: 6 | I228: 5 | J228: 4 | K228: 4 | L228: 4 | M228: 5
A229: RGL-006 16 | B229: 2013-08-21 | C229: 6 | D229: Back | E229: 6 | F229: 5 | G229: 4 | H229: 5 | I229: 4 | J229: 6 | K229: 3 | L229: 4 | M229: 4
... 2450 more rows

Sheet SCORE ENTRY WORKSHEET
A1: 657564445 | T1: 1
T2: Tee Times Loaded
AJ3: 4:00
AJ4: 4:08
AJ5: 4:16
AJ6: 4:24
A7: ='COURSE & LEAGUE DETAILS'!$B$3 -> Woods at Westminster | AJ7: 4:32
A8: ='COURSE & LEAGUE DETAILS'!$B$2&" - "&N12&" - "&N14&" - "&TEXT(N13, "MMM dd, yyyy") -> Romano Golf League - Week 9 - FRONT - Aug 28, 2013 | AJ8: 4:40
AJ9: 4:48
A10: HOLE | D10: =IF(LEFT($N$14)="F",1,IF(LEFT($N$14)="B",10,"ERROR")) -> 1 | E10: =IF(LEFT($N$14)="F",2,IF(LEFT($N$14)="B",11,"ERROR")) -> 2 | F10: =IF(LEFT($N$14)="F",3,IF(LEFT($N$14)="B",12,"ERROR")) -> 3 | G10: =IF(LEFT($N$14)="F",4,IF(LEFT($N$14)="B",13,"ERROR")) -> 4 | H10: =IF(LEFT($N$14)="F",5,IF(LEFT($N$14)="B",14,"ERROR")) -> 5 | I10: =IF(LEFT($N$14)="F",6,IF(LEFT($N$14)="B",15,"ERROR")) -> 6 | J10: =IF(LEFT($N$14)="F",7,IF(LEFT($N$14)="B",16,"ERROR")) -> 7 | K10: =IF(LEFT($N$14)="F",8,IF(LEFT($N$14)="B",17,"ERROR")) -> 8 | L10: =IF(LEFT($N$14)="F",9,IF(LEFT($N$14)="B",18,"ERROR")) -> 9 | M10: =IF(LEFT($N$14)="F","OUT",IF(LEFT($N$14)="B","IN","ERROR")) -> OUT | AJ10: 4:56
A11: WHITE | D11: =IF($D$10=1,'COURSE & LEAGUE DETAILS'!$B$6,IF($D$10=10,'COURSE & LEAGUE DETAILS'!$B$14,"ERROR")) -> 460 | E11: =IF($D$10=1,'COURSE & LEAGUE DETAILS'!$C$6,IF($D$10=10,'COURSE & LEAGUE DETAILS'!$C$14,"ERROR")) -> 275 | F11: =IF($D$10=1,'COURSE & LEAGUE DETAILS'!$D$6,IF($D$10=10,'COURSE & LEAGUE DETAILS'!$D$14,"ERROR")) -> 525 | G11: =IF($D$10=1,'COURSE & LEAGUE DETAILS'!$E$6,IF($D$10=10,'COURSE & LEAGUE DETAILS'!$E$14,"ERROR")) -> 295 | H11: =IF($D$10=1,'COURSE & LEAGUE DETAILS'!$F$6,IF($D$10=10,'COURSE & LEAGUE DETAILS'!$F$14,"ERROR")) -> 345 | I11: =IF($D$10=1,'COURSE & LEAGUE DETAILS'!$G$6,IF($D$10=10,'COURSE & LEAGUE DETAILS'!$G$14,"ERROR")) -> 175 | J11: =IF($D$10=1,'COURSE & LEAGUE DETAILS'!$H$6,IF($D$10=10,'COURSE & LEAGUE DETAILS'!$H$14,"ERROR")) -> 405 | K11: =IF($D$10=1,'COURSE & LEAGUE DETAILS'!$I$6,IF($D$10=10,'COURSE & LEAGUE DETAILS'!$I$14,"ERROR")) -> 145 | L11: =IF($D$10=1,'COURSE & LEAGUE DETAILS'!$J$6,IF($D$10=10,'COURSE & LEAGUE DETAILS'!$J$14,"ERROR")) -> 320 | M11: =IF($D$10=1,'COURSE & LEAGUE DETAILS'!$K$6,IF($D$10=10,'COURSE & LEAGUE DETAILS'!$K$14,"ERROR")) -> 2945 | AJ11: 5:04
A12: MEN'S PAR | D12: =IF($D$10=1,'COURSE & LEAGUE DETAILS'!$B$7,IF($D$10=10,'COURSE & LEAGUE DETAILS'!$B$15,"ERROR")) -> 5 | E12: =IF($D$10=1,'COURSE & LEAGUE DETAILS'!$C$7,IF($D$10=10,'COURSE & LEAGUE DETAILS'!$C$15,"ERROR")) -> 4 | F12: =IF($D$10=1,'COURSE & LEAGUE DETAILS'!$D$7,IF($D$10=10,'COURSE & LEAGUE DETAILS'!$D$15,"ERROR")) -> 5 | G12: =IF($D$10=1,'COURSE & LEAGUE DETAILS'!$E$7,IF($D$10=10,'COURSE & LEAGUE DETAILS'!$E$15,"ERROR")) -> 4 | H12: =IF($D$10=1,'COURSE & LEAGUE DETAILS'!$F$7,IF($D$10=10,'COURSE & LEAGUE DETAILS'!$F$15,"ERROR")) -> 4 | I12: =IF($D$10=1,'COURSE & LEAGUE DETAILS'!$G$7,IF($D$10=10,'COURSE & LEAGUE DETAILS'!$G$15,"ERROR")) -> 3 | J12: =IF($D$10=1,'COURSE & LEAGUE DETAILS'!$H$7,IF($D$10=10,'COURSE & LEAGUE DETAILS'!$H$15,"ERROR")) -> 4 | K12: =IF($D$10=1,'COURSE & LEAGUE DETAILS'!$I$7,IF($D$10=10,'COURSE & LEAGUE DETAILS'!$I$15,"ERROR")) -> 3 | L12: =IF($D$10=1,'COURSE & LEAGUE DETAILS'!$J$7,IF($D$10=10,'COURSE & LEAGUE DETAILS'!$J$15,"ERROR")) -> 4 | M12: =IF($D$10=1,'COURSE & LEAGUE DETAILS'!$K$7,IF($D$10=10,'COURSE & LEAGUE DETAILS'!$K$15,"ERROR")) -> 36 | N12: =D30 -> Week 9 | AJ12: 5:12
A13: MEN'S HCP | D13: =IF($D$10=1,'COURSE & LEAGUE DETAILS'!$B$8,IF($D$10=10,'COURSE & LEAGUE DETAILS'!$B$16,"ERROR")) -> 5 | E13: =IF($D$10=1,'COURSE & LEAGUE DETAILS'!$C$8,IF($D$10=10,'COURSE & LEAGUE DETAILS'!$C$16,"ERROR")) -> 7 | F13: =IF($D$10=1,'COURSE & LEAGUE DETAILS'!$D$8,IF($D$10=10,'COURSE & LEAGUE DETAILS'!$D$16,"ERROR")) -> 3 | G13: =IF($D$10=1,'COURSE & LEAGUE DETAILS'!$E$8,IF($D$10=10,'COURSE & LEAGUE DETAILS'!$E$16,"ERROR")) -> 9 | H13: =IF($D$10=1,'COURSE & LEAGUE DETAILS'!$F$8,IF($D$10=10,'COURSE & LEAGUE DETAILS'!$F$16,"ERROR")) -> 11 | I13: =IF($D$10=1,'COURSE & LEAGUE DETAILS'!$G$8,IF($D$10=10,'COURSE & LEAGUE DETAILS'!$G$16,"ERROR")) -> 17 | J13: =IF($D$10=1,'COURSE & LEAGUE DETAILS'!$H$8,IF($D$10=10,'COURSE & LEAGUE DETAILS'!$H$16,"ERROR")) -> 1 | K13: =IF($D$10=1,'COURSE & LEAGUE DETAILS'!$I$8,IF($D$10=10,'COURSE & LEAGUE DETAILS'!$I$16,"ERROR")) -> 15 | L13: =IF($D$10=1,'COURSE & LEAGUE DETAILS'!$J$8,IF($D$10=10,'COURSE & LEAGUE DETAILS'!$J$16,"ERROR")) -> 13 | N13: =HLOOKUP(N12,SCHEDULE!$C$11:$M$26,2,FALSE) -> 2013-08-28
A14: RED | D14: =IF($D$10=1,'COURSE & LEAGUE DETAILS'!$B$9,IF($D$10=10,'COURSE & LEAGUE DETAILS'!$B$17,"ERROR")) -> 375 | E14: =IF($D$10=1,'COURSE & LEAGUE DETAILS'!$C$9,IF($D$10=10,'COURSE & LEAGUE DETAILS'!$C$17,"ERROR")) -> 250 | F14: =IF($D$10=1,'COURSE & LEAGUE DETAILS'!$D$9,IF($D$10=10,'COURSE & LEAGUE DETAILS'!$D$17,"ERROR")) -> 475 | G14: =IF($D$10=1,'COURSE & LEAGUE DETAILS'!$E$9,IF($D$10=10,'COURSE & LEAGUE DETAILS'!$E$17,"ERROR")) -> 255 | H14: =IF($D$10=1,'COURSE & LEAGUE DETAILS'!$F$9,IF($D$10=10,'COURSE & LEAGUE DETAILS'!$F$17,"ERROR")) -> 325 | I14: =IF($D$10=1,'COURSE & LEAGUE DETAILS'!$G$9,IF($D$10=10,'COURSE & LEAGUE DETAILS'!$G$17,"ERROR")) -> 155 | J14: =IF($D$10=1,'COURSE & LEAGUE DETAILS'!$H$9,IF($D$10=10,'COURSE & LEAGUE DETAILS'!$H$17,"ERROR")) -> 375 | K14: =IF($D$10=1,'COURSE & LEAGUE DETAILS'!$I$9,IF($D$10=10,'COURSE & LEAGUE DETAILS'!$I$17,"ERROR")) -> 130 | L14: =IF($D$10=1,'COURSE & LEAGUE DETAILS'!$J$9,IF($D$10=10,'COURSE & LEAGUE DETAILS'!$J$17,"ERROR")) -> 290 | M14: =IF($D$10=1,'COURSE & LEAGUE DETAILS'!$K$9,IF($D$10=10,'COURSE & LEAGUE DETAILS'!$K$17,"ERROR")) -> 2630 | N14: =HLOOKUP(N12,SCHEDULE!$C$11:$M$26,3,FALSE) -> FRONT
A15: WOMEN'S PAR | D15: =IF($D$10=1,'COURSE & LEAGUE DETAILS'!$B$10,IF($D$10=10,'COURSE & LEAGUE DETAILS'!$B$18,"ERROR")) -> 5 | E15: =IF($D$10=1,'COURSE & LEAGUE DETAILS'!$C$10,IF($D$10=10,'COURSE & LEAGUE DETAILS'!$C$18,"ERROR")) -> 4 | F15: =IF($D$10=1,'COURSE & LEAGUE DETAILS'!$D$10,IF($D$10=10,'COURSE & LEAGUE DETAILS'!$D$18,"ERROR")) -> 5 | G15: =IF($D$10=1,'COURSE & LEAGUE DETAILS'!$E$10,IF($D$10=10,'COURSE & LEAGUE DETAILS'!$E$18,"ERROR")) -> 4 | H15: =IF($D$10=1,'COURSE & LEAGUE DETAILS'!$F$10,IF($D$10=10,'COURSE & LEAGUE DETAILS'!$F$18,"ERROR")) -> 4 | I15: =IF($D$10=1,'COURSE & LEAGUE DETAILS'!$G$10,IF($D$10=10,'COURSE & LEAGUE DETAILS'!$G$18,"ERROR")) -> 3 | J15: =IF($D$10=1,'COURSE & LEAGUE DETAILS'!$H$10,IF($D$10=10,'COURSE & LEAGUE DETAILS'!$H$18,"ERROR")) -> 5 | K15: =IF($D$10=1,'COURSE & LEAGUE DETAILS'!$I$10,IF($D$10=10,'COURSE & LEAGUE DETAILS'!$I$18,"ERROR")) -> 3 | L15: =IF($D$10=1,'COURSE & LEAGUE DETAILS'!$J$10,IF($D$10=10,'COURSE & LEAGUE DETAILS'!$J$18,"ERROR")) -> 4 | M15: =IF($D$10=1,'COURSE & LEAGUE DETAILS'!$K$10,IF($D$10=10,'COURSE & LEAGUE DETAILS'!$K$18,"ERROR")) -> 37 | N15: =D32 -> 4:00
A16: HCP | B16: TEAM | C16: WOMEN'S HCP | D16: =IF($D$10=1,'COURSE & LEAGUE DETAILS'!$B$11,IF($D$10=10,'COURSE & LEAGUE DETAILS'!$B$19,"ERROR")) -> 5 | E16: =IF($D$10=1,'COURSE & LEAGUE DETAILS'!$C$11,IF($D$10=10,'COURSE & LEAGUE DETAILS'!$C$19,"ERROR")) -> 7 | F16: =IF($D$10=1,'COURSE & LEAGUE DETAILS'!$D$11,IF($D$10=10,'COURSE & LEAGUE DETAILS'!$D$19,"ERROR")) -> 3 | G16: =IF($D$10=1,'COURSE & LEAGUE DETAILS'!$E$11,IF($D$10=10,'COURSE & LEAGUE DETAILS'!$E$19,"ERROR")) -> 9 | H16: =IF($D$10=1,'COURSE & LEAGUE DETAILS'!$F$11,IF($D$10=10,'COURSE & LEAGUE DETAILS'!$F$19,"ERROR")) -> 11 | I16: =IF($D$10=1,'COURSE & LEAGUE DETAILS'!$G$11,IF($D$10=10,'COURSE & LEAGUE DETAILS'!$G$19,"ERROR")) -> 17 | J16: =IF($D$10=1,'COURSE & LEAGUE DETAILS'!$H$11,IF($D$10=10,'COURSE & LEAGUE DETAILS'!$H$19,"ERROR")) -> 1 | K16: =IF($D$10=1,'COURSE & LEAGUE DETAILS'!$I$11,IF($D$10=10,'COURSE & LEAGUE DETAILS'!$I$19,"ERROR")) -> 15 | L16: =IF($D$10=1,'COURSE & LEAGUE DETAILS'!$J$11,IF($D$10=10,'COURSE & LEAGUE DETAILS'!$J$19,"ERROR")) -> 13 | N16: =IF(LEN(N12)=6,VLOOKUP($N$15,SCHEDULE!$C$11:$M$26,RIGHT($N$12)+1,FALSE),VLOOKUP($N$15,SCHEDULE!$C$11:$M$26,RIGHT($N$12,2)+1,FALSE)) -> 4 v 16 | O16: Count Blanks
D17: =IF($B18="DNP",0,IF($B18="Course",0,D43)) -> 1 | E17: =IF($B18="DNP",0,IF($B18="Course",0,E43)) -> 1 | F17: 1 | G17: 1 | H17: 1 | I17: 0 | J17: 1 | K17: 1 | L17: 1 | M17: =IF(B18<>"DNP",SUM(D17:L17),"") -> 8
A18: =IF(B18="DNP",IF(B20="DNP","ERROR",A20),IF(B18="COURSE",0,VLOOKUP(VLOOKUP(B18,'LEAGUE MEMBERSHIP'!E:G,3,FALSE),'INDIVIDUAL SCORES'!$A$74:$P$2799,16,FALSE))) -> 14 | B18: =$N$18&"A" -> 4A | C18: =VLOOKUP(B18,'LEAGUE MEMBERSHIP'!$E$8:$H$110,2,FALSE) -> Peg Romano | M18: =IF(SUM(D18:L18)=0,"",SUM(D18:L18)) ->  | N18: =IF(FIND("v",$N$16)=3,LEFT($N$16,1),LEFT($N$16,2)) -> 4 | O18: =COUNTBLANK($D18:$L18) -> 9
D19: =IF($B20="DNP",0,IF($B20="Course",0,D44)) -> 1 | E19: =IF($B20="DNP",0,IF($B20="Course",0,E44)) -> 1 | F19: 1 | G19: 1 | H19: 1 | I19: 0 | J19: 1 | K19: 1 | L19: 1 | M19: =IF(B20<>"DNP",SUM(D19:L19),"") -> 8
A20: =IF(B20="DNP",IF(B18="DNP","ERROR",A18),IF(B20="COURSE",0,VLOOKUP(VLOOKUP(B20,'LEAGUE MEMBERSHIP'!E:G,3,FALSE),'INDIVIDUAL SCORES'!$A$74:$P$2799,16,FALSE))) -> 14 | B20: =$N$20&"B" -> 4B | C20: =VLOOKUP(B20,'LEAGUE MEMBERSHIP'!$E$8:$H$110,2,FALSE) -> Lynn Laroche | M20: =IF(SUM(D20:L20)=0,"",SUM(D20:L20)) ->  | N20: =IF(FIND("v",$N$16)=3,LEFT($N$16,1),LEFT($N$16,2)) -> 4 | O20: =COUNTBLANK($D20:$L20) -> 9
C21: =IF(LEN(N18)=1,"Team 0"&N18,"Team "&N18) -> Team 04 | D21: =IF($B$24="Course",IF($B$26="Course",D56,D51),D51) ->  | E21: =IF($B$24="Course",IF($B$26="Course",E56,E51),E51) ->  | F21: =IF($B$24="Course",IF($B$26="Course",F56,F51),F51) ->  | M21: =SUM(D21:L21) -> 0
C22: =IF(N24="COURSE","Team 16",IF(LEN(N24)=1,"Team 0"&N24,"Team "&N24)) -> Team 16 | D22: =IF($B$18="Course",IF($B$20="Course",D65,D60),D60) ->  | E22: =IF($B$18="Course",IF($B$20="Course",E65,E60),E60) ->  | F22: =IF($B$18="Course",IF($B$20="Course",F65,F60),F60) ->  | M22: =SUM(D22:L22) -> 0
D23: =IF($B24="DNP",0,IF($B24="Course",0,D46)) -> 1 | E23: =IF($B24="DNP",0,IF($B24="Course",0,E46)) -> 1 | F23: 1 | G23: 0 | H23: 0 | I23: 0 | J23: 1 | K23: 0 | L23: 0 | M23: =IF(B24<>"DNP",SUM(D23:L23),"") -> 4
A24: =IF(B24="DNP",IF(B26="DNP","ERROR",A26),IF(B24="COURSE",0,VLOOKUP(VLOOKUP(B24,'LEAGUE MEMBERSHIP'!E:G,3,FALSE),'INDIVIDUAL SCORES'!$A$74:$P$2799,16,FALSE))) -> 10 | B24: =IF($N$24="COURSE","COURSE",$N$24&"A") -> 16A | C24: =VLOOKUP(B24,'LEAGUE MEMBERSHIP'!$E$8:$H$110,2,FALSE) -> Deb DeCarolis | M24: =IF(SUM(D24:L24)=0,"",SUM(D24:L24)) ->  | N24: =IF(RIGHT($N$16,6)="COURSE","COURSE",IF(LEN($N$16)-FIND("v",$N$16)=2,RIGHT($N$16,1),RIGHT($N$16,2))) -> 16 | O24: =COUNTBLANK($D24:$L24) -> 9
D25: =IF($B26="DNP",0,IF($B26="Course",0,D47)) -> 0 | E25: 0 | F25: 0 | G25: 0 | H25: 0 | I25: 0 | J25: 0 | K25: 0 | L25: 0 | M25: =IF(B26<>"DNP",SUM(D25:L25),"") -> 0
A26: =IF(B26="DNP",IF(B24="DNP","ERROR",A24),IF(B26="COURSE",0,VLOOKUP(VLOOKUP(B26,'LEAGUE MEMBERSHIP'!E:G,3,FALSE),'INDIVIDUAL SCORES'!$A$74:$P$2799,16,FALSE))) -> 6 | B26: =IF($N$24="COURSE","COURSE",$N$24&"B") -> 16B | C26: =VLOOKUP(B26,'LEAGUE MEMBERSHIP'!$E$8:$H$110,2,FALSE) -> Joey DeCarolis | M26: =IF(SUM(D26:L26)=0,"",SUM(D26:L26)) ->  | N26: =IF(RIGHT($N$16,6)="COURSE","COURSE",IF(LEN($N$16)-FIND("v",$N$16)=2,RIGHT($N$16,1),RIGHT($N$16,2))) -> 16 | O26: =COUNTBLANK($D26:$L26) -> 9
A28: =CONCATENATE("TEE TIME: ",TEXT(N15,"h:mm")," PM") -> TEE TIME: 4:00 PM
D30: Week 9
D32: 4:00
F33: Not all scores entered. If needed, enter "Course" or "DNP" for absent team / player.
A34: Sub1 | B34: =IF(ISERROR(VLOOKUP(A34,'LEAGUE MEMBERSHIP'!$E$8:$F$107,2,FALSE)),"",VLOOKUP(A34,'LEAGUE MEMBERSHIP'!$E$8:$F$107,2,FALSE)) -> Becky Bartkus | D34: Sub7 | E34: =IF(ISERROR(VLOOKUP(D34,'LEAGUE MEMBERSHIP'!$E$8:$F$107,2,FALSE)),"",VLOOKUP(D34,'LEAGUE MEMBERSHIP'!$E$8:$F$107,2,FALSE)) -> PJ Fontaine | G34: Sub13 | H34: =IF(ISERROR(VLOOKUP(G34,'LEAGUE MEMBERSHIP'!$E$8:$F$107,2,FALSE)),"",VLOOKUP(G34,'LEAGUE MEMBERSHIP'!$E$8:$F$107,2,FALSE)) -> Tom Farias | J34: Sub19 | K34: =IF(ISERROR(VLOOKUP(J34,'LEAGUE MEMBERSHIP'!$E$8:$F$107,2,FALSE)),"",VLOOKUP(J34,'LEAGUE MEMBERSHIP'!$E$8:$F$107,2,FALSE)) -> Audrey Henderson | M34: Sub25 | N34: =IF(ISERROR(VLOOKUP(M34,'LEAGUE MEMBERSHIP'!$E$8:$F$107,2,FALSE)),"",VLOOKUP(M34,'LEAGUE MEMBERSHIP'!$E$8:$F$107,2,FALSE)) -> Brenda Louney
A35: Sub2 | B35: =IF(ISERROR(VLOOKUP(A35,'LEAGUE MEMBERSHIP'!$E$8:$F$107,2,FALSE)),"",VLOOKUP(A35,'LEAGUE MEMBERSHIP'!$E$8:$F$107,2,FALSE)) -> P.J. Romano | D35: Sub8 | E35: =IF(ISERROR(VLOOKUP(D35,'LEAGUE MEMBERSHIP'!$E$8:$F$107,2,FALSE)),"",VLOOKUP(D35,'LEAGUE MEMBERSHIP'!$E$8:$F$107,2,FALSE)) -> Yogi DiPasquale | G35: Sub14 | H35: =IF(ISERROR(VLOOKUP(G35,'LEAGUE MEMBERSHIP'!$E$8:$F$107,2,FALSE)),"",VLOOKUP(G35,'LEAGUE MEMBERSHIP'!$E$8:$F$107,2,FALSE)) -> Jeff Erskine | J35: Sub20 | K35: =IF(ISERROR(VLOOKUP(J35,'LEAGUE MEMBERSHIP'!$E$8:$F$107,2,FALSE)),"",VLOOKUP(J35,'LEAGUE MEMBERSHIP'!$E$8:$F$107,2,FALSE)) -> David St. Jean | M35: Sub26 | N35: =IF(ISERROR(VLOOKUP(M35,'LEAGUE MEMBERSHIP'!$E$8:$F$107,2,FALSE)),"",VLOOKUP(M35,'LEAGUE MEMBERSHIP'!$E$8:$F$107,2,FALSE)) -> Mark Louney
A36: Sub3 | B36: =IF(ISERROR(VLOOKUP(A36,'LEAGUE MEMBERSHIP'!$E$8:$F$107,2,FALSE)),"",VLOOKUP(A36,'LEAGUE MEMBERSHIP'!$E$8:$F$107,2,FALSE)) -> Mike Forbes | D36: Sub9 | E36: =IF(ISERROR(VLOOKUP(D36,'LEAGUE MEMBERSHIP'!$E$8:$F$107,2,FALSE)),"",VLOOKUP(D36,'LEAGUE MEMBERSHIP'!$E$8:$F$107,2,FALSE)) -> Jon Friberg | G36: Sub15 | H36: =IF(ISERROR(VLOOKUP(G36,'LEAGUE MEMBERSHIP'!$E$8:$F$107,2,FALSE)),"",VLOOKUP(G36,'LEAGUE MEMBERSHIP'!$E$8:$F$107,2,FALSE)) -> Jeff Richard | J36: Sub21 | K36: =IF(ISERROR(VLOOKUP(J36,'LEAGUE MEMBERSHIP'!$E$8:$F$107,2,FALSE)),"",VLOOKUP(J36,'LEAGUE MEMBERSHIP'!$E$8:$F$107,2,FALSE)) -> Dennis St. Jean | M36: Sub27 | N36: =IF(ISERROR(VLOOKUP(M36,'LEAGUE MEMBERSHIP'!$E$8:$F$107,2,FALSE)),"",VLOOKUP(M36,'LEAGUE MEMBERSHIP'!$E$8:$F$107,2,FALSE)) -> Victor Szewczyk
A37: Sub4 | B37: =IF(ISERROR(VLOOKUP(A37,'LEAGUE MEMBERSHIP'!$E$8:$F$107,2,FALSE)),"",VLOOKUP(A37,'LEAGUE MEMBERSHIP'!$E$8:$F$107,2,FALSE)) -> Mike Romano | D37: Sub10 | E37: =IF(ISERROR(VLOOKUP(D37,'LEAGUE MEMBERSHIP'!$E$8:$F$107,2,FALSE)),"",VLOOKUP(D37,'LEAGUE MEMBERSHIP'!$E$8:$F$107,2,FALSE)) -> Jim Hedlund | G37: Sub16 | H37: =IF(ISERROR(VLOOKUP(G37,'LEAGUE MEMBERSHIP'!$E$8:$F$107,2,FALSE)),"",VLOOKUP(G37,'LEAGUE MEMBERSHIP'!$E$8:$F$107,2,FALSE)) -> Paul Stedman | J37: Sub22 | K37: =IF(ISERROR(VLOOKUP(J37,'LEAGUE MEMBERSHIP'!$E$8:$F$107,2,FALSE)),"",VLOOKUP(J37,'LEAGUE MEMBERSHIP'!$E$8:$F$107,2,FALSE)) -> Joe Fratticelli | M37: Sub28 | N37: =IF(ISERROR(VLOOKUP(M37,'LEAGUE MEMBERSHIP'!$E$8:$F$107,2,FALSE)),"",VLOOKUP(M37,'LEAGUE MEMBERSHIP'!$E$8:$F$107,2,FALSE)) -> Matt Lee | P37: =IF(ISERROR(VLOOKUP(O36,'LEAGUE MEMBERSHIP'!$E$8:$F$107,2,FALSE)),"",VLOOKUP(O36,'LEAGUE MEMBERSHIP'!$E$8:$F$107,2,FALSE)) -> 
A38: Sub5 | B38: =IF(ISERROR(VLOOKUP(A38,'LEAGUE MEMBERSHIP'!$E$8:$F$107,2,FALSE)),"",VLOOKUP(A38,'LEAGUE MEMBERSHIP'!$E$8:$F$107,2,FALSE)) -> Jono Normandin | D38: Sub11 | E38: =IF(ISERROR(VLOOKUP(D38,'LEAGUE MEMBERSHIP'!$E$8:$F$107,2,FALSE)),"",VLOOKUP(D38,'LEAGUE MEMBERSHIP'!$E$8:$F$107,2,FALSE)) -> Don Shank | G38: Sub17 | H38: =IF(ISERROR(VLOOKUP(G38,'LEAGUE MEMBERSHIP'!$E$8:$F$107,2,FALSE)),"",VLOOKUP(G38,'LEAGUE MEMBERSHIP'!$E$8:$F$107,2,FALSE)) -> Deb Passios | J38: Sub23 | K38: =IF(ISERROR(VLOOKUP(J38,'LEAGUE MEMBERSHIP'!$E$8:$F$107,2,FALSE)),"",VLOOKUP(J38,'LEAGUE MEMBERSHIP'!$E$8:$F$107,2,FALSE)) -> Pete Collette | M38: Sub29 | N38: =IF(ISERROR(VLOOKUP(M38,'LEAGUE MEMBERSHIP'!$E$8:$F$107,2,FALSE)),"",VLOOKUP(M38,'LEAGUE MEMBERSHIP'!$E$8:$F$107,2,FALSE)) -> Jay Melansom | P38: =IF(ISERROR(VLOOKUP(O37,'LEAGUE MEMBERSHIP'!$E$8:$F$107,2,FALSE)),"",VLOOKUP(O37,'LEAGUE MEMBERSHIP'!$E$8:$F$107,2,FALSE)) -> 
A39: Sub6 | B39: =IF(ISERROR(VLOOKUP(A39,'LEAGUE MEMBERSHIP'!$E$8:$F$107,2,FALSE)),"",VLOOKUP(A39,'LEAGUE MEMBERSHIP'!$E$8:$F$107,2,FALSE)) -> Scott Leavenworth | D39: Sub12 | E39: =IF(ISERROR(VLOOKUP(D39,'LEAGUE MEMBERSHIP'!$E$8:$F$107,2,FALSE)),"",VLOOKUP(D39,'LEAGUE MEMBERSHIP'!$E$8:$F$107,2,FALSE)) -> Chris Barry | G39: Sub18 | H39: =IF(ISERROR(VLOOKUP(G39,'LEAGUE MEMBERSHIP'!$E$8:$F$107,2,FALSE)),"",VLOOKUP(G39,'LEAGUE MEMBERSHIP'!$E$8:$F$107,2,FALSE)) -> Joe Pearson | J39: Sub24 | K39: =IF(ISERROR(VLOOKUP(J39,'LEAGUE MEMBERSHIP'!$E$8:$F$107,2,FALSE)),"",VLOOKUP(J39,'LEAGUE MEMBERSHIP'!$E$8:$F$107,2,FALSE)) -> Shane McCarthy | M39: Sub30 | N39: =IF(ISERROR(VLOOKUP(M39,'LEAGUE MEMBERSHIP'!$E$8:$F$107,2,FALSE)),"",VLOOKUP(M39,'LEAGUE MEMBERSHIP'!$E$8:$F$107,2,FALSE)) ->  | P39: =IF(ISERROR(VLOOKUP(O38,'LEAGUE MEMBERSHIP'!$E$8:$F$107,2,FALSE)),"",VLOOKUP(O38,'LEAGUE MEMBERSHIP'!$E$8:$F$107,2,FALSE)) -> 
P40: =IF(ISERROR(VLOOKUP(O39,'LEAGUE MEMBERSHIP'!$E$8:$F$107,2,FALSE)),"",VLOOKUP(O39,'LEAGUE MEMBERSHIP'!$E$8:$F$107,2,FALSE)) -> 
C41: Men's Hcp. Rank | D41: =RANK(D13,$D$13:$L$13,1) -> 3 | E41: 4 | F41: 2 | G41: 5 | H41: 6 | I41: 9 | J41: 1 | K41: 8 | L41: 7
C42: Women's Hcp. Rank | D42: =RANK(D16,$D$16:$L$16,1) -> 3 | E42: 4 | F42: 2 | G42: 5 | H42: 6 | I42: 9 | J42: 1 | K42: 8 | L42: 7
A43: =MIN(A18:A26) -> 6 | B43: =A18-$A$43 -> 8 | C43: =VLOOKUP(VLOOKUP(B18,'LEAGUE MEMBERSHIP'!E:G,3,FALSE),'LEAGUE MEMBERSHIP'!$A$8:$D$107,4,FALSE) -> F | D43: =IF($C43="M",IF($B43>=D$41,IF(D$12=3,1,IF($B43-9>=D$41,2,1)),0),IF($C43="F",IF($B43>=D$42,IF(D$15=3,1,IF($B43-9>=D$42,2,1)),0),0)) -> 1 | E43: =IF($C43="M",IF($B43>=E$41,IF(E$12=3,1,IF($B43-9>=E$41,2,1)),0),IF($C43="F",IF($B43>=E$42,IF(E$15=3,1,IF($B43-9>=E$42,2,1)),0),0)) -> 1 | F43: 1 | G43: 1 | H43: 1 | I43: 0 | J43: 1 | K43: 1 | L43: 1
B44: =A20-$A$43 -> 8 | C44: =VLOOKUP(VLOOKUP(B20,'LEAGUE MEMBERSHIP'!E:G,3,FALSE),'LEAGUE MEMBERSHIP'!$A$8:$D$107,4,FALSE) -> F | D44: =IF($C44="M",IF($B44>=D$41,IF(D$12=3,1,IF($B44-9>=D$41,2,1)),0),IF($C44="F",IF($B44>=D$42,IF(D$15=3,1,IF($B44-9>=D$42,2,1)),0),0)) -> 1 | E44: 1 | F44: 1 | G44: 1 | H44: 1 | I44: 0 | J44: 1 | K44: 1 | L44: 1
B46: =A24-$A$43 -> 4 | C46: =VLOOKUP(VLOOKUP(B24,'LEAGUE MEMBERSHIP'!E:G,3,FALSE),'LEAGUE MEMBERSHIP'!$A$8:$D$107,4,FALSE) -> F | D46: =IF($C46="M",IF($B46>=D$41,IF(D$12=3,1,IF($B46-9>=D$41,2,1)),0),IF($C46="F",IF($B46>=D$42,IF(D$15=3,1,IF($B46-9>=D$42,2,1)),0),0)) -> 1 | E46: =IF($C46="M",IF($B46>=E$41,IF(E$12=3,1,IF($B46-9>=E$41,2,1)),0),IF($C46="F",IF($B46>=E$42,IF(E$15=3,1,IF($B46-9>=E$42,2,1)),0),0)) -> 1 | F46: 1 | G46: 0 | H46: 0 | I46: 0 | J46: 1 | K46: 0 | L46: 0
B47: =A26-$A$43 -> 0 | C47: =VLOOKUP(VLOOKUP(B26,'LEAGUE MEMBERSHIP'!E:G,3,FALSE),'LEAGUE MEMBERSHIP'!$A$8:$D$107,4,FALSE) -> M | D47: =IF($C47="M",IF($B47>=D$41,IF(D$12=3,1,IF($B47-9>=D$41,2,1)),0),IF($C47="F",IF($B47>=D$42,IF(D$15=3,1,IF($B47-9>=D$42,2,1)),0),0)) -> 0 | E47: 0 | F47: 0 | G47: 0 | H47: 0 | I47: 0 | J47: 0 | K47: 0 | L47: 0
C48: Player A | D48: =IF(D18<>"",D18-D17,"") -> 
C49: Player B | D49: =IF(D20<>"",D20-D19,"") -> 
C50: Score to Use | D50: =IF(D48<>"",IF(D49<>"",MIN(D48:D49),D48),D49) ->  | E50: =IF(E48<>"",IF(E49<>"",MIN(E48:E49),E48),E49) ->  | W50: The results of the 4:00 match have already been loaded
C51: Versus Team | D51: =IF(D50<>"",IF(D59<>"",IF(D50<D59,1,IF(D50=D59,1/2,0)),""),"") ->  | W51: Tee Times loaded so far:
C52: Versus Course (Player A = M) | D52: =IF(D48<>"",IF($C43="M",IF(D48<D$12,1,IF(D48=D$12,1/2,0)),""),"") ->  | E52: =IF(E48<>"",IF($C43="M",IF(E48<E$12,1,IF(E48=E$12,1/2,0)),""),"") ->  | W52: Tee Times to be loaded:
C53: Versus Course (Player B = M) | D53: =IF(D49<>"",IF($C44="M",IF(D49<D$12,1,IF(D49=D$12,1/2,0)),""),"") ->  | E53: =IF(E49<>"",IF($C44="M",IF(E49<E$12,1,IF(E49=E$12,1/2,0)),""),"") -> 
C54: Versus Course (Player A = F) | D54: =IF(D48<>"",IF($C43="F",IF(D48<D$15,1,IF(D48=D$15,1/2,0)),""),"") ->  | E54: =IF(E48<>"",IF($C43="F",IF(E48<E$15,1,IF(E48=E$15,1/2,0)),""),"") -> 
C55: Versus Course (Player B = F) | D55: =IF(D49<>"",IF($C44="F",IF(D49<D$15,1,IF(D49=D$15,1/2,0)),""),"") ->  | E55: =IF(E49<>"",IF($C44="F",IF(E49<E$15,1,IF(E49=E$15,1/2,0)),""),"") -> 
C56: Score to Use Versus Course | D56: =MAX(D52:D55) -> 0 | E56: 0 | F56: 0 | G56: 0 | H56: 0 | I56: 0 | J56: 0 | K56: 0 | L56: 0
C57: Player A | D57: =IF(D24<>"",D24-D23,"") -> 
C58: Player B | D58: =IF(D26<>"",D26-D25,"") -> 
B59: =$N$18&"A" -> 4A | C59: Score to Use | D59: =IF(D57<>"",IF(D58<>"",MIN(D57:D58),D57),D58) ->  | E59: =IF(E57<>"",IF(E58<>"",MIN(E57:E58),E57),E58) -> 
C60: Versus Team | D60: =IF(D59<>"",IF(D50<>"",IF(D59<D50,1,IF(D59=D50,1/2,0)),""),"") -> 
B61: =$N$20&"B" -> 4B | C61: Versus Course (Player A = M) | D61: =IF(D57<>"",IF($C46="M",IF(D57<D$12,1,IF(D57=D$12,1/2,0)),""),"") -> 
C62: Versus Course (Player B = M) | D62: =IF(D58<>"",IF($C47="M",IF(D58<D$12,1,IF(D58=D$12,1/2,0)),""),"") -> 
C63: Versus Course (Player A = F) | D63: =IF(D57<>"",IF($C46="F",IF(D57<D$15,1,IF(D57=D$15,1/2,0)),""),"") -> 
C64: Versus Course (Player B = F) | D64: =IF(D58<>"",IF($C47="F",IF(D58<D$15,1,IF(D58=D$15,1/2,0)),""),"") -> 
B65: =IF($N$24="COURSE","COURSE",$N$24&"A") -> 16A | C65: Score to Use Versus Course | D65: =MAX(D61:D64) -> 0 | E65: =MAX(E61:E64) -> 0 | F65: 0 | G65: 0 | H65: 0 | I65: 0 | J65: 0 | K65: 0 | L65: 0
B67: =IF($N$24="COURSE","COURSE",$N$24&"B") -> 16B
A70: 18B | B70: 18
A71: DNP | B71: =70 + 3 + 59 - COUNTBLANK($A$34:$O$39) -> 101
A72: Course
A73: =IF(B34="","",A34) -> Sub1
A74: Sub2
A75: Sub3
A76: Sub4
A77: Sub5
A78: Sub6
A79: =IF(E34="","",D34) -> Sub7
A80: Sub8
A81: Sub9
A82: Sub10
A83: Sub11
A84: Sub12
A85: =IF(H34="","",G34) -> Sub13
A86: Sub14
A87: Sub15
A88: Sub16
A89: Sub17
A90: Sub18
A91: =IF(K34="","",J34) -> Sub19
A92: Sub20
A93: Sub21
A94: Sub22
A95: Sub23
A96: Sub24
A97: =IF(N34="","",M34) -> Sub25
A98: Sub26
A99: Sub27
A100: Sub28
A101: Sub29

Sheet MATCH HISTORY 1
B1: 12 v 3 | C1: =A1&B1 -> 12 v 3 | L1: First Half | O1: First Half
L2: Second Half | O2: Second Half
C15: =IF($H$34="First Half",IF(C55="","",C55),IF($H$34="Second Half",IF(C75="","",C75),"")) -> Schedule - Second Half 2013 | O15: Team Members
C16: Week | D16: =IF(SCHEDULE!D11="","",SCHEDULE!D11) -> Week 1 | E16: =IF(SCHEDULE!E11="","",SCHEDULE!E11) -> Week 2 | F16: =IF(SCHEDULE!F11="","",SCHEDULE!F11) -> Week 3 | G16: =IF(SCHEDULE!G11="","",SCHEDULE!G11) -> Week 4 | H16: =IF(SCHEDULE!H11="","",SCHEDULE!H11) -> Week 5 | I16: =IF(SCHEDULE!I11="","",SCHEDULE!I11) -> Week 6 | J16: =IF(SCHEDULE!J11="","",SCHEDULE!J11) -> Week 7 | K16: =IF(SCHEDULE!K11="","",SCHEDULE!K11) -> Week 8 | L16: =IF(SCHEDULE!L11="","",SCHEDULE!L11) -> Week 9 | M16: =IF(SCHEDULE!M11="","",SCHEDULE!M11) ->  | O16: Team 1 | P16: =VLOOKUP(O16,'LEAGUE MEMBERSHIP'!$I:$M,3,FALSE)&" / "&VLOOKUP(O16,'LEAGUE MEMBERSHIP'!$I:$M,5,FALSE) -> Lester Lockhart / Pete Normandin
C17: Date | D17: =IF($H$34="First Half",IF(D57="","",D57),IF($H$34="Second Half",IF(D77="","",D77),"")) -> 2013-07-03 | E17: 2013-07-10 | F17: 2013-07-17 | G17: 2013-07-24 | H17: =IF($H$34="First Half",IF(H57="","",H57),IF($H$34="Second Half",IF(H77="","",H77),"")) -> 2013-07-31 | I17: 2013-08-07 | J17: 2013-08-14 | K17: 2013-08-21 | L17: 2013-08-28 | O17: Team 2 | P17: =VLOOKUP(O17,'LEAGUE MEMBERSHIP'!$I:$M,3,FALSE)&" / "&VLOOKUP(O17,'LEAGUE MEMBERSHIP'!$I:$M,5,FALSE) -> Dave Cormier / Adam Williamson
C18: Side | D18: =IF($H$34="First Half",IF(D58="","",D58),IF($H$34="Second Half",IF(D78="","",D78),"")) -> FRONT | E18: BACK | F18: FRONT | G18: BACK | H18: =IF($H$34="First Half",IF(H58="","",H58),IF($H$34="Second Half",IF(H78="","",H78),"")) -> FRONT | I18: BACK | J18: FRONT | K18: BACK | L18: =IF($H$34="First Half",IF(L58="","",L58),IF($H$34="Second Half",IF(L78="","",L78),"")) -> FRONT | M18: =IF($H$34="First Half",IF(M58="","",M58),IF($H$34="Second Half",IF(M78="","",M78),"")) ->  | O18: Team 3 | P18: =VLOOKUP(O18,'LEAGUE MEMBERSHIP'!$I:$M,3,FALSE)&" / "&VLOOKUP(O18,'LEAGUE MEMBERSHIP'!$I:$M,5,FALSE) -> Pete Romano / Don Frigoletto
C19: Tee Time | O19: Team 4 | P19: =VLOOKUP(O19,'LEAGUE MEMBERSHIP'!$I:$M,3,FALSE)&" / "&VLOOKUP(O19,'LEAGUE MEMBERSHIP'!$I:$M,5,FALSE) -> Peg Romano / Lynn Laroche
C20: =IF($H$34="First Half",IF(C60="","",C60),IF($H$34="Second Half",IF(C80="","",C80),"")) -> 4:00 | D20: 11 v 2 | E20: 12 v 5 | F20: 1 v 18 | G20: 14 v 20 | H20: =IF($H$34="First Half",IF(H60="","",H60),IF($H$34="Second Half",IF(H80="","",H80),"")) -> 15 v 17 | I20: 14 v 16 | J20: 5 v 10 | K20: 7 v 10 | L20: 4 v 16 | O20: Team 5 | P20: =VLOOKUP(O20,'LEAGUE MEMBERSHIP'!$I:$M,3,FALSE)&" / "&VLOOKUP(O20,'LEAGUE MEMBERSHIP'!$I:$M,5,FALSE) -> Dennis Normandin / Mark Normandin
C21: =IF($H$34="First Half",IF(C61="","",C61),IF($H$34="Second Half",IF(C81="","",C81),"")) -> 4:08 | D21: 16 v 7 | E21: 18 v 20 | F21: 14 v 9 | G21: 3 v 6 | H21: 5 v 6 | I21: 13 v 17 | J21: 11 v 17 | K21: 8 v 9 | L21: 8 v 20 | O21: Team 6 | P21: =VLOOKUP(O21,'LEAGUE MEMBERSHIP'!$I:$M,3,FALSE)&" / "&VLOOKUP(O21,'LEAGUE MEMBERSHIP'!$I:$M,5,FALSE) -> Vance Butterfield / Bob Schleyer
C22: =IF($H$34="First Half",IF(C62="","",C62),IF($H$34="Second Half",IF(C82="","",C82),"")) -> 4:16 | D22: 17 v 8 | E22: 16 v 9 | F22: 16 v 20 | G22: 2 v 7 | H22: 1 v 16 | I22: 4 v 9 | J22: 1 v 14 | K22: 6 v 20 | L22: 1 v 12 | O22: Team 7 | P22: =VLOOKUP(O22,'LEAGUE MEMBERSHIP'!$I:$M,3,FALSE)&" / "&VLOOKUP(O22,'LEAGUE MEMBERSHIP'!$I:$M,5,FALSE) -> Steve Scapparone / Dave Hyre
C23: =IF($H$34="First Half",IF(C63="","",C63),IF($H$34="Second Half",IF(C83="","",C83),"")) -> 4:24 | D23: 12 v 3 | E23: 11 v 4 | F23: 11 v 6 | G23: 11 v 8 | H23: 11 v 10 | I23: 2 v 20 | J23: 7 v 8 | K23: 11 v 15 | L23: 2 v 14 | O23: Team 8 | P23: =VLOOKUP(O23,'LEAGUE MEMBERSHIP'!$I:$M,3,FALSE)&" / "&VLOOKUP(O23,'LEAGUE MEMBERSHIP'!$I:$M,5,FALSE) -> Mike Sunderland / Debbie Sunderland
C24: =IF($H$34="First Half",IF(C64="","",C64),IF($H$34="Second Half",IF(C84="","",C84),"")) -> 4:32 | D24: 14 v 5 | E24: 14 v 7 | F24: 3 v 4 | G24: 13 v 10 | H24: 2 v 9 | I24: 5 v 8 | J24: 13 v 15 | K24: 5 v 19 | L24: 5 v 17 | O24: Team 9 | P24: =VLOOKUP(O24,'LEAGUE MEMBERSHIP'!$I:$M,3,FALSE)&" / "&VLOOKUP(O24,'LEAGUE MEMBERSHIP'!$I:$M,5,FALSE) -> Mike Doane / John Cassin
C25: =IF($H$34="First Half",IF(C65="","",C65),IF($H$34="Second Half",IF(C85="","",C85),"")) -> 4:40 | D25: 13 v 4 | E25: 13 v 6 | F25: 17 v 19 | G25: 16 v 18 | H25: 12 v 20 | I25: 3 v 10 | J25: 3 v 19 | K25: 3 v 17 | L25: 3 v 15 | O25: Team 10 | P25: =VLOOKUP(O25,'LEAGUE MEMBERSHIP'!$I:$M,3,FALSE)&" / "&VLOOKUP(O25,'LEAGUE MEMBERSHIP'!$I:$M,5,FALSE) -> Ron Eckstrom / Beth Romano
C26: =IF($H$34="First Half",IF(C66="","",C66),IF($H$34="Second Half",IF(C86="","",C86),"")) -> 4:48 | D26: 1 v 20 | E26: 2 v 3 | F26: 15 v 10 | G26: 1 v 17 | H26: 3 v 8 | I26: 11 v 19 | J26: 6 v 9 | K26: 4 v 18 | L26: 9 v 10 | O26: Team 11 | P26: =VLOOKUP(O26,'LEAGUE MEMBERSHIP'!$I:$M,3,FALSE)&" / "&VLOOKUP(O26,'LEAGUE MEMBERSHIP'!$I:$M,5,FALSE) -> Ray Henderson / Zachary Wallace
C27: =IF($H$34="First Half",IF(C67="","",C67),IF($H$34="Second Half",IF(C87="","",C87),"")) -> 4:56 | D27: 18 v 9 | E27: 15 v 8 | F27: 2 v 5 | G27: 4 v 5 | H27: 14 v 18 | I27: 6 v 7 | J27: 4 v 20 | K27: 2 v 16 | L27: 7 v 19 | O27: Team 12 | P27: =VLOOKUP(O27,'LEAGUE MEMBERSHIP'!$I:$M,3,FALSE)&" / "&VLOOKUP(O27,'LEAGUE MEMBERSHIP'!$I:$M,5,FALSE) -> Sal Cuifetti / Paul LeBlanc
C28: =IF($H$34="First Half",IF(C68="","",C68),IF($H$34="Second Half",IF(C88="","",C88),"")) -> 5:04 | D28: 19 v 10 | E28: 1 v 19 | F28: 13 v 8 | G28: 15 v 19 | H28: 4 v 7 | I28: 12 v 18 | J28: 2 v 18 | K28: 1 v 13 | L28: 11 v 13 | O28: Team 13 | P28: =VLOOKUP(O28,'LEAGUE MEMBERSHIP'!$I:$M,3,FALSE)&" / "&VLOOKUP(O28,'LEAGUE MEMBERSHIP'!$I:$M,5,FALSE) -> Kyle Currier / Walter Drake
C29: =IF($H$34="First Half",IF(C69="","",C69),IF($H$34="Second Half",IF(C89="","",C89),"")) -> 5:12 | D29: 15 v 6 | E29: 17 v 10 | F29: 12 v 7 | G29: 12 v 9 | H29: 13 v 19 | I29: 1 v 15 | J29: 12 v 16 | K29: 12 v 14 | L29: 6 v 18 | O29: Team 14 | P29: =VLOOKUP(O29,'LEAGUE MEMBERSHIP'!$I:$M,3,FALSE)&" / "&VLOOKUP(O29,'LEAGUE MEMBERSHIP'!$I:$M,5,FALSE) -> Doug Cormier / Ralph Romano, Jr.
D30: =IF($H$34="First Half",IF(D70="","",D70),IF($H$34="Second Half",IF(D90="","",D90),"")) ->  | O30: Team 15 | P30: =VLOOKUP(O30,'LEAGUE MEMBERSHIP'!$I:$M,3,FALSE)&" / "&VLOOKUP(O30,'LEAGUE MEMBERSHIP'!$I:$M,5,FALSE) -> Tim Hurley / John Elie
C31: Closest to Pin | D31: =IF($H$34="First Half",IF(D71="","",D71),IF($H$34="Second Half",IF(D91="","",D91),"")) -> 8 | E31: 16 | F31: 6 | G31: 14 | H31: 8 | I31: 16 | J31: 6 | K31: 14 | L31: 8 | O31: Team 16 | P31: =VLOOKUP(O31,'LEAGUE MEMBERSHIP'!$I:$M,3,FALSE)&" / "&VLOOKUP(O31,'LEAGUE MEMBERSHIP'!$I:$M,5,FALSE) -> Deb DeCarolis / Joey DeCarolis
D32: =D16 -> Week 1 | E32: =E16 -> Week 2 | F32: Week 3 | G32: Week 4 | H32: Week 5 | I32: Week 6 | J32: Week 7 | K32: Week 8 | L32: Week 9 | O32: Team 17 | P32: =VLOOKUP(O32,'LEAGUE MEMBERSHIP'!$I:$M,3,FALSE)&" / "&VLOOKUP(O32,'LEAGUE MEMBERSHIP'!$I:$M,5,FALSE) -> Gary Bittner / Mike Dauphinais
O33: Team 18 | P33: =VLOOKUP(O33,'LEAGUE MEMBERSHIP'!$I:$M,3,FALSE)&" / "&VLOOKUP(O33,'LEAGUE MEMBERSHIP'!$I:$M,5,FALSE) -> Norm Gamache / Michelle Bouvier
H34: Second Half | O34: Team 19 | P34: =VLOOKUP(O34,'LEAGUE MEMBERSHIP'!$I:$M,3,FALSE)&" / "&VLOOKUP(O34,'LEAGUE MEMBERSHIP'!$I:$M,5,FALSE) -> Gary Leavenworth / Patty Leavenworth
O35: Team 20 | P35: =VLOOKUP(O35,'LEAGUE MEMBERSHIP'!$I:$M,3,FALSE)&" / "&VLOOKUP(O35,'LEAGUE MEMBERSHIP'!$I:$M,5,FALSE) -> Paul Fontaine / Ralph Romano III
O36: Team 21 | P36: =VLOOKUP(O36,'LEAGUE MEMBERSHIP'!$I:$M,3,FALSE)&" / "&VLOOKUP(O36,'LEAGUE MEMBERSHIP'!$I:$M,5,FALSE) -> /
O37: Team 22 | P37: =VLOOKUP(O37,'LEAGUE MEMBERSHIP'!$I:$M,3,FALSE)&" / "&VLOOKUP(O37,'LEAGUE MEMBERSHIP'!$I:$M,5,FALSE) -> /
C55: =SCHEDULE!C51 -> Schedule - First Half 2013
C56: Week | D56: =IF(SCHEDULE!D52<>"",SCHEDULE!D52,"") -> Week 1 | E56: =IF(SCHEDULE!E52<>"",SCHEDULE!E52,"") -> Week 2 | F56: =IF(SCHEDULE!F52<>"",SCHEDULE!F52,"") -> Week 3 | G56: =IF(SCHEDULE!G52<>"",SCHEDULE!G52,"") -> Week 4 | H56: =IF(SCHEDULE!H52<>"",SCHEDULE!H52,"") -> Week 5 | I56: =IF(SCHEDULE!I52<>"",SCHEDULE!I52,"") -> Week 6 | J56: =IF(SCHEDULE!J52<>"",SCHEDULE!J52,"") -> Week 7 | K56: =IF(SCHEDULE!K52<>"",SCHEDULE!K52,"") -> Week 8 | L56: =IF(SCHEDULE!L52<>"",SCHEDULE!L52,"") -> Week 9 | M56: =SCHEDULE!M11 -> 
C57: Date | D57: =IF(SCHEDULE!D53<>"",SCHEDULE!D53,"") -> 2013-04-24 | E57: =IF(SCHEDULE!E53<>"",SCHEDULE!E53,"") -> 2013-05-01 | F57: =IF(SCHEDULE!F53<>"",SCHEDULE!F53,"") -> 2013-05-08 | G57: =IF(SCHEDULE!G53<>"",SCHEDULE!G53,"") -> 2013-05-15 | H57: =IF(SCHEDULE!H53<>"",SCHEDULE!H53,"") -> 2013-05-22 | I57: =IF(SCHEDULE!I53<>"",SCHEDULE!I53,"") -> 2013-05-29 | J57: =IF(SCHEDULE!J53<>"",SCHEDULE!J53,"") -> 2013-06-05 | K57: =IF(SCHEDULE!K53<>"",SCHEDULE!K53,"") -> 2013-06-12 | L57: =IF(SCHEDULE!L53<>"",SCHEDULE!L53,"") -> 2013-06-19 | M57: =SCHEDULE!M12 -> 
C58: Side | D58: =IF(SCHEDULE!D54<>"",SCHEDULE!D54,"") -> FRONT | E58: =IF(SCHEDULE!E54<>"",SCHEDULE!E54,"") -> BACK | F58: =IF(SCHEDULE!F54<>"",SCHEDULE!F54,"") -> FRONT | G58: =IF(SCHEDULE!G54<>"",SCHEDULE!G54,"") -> BACK | H58: =IF(SCHEDULE!H54<>"",SCHEDULE!H54,"") -> FRONT | I58: =IF(SCHEDULE!I54<>"",SCHEDULE!I54,"") -> BACK | J58: =IF(SCHEDULE!J54<>"",SCHEDULE!J54,"") -> FRONT | K58: =IF(SCHEDULE!K54<>"",SCHEDULE!K54,"") -> BACK | L58: =IF(SCHEDULE!L54<>"",SCHEDULE!L54,"") -> FRONT | M58: =SCHEDULE!M13 -> 
C59: Tee Time
C60: =IF(SCHEDULE!C56<>"",SCHEDULE!C56,"") -> 4:00 | D60: =IF(SCHEDULE!D56<>"",SCHEDULE!D56,"") -> 4 v 14 | E60: =IF(SCHEDULE!E56<>"",SCHEDULE!E56,"") -> 8 v 16 | F60: =IF(SCHEDULE!F56<>"",SCHEDULE!F56,"") -> 9 v 15 | G60: =IF(SCHEDULE!G56<>"",SCHEDULE!G56,"") -> 8 v 12 | H60: =IF(SCHEDULE!H56<>"",SCHEDULE!H56,"") -> 20 v 13 | I60: =IF(SCHEDULE!I56<>"",SCHEDULE!I56,"") -> 9 v 3 | J60: =IF(SCHEDULE!J56<>"",SCHEDULE!J56,"") -> 16 v 13 | K60: =IF(SCHEDULE!K56<>"",SCHEDULE!K56,"") -> 1 v 8 | L60: =IF(SCHEDULE!L56<>"",SCHEDULE!L56,"") -> 18 v 5 | M60: =SCHEDULE!M16 -> 
C61: =IF(SCHEDULE!C57<>"",SCHEDULE!C57,"") -> 4:08 | D61: =IF(SCHEDULE!D57<>"",SCHEDULE!D57,"") -> 5 v 15 | E61: =IF(SCHEDULE!E57<>"",SCHEDULE!E57,"") -> 3 v 11 | F61: =IF(SCHEDULE!F57<>"",SCHEDULE!F57,"") -> 5 v 11 | G61: =IF(SCHEDULE!G57<>"",SCHEDULE!G57,"") -> 1 v 4 | H61: =IF(SCHEDULE!H57<>"",SCHEDULE!H57,"") -> 6 v 4 | I61: =IF(SCHEDULE!I57<>"",SCHEDULE!I57,"") -> 20 v 11 | J61: =IF(SCHEDULE!J57<>"",SCHEDULE!J57,"") -> 20 v 3 | K61: =IF(SCHEDULE!K57<>"",SCHEDULE!K57,"") -> 15 v 12 | L61: =IF(SCHEDULE!L57<>"",SCHEDULE!L57,"") -> 15 v 2 | M61: =SCHEDULE!M17 -> 
C62: =IF(SCHEDULE!C58<>"",SCHEDULE!C58,"") -> 4:16 | D62: =IF(SCHEDULE!D58<>"",SCHEDULE!D58,"") -> 1 v 11 | E62: =IF(SCHEDULE!E58<>"",SCHEDULE!E58,"") -> 1 v 2 | F62: =IF(SCHEDULE!F58<>"",SCHEDULE!F58,"") -> 1 v 3 | G62: =IF(SCHEDULE!G58<>"",SCHEDULE!G58,"") -> 9 v 13 | H62: =IF(SCHEDULE!H58<>"",SCHEDULE!H58,"") -> 1 v 5 | I62: =IF(SCHEDULE!I58<>"",SCHEDULE!I58,"") -> 1 v 6 | J62: =IF(SCHEDULE!J58<>"",SCHEDULE!J58,"") -> 8 v 6 | K62: =IF(SCHEDULE!K58<>"",SCHEDULE!K58,"") -> 16 v 11 | L62: =IF(SCHEDULE!L58<>"",SCHEDULE!L58,"") -> 20 v 7 | M62: =SCHEDULE!M18 -> 
C63: =IF(SCHEDULE!C59<>"",SCHEDULE!C59,"") -> 4:24 | D63: =IF(SCHEDULE!D59<>"",SCHEDULE!D59,"") -> 3 v 13 | E63: =IF(SCHEDULE!E59<>"",SCHEDULE!E59,"") -> 9 v 17 | F63: =IF(SCHEDULE!F59<>"",SCHEDULE!F59,"") -> 6 v 12 | G63: =IF(SCHEDULE!G59<>"",SCHEDULE!G59,"") -> 20 v 15 | H63: =IF(SCHEDULE!H59<>"",SCHEDULE!H59,"") -> 18 v 15 | I63: =IF(SCHEDULE!I59<>"",SCHEDULE!I59,"") -> 19 v 12 | J63: =IF(SCHEDULE!J59<>"",SCHEDULE!J59,"") -> 9 v 5 | K63: =IF(SCHEDULE!K59<>"",SCHEDULE!K59,"") -> 18 v 3 | L63: =IF(SCHEDULE!L59<>"",SCHEDULE!L59,"") -> 16 v 3 | M63: =SCHEDULE!M19 -> 
C64: =IF(SCHEDULE!C60<>"",SCHEDULE!C60,"") -> 4:32 | D64: =IF(SCHEDULE!D60<>"",SCHEDULE!D60,"") -> 7 v 17 | E64: =IF(SCHEDULE!E60<>"",SCHEDULE!E60,"") -> 6 v 14 | F64: =IF(SCHEDULE!F60<>"",SCHEDULE!F60,"") -> 20 v 17 | G64: =IF(SCHEDULE!G60<>"",SCHEDULE!G60,"") -> 6 v 2 | H64: =IF(SCHEDULE!H60<>"",SCHEDULE!H60,"") -> 9 v 11 | I64: =IF(SCHEDULE!I60<>"",SCHEDULE!I60,"") -> 16 v 15 | J64: =IF(SCHEDULE!J60<>"",SCHEDULE!J60,"") -> 17 v 12 | K64: =IF(SCHEDULE!K60<>"",SCHEDULE!K60,"") -> 10 v 6 | L64: =IF(SCHEDULE!L60<>"",SCHEDULE!L60,"") -> 13 v 12 | M64: =SCHEDULE!M20 -> 
C65: =IF(SCHEDULE!C61<>"",SCHEDULE!C61,"") -> 4:40 | D65: =IF(SCHEDULE!D61<>"",SCHEDULE!D61,"") -> 8 v 18 | E65: =IF(SCHEDULE!E61<>"",SCHEDULE!E61,"") -> 4 v 12 | F65: =IF(SCHEDULE!F61<>"",SCHEDULE!F61,"") -> 4 v 2 | G65: =IF(SCHEDULE!G61<>"",SCHEDULE!G61,"") -> 18 v 17 | H65: =IF(SCHEDULE!H61<>"",SCHEDULE!H61,"") -> 10 v 12 | I65: =IF(SCHEDULE!I61<>"",SCHEDULE!I61,"") -> 17 v 14 | J65: =IF(SCHEDULE!J61<>"",SCHEDULE!J61,"") -> 18 v 11 | K65: =IF(SCHEDULE!K61<>"",SCHEDULE!K61,"") -> 20 v 5 | L65: =IF(SCHEDULE!L61<>"",SCHEDULE!L61,"") -> 14 v 11 | M65: =SCHEDULE!M21 -> 
C66: =IF(SCHEDULE!C62<>"",SCHEDULE!C62,"") -> 4:48 | D66: =IF(SCHEDULE!D62<>"",SCHEDULE!D62,"") -> 9 v 19 | E66: =IF(SCHEDULE!E62<>"",SCHEDULE!E62,"") -> 10 v 18 | F66: =IF(SCHEDULE!F62<>"",SCHEDULE!F62,"") -> 10 v 16 | G66: =IF(SCHEDULE!G62<>"",SCHEDULE!G62,"") -> 10 v 14 | H66: =IF(SCHEDULE!H62<>"",SCHEDULE!H62,"") -> 19 v 14 | I66: =IF(SCHEDULE!I62<>"",SCHEDULE!I62,"") -> 18 v 13 | J66: =IF(SCHEDULE!J62<>"",SCHEDULE!J62,"") -> 1 v 7 | K66: =IF(SCHEDULE!K62<>"",SCHEDULE!K62,"") -> 17 v 2 | L66: =IF(SCHEDULE!L62<>"",SCHEDULE!L62,"") -> 17 v 4 | M66: =SCHEDULE!M22 -> 
C67: =IF(SCHEDULE!C63<>"",SCHEDULE!C63,"") -> 4:56 | D67: =IF(SCHEDULE!D63<>"",SCHEDULE!D63,"") -> 2 v 12 | E67: =IF(SCHEDULE!E63<>"",SCHEDULE!E63,"") -> 7 v 15 | F67: =IF(SCHEDULE!F63<>"",SCHEDULE!F63,"") -> 19 v 18 | G67: =IF(SCHEDULE!G63<>"",SCHEDULE!G63,"") -> 7 v 11 | H67: =IF(SCHEDULE!H63<>"",SCHEDULE!H63,"") -> 7 v 3 | I67: =IF(SCHEDULE!I63<>"",SCHEDULE!I63,"") -> 10 v 2 | J67: =IF(SCHEDULE!J63<>"",SCHEDULE!J63,"") -> 19 v 2 | K67: =IF(SCHEDULE!K63<>"",SCHEDULE!K63,"") -> 14 v 13 | L67: =IF(SCHEDULE!L63<>"",SCHEDULE!L63,"") -> 19 v 6 | M67: =SCHEDULE!M23 -> 
C68: =IF(SCHEDULE!C64<>"",SCHEDULE!C64,"") -> 5:04 | D68: =IF(SCHEDULE!D64<>"",SCHEDULE!D64,"") -> 6 v 16 | E68: =IF(SCHEDULE!E64<>"",SCHEDULE!E64,"") -> 20 v 19 | F68: =IF(SCHEDULE!F64<>"",SCHEDULE!F64,"") -> 8 v 14 | G68: =IF(SCHEDULE!G64<>"",SCHEDULE!G64,"") -> 19 v 16 | H68: =IF(SCHEDULE!H64<>"",SCHEDULE!H64,"") -> 17 v 16 | I68: =IF(SCHEDULE!I64<>"",SCHEDULE!I64,"") -> 8 v 4 | J68: =IF(SCHEDULE!J64<>"",SCHEDULE!J64,"") -> 15 v 14 | K68: =IF(SCHEDULE!K64<>"",SCHEDULE!K64,"") -> 19 v 4 | L68: =IF(SCHEDULE!L64<>"",SCHEDULE!L64,"") -> 1 v 9 | M68: =SCHEDULE!M24 -> 
C69: =IF(SCHEDULE!C65<>"",SCHEDULE!C65,"") -> 5:12 | D69: =IF(SCHEDULE!D65<>"",SCHEDULE!D65,"") -> 10 v 20 | E69: =IF(SCHEDULE!E65<>"",SCHEDULE!E65,"") -> 5 v 13 | F69: =IF(SCHEDULE!F65<>"",SCHEDULE!F65,"") -> 7 v 13 | G69: =IF(SCHEDULE!G65<>"",SCHEDULE!G65,"") -> 5 v 3 | H69: =IF(SCHEDULE!H65<>"",SCHEDULE!H65,"") -> 8 v 2 | I69: =IF(SCHEDULE!I65<>"",SCHEDULE!I65,"") -> 7 v 5 | J69: =IF(SCHEDULE!J65<>"",SCHEDULE!J65,"") -> 10 v 4 | K69: =IF(SCHEDULE!K65<>"",SCHEDULE!K65,"") -> 9 v 7 | L69: =IF(SCHEDULE!L65<>"",SCHEDULE!L65,"") -> 10 v 8 | M69: =SCHEDULE!M25 -> 
C70: =IF(SCHEDULE!C66<>"",SCHEDULE!C66,"") ->  | D70: =IF(SCHEDULE!D66<>"",SCHEDULE!D66,"") ->  | E70: =IF(SCHEDULE!E66<>"",SCHEDULE!E66,"") ->  | F70: =IF(SCHEDULE!F66<>"",SCHEDULE!F66,"") ->  | G70: =IF(SCHEDULE!G66<>"",SCHEDULE!G66,"") ->  | H70: =IF(SCHEDULE!H66<>"",SCHEDULE!H66,"") ->  | I70: =IF(SCHEDULE!I66<>"",SCHEDULE!I66,"") ->  | J70: =IF(SCHEDULE!J66<>"",SCHEDULE!J66,"") ->  | K70: =IF(SCHEDULE!K66<>"",SCHEDULE!K66,"") ->  | L70: =IF(SCHEDULE!L66<>"",SCHEDULE!L66,"") ->  | M70: =SCHEDULE!M26 -> 
C71: Closest to Pin | D71: =IF(SCHEDULE!D67<>"",SCHEDULE!D67,"") -> 6 | E71: =IF(SCHEDULE!E67<>"",SCHEDULE!E67,"") -> 14 | F71: =IF(SCHEDULE!F67<>"",SCHEDULE!F67,"") -> 8 | G71: =IF(SCHEDULE!G67<>"",SCHEDULE!G67,"") -> 16 | H71: =IF(SCHEDULE!H67<>"",SCHEDULE!H67,"") -> 6 | I71: =IF(SCHEDULE!I67<>"",SCHEDULE!I67,"") -> 14 | J71: =IF(SCHEDULE!J67<>"",SCHEDULE!J67,"") -> 8 | K71: =IF(SCHEDULE!K67<>"",SCHEDULE!K67,"") -> 16 | L71: =IF(SCHEDULE!L67<>"",SCHEDULE!L67,"") -> 6 | M71: =SCHEDULE!M27 -> 
C75: =SCHEDULE!C71 -> Schedule - Second Half 2013
C76: Week | D76: =IF(SCHEDULE!D72<>"",SCHEDULE!D72,"") -> Week 1 | E76: =IF(SCHEDULE!E72<>"",SCHEDULE!E72,"") -> Week 2 | F76: =IF(SCHEDULE!F72<>"",SCHEDULE!F72,"") -> Week 3 | G76: =IF(SCHEDULE!G72<>"",SCHEDULE!G72,"") -> Week 4 | H76: =IF(SCHEDULE!H72<>"",SCHEDULE!H72,"") -> Week 5 | I76: =IF(SCHEDULE!I72<>"",SCHEDULE!I72,"") -> Week 6 | J76: =IF(SCHEDULE!J72<>"",SCHEDULE!J72,"") -> Week 7 | K76: =IF(SCHEDULE!K72<>"",SCHEDULE!K72,"") -> Week 8 | L76: =IF(SCHEDULE!L72<>"",SCHEDULE!L72,"") -> Week 9 | M76: =IF(SCHEDULE!M72<>"",SCHEDULE!M72,"") -> 
C77: Date | D77: =IF(SCHEDULE!D73<>"",SCHEDULE!D73,"") -> 2013-07-03 | E77: =IF(SCHEDULE!E73<>"",SCHEDULE!E73,"") -> 2013-07-10 | F77: =IF(SCHEDULE!F73<>"",SCHEDULE!F73,"") -> 2013-07-17 | G77: =IF(SCHEDULE!G73<>"",SCHEDULE!G73,"") -> 2013-07-24 | H77: =IF(SCHEDULE!H73<>"",SCHEDULE!H73,"") -> 2013-07-31 | I77: =IF(SCHEDULE!I73<>"",SCHEDULE!I73,"") -> 2013-08-07 | J77: =IF(SCHEDULE!J73<>"",SCHEDULE!J73,"") -> 2013-08-14 | K77: =IF(SCHEDULE!K73<>"",SCHEDULE!K73,"") -> 2013-08-21 | L77: =IF(SCHEDULE!L73<>"",SCHEDULE!L73,"") -> 2013-08-28 | M77: =IF(SCHEDULE!M73<>"",SCHEDULE!M73,"") -> 
C78: Side | D78: =IF(SCHEDULE!D74<>"",SCHEDULE!D74,"") -> FRONT | E78: =IF(SCHEDULE!E74<>"",SCHEDULE!E74,"") -> BACK | F78: =IF(SCHEDULE!F74<>"",SCHEDULE!F74,"") -> FRONT | G78: =IF(SCHEDULE!G74<>"",SCHEDULE!G74,"") -> BACK | H78: =IF(SCHEDULE!H74<>"",SCHEDULE!H74,"") -> FRONT | I78: =IF(SCHEDULE!I74<>"",SCHEDULE!I74,"") -> BACK | J78: =IF(SCHEDULE!J74<>"",SCHEDULE!J74,"") -> FRONT | K78: =IF(SCHEDULE!K74<>"",SCHEDULE!K74,"") -> BACK | L78: =IF(SCHEDULE!L74<>"",SCHEDULE!L74,"") -> FRONT | M78: =IF(SCHEDULE!M74<>"",SCHEDULE!M74,"") -> 
C79: Tee Time | D79: =IF(SCHEDULE!D14="","",SCHEDULE!D14) ->  | E79: =IF(SCHEDULE!E14="","",SCHEDULE!E14) ->  | F79: =IF(SCHEDULE!F14="","",SCHEDULE!F14) ->  | G79: =IF(SCHEDULE!G14="","",SCHEDULE!G14) ->  | H79: =IF(SCHEDULE!H14="","",SCHEDULE!H14) ->  | I79: =IF(SCHEDULE!I14="","",SCHEDULE!I14) ->  | J79: =IF(SCHEDULE!J14="","",SCHEDULE!J14) ->  | K79: =IF(SCHEDULE!K14="","",SCHEDULE!K14) ->  | L79: =IF(SCHEDULE!L14="","",SCHEDULE!L14) ->  | M79: =IF(SCHEDULE!M14="","",SCHEDULE!M14) -> 
C80: =IF(SCHEDULE!C76<>"",SCHEDULE!C76,"") -> 4:00 | D80: =IF(SCHEDULE!D76<>"",SCHEDULE!D76,"") -> 11 v 2 | E80: =IF(SCHEDULE!E76<>"",SCHEDULE!E76,"") -> 12 v 5 | F80: =IF(SCHEDULE!F76<>"",SCHEDULE!F76,"") -> 1 v 18 | G80: =IF(SCHEDULE!G76<>"",SCHEDULE!G76,"") -> 14 v 20 | H80: =IF(SCHEDULE!H76<>"",SCHEDULE!H76,"") -> 15 v 17 | I80: =IF(SCHEDULE!I76<>"",SCHEDULE!I76,"") -> 14 v 16 | J80: =IF(SCHEDULE!J76<>"",SCHEDULE!J76,"") -> 5 v 10 | K80: =IF(SCHEDULE!K76<>"",SCHEDULE!K76,"") -> 7 v 10 | L80: =IF(SCHEDULE!L76<>"",SCHEDULE!L76,"") -> 4 v 16
C81: =IF(SCHEDULE!C77<>"",SCHEDULE!C77,"") -> 4:08 | D81: =IF(SCHEDULE!D77<>"",SCHEDULE!D77,"") -> 16 v 7 | E81: =IF(SCHEDULE!E77<>"",SCHEDULE!E77,"") -> 18 v 20 | F81: =IF(SCHEDULE!F77<>"",SCHEDULE!F77,"") -> 14 v 9 | G81: =IF(SCHEDULE!G77<>"",SCHEDULE!G77,"") -> 3 v 6 | H81: =IF(SCHEDULE!H77<>"",SCHEDULE!H77,"") -> 5 v 6 | I81: =IF(SCHEDULE!I77<>"",SCHEDULE!I77,"") -> 13 v 17 | J81: =IF(SCHEDULE!J77<>"",SCHEDULE!J77,"") -> 11 v 17 | K81: =IF(SCHEDULE!K77<>"",SCHEDULE!K77,"") -> 8 v 9 | L81: =IF(SCHEDULE!L77<>"",SCHEDULE!L77,"") -> 8 v 20
C82: =IF(SCHEDULE!C78<>"",SCHEDULE!C78,"") -> 4:16 | D82: =IF(SCHEDULE!D78<>"",SCHEDULE!D78,"") -> 17 v 8 | E82: =IF(SCHEDULE!E78<>"",SCHEDULE!E78,"") -> 16 v 9 | F82: =IF(SCHEDULE!F78<>"",SCHEDULE!F78,"") -> 16 v 20 | G82: =IF(SCHEDULE!G78<>"",SCHEDULE!G78,"") -> 2 v 7 | H82: =IF(SCHEDULE!H78<>"",SCHEDULE!H78,"") -> 1 v 16 | I82: =IF(SCHEDULE!I78<>"",SCHEDULE!I78,"") -> 4 v 9 | J82: =IF(SCHEDULE!J78<>"",SCHEDULE!J78,"") -> 1 v 14 | K82: =IF(SCHEDULE!K78<>"",SCHEDULE!K78,"") -> 6 v 20 | L82: =IF(SCHEDULE!L78<>"",SCHEDULE!L78,"") -> 1 v 12
C83: =IF(SCHEDULE!C79<>"",SCHEDULE!C79,"") -> 4:24 | D83: =IF(SCHEDULE!D79<>"",SCHEDULE!D79,"") -> 12 v 3 | E83: =IF(SCHEDULE!E79<>"",SCHEDULE!E79,"") -> 11 v 4 | F83: =IF(SCHEDULE!F79<>"",SCHEDULE!F79,"") -> 11 v 6 | G83: =IF(SCHEDULE!G79<>"",SCHEDULE!G79,"") -> 11 v 8 | H83: =IF(SCHEDULE!H79<>"",SCHEDULE!H79,"") -> 11 v 10 | I83: =IF(SCHEDULE!I79<>"",SCHEDULE!I79,"") -> 2 v 20 | J83: =IF(SCHEDULE!J79<>"",SCHEDULE!J79,"") -> 7 v 8 | K83: =IF(SCHEDULE!K79<>"",SCHEDULE!K79,"") -> 11 v 15 | L83: =IF(SCHEDULE!L79<>"",SCHEDULE!L79,"") -> 2 v 14
C84: =IF(SCHEDULE!C80<>"",SCHEDULE!C80,"") -> 4:32 | D84: =IF(SCHEDULE!D80<>"",SCHEDULE!D80,"") -> 14 v 5 | E84: =IF(SCHEDULE!E80<>"",SCHEDULE!E80,"") -> 14 v 7 | F84: =IF(SCHEDULE!F80<>"",SCHEDULE!F80,"") -> 3 v 4 | G84: =IF(SCHEDULE!G80<>"",SCHEDULE!G80,"") -> 13 v 10 | H84: =IF(SCHEDULE!H80<>"",SCHEDULE!H80,"") -> 2 v 9 | I84: =IF(SCHEDULE!I80<>"",SCHEDULE!I80,"") -> 5 v 8 | J84: =IF(SCHEDULE!J80<>"",SCHEDULE!J80,"") -> 13 v 15 | K84: =IF(SCHEDULE!K80<>"",SCHEDULE!K80,"") -> 5 v 19 | L84: =IF(SCHEDULE!L80<>"",SCHEDULE!L80,"") -> 5 v 17
C85: =IF(SCHEDULE!C81<>"",SCHEDULE!C81,"") -> 4:40 | D85: =IF(SCHEDULE!D81<>"",SCHEDULE!D81,"") -> 13 v 4 | E85: =IF(SCHEDULE!E81<>"",SCHEDULE!E81,"") -> 13 v 6 | F85: =IF(SCHEDULE!F81<>"",SCHEDULE!F81,"") -> 17 v 19 | G85: =IF(SCHEDULE!G81<>"",SCHEDULE!G81,"") -> 16 v 18 | H85: =IF(SCHEDULE!H81<>"",SCHEDULE!H81,"") -> 12 v 20 | I85: =IF(SCHEDULE!I81<>"",SCHEDULE!I81,"") -> 3 v 10 | J85: =IF(SCHEDULE!J81<>"",SCHEDULE!J81,"") -> 3 v 19 | K85: =IF(SCHEDULE!K81<>"",SCHEDULE!K81,"") -> 3 v 17 | L85: =IF(SCHEDULE!L81<>"",SCHEDULE!L81,"") -> 3 v 15
C86: =IF(SCHEDULE!C82<>"",SCHEDULE!C82,"") -> 4:48 | D86: =IF(SCHEDULE!D82<>"",SCHEDULE!D82,"") -> 1 v 20 | E86: =IF(SCHEDULE!E82<>"",SCHEDULE!E82,"") -> 2 v 3 | F86: =IF(SCHEDULE!F82<>"",SCHEDULE!F82,"") -> 15 v 10 | G86: =IF(SCHEDULE!G82<>"",SCHEDULE!G82,"") -> 1 v 17 | H86: =IF(SCHEDULE!H82<>"",SCHEDULE!H82,"") -> 3 v 8 | I86: =IF(SCHEDULE!I82<>"",SCHEDULE!I82,"") -> 11 v 19 | J86: =IF(SCHEDULE!J82<>"",SCHEDULE!J82,"") -> 6 v 9 | K86: =IF(SCHEDULE!K82<>"",SCHEDULE!K82,"") -> 4 v 18 | L86: =IF(SCHEDULE!L82<>"",SCHEDULE!L82,"") -> 9 v 10
C87: =IF(SCHEDULE!C83<>"",SCHEDULE!C83,"") -> 4:56 | D87: =IF(SCHEDULE!D83<>"",SCHEDULE!D83,"") -> 18 v 9 | E87: =IF(SCHEDULE!E83<>"",SCHEDULE!E83,"") -> 15 v 8 | F87: =IF(SCHEDULE!F83<>"",SCHEDULE!F83,"") -> 2 v 5 | G87: =IF(SCHEDULE!G83<>"",SCHEDULE!G83,"") -> 4 v 5 | H87: =IF(SCHEDULE!H83<>"",SCHEDULE!H83,"") -> 14 v 18 | I87: =IF(SCHEDULE!I83<>"",SCHEDULE!I83,"") -> 6 v 7 | J87: =IF(SCHEDULE!J83<>"",SCHEDULE!J83,"") -> 4 v 20 | K87: =IF(SCHEDULE!K83<>"",SCHEDULE!K83,"") -> 2 v 16 | L87: =IF(SCHEDULE!L83<>"",SCHEDULE!L83,"") -> 7 v 19
C88: =IF(SCHEDULE!C84<>"",SCHEDULE!C84,"") -> 5:04 | D88: =IF(SCHEDULE!D84<>"",SCHEDULE!D84,"") -> 19 v 10 | E88: =IF(SCHEDULE!E84<>"",SCHEDULE!E84,"") -> 1 v 19 | F88: =IF(SCHEDULE!F84<>"",SCHEDULE!F84,"") -> 13 v 8 | G88: =IF(SCHEDULE!G84<>"",SCHEDULE!G84,"") -> 15 v 19 | H88: =IF(SCHEDULE!H84<>"",SCHEDULE!H84,"") -> 4 v 7 | I88: =IF(SCHEDULE!I84<>"",SCHEDULE!I84,"") -> 12 v 18 | J88: =IF(SCHEDULE!J84<>"",SCHEDULE!J84,"") -> 2 v 18 | K88: =IF(SCHEDULE!K84<>"",SCHEDULE!K84,"") -> 1 v 13 | L88: =IF(SCHEDULE!L84<>"",SCHEDULE!L84,"") -> 11 v 13
C89: =IF(SCHEDULE!C85<>"",SCHEDULE!C85,"") -> 5:12 | D89: =IF(SCHEDULE!D85<>"",SCHEDULE!D85,"") -> 15 v 6 | E89: =IF(SCHEDULE!E85<>"",SCHEDULE!E85,"") -> 17 v 10 | F89: =IF(SCHEDULE!F85<>"",SCHEDULE!F85,"") -> 12 v 7 | G89: =IF(SCHEDULE!G85<>"",SCHEDULE!G85,"") -> 12 v 9 | H89: =IF(SCHEDULE!H85<>"",SCHEDULE!H85,"") -> 13 v 19 | I89: =IF(SCHEDULE!I85<>"",SCHEDULE!I85,"") -> 1 v 15 | J89: =IF(SCHEDULE!J85<>"",SCHEDULE!J85,"") -> 12 v 16 | K89: =IF(SCHEDULE!K85<>"",SCHEDULE!K85,"") -> 12 v 14 | L89: =IF(SCHEDULE!L85<>"",SCHEDULE!L85,"") -> 6 v 18
C90: =IF(SCHEDULE!C86<>"",SCHEDULE!C86,"") ->  | D90: =IF(SCHEDULE!D86<>"",SCHEDULE!D86,"") ->  | E90: =IF(SCHEDULE!E86<>"",SCHEDULE!E86,"") ->  | F90: =IF(SCHEDULE!F86<>"",SCHEDULE!F86,"") ->  | G90: =IF(SCHEDULE!G86<>"",SCHEDULE!G86,"") ->  | H90: =IF(SCHEDULE!H86<>"",SCHEDULE!H86,"") ->  | I90: =IF(SCHEDULE!I86<>"",SCHEDULE!I86,"") ->  | J90: =IF(SCHEDULE!J86<>"",SCHEDULE!J86,"") ->  | K90: =IF(SCHEDULE!K86<>"",SCHEDULE!K86,"") -> 
C91: Closest to Pin | D91: =IF(SCHEDULE!D87<>"",SCHEDULE!D87,"") -> 8 | E91: =IF(SCHEDULE!E87<>"",SCHEDULE!E87,"") -> 16 | F91: =IF(SCHEDULE!F87<>"",SCHEDULE!F87,"") -> 6 | G91: =IF(SCHEDULE!G87<>"",SCHEDULE!G87,"") -> 14 | H91: =IF(SCHEDULE!H87<>"",SCHEDULE!H87,"") -> 8 | I91: =IF(SCHEDULE!I87<>"",SCHEDULE!I87,"") -> 16 | J91: =IF(SCHEDULE!J87<>"",SCHEDULE!J87,"") -> 6 | K91: =IF(SCHEDULE!K87<>"",SCHEDULE!K87,"") -> 14 | L91: =IF(SCHEDULE!L87<>"",SCHEDULE!L87,"") -> 8 | M91: =IF(SCHEDULE!M47<>"",SCHEDULE!M47,"") -> 

Sheet MATCH HISTORY 2
A1: ='COURSE & LEAGUE DETAILS'!$B$3 -> Woods at Westminster | T1: =IF(ISERROR(VLOOKUP($K$24,$A$75:$BZ$600,54,FALSE)),"No Data Available",VLOOKUP($K$24,$A$75:$BZ$600,54,FALSE)) -> No Data Available
A2: =IF(LEFT(N9,2)="No",'COURSE & LEAGUE DETAILS'!$B$2&" - "&N6&" - "&TEXT(N9,"mmm dd, yyyy"),'COURSE & LEAGUE DETAILS'!$B$2&" - "&N6&" - "&TEXT(N9,"mmm dd, yyyy")&" - "&N8&" Side") -> 
A4: HOLE | D4: =IF(LEFT($N$8)="F",1,IF(LEFT($N$8)="B",10,"ERROR")) -> 1 | E4: =IF(LEFT($N$8)="F",2,IF(LEFT($N$8)="B",11,"ERROR")) -> 2 | F4: =IF(LEFT($N$8)="F",3,IF(LEFT($N$8)="B",12,"ERROR")) -> 3 | G4: =IF(LEFT($N$8)="F",4,IF(LEFT($N$8)="B",13,"ERROR")) -> 4 | H4: =IF(LEFT($N$8)="F",5,IF(LEFT($N$8)="B",14,"ERROR")) -> 5 | I4: =IF(LEFT($N$8)="F",6,IF(LEFT($N$8)="B",15,"ERROR")) -> 6 | J4: =IF(LEFT($N$8)="F",7,IF(LEFT($N$8)="B",16,"ERROR")) -> 7 | K4: =IF(LEFT($N$8)="F",8,IF(LEFT($N$8)="B",17,"ERROR")) -> 8 | L4: =IF(LEFT($N$8)="F",9,IF(LEFT($N$8)="B",18,"ERROR")) -> 9 | M4: =IF(LEFT($N$8)="F","OUT",IF(LEFT($N$8)="B","IN","ERROR")) -> OUT
A5: WHITE | D5: =IF($D$4=1,'COURSE & LEAGUE DETAILS'!$B$6,IF($D$4=10,'COURSE & LEAGUE DETAILS'!$B$14,"ERROR")) -> 460 | E5: =IF($D$4=1,'COURSE & LEAGUE DETAILS'!$C$6,IF($D$4=10,'COURSE & LEAGUE DETAILS'!$C$14,"ERROR")) -> 275 | F5: =IF($D$4=1,'COURSE & LEAGUE DETAILS'!$D$6,IF($D$4=10,'COURSE & LEAGUE DETAILS'!$D$14,"ERROR")) -> 525 | G5: =IF($D$4=1,'COURSE & LEAGUE DETAILS'!$E$6,IF($D$4=10,'COURSE & LEAGUE DETAILS'!$E$14,"ERROR")) -> 295 | H5: =IF($D$4=1,'COURSE & LEAGUE DETAILS'!$F$6,IF($D$4=10,'COURSE & LEAGUE DETAILS'!$F$14,"ERROR")) -> 345 | I5: =IF($D$4=1,'COURSE & LEAGUE DETAILS'!$G$6,IF($D$4=10,'COURSE & LEAGUE DETAILS'!$G$14,"ERROR")) -> 175 | J5: =IF($D$4=1,'COURSE & LEAGUE DETAILS'!$H$6,IF($D$4=10,'COURSE & LEAGUE DETAILS'!$H$14,"ERROR")) -> 405 | K5: =IF($D$4=1,'COURSE & LEAGUE DETAILS'!$I$6,IF($D$4=10,'COURSE & LEAGUE DETAILS'!$I$14,"ERROR")) -> 145 | L5: =IF($D$4=1,'COURSE & LEAGUE DETAILS'!$J$6,IF($D$4=10,'COURSE & LEAGUE DETAILS'!$J$14,"ERROR")) -> 320 | M5: =IF($D$4=1,'COURSE & LEAGUE DETAILS'!$K$6,IF($D$4=10,'COURSE & LEAGUE DETAILS'!$K$14,"ERROR")) -> 2945
A6: MEN'S PAR | D6: =IF($D$4=1,'COURSE & LEAGUE DETAILS'!$B$7,IF($D$4=10,'COURSE & LEAGUE DETAILS'!$B$15,"ERROR")) -> 5 | E6: =IF($D$4=1,'COURSE & LEAGUE DETAILS'!$C$7,IF($D$4=10,'COURSE & LEAGUE DETAILS'!$C$15,"ERROR")) -> 4 | F6: =IF($D$4=1,'COURSE & LEAGUE DETAILS'!$D$7,IF($D$4=10,'COURSE & LEAGUE DETAILS'!$D$15,"ERROR")) -> 5 | G6: =IF($D$4=1,'COURSE & LEAGUE DETAILS'!$E$7,IF($D$4=10,'COURSE & LEAGUE DETAILS'!$E$15,"ERROR")) -> 4 | H6: =IF($D$4=1,'COURSE & LEAGUE DETAILS'!$F$7,IF($D$4=10,'COURSE & LEAGUE DETAILS'!$F$15,"ERROR")) -> 4 | I6: =IF($D$4=1,'COURSE & LEAGUE DETAILS'!$G$7,IF($D$4=10,'COURSE & LEAGUE DETAILS'!$G$15,"ERROR")) -> 3 | J6: =IF($D$4=1,'COURSE & LEAGUE DETAILS'!$H$7,IF($D$4=10,'COURSE & LEAGUE DETAILS'!$H$15,"ERROR")) -> 4 | K6: =IF($D$4=1,'COURSE & LEAGUE DETAILS'!$I$7,IF($D$4=10,'COURSE & LEAGUE DETAILS'!$I$15,"ERROR")) -> 3 | L6: =IF($D$4=1,'COURSE & LEAGUE DETAILS'!$J$7,IF($D$4=10,'COURSE & LEAGUE DETAILS'!$J$15,"ERROR")) -> 4 | M6: =IF($D$4=1,'COURSE & LEAGUE DETAILS'!$K$7,IF($D$4=10,'COURSE & LEAGUE DETAILS'!$K$15,"ERROR")) -> 36 | N6: =IF(ISERROR(VLOOKUP($K$24,$A$75:$BC$600,2,FALSE)),"Team "&LEFT(RIGHT($K$24,LEN($K$24)-5),FIND("v",RIGHT($K$24,LEN($K$24)-5)))&" Team"&RIGHT(LEFT(RIGHT($K$24,LEN($K$24)-5),FIND("v",RIGHT($K$24,LEN($K$24)))),LEN(LEFT(RIGHT($K$24,LEN($K$24)-5),FIND("v",RIGHT($K$24,LEN($K$24)))))-FIND("v",LEFT(RIGHT($K$24,LEN($K$24)-5),FIND("v",RIGHT($K$24,LEN($K$24)))))),VLOOKUP($K$24,$A$75:$BC$600,2,FALSE)) -> 
A7: MEN'S HCP | D7: =IF($D$4=1,'COURSE & LEAGUE DETAILS'!$B$8,IF($D$4=10,'COURSE & LEAGUE DETAILS'!$B$16,"ERROR")) -> 5 | E7: =IF($D$4=1,'COURSE & LEAGUE DETAILS'!$C$8,IF($D$4=10,'COURSE & LEAGUE DETAILS'!$C$16,"ERROR")) -> 7 | F7: =IF($D$4=1,'COURSE & LEAGUE DETAILS'!$D$8,IF($D$4=10,'COURSE & LEAGUE DETAILS'!$D$16,"ERROR")) -> 3 | G7: =IF($D$4=1,'COURSE & LEAGUE DETAILS'!$E$8,IF($D$4=10,'COURSE & LEAGUE DETAILS'!$E$16,"ERROR")) -> 9 | H7: =IF($D$4=1,'COURSE & LEAGUE DETAILS'!$F$8,IF($D$4=10,'COURSE & LEAGUE DETAILS'!$F$16,"ERROR")) -> 11 | I7: =IF($D$4=1,'COURSE & LEAGUE DETAILS'!$G$8,IF($D$4=10,'COURSE & LEAGUE DETAILS'!$G$16,"ERROR")) -> 17 | J7: =IF($D$4=1,'COURSE & LEAGUE DETAILS'!$H$8,IF($D$4=10,'COURSE & LEAGUE DETAILS'!$H$16,"ERROR")) -> 1 | K7: =IF($D$4=1,'COURSE & LEAGUE DETAILS'!$I$8,IF($D$4=10,'COURSE & LEAGUE DETAILS'!$I$16,"ERROR")) -> 15 | L7: =IF($D$4=1,'COURSE & LEAGUE DETAILS'!$J$8,IF($D$4=10,'COURSE & LEAGUE DETAILS'!$J$16,"ERROR")) -> 13 | N7: =LEFT(K24,5) -> 12 v
